Workbook

Sheet Home
B1: Click the top left cell in any tab to return Home
B2: Weekly Reports | C2: Useful Info | D2: Admin (Weekly) | E2: Admin (Other)
B3: League Table | C3: Pics for Publication | D3: Add Matches | E3: Calculations
B4: Weekly Results | C4: Prizes - Summary | D4: Add Predictions | E4: Entrants
B5: Cup Draw | C5: Prizes - Divisional Splits | D5: Add Predictions (double-week) | E5: Last Season Places
B6: Season Diary | C6: FAQ | D6: 1-2-3 Pivot | E6: Brought Forward
B7: Current Week Fixtures | C7: Sample Bets | D7: Top Picks | E7: End of Season Finance
B8: Current Week Predictions | D8: Cup Draw Raw | E8: Mini Leagues

Sheet Players
A1: Prev/Final Pos | B1: Prev/Final Div | C1: Players | D1: Resigned? | E1: Next Div | F1: Closing Balance
A2: 1 | B2: A | C2: Kevin Carter | D2: N | E2: A | H2: Row Labels | I2: Count of Players
A3: 2 | B3: A | C3: Mark Saunders | D3: N | E3: A | H3: A | I3: 16
A4: 3 | B4: A | C4: Alick Rocca | D4: N | E4: A | H4: B | I4: 16
A5: 4 | B5: A | C5: Alfie Davies | D5: N | E5: A | H5: C | I5: 16
A6: 5 | B6: A | C6: Steve Carter | D6: N | E6: A | H6: D | I6: 14
A7: 6 | B7: A | C7: Mo Sudell | D7: N | E7: A | H7: E | I7: 2
A8: 7 | B8: A | C8: Stephen Troop | D8: N | E8: A | H8: (blank)
A9: 8 | B9: A | C9: Paul Fiddler | D9: N | E9: A | H9: Grand Total | I9: 64
A10: 9 | B10: A | C10: Stephen Barr | D10: N | E10: A
A11: 10 | B11: A | C11: Lennie Bow | D11: N | E11: A
A12: 1 | B12: B | C12: Mike Penk | D12: N | E12: A
A13: 2 | B13: B | C13: Alan Rogers | D13: N | E13: A
A14: 3 | B14: B | C14: Oscar Jackson | D14: N | E14: A
A15: 4 | B15: B | C15: Gerard Ventom | D15: N | E15: A
A16: 5 | B16: B | C16: Rob England | D16: N | E16: A
A17: 6 | B17: B | C17: Chris Luck | D17: N | E17: A
A18: 11 | B18: A | C18: Steve Baxter | D18: N | E18: B
A19: 12 | B19: A | C19: Andy White | D19: N | E19: B
A20: 13 | B20: A | C20: Tom Robinson | D20: N | E20: B
A21: 15 | B21: A | C21: Phil Miller | D21: N | E21: B
A22: 16 | B22: A | C22: Gareth Powell | D22: N | E22: B
A23: 7 | B23: B | C23: Barry Birchall | D23: N | E23: B
A24: 8 | B24: B | C24: Nigel Heyes | D24: N | E24: B
A25: 9 | B25: B | C25: Pete Baron | D25: N | E25: B
A26: 1 | B26: C | C26: Dave Bell | D26: N | E26: B
A27: 2 | B27: C | C27: John Evans | D27: N | E27: B
A28: 3 | B28: C | C28: Paul Allen | D28: N | E28: B
A29: 4 | B29: C | C29: Kei Lok Ma | D29: N | E29: B
A30: 5 | B30: C | C30: Vinny Topping | D30: N | E30: B
A31: 6 | B31: C | C31: Mark Bunn | D31: N | E31: B
A32: 7 | B32: C | C32: James Bell | D32: N | E32: B
A33: 8 | B33: C | C33: Martin Molyneux | D33: N | E33: B
A34: 10 | B34: B | C34: Andy Charleston | D34: N | E34: C
A35: 11 | B35: B | C35: Gareth Fallows | D35: N | E35: C
A36: 12 | B36: B | C36: Chris Townsend | D36: N | E36: C
A37: 13 | B37: B | C37: Paul Fairhurst | D37: N | E37: C
A38: 14 | B38: B | C38: Paul Ridgeway | D38: N | E38: C
A39: 15 | B39: B | C39: David Dunn | D39: N | E39: C
A40: 16 | B40: B | C40: Mal Stott | D40: N | E40: C
A41: 9 | B41: C | C41: Chris Griffin | D41: N | E41: C
A42: 10 | B42: C | C42: Ian Davies | D42: N | E42: C
A43: 1 | B43: D | C43: Sally Williams | D43: N | E43: C
A44: 2 | B44: D | C44: Gareth McGuire | D44: N | E44: C
A45: 3 | B45: D | C45: Charlie Griffiths | D45: N | E45: C
A46: 5 | B46: D | C46: Alan White | D46: N | E46: C
A47: 6 | B47: D | C47: Liam Wah | D47: N | E47: C
A48: 7 | B48: D | C48: Chris Bow | D48: N | E48: C
A49: 8 | B49: D | C49: Jack Walsh | D49: N | E49: C
A50: 11 | B50: C | C50: Joel Bent | D50: N | E50: D
A51: 12 | B51: C | C51: Ashley Houghton | D51: N | E51: D
A52: 13 | B52: C | C52: Dave Orrell | D52: N | E52: D
A53: 14 | B53: C | C53: Graham Miller | D53: N | E53: D
A54: 15 | B54: C | C54: Nick Blocksidge | D54: N | E54: D
A55: 16 | B55: C | C55: Howard Bradley | D55: N | E55: D
A56: 9 | B56: D | C56: Simon Greenhalgh | D56: N | E56: D
A57: 10 | B57: D | C57: John Ronan | D57: N | E57: D
A58: 11 | B58: D | C58: Ben Rosser | D58: N | E58: D
A59: 12 | B59: D | C59: Martin Tarbuck | D59: N | E59: D
A60: 13 | B60: D | C60: Paul Adderley | D60: N | E60: D
A61: 14 | B61: D | C61: Dan Baxter | D61: N | E61: D
A62: 15 | B62: D | C62: Lewis Buckley | D62: N | E62: D
A63: 16 | B63: D | C63: Paul Barnes | D63: N | E63: D
A64: 14 | B64: A | C64: Ste Bentley | D64: Y | E64: E
A65: 4 | B65: D | C65: Sophie Bentley | D65: Y | E65: E

Sheet Fixture
A1: Date | B1: Competition | C1: Odds | D1: Result
A2: =IF(Match!A2="","",Match!A2) -> 2020-12-11 | B2: =IF(Match!C2="","",Match!C2) -> Premier | C2: =IF(Match!S2="","",Match!S2) -> Leeds v West Ham 23/20 27/10 11/5 | D2: =IF(Match!T2="","",Match!T2) -> Leeds 1-2 West Ham
A3: =IF(Match!A3="","",Match!A3) -> 2020-12-12 | B3: =IF(Match!C3="","",Match!C3) -> Premier | C3: =IF(Match!S3="","",Match!S3) -> Everton v Chelsea 10/3 3/1 3/4 | D3: =IF(Match!T3="","",Match!T3) -> Everton 1-0 Chelsea
A4: =IF(Match!A4="","",Match!A4) -> 2020-12-12 | B4: =IF(Match!C4="","",Match!C4) -> Premier | C4: =IF(Match!S4="","",Match!S4) -> Man U v Man C 10/3 3/1 3/4 | D4: =IF(Match!T4="","",Match!T4) -> Man U 0-0 Man C
A5: =IF(Match!A5="","",Match!A5) -> 2020-12-12 | B5: =IF(Match!C5="","",Match!C5) -> Premier | C5: =IF(Match!S5="","",Match!S5) -> Newcastle v West Brom 5/4 11/5 12/5 | D5: =IF(Match!T5="","",Match!T5) -> Newcastle 2-1 West Brom
A6: =IF(Match!A6="","",Match!A6) -> 2020-12-12 | B6: =IF(Match!C6="","",Match!C6) -> Premier | C6: =IF(Match!S6="","",Match!S6) -> Wolves v Villa 13/10 23/10 11/5 | D6: =IF(Match!T6="","",Match!T6) -> Wolves 0-1 Villa
A7: =IF(Match!A7="","",Match!A7) -> 2020-12-12 | B7: =IF(Match!C7="","",Match!C7) -> Champ | C7: =IF(Match!S7="","",Match!S7) -> Birmingham v Watford 3/1 11/5 21/20 | D7: =IF(Match!T7="","",Match!T7) -> Birmingham 0-1 Watford
A8: =IF(Match!A8="","",Match!A8) -> 2020-12-12 | B8: =IF(Match!C8="","",Match!C8) -> Champ | C8: =IF(Match!S8="","",Match!S8) -> Blackburn v Norwich 6/4 5/2 7/4 | D8: =IF(Match!T8="","",Match!T8) -> Blackburn 1-2 Norwich
A9: =IF(Match!A9="","",Match!A9) -> 2020-12-12 | B9: =IF(Match!C9="","",Match!C9) -> Champ | C9: =IF(Match!S9="","",Match!S9) -> Bournemouth v Huddersfield 13/20 29/10 9/2 | D9: =IF(Match!T9="","",Match!T9) -> Bournemouth 5-0 Huddersfield
A10: =IF(Match!A10="","",Match!A10) -> 2020-12-12 | B10: =IF(Match!C10="","",Match!C10) -> Champ | C10: =IF(Match!S10="","",Match!S10) -> Cardiff v Swansea 29/20 11/5 2/1 | D10: =IF(Match!T10="","",Match!T10) -> Cardiff 0-2 Swansea
A11: =IF(Match!A11="","",Match!A11) -> 2020-12-12 | B11: =IF(Match!C11="","",Match!C11) -> Champ | C11: =IF(Match!S11="","",Match!S11) -> Derby v Stoke 15/8 11/5 8/5 | D11: =IF(Match!T11="","",Match!T11) -> Derby 0-0 Stoke
A12: =IF(Match!A12="","",Match!A12) -> 2020-12-12 | B12: =IF(Match!C12="","",Match!C12) -> Champ | C12: =IF(Match!S12="","",Match!S12) -> Forest v Brentford 14/5 11/5 11/10 | D12: =IF(Match!T12="","",Match!T12) -> Forest 1-3 Brentford
A13: =IF(Match!A13="","",Match!A13) -> 2020-12-12 | B13: =IF(Match!C13="","",Match!C13) -> Champ | C13: =IF(Match!S13="","",Match!S13) -> Luton v Preston 2/1 11/5 6/4 | D13: =IF(Match!T13="","",Match!T13) -> Luton 3-0 Preston
A14: =IF(Match!A14="","",Match!A14) -> 2020-12-12 | B14: =IF(Match!C14="","",Match!C14) -> Champ | C14: =IF(Match!S14="","",Match!S14) -> Middlesbro v Millwall 23/20 11/5 27/10 | D14: =IF(Match!T14="","",Match!T14) -> Middlesbro 3-0 Millwall
A15: =IF(Match!A15="","",Match!A15) -> 2020-12-12 | B15: =IF(Match!C15="","",Match!C15) -> Champ | C15: =IF(Match!S15="","",Match!S15) -> QPR v Reading 13/8 23/10 17/10 | D15: =IF(Match!T15="","",Match!T15) -> QPR 0-1 Reading
A16: =IF(Match!A16="","",Match!A16) -> 2020-12-12 | B16: =IF(Match!C16="","",Match!C16) -> Champ | C16: =IF(Match!S16="","",Match!S16) -> Rotherham v Bristol C 19/10 9/4 6/4 | D16: =IF(Match!T16="","",Match!T16) -> Rotherham 2-0 Bristol C
A17: =IF(Match!A17="","",Match!A17) -> 2020-12-12 | B17: =IF(Match!C17="","",Match!C17) -> Champ | C17: =IF(Match!S17="","",Match!S17) -> Sheff W v Barnsley 6/4 21/10 21/10 | D17: =IF(Match!T17="","",Match!T17) -> Sheff W 1-2 Barnsley
A18: =IF(Match!A18="","",Match!A18) -> 2020-12-12 | B18: =IF(Match!C18="","",Match!C18) -> Champ | C18: =IF(Match!S18="","",Match!S18) -> Wycombe v Coventry 21/10 9/4 11/8 | D18: =IF(Match!T18="","",Match!T18) -> Wycombe 1-2 Coventry
A19: =IF(Match!A19="","",Match!A19) -> 2020-12-12 | B19: =IF(Match!C19="","",Match!C19) -> League 1 | C19: =IF(Match!S19="","",Match!S19) -> Blackpool v Oxford 6/5 9/4 12/5 | D19: =IF(Match!T19="","",Match!T19) -> Blackpool 0-0 Oxford
A20: =IF(Match!A20="","",Match!A20) -> 2020-12-12 | B20: =IF(Match!C20="","",Match!C20) -> League 1 | C20: =IF(Match!S20="","",Match!S20) -> Bristol R v Plymouth 29/20 5/2 17/10 | D20: =IF(Match!T20="","",Match!T20) -> Bristol R 3-0 Plymouth
A21: =IF(Match!A21="","",Match!A21) -> 2020-12-12 | B21: =IF(Match!C21="","",Match!C21) -> League 1 | C21: =IF(Match!S21="","",Match!S21) -> Charlton v Wimbledon 19/20 5/2 17/10 | D21: =IF(Match!T21="","",Match!T21) -> Charlton 5-2 Wimbledon
A22: =IF(Match!A22="","",Match!A22) -> 2020-12-12 | B22: =IF(Match!C22="","",Match!C22) -> League 1 | C22: =IF(Match!S22="","",Match!S22) -> Crewe v Northampton 3/4 13/5 15/4 | D22: =IF(Match!T22="","",Match!T22) -> Crewe 2-1 Northampton
A23: =IF(Match!A23="","",Match!A23) -> 2020-12-12 | B23: =IF(Match!C23="","",Match!C23) -> League 1 | C23: =IF(Match!S23="","",Match!S23) -> Doncaster v Gillingham 10/11 13/5 29/10 | D23: =IF(Match!T23="","",Match!T23) -> Doncaster 2-1 Gillingham
A24: =IF(Match!A24="","",Match!A24) -> 2020-12-12 | B24: =IF(Match!C24="","",Match!C24) -> League 1 | C24: =IF(Match!S24="","",Match!S24) -> Hull v Shrewsbury 6/10 14/5 24/5 | D24: =IF(Match!T24="","",Match!T24) -> Hull 0-1 Shrewsbury
A25: =IF(Match!A25="","",Match!A25) -> 2020-12-12 | B25: =IF(Match!C25="","",Match!C25) -> League 1 | C25: =IF(Match!S25="","",Match!S25) -> Ipswich v Portsmouth 21/10 9/4 6/5 | D25: =IF(Match!T25="","",Match!T25) -> Ipswich 0-2 Portsmouth
A26: =IF(Match!A26="","",Match!A26) -> 2020-12-12 | B26: =IF(Match!C26="","",Match!C26) -> League 1 | C26: =IF(Match!S26="","",Match!S26) -> Lincoln v Sunderland 9/5 21/10 8/5 | D26: =IF(Match!T26="","",Match!T26) -> Lincoln 0-4 Sunderland
A27: =IF(Match!A27="","",Match!A27) -> 2020-12-12 | B27: =IF(Match!C27="","",Match!C27) -> League 1 | C27: =IF(Match!S27="","",Match!S27) -> MK Dons v Burton 4/5 27/10 16/5 | D27: =IF(Match!T27="","",Match!T27) -> MK Dons 1-1 Burton
A28: =IF(Match!A28="","",Match!A28) -> 2020-12-12 | B28: =IF(Match!C28="","",Match!C28) -> League 1 | C28: =IF(Match!S28="","",Match!S28) -> Peterborough v Rochdale 8/15 16/5 5/1 | D28: =IF(Match!T28="","",Match!T28) -> Peterborough 4-1 Rochdale
A29: =IF(Match!A29="","",Match!A29) -> 2020-12-12 | B29: =IF(Match!C29="","",Match!C29) -> League 1 | C29: =IF(Match!S29="","",Match!S29) -> Swindon v Fleetwood 23/10 12/5 23/20 | D29: =IF(Match!T29="","",Match!T29) -> Swindon 0-1 Fleetwood
A30: =IF(Match!A30="","",Match!A30) -> 2020-12-12 | B30: =IF(Match!C30="","",Match!C30) -> League 1 | C30: =IF(Match!S30="","",Match!S30) -> Wigan v Accrington 11/5 9/4 5/4 | D30: =IF(Match!T30="","",Match!T30) -> Wigan 4-3 Accrington
A31: =IF(Match!A31="","",Match!A31) -> 2020-12-12 | B31: =IF(Match!C31="","",Match!C31) -> League 2 | C31: =IF(Match!S31="","",Match!S31) -> Carlisle v Stevenage 8/13 14/5 9/2 | D31: =IF(Match!T31="","",Match!T31) -> Carlisle 4-0 Stevenage
A32: =IF(Match!A32="","",Match!A32) -> 2020-12-12 | B32: =IF(Match!C32="","",Match!C32) -> League 2 | C32: =IF(Match!S32="","",Match!S32) -> Crawley v Barrow 29/20 23/10 15/8 | D32: =IF(Match!T32="","",Match!T32) -> Crawley 4-2 Barrow
A33: =IF(Match!A33="","",Match!A33) -> 2020-12-12 | B33: =IF(Match!C33="","",Match!C33) -> League 2 | C33: =IF(Match!S33="","",Match!S33) -> Exeter v Tranmere 10/11 13/5 14/5 | D33: =IF(Match!T33="","",Match!T33) -> Exeter 5-0 Tranmere
A34: =IF(Match!A34="","",Match!A34) -> 2020-12-12 | B34: =IF(Match!C34="","",Match!C34) -> League 2 | C34: =IF(Match!S34="","",Match!S34) -> Forest Green v Cambridge 21/20 23/10 27/10 | D34: =IF(Match!T34="","",Match!T34) -> Forest Green 2-0 Cambridge
A35: =IF(Match!A35="","",Match!A35) -> 2020-12-12 | B35: =IF(Match!C35="","",Match!C35) -> League 2 | C35: =IF(Match!S35="","",Match!S35) -> Grimsby v Mansfield 21/10 9/4 13/10 | D35: =IF(Match!T35="","",Match!T35) -> Grimsby 1-1 Mansfield
A36: =IF(Match!A36="","",Match!A36) -> 2020-12-12 | B36: =IF(Match!C36="","",Match!C36) -> League 2 | C36: =IF(Match!S36="","",Match!S36) -> Morecambe v Harrogate 8/5 23/10 17/10 | D36: =IF(Match!T36="","",Match!T36) -> Morecambe 1-0 Harrogate
A37: =IF(Match!A37="","",Match!A37) -> 2020-12-12 | B37: =IF(Match!C37="","",Match!C37) -> League 2 | C37: =IF(Match!S37="","",Match!S37) -> Oldham v Bradford 7/5 23/10 19/10 | D37: =IF(Match!T37="","",Match!T37) -> Oldham 3-1 Bradford
A38: =IF(Match!A38="","",Match!A38) -> 2020-12-12 | B38: =IF(Match!C38="","",Match!C38) -> League 2 | C38: =IF(Match!S38="","",Match!S38) -> Orient v Newport 2/1 9/4 11/8 | D38: =IF(Match!T38="","",Match!T38) -> Orient 2-1 Newport
A39: =IF(Match!A39="","",Match!A39) -> 2020-12-12 | B39: =IF(Match!C39="","",Match!C39) -> League 2 | C39: =IF(Match!S39="","",Match!S39) -> Port Vale v Colchester 23/20 5/2 23/10 | D39: =IF(Match!T39="","",Match!T39) -> Port Vale 1-1 Colchester
A40: =IF(Match!A40="","",Match!A40) -> 2020-12-12 | B40: =IF(Match!C40="","",Match!C40) -> League 2 | C40: =IF(Match!S40="","",Match!S40) -> Salford v Cheltenham 13/8 9/4 17/10 | D40: =IF(Match!T40="","",Match!T40) -> Salford 0-0 Cheltenham
A41: =IF(Match!A41="","",Match!A41) -> 2020-12-12 | B41: =IF(Match!C41="","",Match!C41) -> League 2 | C41: =IF(Match!S41="","",Match!S41) -> Southend v Scunthorpe 9/4 11/5 13/10 | D41: =IF(Match!T41="","",Match!T41) -> Southend 1-0 Scunthorpe
A42: =IF(Match!A42="","",Match!A42) -> 2020-12-12 | B42: =IF(Match!C42="","",Match!C42) -> League 2 | C42: =IF(Match!S42="","",Match!S42) -> Walsall v Bolton 5/4 9/4 11/5 | D42: =IF(Match!T42="","",Match!T42) -> Walsall 2-1 Bolton
A43: =IF(Match!A43="","",Match!A43) -> 2020-12-13 | B43: =IF(Match!C43="","",Match!C43) -> Premier | C43: =IF(Match!S43="","",Match!S43) -> Arsenal v Burnley 11/20 3/1 11/2 | D43: =IF(Match!T43="","",Match!T43) -> Arsenal 0-1 Burnley
A44: =IF(Match!A44="","",Match!A44) -> 2020-12-13 | B44: =IF(Match!C44="","",Match!C44) -> Premier | C44: =IF(Match!S44="","",Match!S44) -> Fulham v Liverpool 8/1 9/2 1/3 | D44: =IF(Match!T44="","",Match!T44) -> Fulham 1-1 Liverpool
A45: =IF(Match!A45="","",Match!A45) -> 2020-12-13 | B45: =IF(Match!C45="","",Match!C45) -> Premier | C45: =IF(Match!S45="","",Match!S45) -> Leicester v Brighton 1/1 5/2 11/4 | D45: =IF(Match!T45="","",Match!T45) -> Leicester 3-0 Brighton
A46: =IF(Match!A46="","",Match!A46) -> 2020-12-13 | B46: =IF(Match!C46="","",Match!C46) -> Premier | C46: =IF(Match!S46="","",Match!S46) -> Palace v Spurs 19/5 11/4 8/11 | D46: =IF(Match!T46="","",Match!T46) -> Palace 1-1 Spurs
A47: =IF(Match!A47="","",Match!A47) -> 2020-12-13 | B47: =IF(Match!C47="","",Match!C47) -> Premier | C47: =IF(Match!S47="","",Match!S47) -> Southampton v Sheff U 8/11 27/10 4/1 | D47: =IF(Match!T47="","",Match!T47) -> Southampton 3-0 Sheff U

Sheet Table
A1: =CONCATENATE(CurrentSeason,"/Week ",CurrentWeek) -> PL36/Week 17 | B1: Place Prize | C1: Promotion/ Relegation | D1: Pos | E1: Div | F1: Player | G1: Total Score | H1: Total correct | I1: Week Score | J1: Week Correct | K1: Brought Forward | L1: League Place Prize | M1: Weekly Prizes | N1: Cup Prize | O1: Total Prize | P1: Season Balance
A2: Division A | B2: =CONCATENATE(E2,D2) -> A1 | D2: 1 | E2: A | F2: Gerard Ventom | G2: =INDEX(Weekly!F:F,MATCH($F2,Weekly!$E:$E,0)) -> 162.6875 | H2: =INDEX(Weekly!G:G,MATCH($F2,Weekly!$E:$E,0)) -> 18 | I2: =INDEX(Weekly!H:H,MATCH($F2,Weekly!$E:$E,0)) -> 46.6 | J2: =INDEX(Weekly!I:I,MATCH($F2,Weekly!$E:$E,0)) -> 3 | K2: =INDEX(Players!F:F,MATCH($F2,Players!#REF!,0)) ->  | L2: =INDEX(Prizes!F:F,MATCH($B2,Prizes!A:A,0)) -> 108.675 | M2: =INDEX(Weekly!J:J,MATCH($F2,Weekly!$E:$E,0)) -> 10 | N2: =INDEX(Weekly!K:K,MATCH($F2,Weekly!$E:$E,0)) -> 0 | O2: =INDEX(Weekly!M:M,MATCH($F2,Weekly!$E:$E,0)) -> 118.675 | P2: =O2+K2 -> 
B3: =CONCATENATE(E3,D3) -> A2 | D3: 2 | E3: A | F3: Mike Penk | G3: =INDEX(Weekly!F:F,MATCH($F3,Weekly!$E:$E,0)) -> 56.67503592 | H3: =INDEX(Weekly!G:G,MATCH($F3,Weekly!$E:$E,0)) -> 24 | I3: =INDEX(Weekly!H:H,MATCH($F3,Weekly!$E:$E,0)) -> -4.85 | J3: =INDEX(Weekly!I:I,MATCH($F3,Weekly!$E:$E,0)) -> 1 | K3: =INDEX(Players!F:F,MATCH($F3,Players!#REF!,0)) ->  | L3: =INDEX(Prizes!F:F,MATCH($B3,Prizes!A:A,0)) -> 77.625 | M3: =INDEX(Weekly!J:J,MATCH($F3,Weekly!$E:$E,0)) -> 15 | N3: =INDEX(Weekly!K:K,MATCH($F3,Weekly!$E:$E,0)) -> 0 | O3: =INDEX(Weekly!M:M,MATCH($F3,Weekly!$E:$E,0)) -> 92.625 | P3: =O3+K3 -> 
B4: A3 | D4: 3 | E4: A | F4: Alan Rogers | G4: =INDEX(Weekly!F:F,MATCH($F4,Weekly!$E:$E,0)) -> 36.04 | H4: =INDEX(Weekly!G:G,MATCH($F4,Weekly!$E:$E,0)) -> 18 | I4: =INDEX(Weekly!H:H,MATCH($F4,Weekly!$E:$E,0)) -> 47.08 | J4: =INDEX(Weekly!I:I,MATCH($F4,Weekly!$E:$E,0)) -> 3 | K4: =INDEX(Players!F:F,MATCH($F4,Players!#REF!,0)) ->  | L4: =INDEX(Prizes!F:F,MATCH($B4,Prizes!A:A,0)) -> 55.89 | M4: =INDEX(Weekly!J:J,MATCH($F4,Weekly!$E:$E,0)) -> 20 | N4: =INDEX(Weekly!K:K,MATCH($F4,Weekly!$E:$E,0)) -> 0 | O4: =INDEX(Weekly!M:M,MATCH($F4,Weekly!$E:$E,0)) -> 75.89 | P4: =O4+K4 ->  | S4: Promotion and Relegation Key
B5: A4 | D5: 4 | E5: A | F5: Alfie Davies | G5: =INDEX(Weekly!F:F,MATCH($F5,Weekly!$E:$E,0)) -> 22.66125 | H5: =INDEX(Weekly!G:G,MATCH($F5,Weekly!$E:$E,0)) -> 21 | I5: =INDEX(Weekly!H:H,MATCH($F5,Weekly!$E:$E,0)) -> 50.275 | J5: =INDEX(Weekly!I:I,MATCH($F5,Weekly!$E:$E,0)) -> 3 | K5: =INDEX(Players!F:F,MATCH($F5,Players!#REF!,0)) ->  | L5: =INDEX(Prizes!F:F,MATCH($B5,Prizes!A:A,0)) -> 37.26 | M5: =INDEX(Weekly!J:J,MATCH($F5,Weekly!$E:$E,0)) -> 15 | N5: =INDEX(Weekly!K:K,MATCH($F5,Weekly!$E:$E,0)) -> 0 | O5: =INDEX(Weekly!M:M,MATCH($F5,Weekly!$E:$E,0)) -> 52.26 | P5: =O5+K5 ->  | S5: No change
B6: A5 | D6: 5 | E6: A | F6: Mark Saunders | G6: =INDEX(Weekly!F:F,MATCH($F6,Weekly!$E:$E,0)) -> 13.4225 | H6: =INDEX(Weekly!G:G,MATCH($F6,Weekly!$E:$E,0)) -> 28 | I6: =INDEX(Weekly!H:H,MATCH($F6,Weekly!$E:$E,0)) -> 4.666666667 | J6: =INDEX(Weekly!I:I,MATCH($F6,Weekly!$E:$E,0)) -> 2 | K6: =INDEX(Players!F:F,MATCH($F6,Players!#REF!,0)) ->  | L6: =INDEX(Prizes!F:F,MATCH($B6,Prizes!A:A,0)) -> 21.735 | M6: =INDEX(Weekly!J:J,MATCH($F6,Weekly!$E:$E,0)) -> 10 | N6: =INDEX(Weekly!K:K,MATCH($F6,Weekly!$E:$E,0)) -> 0 | O6: =INDEX(Weekly!M:M,MATCH($F6,Weekly!$E:$E,0)) -> 31.735 | P6: =O6+K6 ->  | S6: Promoted to Division above
B7: A6 | D7: 6 | E7: A | F7: Alick Rocca | G7: =INDEX(Weekly!F:F,MATCH($F7,Weekly!$E:$E,0)) -> 8.973295455 | H7: =INDEX(Weekly!G:G,MATCH($F7,Weekly!$E:$E,0)) -> 20 | I7: =INDEX(Weekly!H:H,MATCH($F7,Weekly!$E:$E,0)) -> -7 | J7: =INDEX(Weekly!I:I,MATCH($F7,Weekly!$E:$E,0)) -> 0 | K7: =INDEX(Players!F:F,MATCH($F7,Players!#REF!,0)) ->  | L7: =INDEX(Prizes!F:F,MATCH($B7,Prizes!A:A,0)) -> 9.315 | M7: =INDEX(Weekly!J:J,MATCH($F7,Weekly!$E:$E,0)) -> 10 | N7: =INDEX(Weekly!K:K,MATCH($F7,Weekly!$E:$E,0)) -> 0 | O7: =INDEX(Weekly!M:M,MATCH($F7,Weekly!$E:$E,0)) -> 19.315 | P7: =O7+K7 ->  | S7: Relegated to Division below
B8: A7 | D8: 7 | E8: A | F8: Stephen Barr | G8: =INDEX(Weekly!F:F,MATCH($F8,Weekly!$E:$E,0)) -> 7.933469697 | H8: =INDEX(Weekly!G:G,MATCH($F8,Weekly!$E:$E,0)) -> 23 | I8: =INDEX(Weekly!H:H,MATCH($F8,Weekly!$E:$E,0)) -> 0.8636363636 | J8: =INDEX(Weekly!I:I,MATCH($F8,Weekly!$E:$E,0)) -> 2 | K8: =INDEX(Players!F:F,MATCH($F8,Players!#REF!,0)) ->  | L8: =INDEX(Prizes!F:F,MATCH($B8,Prizes!A:A,0)) -> 0 | M8: =INDEX(Weekly!J:J,MATCH($F8,Weekly!$E:$E,0)) -> 5 | N8: =INDEX(Weekly!K:K,MATCH($F8,Weekly!$E:$E,0)) -> 0 | O8: =INDEX(Weekly!M:M,MATCH($F8,Weekly!$E:$E,0)) -> 5 | P8: =O8+K8 ->  | S8: Best two up to Div A, Worst two down to Div B
B9: A8 | D9: 8 | E9: A | F9: Chris Luck | G9: =INDEX(Weekly!F:F,MATCH($F9,Weekly!$E:$E,0)) -> -1.280528846 | H9: =INDEX(Weekly!G:G,MATCH($F9,Weekly!$E:$E,0)) -> 22 | I9: =INDEX(Weekly!H:H,MATCH($F9,Weekly!$E:$E,0)) -> -4.75 | J9: =INDEX(Weekly!I:I,MATCH($F9,Weekly!$E:$E,0)) -> 1 | K9: =INDEX(Players!F:F,MATCH($F9,Players!#REF!,0)) ->  | L9: =INDEX(Prizes!F:F,MATCH($B9,Prizes!A:A,0)) -> 0 | M9: =INDEX(Weekly!J:J,MATCH($F9,Weekly!$E:$E,0)) -> 10 | N9: =INDEX(Weekly!K:K,MATCH($F9,Weekly!$E:$E,0)) -> 0 | O9: =INDEX(Weekly!M:M,MATCH($F9,Weekly!$E:$E,0)) -> 10 | P9: =O9+K9 ->  | S9: Best two up to Div B, Worst two down to Div C
B10: A9 | C10: Play-off | D10: 9 | E10: A | F10: Steve Carter | G10: =INDEX(Weekly!F:F,MATCH($F10,Weekly!$E:$E,0)) -> -10.94162879 | H10: =INDEX(Weekly!G:G,MATCH($F10,Weekly!$E:$E,0)) -> 23 | I10: =INDEX(Weekly!H:H,MATCH($F10,Weekly!$E:$E,0)) -> 1.75 | J10: =INDEX(Weekly!I:I,MATCH($F10,Weekly!$E:$E,0)) -> 2 | K10: =INDEX(Players!F:F,MATCH($F10,Players!#REF!,0)) ->  | L10: =INDEX(Prizes!F:F,MATCH($B10,Prizes!A:A,0)) -> 0 | M10: =INDEX(Weekly!J:J,MATCH($F10,Weekly!$E:$E,0)) -> 5 | N10: =INDEX(Weekly!K:K,MATCH($F10,Weekly!$E:$E,0)) -> 0 | O10: =INDEX(Weekly!M:M,MATCH($F10,Weekly!$E:$E,0)) -> 5 | P10: =O10+K10 ->  | S10: Best two up to Div C, Worst two down to Div D
B11: A10 | C11: Play-off | D11: 10 | E11: A | F11: Stephen Troop | G11: =INDEX(Weekly!F:F,MATCH($F11,Weekly!$E:$E,0)) -> -16.92211538 | H11: =INDEX(Weekly!G:G,MATCH($F11,Weekly!$E:$E,0)) -> 19 | I11: =INDEX(Weekly!H:H,MATCH($F11,Weekly!$E:$E,0)) -> -7 | J11: =INDEX(Weekly!I:I,MATCH($F11,Weekly!$E:$E,0)) -> 0 | K11: =INDEX(Players!F:F,MATCH($F11,Players!#REF!,0)) ->  | L11: =INDEX(Prizes!F:F,MATCH($B11,Prizes!A:A,0)) -> 0 | M11: =INDEX(Weekly!J:J,MATCH($F11,Weekly!$E:$E,0)) -> 5 | N11: =INDEX(Weekly!K:K,MATCH($F11,Weekly!$E:$E,0)) -> 0 | O11: =INDEX(Weekly!M:M,MATCH($F11,Weekly!$E:$E,0)) -> 5 | P11: =O11+K11 -> 
B12: A11 | C12: ↓ | D12: 11 | E12: A | F12: Oscar Jackson | G12: =INDEX(Weekly!F:F,MATCH($F12,Weekly!$E:$E,0)) -> -29.65487374 | H12: =INDEX(Weekly!G:G,MATCH($F12,Weekly!$E:$E,0)) -> 19 | I12: =INDEX(Weekly!H:H,MATCH($F12,Weekly!$E:$E,0)) -> -5.090909091 | J12: =INDEX(Weekly!I:I,MATCH($F12,Weekly!$E:$E,0)) -> 1 | K12: =INDEX(Players!F:F,MATCH($F12,Players!#REF!,0)) ->  | L12: =INDEX(Prizes!F:F,MATCH($B12,Prizes!A:A,0)) -> 0 | M12: =INDEX(Weekly!J:J,MATCH($F12,Weekly!$E:$E,0)) -> 5 | N12: =INDEX(Weekly!K:K,MATCH($F12,Weekly!$E:$E,0)) -> 0 | O12: =INDEX(Weekly!M:M,MATCH($F12,Weekly!$E:$E,0)) -> 5 | P12: =O12+K12 -> 
B13: A12 | C13: ↓ | D13: 12 | E13: A | F13: Paul Fiddler | G13: =INDEX(Weekly!F:F,MATCH($F13,Weekly!$E:$E,0)) -> -35.56969114 | H13: =INDEX(Weekly!G:G,MATCH($F13,Weekly!$E:$E,0)) -> 23 | I13: =INDEX(Weekly!H:H,MATCH($F13,Weekly!$E:$E,0)) -> -5.05 | J13: =INDEX(Weekly!I:I,MATCH($F13,Weekly!$E:$E,0)) -> 1 | K13: =INDEX(Players!F:F,MATCH($F13,Players!#REF!,0)) ->  | L13: =INDEX(Prizes!F:F,MATCH($B13,Prizes!A:A,0)) -> 0 | M13: =INDEX(Weekly!J:J,MATCH($F13,Weekly!$E:$E,0)) -> 5 | N13: =INDEX(Weekly!K:K,MATCH($F13,Weekly!$E:$E,0)) -> 0 | O13: =INDEX(Weekly!M:M,MATCH($F13,Weekly!$E:$E,0)) -> 5 | P13: =O13+K13 -> 
B14: A13 | C14: ↓ | D14: 13 | E14: A | F14: Lennie Bow | G14: =INDEX(Weekly!F:F,MATCH($F14,Weekly!$E:$E,0)) -> -36.60843531 | H14: =INDEX(Weekly!G:G,MATCH($F14,Weekly!$E:$E,0)) -> 23 | I14: =INDEX(Weekly!H:H,MATCH($F14,Weekly!$E:$E,0)) -> -1.069230769 | J14: =INDEX(Weekly!I:I,MATCH($F14,Weekly!$E:$E,0)) -> 2 | K14: =INDEX(Players!F:F,MATCH($F14,Players!#REF!,0)) ->  | L14: =INDEX(Prizes!F:F,MATCH($B14,Prizes!A:A,0)) -> 0 | M14: =INDEX(Weekly!J:J,MATCH($F14,Weekly!$E:$E,0)) -> 5 | N14: =INDEX(Weekly!K:K,MATCH($F14,Weekly!$E:$E,0)) -> 0 | O14: =INDEX(Weekly!M:M,MATCH($F14,Weekly!$E:$E,0)) -> 5 | P14: =O14+K14 -> 
B15: A14 | C15: ↓ | D15: 14 | E15: A | F15: Mo Sudell | G15: =INDEX(Weekly!F:F,MATCH($F15,Weekly!$E:$E,0)) -> -43.03385015 | H15: =INDEX(Weekly!G:G,MATCH($F15,Weekly!$E:$E,0)) -> 20 | I15: =INDEX(Weekly!H:H,MATCH($F15,Weekly!$E:$E,0)) -> -5.384615385 | J15: =INDEX(Weekly!I:I,MATCH($F15,Weekly!$E:$E,0)) -> 1 | K15: =INDEX(Players!F:F,MATCH($F15,Players!#REF!,0)) ->  | L15: =INDEX(Prizes!F:F,MATCH($B15,Prizes!A:A,0)) -> 0 | M15: =INDEX(Weekly!J:J,MATCH($F15,Weekly!$E:$E,0)) -> 0 | N15: =INDEX(Weekly!K:K,MATCH($F15,Weekly!$E:$E,0)) -> 0 | O15: =INDEX(Weekly!M:M,MATCH($F15,Weekly!$E:$E,0)) -> 0 | P15: =O15+K15 -> 
B16: A15 | C16: ↓ | D16: 15 | E16: A | F16: Kevin Carter | G16: =INDEX(Weekly!F:F,MATCH($F16,Weekly!$E:$E,0)) -> -44.91508806 | H16: =INDEX(Weekly!G:G,MATCH($F16,Weekly!$E:$E,0)) -> 22 | I16: =INDEX(Weekly!H:H,MATCH($F16,Weekly!$E:$E,0)) -> 0.1818181818 | J16: =INDEX(Weekly!I:I,MATCH($F16,Weekly!$E:$E,0)) -> 2 | K16: =INDEX(Players!F:F,MATCH($F16,Players!#REF!,0)) ->  | L16: =INDEX(Prizes!F:F,MATCH($B16,Prizes!A:A,0)) -> 0 | M16: =INDEX(Weekly!J:J,MATCH($F16,Weekly!$E:$E,0)) -> 0 | N16: =INDEX(Weekly!K:K,MATCH($F16,Weekly!$E:$E,0)) -> 0 | O16: =INDEX(Weekly!M:M,MATCH($F16,Weekly!$E:$E,0)) -> 0 | P16: =O16+K16 -> 
B17: A16 | C17: ↓ | D17: 16 | E17: A | F17: Rob England | G17: =INDEX(Weekly!F:F,MATCH($F17,Weekly!$E:$E,0)) -> -63.0555613 | H17: =INDEX(Weekly!G:G,MATCH($F17,Weekly!$E:$E,0)) -> 14 | I17: =INDEX(Weekly!H:H,MATCH($F17,Weekly!$E:$E,0)) -> -3.9 | J17: =INDEX(Weekly!I:I,MATCH($F17,Weekly!$E:$E,0)) -> 1 | K17: =INDEX(Players!F:F,MATCH($F17,Players!#REF!,0)) ->  | L17: =INDEX(Prizes!F:F,MATCH($B17,Prizes!A:A,0)) -> 0 | M17: =INDEX(Weekly!J:J,MATCH($F17,Weekly!$E:$E,0)) -> 0 | N17: =INDEX(Weekly!K:K,MATCH($F17,Weekly!$E:$E,0)) -> 0 | O17: =INDEX(Weekly!M:M,MATCH($F17,Weekly!$E:$E,0)) -> 0 | P17: =O17+K17 -> 
A18: Division B | B18: B1 | C18: ↑ | D18: 1 | E18: B | F18: Barry Birchall | G18: =INDEX(Weekly!F:F,MATCH($F18,Weekly!$E:$E,0)) -> 488.9279471 | H18: =INDEX(Weekly!G:G,MATCH($F18,Weekly!$E:$E,0)) -> 24 | I18: =INDEX(Weekly!H:H,MATCH($F18,Weekly!$E:$E,0)) -> -7 | J18: =INDEX(Weekly!I:I,MATCH($F18,Weekly!$E:$E,0)) -> 0 | K18: =INDEX(Players!F:F,MATCH($F18,Players!#REF!,0)) ->  | L18: =INDEX(Prizes!F:F,MATCH($B18,Prizes!A:A,0)) -> 72.45 | M18: =INDEX(Weekly!J:J,MATCH($F18,Weekly!$E:$E,0)) -> 10 | N18: =INDEX(Weekly!K:K,MATCH($F18,Weekly!$E:$E,0)) -> 0 | O18: =INDEX(Weekly!M:M,MATCH($F18,Weekly!$E:$E,0)) -> 82.45 | P18: =O18+K18 -> 
B19: B2 | C19: ↑ | D19: 2 | E19: B | F19: Pete Baron | G19: =INDEX(Weekly!F:F,MATCH($F19,Weekly!$E:$E,0)) -> 117.9076552 | H19: =INDEX(Weekly!G:G,MATCH($F19,Weekly!$E:$E,0)) -> 22 | I19: =INDEX(Weekly!H:H,MATCH($F19,Weekly!$E:$E,0)) -> -4 | J19: =INDEX(Weekly!I:I,MATCH($F19,Weekly!$E:$E,0)) -> 1 | K19: =INDEX(Players!F:F,MATCH($F19,Players!#REF!,0)) ->  | L19: =INDEX(Prizes!F:F,MATCH($B19,Prizes!A:A,0)) -> 51.75 | M19: =INDEX(Weekly!J:J,MATCH($F19,Weekly!$E:$E,0)) -> 25 | N19: =INDEX(Weekly!K:K,MATCH($F19,Weekly!$E:$E,0)) -> 0 | O19: =INDEX(Weekly!M:M,MATCH($F19,Weekly!$E:$E,0)) -> 76.75 | P19: =O19+K19 -> 
B20: B3 | C20: ↑ | D20: 3 | E20: B | F20: Nigel Heyes | G20: =INDEX(Weekly!F:F,MATCH($F20,Weekly!$E:$E,0)) -> 43.15639394 | H20: =INDEX(Weekly!G:G,MATCH($F20,Weekly!$E:$E,0)) -> 30 | I20: =INDEX(Weekly!H:H,MATCH($F20,Weekly!$E:$E,0)) -> -3.8 | J20: =INDEX(Weekly!I:I,MATCH($F20,Weekly!$E:$E,0)) -> 1 | K20: =INDEX(Players!F:F,MATCH($F20,Players!#REF!,0)) ->  | L20: =INDEX(Prizes!F:F,MATCH($B20,Prizes!A:A,0)) -> 37.26 | M20: =INDEX(Weekly!J:J,MATCH($F20,Weekly!$E:$E,0)) -> 5 | N20: =INDEX(Weekly!K:K,MATCH($F20,Weekly!$E:$E,0)) -> 0 | O20: =INDEX(Weekly!M:M,MATCH($F20,Weekly!$E:$E,0)) -> 42.26 | P20: =O20+K20 -> 
B21: B4 | C21: ↑ | D21: 4 | E21: B | F21: Kei Lok Ma | G21: =INDEX(Weekly!F:F,MATCH($F21,Weekly!$E:$E,0)) -> 37.02 | H21: =INDEX(Weekly!G:G,MATCH($F21,Weekly!$E:$E,0)) -> 19 | I21: =INDEX(Weekly!H:H,MATCH($F21,Weekly!$E:$E,0)) -> 4.1875 | J21: =INDEX(Weekly!I:I,MATCH($F21,Weekly!$E:$E,0)) -> 2 | K21: =INDEX(Players!F:F,MATCH($F21,Players!#REF!,0)) ->  | L21: =INDEX(Prizes!F:F,MATCH($B21,Prizes!A:A,0)) -> 24.84 | M21: =INDEX(Weekly!J:J,MATCH($F21,Weekly!$E:$E,0)) -> 20 | N21: =INDEX(Weekly!K:K,MATCH($F21,Weekly!$E:$E,0)) -> 0 | O21: =INDEX(Weekly!M:M,MATCH($F21,Weekly!$E:$E,0)) -> 44.84 | P21: =O21+K21 -> 
B22: B5 | C22: ↑ | D22: 5 | E22: B | F22: Steve Baxter | G22: =INDEX(Weekly!F:F,MATCH($F22,Weekly!$E:$E,0)) -> 13.32423382 | H22: =INDEX(Weekly!G:G,MATCH($F22,Weekly!$E:$E,0)) -> 28 | I22: =INDEX(Weekly!H:H,MATCH($F22,Weekly!$E:$E,0)) -> -7 | J22: =INDEX(Weekly!I:I,MATCH($F22,Weekly!$E:$E,0)) -> 0 | K22: =INDEX(Players!F:F,MATCH($F22,Players!#REF!,0)) ->  | L22: =INDEX(Prizes!F:F,MATCH($B22,Prizes!A:A,0)) -> 14.49 | M22: =INDEX(Weekly!J:J,MATCH($F22,Weekly!$E:$E,0)) -> 10 | N22: =INDEX(Weekly!K:K,MATCH($F22,Weekly!$E:$E,0)) -> 0 | O22: =INDEX(Weekly!M:M,MATCH($F22,Weekly!$E:$E,0)) -> 24.49 | P22: =O22+K22 -> 
B23: B6 | C23: ↑ | D23: 6 | E23: B | F23: Andy White | G23: =INDEX(Weekly!F:F,MATCH($F23,Weekly!$E:$E,0)) -> 8.225650826 | H23: =INDEX(Weekly!G:G,MATCH($F23,Weekly!$E:$E,0)) -> 25 | I23: =INDEX(Weekly!H:H,MATCH($F23,Weekly!$E:$E,0)) -> 1.75 | J23: =INDEX(Weekly!I:I,MATCH($F23,Weekly!$E:$E,0)) -> 2 | K23: =INDEX(Players!F:F,MATCH($F23,Players!#REF!,0)) ->  | L23: =INDEX(Prizes!F:F,MATCH($B23,Prizes!A:A,0)) -> 6.21 | M23: =INDEX(Weekly!J:J,MATCH($F23,Weekly!$E:$E,0)) -> 10 | N23: =INDEX(Weekly!K:K,MATCH($F23,Weekly!$E:$E,0)) -> 0 | O23: =INDEX(Weekly!M:M,MATCH($F23,Weekly!$E:$E,0)) -> 16.21 | P23: =O23+K23 -> 
B24: B7 | C24: Play-off | D24: 7 | E24: B | F24: Phil Miller | G24: =INDEX(Weekly!F:F,MATCH($F24,Weekly!$E:$E,0)) -> -7.991147223 | H24: =INDEX(Weekly!G:G,MATCH($F24,Weekly!$E:$E,0)) -> 25 | I24: =INDEX(Weekly!H:H,MATCH($F24,Weekly!$E:$E,0)) -> -7 | J24: =INDEX(Weekly!I:I,MATCH($F24,Weekly!$E:$E,0)) -> 0 | K24: =INDEX(Players!F:F,MATCH($F24,Players!#REF!,0)) ->  | L24: =INDEX(Prizes!F:F,MATCH($B24,Prizes!A:A,0)) -> 0 | M24: =INDEX(Weekly!J:J,MATCH($F24,Weekly!$E:$E,0)) -> 5 | N24: =INDEX(Weekly!K:K,MATCH($F24,Weekly!$E:$E,0)) -> 0 | O24: =INDEX(Weekly!M:M,MATCH($F24,Weekly!$E:$E,0)) -> 5 | P24: =O24+K24 -> 
B25: B8 | C25: Play-off | D25: 8 | E25: B | F25: Mark Bunn | G25: =INDEX(Weekly!F:F,MATCH($F25,Weekly!$E:$E,0)) -> -9.637320955 | H25: =INDEX(Weekly!G:G,MATCH($F25,Weekly!$E:$E,0)) -> 19 | I25: =INDEX(Weekly!H:H,MATCH($F25,Weekly!$E:$E,0)) -> -4.3 | J25: =INDEX(Weekly!I:I,MATCH($F25,Weekly!$E:$E,0)) -> 1 | K25: =INDEX(Players!F:F,MATCH($F25,Players!#REF!,0)) ->  | L25: =INDEX(Prizes!F:F,MATCH($B25,Prizes!A:A,0)) -> 0 | M25: =INDEX(Weekly!J:J,MATCH($F25,Weekly!$E:$E,0)) -> 5 | N25: =INDEX(Weekly!K:K,MATCH($F25,Weekly!$E:$E,0)) -> 0 | O25: =INDEX(Weekly!M:M,MATCH($F25,Weekly!$E:$E,0)) -> 5 | P25: =O25+K25 -> 
B26: B9 | C26: Play-off | D26: 9 | E26: B | F26: Vinny Topping | G26: =INDEX(Weekly!F:F,MATCH($F26,Weekly!$E:$E,0)) -> -11.95666667 | H26: =INDEX(Weekly!G:G,MATCH($F26,Weekly!$E:$E,0)) -> 21 | I26: =INDEX(Weekly!H:H,MATCH($F26,Weekly!$E:$E,0)) -> 2.2375 | J26: =INDEX(Weekly!I:I,MATCH($F26,Weekly!$E:$E,0)) -> 2 | K26: =INDEX(Players!F:F,MATCH($F26,Players!#REF!,0)) ->  | L26: =INDEX(Prizes!F:F,MATCH($B26,Prizes!A:A,0)) -> 0 | M26: =INDEX(Weekly!J:J,MATCH($F26,Weekly!$E:$E,0)) -> 5 | N26: =INDEX(Weekly!K:K,MATCH($F26,Weekly!$E:$E,0)) -> 0 | O26: =INDEX(Weekly!M:M,MATCH($F26,Weekly!$E:$E,0)) -> 5 | P26: =O26+K26 -> 
B27: B10 | C27: Play-off | D27: 10 | E27: B | F27: James Bell | G27: =INDEX(Weekly!F:F,MATCH($F27,Weekly!$E:$E,0)) -> -23.80333333 | H27: =INDEX(Weekly!G:G,MATCH($F27,Weekly!$E:$E,0)) -> 12 | I27: =INDEX(Weekly!H:H,MATCH($F27,Weekly!$E:$E,0)) -> -7 | J27: =INDEX(Weekly!I:I,MATCH($F27,Weekly!$E:$E,0)) -> 0 | K27: =INDEX(Players!F:F,MATCH($F27,Players!#REF!,0)) ->  | L27: =INDEX(Prizes!F:F,MATCH($B27,Prizes!A:A,0)) -> 0 | M27: =INDEX(Weekly!J:J,MATCH($F27,Weekly!$E:$E,0)) -> 10 | N27: =INDEX(Weekly!K:K,MATCH($F27,Weekly!$E:$E,0)) -> 0 | O27: =INDEX(Weekly!M:M,MATCH($F27,Weekly!$E:$E,0)) -> 10 | P27: =O27+K27 -> 
B28: B11 | C28: ↓ | D28: 11 | E28: B | F28: Paul Allen | G28: =INDEX(Weekly!F:F,MATCH($F28,Weekly!$E:$E,0)) -> -40.42355305 | H28: =INDEX(Weekly!G:G,MATCH($F28,Weekly!$E:$E,0)) -> 18 | I28: =INDEX(Weekly!H:H,MATCH($F28,Weekly!$E:$E,0)) -> 1.44 | J28: =INDEX(Weekly!I:I,MATCH($F28,Weekly!$E:$E,0)) -> 2 | K28: =INDEX(Players!F:F,MATCH($F28,Players!#REF!,0)) ->  | L28: =INDEX(Prizes!F:F,MATCH($B28,Prizes!A:A,0)) -> 0 | M28: =INDEX(Weekly!J:J,MATCH($F28,Weekly!$E:$E,0)) -> 5 | N28: =INDEX(Weekly!K:K,MATCH($F28,Weekly!$E:$E,0)) -> 0 | O28: =INDEX(Weekly!M:M,MATCH($F28,Weekly!$E:$E,0)) -> 5 | P28: =O28+K28 -> 
B29: B12 | C29: ↓ | D29: 12 | E29: B | F29: Martin Molyneux | G29: =INDEX(Weekly!F:F,MATCH($F29,Weekly!$E:$E,0)) -> -42.37554779 | H29: =INDEX(Weekly!G:G,MATCH($F29,Weekly!$E:$E,0)) -> 19 | I29: =INDEX(Weekly!H:H,MATCH($F29,Weekly!$E:$E,0)) -> 5.636363636 | J29: =INDEX(Weekly!I:I,MATCH($F29,Weekly!$E:$E,0)) -> 2 | K29: =INDEX(Players!F:F,MATCH($F29,Players!#REF!,0)) ->  | L29: =INDEX(Prizes!F:F,MATCH($B29,Prizes!A:A,0)) -> 0 | M29: =INDEX(Weekly!J:J,MATCH($F29,Weekly!$E:$E,0)) -> 0 | N29: =INDEX(Weekly!K:K,MATCH($F29,Weekly!$E:$E,0)) -> 0 | O29: =INDEX(Weekly!M:M,MATCH($F29,Weekly!$E:$E,0)) -> 0 | P29: =O29+K29 -> 
B30: B13 | C30: ↓ | D30: 13 | E30: B | F30: Tom Robinson | G30: =INDEX(Weekly!F:F,MATCH($F30,Weekly!$E:$E,0)) -> -52.16575758 | H30: =INDEX(Weekly!G:G,MATCH($F30,Weekly!$E:$E,0)) -> 16 | I30: =INDEX(Weekly!H:H,MATCH($F30,Weekly!$E:$E,0)) -> -4.85 | J30: =INDEX(Weekly!I:I,MATCH($F30,Weekly!$E:$E,0)) -> 1 | K30: =INDEX(Players!F:F,MATCH($F30,Players!#REF!,0)) ->  | L30: =INDEX(Prizes!F:F,MATCH($B30,Prizes!A:A,0)) -> 0 | M30: =INDEX(Weekly!J:J,MATCH($F30,Weekly!$E:$E,0)) -> 5 | N30: =INDEX(Weekly!K:K,MATCH($F30,Weekly!$E:$E,0)) -> 0 | O30: =INDEX(Weekly!M:M,MATCH($F30,Weekly!$E:$E,0)) -> 5 | P30: =O30+K30 -> 
B31: B14 | C31: ↓ | D31: 14 | E31: B | F31: John Evans | G31: =INDEX(Weekly!F:F,MATCH($F31,Weekly!$E:$E,0)) -> -53.54 | H31: =INDEX(Weekly!G:G,MATCH($F31,Weekly!$E:$E,0)) -> 14 | I31: =INDEX(Weekly!H:H,MATCH($F31,Weekly!$E:$E,0)) -> -3.8 | J31: =INDEX(Weekly!I:I,MATCH($F31,Weekly!$E:$E,0)) -> 1 | K31: =INDEX(Players!F:F,MATCH($F31,Players!#REF!,0)) ->  | L31: =INDEX(Prizes!F:F,MATCH($B31,Prizes!A:A,0)) -> 0 | M31: =INDEX(Weekly!J:J,MATCH($F31,Weekly!$E:$E,0)) -> 0 | N31: =INDEX(Weekly!K:K,MATCH($F31,Weekly!$E:$E,0)) -> 0 | O31: =INDEX(Weekly!M:M,MATCH($F31,Weekly!$E:$E,0)) -> 0 | P31: =O31+K31 -> 
B32: B15 | C32: ↓ | D32: 15 | E32: B | F32: Gareth Powell | G32: =INDEX(Weekly!F:F,MATCH($F32,Weekly!$E:$E,0)) -> -64.97576923 | H32: =INDEX(Weekly!G:G,MATCH($F32,Weekly!$E:$E,0)) -> 14 | I32: =INDEX(Weekly!H:H,MATCH($F32,Weekly!$E:$E,0)) -> -4.3 | J32: =INDEX(Weekly!I:I,MATCH($F32,Weekly!$E:$E,0)) -> 1 | K32: =INDEX(Players!F:F,MATCH($F32,Players!#REF!,0)) ->  | L32: =INDEX(Prizes!F:F,MATCH($B32,Prizes!A:A,0)) -> 0 | M32: =INDEX(Weekly!J:J,MATCH($F32,Weekly!$E:$E,0)) -> 0 | N32: =INDEX(Weekly!K:K,MATCH($F32,Weekly!$E:$E,0)) -> 0 | O32: =INDEX(Weekly!M:M,MATCH($F32,Weekly!$E:$E,0)) -> 0 | P32: =O32+K32 -> 
B33: B16 | C33: ↓ | D33: 16 | E33: B | F33: Dave Bell | G33: =INDEX(Weekly!F:F,MATCH($F33,Weekly!$E:$E,0)) -> -65.46666667 | H33: =INDEX(Weekly!G:G,MATCH($F33,Weekly!$E:$E,0)) -> 8 | I33: =INDEX(Weekly!H:H,MATCH($F33,Weekly!$E:$E,0)) -> 1.333333333 | J33: =INDEX(Weekly!I:I,MATCH($F33,Weekly!$E:$E,0)) -> 1 | K33: =INDEX(Players!F:F,MATCH($F33,Players!#REF!,0)) ->  | L33: =INDEX(Prizes!F:F,MATCH($B33,Prizes!A:A,0)) -> 0 | M33: =INDEX(Weekly!J:J,MATCH($F33,Weekly!$E:$E,0)) -> 0 | N33: =INDEX(Weekly!K:K,MATCH($F33,Weekly!$E:$E,0)) -> 0 | O33: =INDEX(Weekly!M:M,MATCH($F33,Weekly!$E:$E,0)) -> 0 | P33: =O33+K33 -> 
A34: Division C | B34: C1 | C34: ↑ | D34: 1 | E34: C | F34: Andy Charleston | G34: =INDEX(Weekly!F:F,MATCH($F34,Weekly!$E:$E,0)) -> 871.8333333 | H34: =INDEX(Weekly!G:G,MATCH($F34,Weekly!$E:$E,0)) -> 19 | I34: =INDEX(Weekly!H:H,MATCH($F34,Weekly!$E:$E,0)) -> -2.666666667 | J34: =INDEX(Weekly!I:I,MATCH($F34,Weekly!$E:$E,0)) -> 1 | K34: =INDEX(Players!F:F,MATCH($F34,Players!#REF!,0)) ->  | L34: =INDEX(Prizes!F:F,MATCH($B34,Prizes!A:A,0)) -> 36.225 | M34: =INDEX(Weekly!J:J,MATCH($F34,Weekly!$E:$E,0)) -> 15 | N34: =INDEX(Weekly!K:K,MATCH($F34,Weekly!$E:$E,0)) -> 0 | O34: =INDEX(Weekly!M:M,MATCH($F34,Weekly!$E:$E,0)) -> 51.225 | P34: =O34+K34 -> 
B35: C2 | C35: ↑ | D35: 2 | E35: C | F35: Chris Bow | G35: =INDEX(Weekly!F:F,MATCH($F35,Weekly!$E:$E,0)) -> 225.3241098 | H35: =INDEX(Weekly!G:G,MATCH($F35,Weekly!$E:$E,0)) -> 26 | I35: =INDEX(Weekly!H:H,MATCH($F35,Weekly!$E:$E,0)) -> -2.666666667 | J35: =INDEX(Weekly!I:I,MATCH($F35,Weekly!$E:$E,0)) -> 1 | K35: =INDEX(Players!F:F,MATCH($F35,Players!#REF!,0)) ->  | L35: =INDEX(Prizes!F:F,MATCH($B35,Prizes!A:A,0)) -> 25.875 | M35: =INDEX(Weekly!J:J,MATCH($F35,Weekly!$E:$E,0)) -> 30 | N35: =INDEX(Weekly!K:K,MATCH($F35,Weekly!$E:$E,0)) -> 0 | O35: =INDEX(Weekly!M:M,MATCH($F35,Weekly!$E:$E,0)) -> 55.875 | P35: =O35+K35 -> 
B36: C3 | C36: ↑ | D36: 3 | E36: C | F36: Paul Fairhurst | G36: =INDEX(Weekly!F:F,MATCH($F36,Weekly!$E:$E,0)) -> 130.9602339 | H36: =INDEX(Weekly!G:G,MATCH($F36,Weekly!$E:$E,0)) -> 15 | I36: =INDEX(Weekly!H:H,MATCH($F36,Weekly!$E:$E,0)) -> -7 | J36: =INDEX(Weekly!I:I,MATCH($F36,Weekly!$E:$E,0)) -> 0 | K36: =INDEX(Players!F:F,MATCH($F36,Players!#REF!,0)) ->  | L36: =INDEX(Prizes!F:F,MATCH($B36,Prizes!A:A,0)) -> 18.63 | M36: =INDEX(Weekly!J:J,MATCH($F36,Weekly!$E:$E,0)) -> 10 | N36: =INDEX(Weekly!K:K,MATCH($F36,Weekly!$E:$E,0)) -> 0 | O36: =INDEX(Weekly!M:M,MATCH($F36,Weekly!$E:$E,0)) -> 28.63 | P36: =O36+K36 -> 
B37: C4 | C37: ↑ | D37: 4 | E37: C | F37: Charlie Griffiths | G37: =INDEX(Weekly!F:F,MATCH($F37,Weekly!$E:$E,0)) -> 63.65760577 | H37: =INDEX(Weekly!G:G,MATCH($F37,Weekly!$E:$E,0)) -> 22 | I37: =INDEX(Weekly!H:H,MATCH($F37,Weekly!$E:$E,0)) -> -7 | J37: =INDEX(Weekly!I:I,MATCH($F37,Weekly!$E:$E,0)) -> 0 | K37: =INDEX(Players!F:F,MATCH($F37,Players!#REF!,0)) ->  | L37: =INDEX(Prizes!F:F,MATCH($B37,Prizes!A:A,0)) -> 12.42 | M37: =INDEX(Weekly!J:J,MATCH($F37,Weekly!$E:$E,0)) -> 10 | N37: =INDEX(Weekly!K:K,MATCH($F37,Weekly!$E:$E,0)) -> 0 | O37: =INDEX(Weekly!M:M,MATCH($F37,Weekly!$E:$E,0)) -> 22.42 | P37: =O37+K37 -> 
B38: C5 | C38: ↑ | D38: 5 | E38: C | F38: Sally Williams | G38: =INDEX(Weekly!F:F,MATCH($F38,Weekly!$E:$E,0)) -> 47.02475 | H38: =INDEX(Weekly!G:G,MATCH($F38,Weekly!$E:$E,0)) -> 18 | I38: =INDEX(Weekly!H:H,MATCH($F38,Weekly!$E:$E,0)) -> -4 | J38: =INDEX(Weekly!I:I,MATCH($F38,Weekly!$E:$E,0)) -> 1 | K38: =INDEX(Players!F:F,MATCH($F38,Players!#REF!,0)) ->  | L38: =INDEX(Prizes!F:F,MATCH($B38,Prizes!A:A,0)) -> 7.245 | M38: =INDEX(Weekly!J:J,MATCH($F38,Weekly!$E:$E,0)) -> 10 | N38: =INDEX(Weekly!K:K,MATCH($F38,Weekly!$E:$E,0)) -> 0 | O38: =INDEX(Weekly!M:M,MATCH($F38,Weekly!$E:$E,0)) -> 17.245 | P38: =O38+K38 -> 
B39: C6 | C39: ↑ | D39: 6 | E39: C | F39: Mal Stott | G39: =INDEX(Weekly!F:F,MATCH($F39,Weekly!$E:$E,0)) -> 10.15375 | H39: =INDEX(Weekly!G:G,MATCH($F39,Weekly!$E:$E,0)) -> 17 | I39: =INDEX(Weekly!H:H,MATCH($F39,Weekly!$E:$E,0)) -> -7 | J39: =INDEX(Weekly!I:I,MATCH($F39,Weekly!$E:$E,0)) -> 0 | K39: =INDEX(Players!F:F,MATCH($F39,Players!#REF!,0)) ->  | L39: =INDEX(Prizes!F:F,MATCH($B39,Prizes!A:A,0)) -> 3.105 | M39: =INDEX(Weekly!J:J,MATCH($F39,Weekly!$E:$E,0)) -> 5 | N39: =INDEX(Weekly!K:K,MATCH($F39,Weekly!$E:$E,0)) -> 0 | O39: =INDEX(Weekly!M:M,MATCH($F39,Weekly!$E:$E,0)) -> 8.105 | P39: =O39+K39 -> 
B40: C7 | C40: Play-off | D40: 7 | E40: C | F40: Chris Griffin | G40: =INDEX(Weekly!F:F,MATCH($F40,Weekly!$E:$E,0)) -> 5.809034091 | H40: =INDEX(Weekly!G:G,MATCH($F40,Weekly!$E:$E,0)) -> 29 | I40: =INDEX(Weekly!H:H,MATCH($F40,Weekly!$E:$E,0)) -> 1.75 | J40: =INDEX(Weekly!I:I,MATCH($F40,Weekly!$E:$E,0)) -> 2 | K40: =INDEX(Players!F:F,MATCH($F40,Players!#REF!,0)) ->  | L40: =INDEX(Prizes!F:F,MATCH($B40,Prizes!A:A,0)) -> 0 | M40: =INDEX(Weekly!J:J,MATCH($F40,Weekly!$E:$E,0)) -> 5 | N40: =INDEX(Weekly!K:K,MATCH($F40,Weekly!$E:$E,0)) -> 0 | O40: =INDEX(Weekly!M:M,MATCH($F40,Weekly!$E:$E,0)) -> 5 | P40: =O40+K40 -> 
B41: C8 | C41: Play-off | D41: 8 | E41: C | F41: Chris Townsend | G41: =INDEX(Weekly!F:F,MATCH($F41,Weekly!$E:$E,0)) -> -9.816388889 | H41: =INDEX(Weekly!G:G,MATCH($F41,Weekly!$E:$E,0)) -> 18 | I41: =INDEX(Weekly!H:H,MATCH($F41,Weekly!$E:$E,0)) -> -3.9 | J41: =INDEX(Weekly!I:I,MATCH($F41,Weekly!$E:$E,0)) -> 1 | K41: =INDEX(Players!F:F,MATCH($F41,Players!#REF!,0)) ->  | L41: =INDEX(Prizes!F:F,MATCH($B41,Prizes!A:A,0)) -> 0 | M41: =INDEX(Weekly!J:J,MATCH($F41,Weekly!$E:$E,0)) -> 5 | N41: =INDEX(Weekly!K:K,MATCH($F41,Weekly!$E:$E,0)) -> 0 | O41: =INDEX(Weekly!M:M,MATCH($F41,Weekly!$E:$E,0)) -> 5 | P41: =O41+K41 -> 
B42: C9 | C42: Play-off | D42: 9 | E42: C | F42: Alan White | G42: =INDEX(Weekly!F:F,MATCH($F42,Weekly!$E:$E,0)) -> -26.99359091 | H42: =INDEX(Weekly!G:G,MATCH($F42,Weekly!$E:$E,0)) -> 19 | I42: =INDEX(Weekly!H:H,MATCH($F42,Weekly!$E:$E,0)) -> 0.1818181818 | J42: =INDEX(Weekly!I:I,MATCH($F42,Weekly!$E:$E,0)) -> 2 | K42: =INDEX(Players!F:F,MATCH($F42,Players!#REF!,0)) ->  | L42: =INDEX(Prizes!F:F,MATCH($B42,Prizes!A:A,0)) -> 0 | M42: =INDEX(Weekly!J:J,MATCH($F42,Weekly!$E:$E,0)) -> 5 | N42: =INDEX(Weekly!K:K,MATCH($F42,Weekly!$E:$E,0)) -> 0 | O42: =INDEX(Weekly!M:M,MATCH($F42,Weekly!$E:$E,0)) -> 5 | P42: =O42+K42 -> 
B43: C10 | C43: Play-off | D43: 10 | E43: C | F43: Gareth McGuire | G43: =INDEX(Weekly!F:F,MATCH($F43,Weekly!$E:$E,0)) -> -27.6835815 | H43: =INDEX(Weekly!G:G,MATCH($F43,Weekly!$E:$E,0)) -> 23 | I43: =INDEX(Weekly!H:H,MATCH($F43,Weekly!$E:$E,0)) -> 2.98 | J43: =INDEX(Weekly!I:I,MATCH($F43,Weekly!$E:$E,0)) -> 2 | K43: =INDEX(Players!F:F,MATCH($F43,Players!#REF!,0)) ->  | L43: =INDEX(Prizes!F:F,MATCH($B43,Prizes!A:A,0)) -> 0 | M43: =INDEX(Weekly!J:J,MATCH($F43,Weekly!$E:$E,0)) -> 5 | N43: =INDEX(Weekly!K:K,MATCH($F43,Weekly!$E:$E,0)) -> 0 | O43: =INDEX(Weekly!M:M,MATCH($F43,Weekly!$E:$E,0)) -> 5 | P43: =O43+K43 -> 
B44: C11 | C44: ↓ | D44: 11 | E44: C | F44: Paul Ridgeway | G44: =INDEX(Weekly!F:F,MATCH($F44,Weekly!$E:$E,0)) -> -29.86735577 | H44: =INDEX(Weekly!G:G,MATCH($F44,Weekly!$E:$E,0)) -> 18 | I44: =INDEX(Weekly!H:H,MATCH($F44,Weekly!$E:$E,0)) -> -7 | J44: =INDEX(Weekly!I:I,MATCH($F44,Weekly!$E:$E,0)) -> 0 | K44: =INDEX(Players!F:F,MATCH($F44,Players!#REF!,0)) ->  | L44: =INDEX(Prizes!F:F,MATCH($B44,Prizes!A:A,0)) -> 0 | M44: =INDEX(Weekly!J:J,MATCH($F44,Weekly!$E:$E,0)) -> 0 | N44: =INDEX(Weekly!K:K,MATCH($F44,Weekly!$E:$E,0)) -> 0 | O44: =INDEX(Weekly!M:M,MATCH($F44,Weekly!$E:$E,0)) -> 0 | P44: =O44+K44 -> 
B45: C12 | C45: ↓ | D45: 12 | E45: C | F45: David Dunn | G45: =INDEX(Weekly!F:F,MATCH($F45,Weekly!$E:$E,0)) -> -30.39507021 | H45: =INDEX(Weekly!G:G,MATCH($F45,Weekly!$E:$E,0)) -> 22 | I45: =INDEX(Weekly!H:H,MATCH($F45,Weekly!$E:$E,0)) -> 1.45 | J45: =INDEX(Weekly!I:I,MATCH($F45,Weekly!$E:$E,0)) -> 2 | K45: =INDEX(Players!F:F,MATCH($F45,Players!#REF!,0)) ->  | L45: =INDEX(Prizes!F:F,MATCH($B45,Prizes!A:A,0)) -> 0 | M45: =INDEX(Weekly!J:J,MATCH($F45,Weekly!$E:$E,0)) -> 5 | N45: =INDEX(Weekly!K:K,MATCH($F45,Weekly!$E:$E,0)) -> 0 | O45: =INDEX(Weekly!M:M,MATCH($F45,Weekly!$E:$E,0)) -> 5 | P45: =O45+K45 -> 
B46: C13 | C46: ↓ | D46: 13 | E46: C | F46: Jack Walsh | G46: =INDEX(Weekly!F:F,MATCH($F46,Weekly!$E:$E,0)) -> -35.78694794 | H46: =INDEX(Weekly!G:G,MATCH($F46,Weekly!$E:$E,0)) -> 18 | I46: =INDEX(Weekly!H:H,MATCH($F46,Weekly!$E:$E,0)) -> -5.35 | J46: =INDEX(Weekly!I:I,MATCH($F46,Weekly!$E:$E,0)) -> 1 | K46: =INDEX(Players!F:F,MATCH($F46,Players!#REF!,0)) ->  | L46: =INDEX(Prizes!F:F,MATCH($B46,Prizes!A:A,0)) -> 0 | M46: =INDEX(Weekly!J:J,MATCH($F46,Weekly!$E:$E,0)) -> 0 | N46: =INDEX(Weekly!K:K,MATCH($F46,Weekly!$E:$E,0)) -> 0 | O46: =INDEX(Weekly!M:M,MATCH($F46,Weekly!$E:$E,0)) -> 0 | P46: =O46+K46 -> 
B47: C14 | C47: ↓ | D47: 14 | E47: C | F47: Liam Wah | G47: =INDEX(Weekly!F:F,MATCH($F47,Weekly!$E:$E,0)) -> -51.19227273 | H47: =INDEX(Weekly!G:G,MATCH($F47,Weekly!$E:$E,0)) -> 13 | I47: =INDEX(Weekly!H:H,MATCH($F47,Weekly!$E:$E,0)) -> 8.25 | J47: =INDEX(Weekly!I:I,MATCH($F47,Weekly!$E:$E,0)) -> 2 | K47: =INDEX(Players!F:F,MATCH($F47,Players!#REF!,0)) ->  | L47: =INDEX(Prizes!F:F,MATCH($B47,Prizes!A:A,0)) -> 0 | M47: =INDEX(Weekly!J:J,MATCH($F47,Weekly!$E:$E,0)) -> 0 | N47: =INDEX(Weekly!K:K,MATCH($F47,Weekly!$E:$E,0)) -> 0 | O47: =INDEX(Weekly!M:M,MATCH($F47,Weekly!$E:$E,0)) -> 0 | P47: =O47+K47 -> 
B48: C15 | C48: ↓ | D48: 15 | E48: C | F48: Ian Davies | G48: =INDEX(Weekly!F:F,MATCH($F48,Weekly!$E:$E,0)) -> -68.06 | H48: =INDEX(Weekly!G:G,MATCH($F48,Weekly!$E:$E,0)) -> 10 | I48: =INDEX(Weekly!H:H,MATCH($F48,Weekly!$E:$E,0)) -> -7 | J48: =INDEX(Weekly!I:I,MATCH($F48,Weekly!$E:$E,0)) -> 0 | K48: =INDEX(Players!F:F,MATCH($F48,Players!#REF!,0)) ->  | L48: =INDEX(Prizes!F:F,MATCH($B48,Prizes!A:A,0)) -> 0 | M48: =INDEX(Weekly!J:J,MATCH($F48,Weekly!$E:$E,0)) -> 0 | N48: =INDEX(Weekly!K:K,MATCH($F48,Weekly!$E:$E,0)) -> 0 | O48: =INDEX(Weekly!M:M,MATCH($F48,Weekly!$E:$E,0)) -> 0 | P48: =O48+K48 -> 
B49: C16 | C49: ↓ | D49: 16 | E49: C | F49: Gareth Fallows | G49: =INDEX(Weekly!F:F,MATCH($F49,Weekly!$E:$E,0)) -> -119 | H49: =INDEX(Weekly!G:G,MATCH($F49,Weekly!$E:$E,0)) -> 0 | I49: =INDEX(Weekly!H:H,MATCH($F49,Weekly!$E:$E,0)) -> -7 | J49: =INDEX(Weekly!I:I,MATCH($F49,Weekly!$E:$E,0)) -> 0 | K49: =INDEX(Players!F:F,MATCH($F49,Players!#REF!,0)) ->  | L49: =INDEX(Prizes!F:F,MATCH($B49,Prizes!A:A,0)) -> 0 | M49: =INDEX(Weekly!J:J,MATCH($F49,Weekly!$E:$E,0)) -> 0 | N49: =INDEX(Weekly!K:K,MATCH($F49,Weekly!$E:$E,0)) -> 0 | O49: =INDEX(Weekly!M:M,MATCH($F49,Weekly!$E:$E,0)) -> 0 | P49: =O49+K49 -> 
A50: Division D | B50: D1 | C50: ↑ | D50: 1 | E50: D | F50: Paul Barnes | G50: =INDEX(Weekly!F:F,MATCH($F50,Weekly!$E:$E,0)) -> 86.01088141 | H50: =INDEX(Weekly!G:G,MATCH($F50,Weekly!$E:$E,0)) -> 22 | I50: =INDEX(Weekly!H:H,MATCH($F50,Weekly!$E:$E,0)) -> -7 | J50: =INDEX(Weekly!I:I,MATCH($F50,Weekly!$E:$E,0)) -> 0 | K50: =INDEX(Players!F:F,MATCH($F50,Players!#REF!,0)) ->  | L50: =INDEX(Prizes!F:F,MATCH($B50,Prizes!A:A,0)) -> 24.15 | M50: =INDEX(Weekly!J:J,MATCH($F50,Weekly!$E:$E,0)) -> 20 | N50: =INDEX(Weekly!K:K,MATCH($F50,Weekly!$E:$E,0)) -> 0 | O50: =INDEX(Weekly!M:M,MATCH($F50,Weekly!$E:$E,0)) -> 44.15 | P50: =O50+K50 -> 
B51: D2 | C51: ↑ | D51: 2 | E51: D | F51: Howard Bradley | G51: =INDEX(Weekly!F:F,MATCH($F51,Weekly!$E:$E,0)) -> 48.00563312 | H51: =INDEX(Weekly!G:G,MATCH($F51,Weekly!$E:$E,0)) -> 22 | I51: =INDEX(Weekly!H:H,MATCH($F51,Weekly!$E:$E,0)) -> 0.5818181818 | J51: =INDEX(Weekly!I:I,MATCH($F51,Weekly!$E:$E,0)) -> 2 | K51: =INDEX(Players!F:F,MATCH($F51,Players!#REF!,0)) ->  | L51: =INDEX(Prizes!F:F,MATCH($B51,Prizes!A:A,0)) -> 17.25 | M51: =INDEX(Weekly!J:J,MATCH($F51,Weekly!$E:$E,0)) -> 10 | N51: =INDEX(Weekly!K:K,MATCH($F51,Weekly!$E:$E,0)) -> 0 | O51: =INDEX(Weekly!M:M,MATCH($F51,Weekly!$E:$E,0)) -> 27.25 | P51: =O51+K51 -> 
B52: D3 | C52: ↑ | D52: 3 | E52: D | F52: John Ronan | G52: =INDEX(Weekly!F:F,MATCH($F52,Weekly!$E:$E,0)) -> 44.84075 | H52: =INDEX(Weekly!G:G,MATCH($F52,Weekly!$E:$E,0)) -> 23 | I52: =INDEX(Weekly!H:H,MATCH($F52,Weekly!$E:$E,0)) -> 0 | J52: =INDEX(Weekly!I:I,MATCH($F52,Weekly!$E:$E,0)) -> 2 | K52: =INDEX(Players!F:F,MATCH($F52,Players!#REF!,0)) ->  | L52: =INDEX(Prizes!F:F,MATCH($B52,Prizes!A:A,0)) -> 12.42 | M52: =INDEX(Weekly!J:J,MATCH($F52,Weekly!$E:$E,0)) -> 20 | N52: =INDEX(Weekly!K:K,MATCH($F52,Weekly!$E:$E,0)) -> 0 | O52: =INDEX(Weekly!M:M,MATCH($F52,Weekly!$E:$E,0)) -> 32.42 | P52: =O52+K52 -> 
B53: D4 | C53: ↑ | D53: 4 | E53: D | F53: Dave Orrell | G53: =INDEX(Weekly!F:F,MATCH($F53,Weekly!$E:$E,0)) -> 3.757753025 | H53: =INDEX(Weekly!G:G,MATCH($F53,Weekly!$E:$E,0)) -> 23 | I53: =INDEX(Weekly!H:H,MATCH($F53,Weekly!$E:$E,0)) -> 27.7765 | J53: =INDEX(Weekly!I:I,MATCH($F53,Weekly!$E:$E,0)) -> 3 | K53: =INDEX(Players!F:F,MATCH($F53,Players!#REF!,0)) ->  | L53: =INDEX(Prizes!F:F,MATCH($B53,Prizes!A:A,0)) -> 8.28 | M53: =INDEX(Weekly!J:J,MATCH($F53,Weekly!$E:$E,0)) -> 10 | N53: =INDEX(Weekly!K:K,MATCH($F53,Weekly!$E:$E,0)) -> 0 | O53: =INDEX(Weekly!M:M,MATCH($F53,Weekly!$E:$E,0)) -> 18.28 | P53: =O53+K53 -> 
B54: D5 | C54: ↑ | D54: 5 | E54: D | F54: Joel Bent | G54: =INDEX(Weekly!F:F,MATCH($F54,Weekly!$E:$E,0)) -> -16.47857143 | H54: =INDEX(Weekly!G:G,MATCH($F54,Weekly!$E:$E,0)) -> 11 | I54: =INDEX(Weekly!H:H,MATCH($F54,Weekly!$E:$E,0)) -> -7 | J54: =INDEX(Weekly!I:I,MATCH($F54,Weekly!$E:$E,0)) -> 0 | K54: =INDEX(Players!F:F,MATCH($F54,Players!#REF!,0)) ->  | L54: =INDEX(Prizes!F:F,MATCH($B54,Prizes!A:A,0)) -> 4.83 | M54: =INDEX(Weekly!J:J,MATCH($F54,Weekly!$E:$E,0)) -> 15 | N54: =INDEX(Weekly!K:K,MATCH($F54,Weekly!$E:$E,0)) -> 0 | O54: =INDEX(Weekly!M:M,MATCH($F54,Weekly!$E:$E,0)) -> 19.83 | P54: =O54+K54 -> 
B55: D6 | C55: ↑ | D55: 6 | E55: D | F55: Graham Miller | G55: =INDEX(Weekly!F:F,MATCH($F55,Weekly!$E:$E,0)) -> -24.31339744 | H55: =INDEX(Weekly!G:G,MATCH($F55,Weekly!$E:$E,0)) -> 20 | I55: =INDEX(Weekly!H:H,MATCH($F55,Weekly!$E:$E,0)) -> 18.59090909 | J55: =INDEX(Weekly!I:I,MATCH($F55,Weekly!$E:$E,0)) -> 3 | K55: =INDEX(Players!F:F,MATCH($F55,Players!#REF!,0)) ->  | L55: =INDEX(Prizes!F:F,MATCH($B55,Prizes!A:A,0)) -> 2.07 | M55: =INDEX(Weekly!J:J,MATCH($F55,Weekly!$E:$E,0)) -> 5 | N55: =INDEX(Weekly!K:K,MATCH($F55,Weekly!$E:$E,0)) -> 0 | O55: =INDEX(Weekly!M:M,MATCH($F55,Weekly!$E:$E,0)) -> 7.07 | P55: =O55+K55 -> 
B56: D7 | C56: Play-off | D56: 7 | E56: D | F56: Nick Blocksidge | G56: =INDEX(Weekly!F:F,MATCH($F56,Weekly!$E:$E,0)) -> -26.96492008 | H56: =INDEX(Weekly!G:G,MATCH($F56,Weekly!$E:$E,0)) -> 22 | I56: =INDEX(Weekly!H:H,MATCH($F56,Weekly!$E:$E,0)) -> -5 | J56: =INDEX(Weekly!I:I,MATCH($F56,Weekly!$E:$E,0)) -> 1 | K56: =INDEX(Players!F:F,MATCH($F56,Players!#REF!,0)) ->  | L56: =INDEX(Prizes!F:F,MATCH($B56,Prizes!A:A,0)) -> 0 | M56: =INDEX(Weekly!J:J,MATCH($F56,Weekly!$E:$E,0)) -> 0 | N56: =INDEX(Weekly!K:K,MATCH($F56,Weekly!$E:$E,0)) -> 0 | O56: =INDEX(Weekly!M:M,MATCH($F56,Weekly!$E:$E,0)) -> 0 | P56: =O56+K56 -> 
B57: D8 | C57: Play-off | D57: 8 | E57: D | F57: Martin Tarbuck | G57: =INDEX(Weekly!F:F,MATCH($F57,Weekly!$E:$E,0)) -> -27.77909091 | H57: =INDEX(Weekly!G:G,MATCH($F57,Weekly!$E:$E,0)) -> 24 | I57: =INDEX(Weekly!H:H,MATCH($F57,Weekly!$E:$E,0)) -> -5.35 | J57: =INDEX(Weekly!I:I,MATCH($F57,Weekly!$E:$E,0)) -> 1 | K57: =INDEX(Players!F:F,MATCH($F57,Players!#REF!,0)) ->  | L57: =INDEX(Prizes!F:F,MATCH($B57,Prizes!A:A,0)) -> 0 | M57: =INDEX(Weekly!J:J,MATCH($F57,Weekly!$E:$E,0)) -> 0 | N57: =INDEX(Weekly!K:K,MATCH($F57,Weekly!$E:$E,0)) -> 0 | O57: =INDEX(Weekly!M:M,MATCH($F57,Weekly!$E:$E,0)) -> 0 | P57: =O57+K57 -> 
B58: D9 | D58: 9 | E58: D | F58: Ashley Houghton | G58: =INDEX(Weekly!F:F,MATCH($F58,Weekly!$E:$E,0)) -> -44.97635198 | H58: =INDEX(Weekly!G:G,MATCH($F58,Weekly!$E:$E,0)) -> 21 | I58: =INDEX(Weekly!H:H,MATCH($F58,Weekly!$E:$E,0)) -> -0.3916083916 | J58: =INDEX(Weekly!I:I,MATCH($F58,Weekly!$E:$E,0)) -> 2 | K58: =INDEX(Players!F:F,MATCH($F58,Players!#REF!,0)) ->  | L58: =INDEX(Prizes!F:F,MATCH($B58,Prizes!A:A,0)) -> 0 | M58: =INDEX(Weekly!J:J,MATCH($F58,Weekly!$E:$E,0)) -> 0 | N58: =INDEX(Weekly!K:K,MATCH($F58,Weekly!$E:$E,0)) -> 0 | O58: =INDEX(Weekly!M:M,MATCH($F58,Weekly!$E:$E,0)) -> 0 | P58: =O58+K58 -> 
B59: D10 | D59: 10 | E59: D | F59: Paul Adderley | G59: =INDEX(Weekly!F:F,MATCH($F59,Weekly!$E:$E,0)) -> -50.31637529 | H59: =INDEX(Weekly!G:G,MATCH($F59,Weekly!$E:$E,0)) -> 19 | I59: =INDEX(Weekly!H:H,MATCH($F59,Weekly!$E:$E,0)) -> -4.25 | J59: =INDEX(Weekly!I:I,MATCH($F59,Weekly!$E:$E,0)) -> 1 | K59: =INDEX(Players!F:F,MATCH($F59,Players!#REF!,0)) ->  | L59: =INDEX(Prizes!F:F,MATCH($B59,Prizes!A:A,0)) -> 0 | M59: =INDEX(Weekly!J:J,MATCH($F59,Weekly!$E:$E,0)) -> 5 | N59: =INDEX(Weekly!K:K,MATCH($F59,Weekly!$E:$E,0)) -> 0 | O59: =INDEX(Weekly!M:M,MATCH($F59,Weekly!$E:$E,0)) -> 5 | P59: =O59+K59 -> 
B60: D11 | D60: 11 | E60: D | F60: Ben Rosser | G60: =INDEX(Weekly!F:F,MATCH($F60,Weekly!$E:$E,0)) -> -50.74375 | H60: =INDEX(Weekly!G:G,MATCH($F60,Weekly!$E:$E,0)) -> 15 | I60: =INDEX(Weekly!H:H,MATCH($F60,Weekly!$E:$E,0)) -> -7 | J60: =INDEX(Weekly!I:I,MATCH($F60,Weekly!$E:$E,0)) -> 0 | K60: =INDEX(Players!F:F,MATCH($F60,Players!#REF!,0)) ->  | L60: =INDEX(Prizes!F:F,MATCH($B60,Prizes!A:A,0)) -> 0 | M60: =INDEX(Weekly!J:J,MATCH($F60,Weekly!$E:$E,0)) -> 0 | N60: =INDEX(Weekly!K:K,MATCH($F60,Weekly!$E:$E,0)) -> 0 | O60: =INDEX(Weekly!M:M,MATCH($F60,Weekly!$E:$E,0)) -> 0 | P60: =O60+K60 -> 
B61: D12 | D61: 12 | E61: D | F61: Simon Greenhalgh | G61: =INDEX(Weekly!F:F,MATCH($F61,Weekly!$E:$E,0)) -> -62.19431818 | H61: =INDEX(Weekly!G:G,MATCH($F61,Weekly!$E:$E,0)) -> 16 | I61: =INDEX(Weekly!H:H,MATCH($F61,Weekly!$E:$E,0)) -> -3 | J61: =INDEX(Weekly!I:I,MATCH($F61,Weekly!$E:$E,0)) -> 1 | K61: =INDEX(Players!F:F,MATCH($F61,Players!#REF!,0)) ->  | L61: =INDEX(Prizes!F:F,MATCH($B61,Prizes!A:A,0)) -> 0 | M61: =INDEX(Weekly!J:J,MATCH($F61,Weekly!$E:$E,0)) -> 0 | N61: =INDEX(Weekly!K:K,MATCH($F61,Weekly!$E:$E,0)) -> 0 | O61: =INDEX(Weekly!M:M,MATCH($F61,Weekly!$E:$E,0)) -> 0 | P61: =O61+K61 -> 
B62: D13 | D62: 13 | E62: D | F62: Lewis Buckley | G62: =INDEX(Weekly!F:F,MATCH($F62,Weekly!$E:$E,0)) -> -105.235 | H62: =INDEX(Weekly!G:G,MATCH($F62,Weekly!$E:$E,0)) -> 3 | I62: =INDEX(Weekly!H:H,MATCH($F62,Weekly!$E:$E,0)) -> -7 | J62: =INDEX(Weekly!I:I,MATCH($F62,Weekly!$E:$E,0)) -> 0 | K62: =INDEX(Players!F:F,MATCH($F62,Players!#REF!,0)) ->  | L62: =INDEX(Prizes!F:F,MATCH($B62,Prizes!A:A,0)) -> 0 | M62: =INDEX(Weekly!J:J,MATCH($F62,Weekly!$E:$E,0)) -> 0 | N62: =INDEX(Weekly!K:K,MATCH($F62,Weekly!$E:$E,0)) -> 0 | O62: =INDEX(Weekly!M:M,MATCH($F62,Weekly!$E:$E,0)) -> 0 | P62: =O62+K62 -> 
B63: D14 | D63: 14 | E63: D | F63: Dan Baxter | G63: =INDEX(Weekly!F:F,MATCH($F63,Weekly!$E:$E,0)) -> -116 | H63: =INDEX(Weekly!G:G,MATCH($F63,Weekly!$E:$E,0)) -> 1 | I63: =INDEX(Weekly!H:H,MATCH($F63,Weekly!$E:$E,0)) -> -7 | J63: =INDEX(Weekly!I:I,MATCH($F63,Weekly!$E:$E,0)) -> 0 | K63: =INDEX(Players!F:F,MATCH($F63,Players!#REF!,0)) ->  | L63: =INDEX(Prizes!F:F,MATCH($B63,Prizes!A:A,0)) -> 0 | M63: =INDEX(Weekly!J:J,MATCH($F63,Weekly!$E:$E,0)) -> 0 | N63: =INDEX(Weekly!K:K,MATCH($F63,Weekly!$E:$E,0)) -> 0 | O63: =INDEX(Weekly!M:M,MATCH($F63,Weekly!$E:$E,0)) -> 0 | P63: =O63+K63 -> 
K66: =INDEX(Players!F:F,MATCH($F66,Players!#REF!,0)) -> 
B67: =CONCATENATE(E67,D67) ->  | K67: =INDEX(Players!F:F,MATCH($F67,Players!#REF!,0)) -> 
B68: =CONCATENATE(E68,D68) ->  | K68: =INDEX(Players!F:F,MATCH($F68,Players!#REF!,0)) -> 
B69: =CONCATENATE(E69,D69) ->  | K69: =INDEX(Players!F:F,MATCH($F69,Players!#REF!,0)) -> 
L72: =SUM(L2:L70) -> 690 | M72: =SUM(M2:M70) -> 425 | N72: =SUM(N2:N70) -> 0 | O72: =SUM(O2:O70) -> 1115 | P72: =SUM(P2:P70) -> 

Sheet Weekly
A1: Rank Seas | B1: Rank Wk | C1: Pos L/W | D1: Div | E1: Player | F1: Season Score | G1: Season Correct | H1: Week Score | I1: Week ? of 3 | J1: Weekly Prizes | K1: Cup Prize | L1: League Place Prize | M1: Total Prize | N1: W1 | O1: W1Q | P1: W1P | Q1: W2 | R1: W2Q | S1: W2P | T1: W3 | U1: W3Q | V1: W3P | W1: W4 | X1: W4Q | Y1: W4P | Z1: W5 | AA1: W5Q | AB1: W5P | AC1: W6 | AD1: W6Q | AE1: W6P | AF1: W7 | AG1: W7Q | AH1: W7P | AI1: W8 | AJ1: W8Q | AK1: W8P | AL1: W9 | AM1: W9Q | AN1: W9P | AO1: W10 | AP1: W10Q | AQ1: W10P | AR1: W11 | AS1: W11Q | AT1: W11P | AU1: W12 | AV1: W12Q | AW1: W12P | AX1: W13 | AY1: W13Q | AZ1: W13P | BA1: W14 | BB1: W14Q | BC1: W14P | BD1: W15 | BE1: W15Q | BF1: W15P | BG1: W16 | BH1: W16Q | BI1: W16P | BJ1: W17 | BK1: W17Q | BL1: W17P | BM1: W18 | BN1: W18Q | BO1: W18P | BP1: W19 | BQ1: W19Q | BR1: W19P | BS1: W20 | BT1: W20Q | BU1: W20P | BV1: Seas | BW1: SeasQ | BX1: SeasP
A2: =_xlfn.RANK.EQ(F2,totalscores,0) -> 15 | B2: =_xlfn.RANK.EQ(H2,thisweekscore,0) -> 2 | C2: 28 | D2: =INDEX(Table!E:E,MATCH(E2,Table!F:F,0)) -> A | E2: Alan Rogers | F2: =+N2+Q2+T2+W2+Z2+AC2+AF2+AI2+AL2+AO2+AR2+AU2+AX2+BA2+BD2+BG2+BJ2+BM2+BP2+BS2 -> 36.04 | G2: =+O2+R2+U2+X2+AA2+AD2+AG2+AJ2+AM2+AP2+AS2+AV2+AY2+BB2+BE2+BH2+BK2+BN2+BQ2+BT2 -> 18 | H2: 47.08 | I2: 3 | J2: =P2+S2+V2+Y2+AB2+AE2+AH2+AK2+AN2+AQ2+AT2+AW2+AZ2+BC2+BF2+BI2+BL2+BO2+BR2+BU2 -> 20 | L2: =INDEX(Table!L:L,MATCH(E2,Table!F:F,0)) -> 55.89 | M2: =K2+J2+L2 -> 75.89 | N2: 6.96 | O2: 2 | Q2: -7 | R2: 0 | T2: 10.48 | U2: 2 | V2: 5 | W2: -7 | X2: 0 | Z2: -4.75 | AA2: 1 | AC2: -3.6 | AD2: 1 | AF2: 40.72 | AG2: 3 | AH2: 10 | AI2: -7 | AJ2: 0 | AL2: -4.55 | AM2: 1 | AO2: -3.9 | AP2: 1 | AR2: -7 | AS2: 0 | AU2: -4.4 | AV2: 1 | AX2: -4.1 | AY2: 1 | BA2: -7 | BB2: 0 | BD2: -4.6 | BE2: 1 | BG2: -4.3 | BH2: 1 | BJ2: 47.08 | BK2: 3 | BL2: 5 | BV2: =BS2+BP2+BM2+BJ2+BG2+BD2+BA2+AX2+AU2+AR2+AO2+AL2+AI2+AF2+AC2+Z2+W2+T2+Q2+N2 -> 36.04 | BW2: =BT2+BQ2+BN2+BK2+BH2+BE2+BB2+AY2+AV2+AS2+AP2+AM2+AJ2+AG2+AD2+AA2+X2+U2+R2+O2 -> 18 | BX2: =BU2+BR2+BO2+BL2+BI2+BF2+BC2+AZ2+AW2+AT2+AQ2+AN2+AK2+AH2+AE2+AB2+Y2+V2+S2+P2 -> 20
A3: 36 | B3: 20 | C3: 37 | D3: =INDEX(Table!E:E,MATCH(E3,Table!F:F,0)) -> C | E3: Alan White | F3: -26.99359091 | G3: 19 | H3: 0.1818181818 | I3: 2 | J3: =P3+S3+V3+Y3+AB3+AE3+AH3+AK3+AN3+AQ3+AT3+AW3+AZ3+BC3+BF3+BI3+BL3+BO3+BR3+BU3 -> 5 | L3: =INDEX(Table!L:L,MATCH(E3,Table!F:F,0)) -> 0 | M3: =K3+J3+L3 -> 5 | N3: -4.95 | O3: 1 | Q3: -1.625 | R3: 2 | T3: -7 | U3: 0 | W3: 7.05 | X3: 2 | Z3: -4.1 | AA3: 1 | AC3: -5.090909091 | AD3: 1 | AF3: -4.95 | AG3: 1 | AI3: -7 | AJ3: 0 | AL3: -4.625 | AM3: 1 | AO3: 29.7055 | AP3: 3 | AQ3: 5 | AR3: 0.36 | AS3: 2 | AU3: -7 | AV3: 0 | AX3: -2.8 | AY3: 1 | BA3: -3.4 | BB3: 1 | BD3: -4.75 | BE3: 1 | BG3: -7 | BH3: 0 | BJ3: 0.1818181818 | BK3: 2 | BV3: -26.99359091 | BW3: 19 | BX3: 5
A4: 16 | B4: 1 | C4: 38 | D4: =INDEX(Table!E:E,MATCH(E4,Table!F:F,0)) -> A | E4: Alfie Davies | F4: 22.66125 | G4: 21 | H4: 50.275 | I4: 3 | J4: 15 | L4: =INDEX(Table!L:L,MATCH(E4,Table!F:F,0)) -> 37.26 | M4: 52.26 | N4: -3.75 | O4: 1 | Q4: -7 | R4: 0 | T4: -7 | U4: 0 | W4: -4.45 | X4: 1 | Z4: -5.5 | AA4: 1 | AC4: -5.65 | AD4: 1 | AF4: -7 | AG4: 0 | AI4: 3.78125 | AJ4: 2 | AL4: 3.75 | AM4: 2 | AO4: 0.55 | AP4: 2 | AR4: -7 | AS4: 0 | AU4: 2.32 | AV4: 2 | AX4: -5.5 | AY4: 1 | BA4: 13.6 | BB4: 2 | BC4: 5 | BD4: 4.985 | BE4: 2 | BG4: -3.75 | BH4: 1 | BJ4: 50.275 | BK4: 3 | BL4: 10 | BV4: 22.66125 | BW4: 21 | BX4: 15
A5: 20 | B5: 46 | C5: 17 | D5: =INDEX(Table!E:E,MATCH(E5,Table!F:F,0)) -> A | E5: Alick Rocca | F5: 8.973295455 | G5: 20 | H5: -7 | I5: 0 | J5: 10 | L5: =INDEX(Table!L:L,MATCH(E5,Table!F:F,0)) -> 9.315 | M5: 19.315 | N5: -7 | O5: 0 | Q5: 10.80625 | R5: 3 | T5: 3.9 | U5: 2 | W5: 2.32 | X5: 2 | Z5: 24.45454545 | AA5: 3 | AB5: 5 | AC5: -3.6 | AD5: 1 | AF5: -7 | AG5: 0 | AI5: 10.0625 | AJ5: 2 | AL5: -7 | AM5: 0 | AO5: -3 | AP5: 1 | AR5: 0.6 | AS5: 1 | AU5: 9.63 | AV5: 2 | AW5: 5 | AX5: -3.8 | AY5: 1 | BA5: -3.8 | BB5: 1 | BD5: -7 | BE5: 0 | BG5: -3.6 | BH5: 1 | BJ5: -7 | BK5: 0 | BV5: 8.973295455 | BW5: 20 | BX5: 10
A6: 1 | B6: 25 | C6: 1 | D6: =INDEX(Table!E:E,MATCH(E6,Table!F:F,0)) -> C | E6: Andy Charleston | F6: 871.8333333 | G6: 19 | H6: -2.666666667 | I6: 1 | J6: 15 | L6: =INDEX(Table!L:L,MATCH(E6,Table!F:F,0)) -> 36.225 | M6: 51.225 | N6: 1.45 | O6: 2 | Q6: -4.55 | R6: 1 | T6: -5.6 | U6: 1 | W6: -5 | X6: 1 | Z6: -7 | AA6: 0 | AC6: 10.45 | AD6: 2 | AE6: 5 | AF6: -7 | AG6: 0 | AI6: -0.95 | AJ6: 1 | AL6: 23.2 | AM6: 2 | AO6: -7 | AP6: 0 | AR6: 888 | AS6: 3 | AT6: 10 | AU6: -1.4 | AV6: 1 | AX6: -3.8 | AY6: 1 | BA6: -3.4 | BB6: 1 | BD6: 1.5 | BE6: 1 | BG6: -4.4 | BH6: 1 | BJ6: -2.666666667 | BK6: 1 | BV6: 871.8333333 | BW6: 19 | BX6: 15
A7: 21 | B7: 12 | C7: 20 | D7: =INDEX(Table!E:E,MATCH(E7,Table!F:F,0)) -> B | E7: Andy White | F7: 8.225650826 | G7: 25 | H7: 1.75 | I7: 2 | J7: 10 | L7: =INDEX(Table!L:L,MATCH(E7,Table!F:F,0)) -> 6.21 | M7: 16.21 | N7: 3.81875 | O7: 2 | Q7: -4.55 | R7: 1 | T7: -5.2 | U7: 1 | W7: -4.3 | X7: 1 | Z7: 17.875 | AA7: 3 | AB7: 5 | AC7: 0.4628099174 | AD7: 2 | AF7: -7 | AG7: 0 | AI7: -7 | AJ7: 0 | AL7: -5.090909091 | AM7: 1 | AO7: 6.175 | AP7: 2 | AR7: -0.02 | AS7: 2 | AU7: 2.545 | AV7: 2 | AX7: -5.15 | AY7: 1 | BA7: -4.95 | BB7: 1 | BD7: 23.86 | BE7: 3 | BF7: 5 | BG7: -5 | BH7: 1 | BJ7: 1.75 | BK7: 2 | BV7: 8.225650826 | BW7: 25 | BX7: 10
A8: 49 | B8: 23 | C8: 48 | D8: =INDEX(Table!E:E,MATCH(E8,Table!F:F,0)) -> D | E8: Ashley Houghton | F8: -44.97635198 | G8: 21 | H8: -0.3916083916 | I8: 2 | J8: 0 | L8: =INDEX(Table!L:L,MATCH(E8,Table!F:F,0)) -> 0 | M8: 0 | N8: 0.28 | O8: 2 | Q8: -0.625 | R8: 2 | T8: 1.9 | U8: 2 | W8: -7 | X8: 0 | Z8: -0.8 | AA8: 1 | AC8: -7 | AD8: 0 | AF8: 1.6 | AG8: 2 | AI8: -7 | AJ8: 0 | AL8: -4.4 | AM8: 1 | AO8: -5.466666667 | AP8: 1 | AR8: -5.15 | AS8: 1 | AU8: -4.625 | AV8: 1 | AX8: -5.25 | AY8: 1 | BA8: -0.02307692308 | BB8: 2 | BD8: -4.4 | BE8: 1 | BG8: 3.375 | BH8: 2 | BJ8: -0.3916083916 | BK8: 2 | BV8: -44.97635198 | BW8: 21 | BX8: 0
A9: 2 | B9: 46 | C9: 2 | D9: =INDEX(Table!E:E,MATCH(E9,Table!F:F,0)) -> B | E9: Barry Birchall | F9: 488.9279471 | G9: 24 | H9: -7 | I9: 0 | J9: 10 | L9: =INDEX(Table!L:L,MATCH(E9,Table!F:F,0)) -> 72.45 | M9: 82.45 | N9: -7 | O9: 0 | Q9: -1.442857143 | R9: 2 | T9: -5.3 | U9: 1 | W9: -4.75 | X9: 1 | Z9: 4.025 | AA9: 2 | AC9: 40.87272727 | AD9: 3 | AE9: 5 | AF9: -0.05 | AG9: 2 | AI9: -7 | AJ9: 0 | AL9: -4.7 | AM9: 1 | AO9: 2.723076923 | AP9: 2 | AR9: 473.6 | AS9: 3 | AT9: 5 | AU9: -5.4 | AV9: 1 | AX9: 10.06 | AY9: 2 | BA9: -3.3 | BB9: 1 | BD9: 7.19 | BE9: 2 | BG9: -3.6 | BH9: 1 | BJ9: -7 | BK9: 0 | BV9: 488.9279471 | BW9: 24 | BX9: 10
A10: 51 | B10: 46 | C10: 47 | D10: =INDEX(Table!E:E,MATCH(E10,Table!F:F,0)) -> D | E10: Ben Rosser | F10: -50.74375 | G10: 15 | H10: -7 | I10: 0 | J10: 0 | L10: =INDEX(Table!L:L,MATCH(E10,Table!F:F,0)) -> 0 | M10: 0 | N10: -4.95 | O10: 1 | Q10: -7 | R10: 0 | T10: -4.95 | U10: 1 | W10: 3 | X10: 1 | Z10: -4.8 | AA10: 1 | AC10: 8.03125 | AD10: 2 | AF10: -3.8 | AG10: 1 | AI10: -4.375 | AJ10: 1 | AL10: -4.2 | AM10: 1 | AO10: -3.8 | AP10: 1 | AR10: -3.4 | AS10: 1 | AU10: -4.3 | AV10: 1 | AX10: -7 | AY10: 0 | BA10: -3.4 | BB10: 1 | BD10: 8.2 | BE10: 2 | BG10: -7 | BH10: 0 | BJ10: -7 | BK10: 0 | BV10: -50.74375 | BW10: 15 | BX10: 0
A11: 8 | B11: 46 | C11: 8 | D11: =INDEX(Table!E:E,MATCH(E11,Table!F:F,0)) -> C | E11: Charlie Griffiths | F11: 63.65760577 | G11: 22 | H11: -7 | I11: 0 | J11: 10 | L11: =INDEX(Table!L:L,MATCH(E11,Table!F:F,0)) -> 12.42 | M11: 22.42 | N11: -3.6 | O11: 1 | Q11: 10.92 | R11: 2 | T11: -3.8 | U11: 1 | W11: 2.8275 | X11: 2 | Z11: 3.895 | AA11: 2 | AC11: -7 | AD11: 0 | AF11: -5.15 | AG11: 1 | AI11: 45.071875 | AJ11: 3 | AK11: 5 | AL11: -7 | AM11: 0 | AO11: 10.45 | AP11: 2 | AR11: 42.274 | AS11: 3 | AT11: 5 | AU11: -3.9 | AV11: 1 | AX11: -7 | AY11: 0 | BA11: 1.619230769 | BB11: 2 | BD11: -4.4 | BE11: 1 | BG11: -4.55 | BH11: 1 | BJ11: -7 | BK11: 0 | BV11: 63.65760577 | BW11: 22 | BX11: 10
A12: 3 | B12: 25 | C12: 3 | D12: =INDEX(Table!E:E,MATCH(E12,Table!F:F,0)) -> C | E12: Chris Bow | F12: 225.3241098 | G12: 26 | H12: -2.666666667 | I12: 1 | J12: 30 | L12: =INDEX(Table!L:L,MATCH(E12,Table!F:F,0)) -> 25.875 | M12: 55.875 | N12: 43.03 | O12: 3 | P12: 10 | Q12: 150.1 | R12: 3 | S12: 5 | T12: -7 | U12: 0 | W12: -4.55 | X12: 1 | Z12: -4.6 | AA12: 1 | AC12: 3.927272727 | AD12: 2 | AF12: -5.25 | AG12: 1 | AI12: 28.521875 | AJ12: 3 | AK12: 5 | AL12: -4.9 | AM12: 1 | AO12: -7 | AP12: 0 | AR12: 1.696969697 | AS12: 2 | AU12: 2.29375 | AV12: 2 | AX12: -4.85 | AY12: 1 | BA12: 41.68 | BB12: 3 | BC12: 10 | BD12: 1.890909091 | BE12: 2 | BG12: -7 | BH12: 0 | BJ12: -2.666666667 | BK12: 1 | BV12: 225.3241098 | BW12: 26 | BX12: 30
A13: 23 | B13: 12 | C13: 21 | D13: =INDEX(Table!E:E,MATCH(E13,Table!F:F,0)) -> C | E13: Chris Griffin | F13: 5.809034091 | G13: 29 | H13: 1.75 | I13: 2 | J13: 5 | L13: =INDEX(Table!L:L,MATCH(E13,Table!F:F,0)) -> 0 | M13: 5 | N13: -5 | O13: 1 | Q13: -0.2846153846 | R13: 2 | T13: 1.66 | U13: 2 | W13: -0.68 | X13: 2 | Z13: 2.92 | AA13: 2 | AC13: -3.9 | AD13: 1 | AF13: -4.375 | AG13: 1 | AI13: -2.825 | AJ13: 2 | AL13: 19.49090909 | AM13: 3 | AO13: -5.2 | AP13: 1 | AR13: -1.92 | AS13: 2 | AU13: -5.4 | AV13: 1 | AX13: 16.688125 | AY13: 3 | AZ13: 5 | BA13: 2.984615385 | BB13: 2 | BD13: -5.5 | BE13: 1 | BG13: -4.6 | BH13: 1 | BJ13: 1.75 | BK13: 2 | BV13: 5.809034091 | BW13: 29 | BX13: 5
A14: 25 | B14: 37 | C14: 22 | D14: =INDEX(Table!E:E,MATCH(E14,Table!F:F,0)) -> A | E14: Chris Luck | F14: -1.280528846 | G14: 22 | H14: -4.75 | I14: 1 | J14: 10 | L14: =INDEX(Table!L:L,MATCH(E14,Table!F:F,0)) -> 0 | M14: 10 | N14: -7 | O14: 0 | Q14: 5.175 | R14: 2 | T14: 28.028125 | U14: 3 | V14: 10 | W14: -7 | X14: 0 | Z14: 5.455 | AA14: 2 | AC14: -4.625 | AD14: 1 | AF14: -7 | AG14: 0 | AI14: -4.75 | AJ14: 1 | AL14: 3.88 | AM14: 2 | AO14: -3.9 | AP14: 1 | AR14: 1.9225 | AS14: 2 | AU14: -4.625 | AV14: 1 | AX14: 3.655 | AY14: 2 | BA14: -4.846153846 | BB14: 1 | BD14: 3.7 | BE14: 2 | BG14: -4.6 | BH14: 1 | BJ14: -4.75 | BK14: 1 | BV14: -1.280528846 | BW14: 22 | BX14: 10
A15: 28 | B15: 30 | C15: 25 | D15: =INDEX(Table!E:E,MATCH(E15,Table!F:F,0)) -> C | E15: Chris Townsend | F15: -9.816388889 | G15: 18 | H15: -3.9 | I15: 1 | J15: 5 | L15: =INDEX(Table!L:L,MATCH(E15,Table!F:F,0)) -> 0 | M15: 5 | N15: 11.375 | O15: 2 | Q15: 4 | R15: 1 | T15: -3.7 | U15: 1 | W15: 10.8 | X15: 2 | Z15: -7 | AA15: 0 | AC15: -4.8 | AD15: 1 | AF15: -7 | AG15: 0 | AI15: -7 | AJ15: 0 | AL15: 2.07 | AM15: 2 | AO15: -7 | AP15: 0 | AR15: -4.7 | AS15: 1 | AU15: -7 | AV15: 0 | AX15: 7.8875 | AY15: 2 | BA15: -3.3 | BB15: 1 | BD15: -0.7888888889 | BE15: 2 | BG15: 10.24 | BH15: 2 | BI15: 5 | BJ15: -3.9 | BK15: 1 | BV15: -9.816388889 | BW15: 18 | BX15: 5
A16: 61 | B16: 46 | C16: 61 | D16: =INDEX(Table!E:E,MATCH(E16,Table!F:F,0)) -> D | E16: Dan Baxter | F16: -116 | G16: 1 | H16: -7 | I16: 0 | J16: 0 | L16: =INDEX(Table!L:L,MATCH(E16,Table!F:F,0)) -> 0 | M16: 0 | N16: -7 | O16: 0 | Q16: -7 | R16: 0 | T16: -7 | U16: 0 | W16: -7 | X16: 0 | Z16: -7 | AA16: 0 | AC16: -7 | AD16: 0 | AF16: -7 | AG16: 0 | AI16: -4 | AJ16: 1 | AL16: -7 | AM16: 0 | AO16: -7 | AP16: 0 | AR16: -7 | AS16: 0 | AU16: -7 | AV16: 0 | AX16: -7 | AY16: 0 | BA16: -7 | BB16: 0 | BD16: -7 | BE16: 0 | BG16: -7 | BH16: 0 | BJ16: -7 | BK16: 0 | BV16: -116 | BW16: 1 | BX16: 0
A17: 58 | B17: 17 | C17: 59 | D17: =INDEX(Table!E:E,MATCH(E17,Table!F:F,0)) -> B | E17: Dave Bell | F17: -65.46666667 | G17: 8 | H17: 1.333333333 | I17: 1 | J17: 0 | L17: =INDEX(Table!L:L,MATCH(E17,Table!F:F,0)) -> 0 | M17: 0 | N17: -7 | O17: 0 | Q17: 4 | R17: 1 | T17: 3 | U17: 1 | W17: -5.2 | X17: 1 | Z17: 3 | AA17: 1 | AC17: -7 | AD17: 0 | AF17: -7 | AG17: 0 | AI17: -7 | AJ17: 0 | AL17: -7 | AM17: 0 | AO17: -7 | AP17: 0 | AR17: -3.8 | AS17: 1 | AU17: -7 | AV17: 0 | AX17: -5.5 | AY17: 1 | BA17: -3.3 | BB17: 1 | BD17: -7 | BE17: 0 | BG17: -3 | BH17: 0 | BJ17: 1.333333333 | BK17: 1 | BV17: -65.46666667 | BW17: 8 | BX17: 0
A18: 24 | B18: 4 | C18: 35 | D18: =INDEX(Table!E:E,MATCH(E18,Table!F:F,0)) -> D | E18: Dave Orrell | F18: 3.757753025 | G18: 23 | H18: 27.7765 | I18: 3 | J18: 10 | L18: =INDEX(Table!L:L,MATCH(E18,Table!F:F,0)) -> 8.28 | M18: 18.28 | N18: -4.9 | O18: 1 | Q18: 28.50625 | R18: 3 | S18: 5 | T18: -5 | U18: 1 | W18: -5.166666667 | X18: 1 | Z18: -0.75 | AA18: 1 | AC18: -7 | AD18: 0 | AF18: 0.25 | AG18: 2 | AI18: -4.4 | AJ18: 1 | AL18: -4.9 | AM18: 1 | AO18: -4.655172414 | AP18: 1 | AR18: -5.15 | AS18: 1 | AU18: -5.4 | AV18: 1 | AX18: 1.61 | AY18: 2 | BA18: 2.736842105 | BB18: 2 | BD18: -4.9 | BE18: 1 | BG18: -4.9 | BH18: 1 | BJ18: 27.7765 | BK18: 3 | BL18: 5 | BV18: 3.757753025 | BW18: 23 | BX18: 10
A19: 41 | B19: 15 | C19: 42 | D19: =INDEX(Table!E:E,MATCH(E19,Table!F:F,0)) -> C | E19: David Dunn | F19: -30.39507021 | G19: 22 | H19: 1.45 | I19: 2 | J19: 5 | L19: =INDEX(Table!L:L,MATCH(E19,Table!F:F,0)) -> 0 | M19: 5 | N19: -0.1571428571 | O19: 2 | Q19: -1.461538462 | R19: 2 | T19: -4.5 | U19: 1 | W19: -4.3 | X19: 1 | Z19: -5.6 | AA19: 1 | AC19: 2.1775 | AD19: 2 | AF19: -5.35 | AG19: 1 | AI19: -7 | AJ19: 0 | AL19: 1.275 | AM19: 2 | AO19: -5.6 | AP19: 1 | AR19: -7 | AS19: 0 | AU19: 1.36 | AV19: 2 | AX19: -5.05 | AY19: 1 | BA19: 13.15 | BB19: 2 | BC19: 5 | BD19: -3 | BE19: 0 | BG19: -0.7888888889 | BH19: 2 | BJ19: 1.45 | BK19: 2 | BV19: -30.39507021 | BW19: 22 | BX19: 5
A20: 62 | B20: 46 | C20: 62 | D20: =INDEX(Table!E:E,MATCH(E20,Table!F:F,0)) -> C | E20: Gareth Fallows | F20: -119 | G20: 0 | H20: -7 | I20: 0 | J20: 0 | L20: =INDEX(Table!L:L,MATCH(E20,Table!F:F,0)) -> 0 | M20: 0 | N20: -7 | O20: 0 | Q20: -7 | R20: 0 | T20: -7 | U20: 0 | W20: -7 | X20: 0 | Z20: -7 | AA20: 0 | AC20: -7 | AD20: 0 | AF20: -7 | AG20: 0 | AI20: -7 | AJ20: 0 | AL20: -7 | AM20: 0 | AO20: -7 | AP20: 0 | AR20: -7 | AS20: 0 | AU20: -7 | AV20: 0 | AX20: -7 | AY20: 0 | BA20: -7 | BB20: 0 | BD20: -7 | BE20: 0 | BG20: -7 | BH20: 0 | BJ20: -7 | BK20: 0 | BV20: -119 | BW20: 0 | BX20: 0
A21: 37 | B21: 10 | C21: 41 | D21: =INDEX(Table!E:E,MATCH(E21,Table!F:F,0)) -> C | E21: Gareth McGuire | F21: -27.6835815 | G21: 23 | H21: 2.98 | I21: 2 | J21: 5 | L21: =INDEX(Table!L:L,MATCH(E21,Table!F:F,0)) -> 0 | M21: 5 | N21: -4.85 | O21: 1 | Q21: -5.05 | R21: 1 | T21: -0.35 | U21: 2 | W21: 1.455 | X21: 2 | Z21: -7 | AA21: 0 | AC21: -5.090909091 | AD21: 1 | AF21: 15.485 | AG21: 3 | AH21: 5 | AI21: -4.75 | AJ21: 1 | AL21: 1.44 | AM21: 2 | AO21: -7 | AP21: 0 | AR21: -4.655172414 | AS21: 1 | AU21: -5.4 | AV21: 1 | AX21: 1.9 | AY21: 2 | BA21: 1.3025 | BB21: 2 | BD21: -3.2 | BE21: 1 | BG21: -4.9 | BH21: 1 | BJ21: 2.98 | BK21: 2 | BV21: -27.6835815 | BW21: 23 | BX21: 5
A22: 57 | B22: 35 | C22: 57 | D22: =INDEX(Table!E:E,MATCH(E22,Table!F:F,0)) -> B | E22: Gareth Powell | F22: -64.97576923 | G22: 14 | H22: -4.3 | I22: 1 | J22: 0 | L22: =INDEX(Table!L:L,MATCH(E22,Table!F:F,0)) -> 0 | M22: 0 | N22: -4.85 | O22: 1 | Q22: 0.3692307692 | R22: 2 | T22: -4.95 | U22: 1 | W22: -7 | X22: 0 | Z22: -7 | AA22: 0 | AC22: -7 | AD22: 0 | AF22: -3.75 | AG22: 1 | AI22: -3.75 | AJ22: 1 | AL22: -7 | AM22: 0 | AO22: -3.4 | AP22: 1 | AR22: -7 | AS22: 0 | AU22: -4.95 | AV22: 1 | AX22: -4.7 | AY22: 1 | BA22: 6.03 | BB22: 2 | BD22: 5.275 | BE22: 2 | BG22: -7 | BH22: 0 | BJ22: -4.3 | BK22: 1 | BV22: -64.97576923 | BW22: 14 | BX22: 0
A23: 4 | B23: 3 | C23: 6 | D23: =INDEX(Table!E:E,MATCH(E23,Table!F:F,0)) -> A | E23: Gerard Ventom | F23: 162.6875 | G23: 18 | H23: 46.6 | I23: 3 | J23: 10 | L23: =INDEX(Table!L:L,MATCH(E23,Table!F:F,0)) -> 108.675 | M23: 118.675 | N23: 7.5 | O23: 2 | Q23: 164.8 | R23: 3 | S23: 5 | T23: -4.25 | U23: 1 | W23: -7 | X23: 0 | Z23: -3 | AA23: 1 | AC23: -7 | AD23: 0 | AF23: -4.6 | AG23: 1 | AI23: -7 | AJ23: 0 | AL23: 3.1375 | AM23: 2 | AO23: -3.8 | AP23: 1 | AR23: -7 | AS23: 0 | AU23: -7 | AV23: 0 | AX23: 5.95 | AY23: 2 | BA23: -3.25 | BB23: 1 | BD23: -4.4 | BE23: 1 | BG23: -7 | BH23: 0 | BJ23: 46.6 | BK23: 3 | BL23: 5 | BV23: 162.6875 | BW23: 18 | BX23: 10
A24: 34 | B24: 5 | C24: 46 | D24: =INDEX(Table!E:E,MATCH(E24,Table!F:F,0)) -> D | E24: Graham Miller | F24: -24.31339744 | G24: 20 | H24: 18.59090909 | I24: 3 | J24: 5 | L24: =INDEX(Table!L:L,MATCH(E24,Table!F:F,0)) -> 2.07 | M24: 7.07 | N24: 1.6075 | O24: 2 | Q24: -5.05 | R24: 1 | T24: -5.2 | U24: 1 | W24: 4.765 | X24: 2 | Z24: -7 | AA24: 0 | AC24: -3.9 | AD24: 1 | AF24: -2.666666667 | AG24: 1 | AI24: -7 | AJ24: 0 | AL24: -7 | AM24: 0 | AO24: -7 | AP24: 0 | AR24: -1.069230769 | AS24: 2 | AU24: -0.5333333333 | AV24: 2 | AX24: -4.4 | AY24: 1 | BA24: -7 | BB24: 0 | BD24: -5.090909091 | BE24: 1 | BG24: 13.63333333 | BH24: 3 | BI24: 5 | BJ24: 18.59090909 | BK24: 3 | BV24: -24.31339744 | BW24: 20 | BX24: 5
A25: 10 | B25: 19 | C25: 11 | D25: =INDEX(Table!E:E,MATCH(E25,Table!F:F,0)) -> D | E25: Howard Bradley | F25: 48.00563312 | G25: 22 | H25: 0.5818181818 | I25: 2 | J25: 10 | L25: =INDEX(Table!L:L,MATCH(E25,Table!F:F,0)) -> 17.25 | M25: 27.25 | N25: -7 | O25: 0 | Q25: -5.428571429 | R25: 1 | T25: -4.3 | U25: 1 | W25: -1.52 | X25: 2 | Z25: 7.75 | AA25: 2 | AC25: -3.9 | AD25: 1 | AF25: 8.905 | AG25: 2 | AI25: 2.29375 | AJ25: 2 | AL25: 80.5 | AM25: 3 | AN25: 10 | AO25: 1.163636364 | AP25: 2 | AR25: -1.64 | AS25: 2 | AU25: -7 | AV25: 0 | AX25: -4.8 | AY25: 1 | BA25: -7 | BB25: 0 | BD25: -3.6 | BE25: 1 | BG25: -7 | BH25: 0 | BJ25: 0.5818181818 | BK25: 2 | BV25: 48.00563312 | BW25: 22 | BX25: 10
A26: 59 | B26: 46 | C26: 58 | D26: =INDEX(Table!E:E,MATCH(E26,Table!F:F,0)) -> C | E26: Ian Davies | F26: -68.06 | G26: 10 | H26: -7 | I26: 0 | J26: 0 | L26: =INDEX(Table!L:L,MATCH(E26,Table!F:F,0)) -> 0 | M26: 0 | N26: -7 | O26: 0 | Q26: -4.125 | R26: 1 | T26: -7 | U26: 0 | W26: -7 | X26: 0 | Z26: 9.16 | AA26: 2 | AC26: -4.1 | AD26: 1 | AF26: -7 | AG26: 0 | AI26: -7 | AJ26: 0 | AL26: -7 | AM26: 0 | AO26: -3.7 | AP26: 1 | AR26: 8.905 | AS26: 2 | AU26: -3.7 | AV26: 1 | AX26: -3.9 | AY26: 1 | BA26: -7 | BB26: 0 | BD26: -3.6 | BE26: 1 | BG26: -7 | BH26: 0 | BJ26: -7 | BK26: 0 | BV26: -68.06 | BW26: 10 | BX26: 0
A27: 43 | B27: 43 | C27: 39 | D27: =INDEX(Table!E:E,MATCH(E27,Table!F:F,0)) -> C | E27: Jack Walsh | F27: -35.78694794 | G27: 18 | H27: -5.35 | I27: 1 | J27: 0 | L27: =INDEX(Table!L:L,MATCH(E27,Table!F:F,0)) -> 0 | M27: 0 | N27: -7 | O27: 0 | Q27: 0.6307692308 | R27: 2 | T27: 2.36 | U27: 2 | W27: -7 | X27: 0 | Z27: -5.272727273 | AA27: 1 | AC27: -7 | AD27: 0 | AF27: -5.333333333 | AG27: 1 | AI27: -3.1 | AJ27: 1 | AL27: 0.1454545455 | AM27: 2 | AO27: 18.31288889 | AP27: 3 | AR27: 3.97 | AS27: 2 | AU27: -3 | AV27: 0 | AX27: -7 | AY27: 0 | BA27: -7 | BB27: 0 | BD27: 0.85 | BE27: 2 | BG27: -5 | BH27: 1 | BJ27: -5.35 | BK27: 1 | BV27: -35.78694794 | BW27: 18 | BX27: 0
A28: 33 | B28: 46 | C28: 31 | D28: =INDEX(Table!E:E,MATCH(E28,Table!F:F,0)) -> B | E28: James Bell | F28: -23.80333333 | G28: 12 | H28: -7 | I28: 0 | J28: 10 | L28: =INDEX(Table!L:L,MATCH(E28,Table!F:F,0)) -> 0 | M28: 10 | N28: -7 | O28: 0 | Q28: -7 | R28: 0 | T28: 6.85 | U28: 2 | V28: 5 | W28: 10.48 | X28: 2 | Z28: -7 | AA28: 0 | AC28: -3.2 | AD28: 1 | AF28: -7 | AG28: 0 | AI28: -2.4 | AJ28: 1 | AL28: -7 | AM28: 0 | AO28: 27.46666667 | AP28: 2 | AQ28: 5 | AR28: 0 | AS28: 1 | AU28: 0 | AV28: 1 | AX28: -3.8 | AY28: 1 | BA28: -7 | BB28: 0 | BD28: -3.2 | BE28: 1 | BG28: -7 | BH28: 0 | BJ28: -7 | BK28: 0 | BV28: -23.80333333 | BW28: 12 | BX28: 10
A29: 31 | B29: 46 | C29: 26 | D29: =INDEX(Table!E:E,MATCH(E29,Table!F:F,0)) -> D | E29: Joel Bent | F29: -16.47857143 | G29: 11 | H29: -7 | I29: 0 | J29: 15 | L29: =INDEX(Table!L:L,MATCH(E29,Table!F:F,0)) -> 4.83 | M29: 19.83 | N29: -5.428571429 | O29: 1 | Q29: -5.35 | R29: 1 | T29: -2.25 | U29: 1 | W29: 16.05 | X29: 2 | Y29: 5 | Z29: -4.45 | AA29: 1 | AC29: -3.5 | AD29: 1 | AF29: -7 | AG29: 0 | AI29: -7 | AJ29: 0 | AL29: -7 | AM29: 0 | AO29: 38.2 | AP29: 2 | AQ29: 10 | AR29: -7 | AS29: 0 | AU29: -7 | AV29: 0 | AX29: -7 | AY29: 0 | BA29: 10 | BB29: 1 | BD29: -7 | BE29: 0 | BG29: -3.75 | BH29: 1 | BJ29: -7 | BK29: 0 | BV29: -16.47857143 | BW29: 11 | BX29: 15
A30: 54 | B30: 28 | C30: 53 | D30: =INDEX(Table!E:E,MATCH(E30,Table!F:F,0)) -> B | E30: John Evans | F30: -53.54 | G30: 14 | H30: -3.8 | I30: 1 | J30: 0 | L30: =INDEX(Table!L:L,MATCH(E30,Table!F:F,0)) -> 0 | M30: 0 | N30: -3.75 | O30: 1 | Q30: -4.375 | R30: 1 | T30: -2.4 | U30: 1 | W30: -4.95 | X30: 1 | Z30: 3.36 | AA30: 2 | AC30: -7 | AD30: 0 | AF30: -7 | AG30: 0 | AI30: -7 | AJ30: 0 | AL30: 7.75 | AM30: 2 | AO30: -3.9 | AP30: 1 | AR30: -4.7 | AS30: 1 | AU30: -7 | AV30: 0 | AX30: -7 | AY30: 0 | BA30: 10.125 | BB30: 2 | BD30: -7 | BE30: 0 | BG30: -4.9 | BH30: 1 | BJ30: -3.8 | BK30: 1 | BV30: -53.54 | BW30: 14 | BX30: 0
A31: 12 | B31: 22 | C31: 13 | D31: =INDEX(Table!E:E,MATCH(E31,Table!F:F,0)) -> D | E31: John Ronan | F31: 44.84075 | G31: 23 | H31: 0 | I31: 2 | J31: 20 | L31: =INDEX(Table!L:L,MATCH(E31,Table!F:F,0)) -> 12.42 | M31: 32.42 | N31: -4.85 | O31: 1 | Q31: -4.85 | R31: 1 | T31: 3.375 | U31: 2 | W31: 23.11 | X31: 3 | Y31: 10 | Z31: -1.625 | AA31: 2 | AC31: -3 | AD31: 0 | AF31: -3 | AG31: 0 | AI31: -3 | AJ31: 0 | AL31: 33.58 | AM31: 3 | AN31: 5 | AO31: 6 | AP31: 2 | AR31: 21.62575 | AS31: 3 | AT31: 5 | AU31: -4.625 | AV31: 1 | AX31: -5.25 | AY31: 1 | BA31: -7 | BB31: 0 | BD31: -0.75 | BE31: 1 | BG31: -4.9 | BH31: 1 | BJ31: 0 | BK31: 2 | BV31: 44.84075 | BW31: 23 | BX31: 20
A32: 14 | B32: 9 | C32: 14 | D32: =INDEX(Table!E:E,MATCH(E32,Table!F:F,0)) -> B | E32: Kei Lok Ma | F32: 37.02 | G32: 19 | H32: 4.1875 | I32: 2 | J32: 20 | L32: =INDEX(Table!L:L,MATCH(E32,Table!F:F,0)) -> 24.84 | M32: 44.84 | N32: 1.6075 | O32: 2 | Q32: -7 | R32: 0 | T32: -7 | U32: 0 | W32: 4.765 | X32: 2 | Z32: 5.455 | AA32: 2 | AC32: -7 | AD32: 0 | AF32: 14.4 | AG32: 2 | AH32: 5 | AI32: 36.225 | AJ32: 3 | AK32: 5 | AL32: -4.2 | AM32: 1 | AO32: -7 | AP32: 0 | AR32: -4.7 | AS32: 1 | AU32: -7 | AV32: 0 | AX32: -7 | AY32: 0 | BA32: -7 | BB32: 0 | BD32: 31.78 | BE32: 3 | BF32: 10 | BG32: -3.5 | BH32: 1 | BJ32: 4.1875 | BK32: 2 | BV32: 37.02 | BW32: 19 | BX32: 20
A33: 48 | B33: 20 | C33: 49 | D33: =INDEX(Table!E:E,MATCH(E33,Table!F:F,0)) -> A | E33: Kevin Carter | F33: -44.91508806 | G33: 22 | H33: 0.1818181818 | I33: 2 | J33: 0 | L33: =INDEX(Table!L:L,MATCH(E33,Table!F:F,0)) -> 0 | M33: 0 | N33: -7 | O33: 0 | Q33: 8.673076923 | R33: 3 | T33: -0.68 | U33: 2 | W33: -1.17 | X33: 1 | Z33: -1.454545455 | AA33: 2 | AC33: -4.75 | AD33: 1 | AF33: -4.95 | AG33: 1 | AI33: -4.95 | AJ33: 1 | AL33: 3.1375 | AM33: 2 | AO33: -5.866666667 | AP33: 1 | AR33: -1.807407407 | AS33: 2 | AU33: -5.636363636 | AV33: 1 | AX33: 0.4075 | AY33: 2 | BA33: -7 | BB33: 0 | BD33: -7 | BE33: 0 | BG33: -5.05 | BH33: 1 | BJ33: 0.1818181818 | BK33: 2 | BV33: -44.91508806 | BW33: 22 | BX33: 0
A34: =_xlfn.RANK.EQ(F34,totalscores,0) -> 44 | B34: 24 | C34: 43 | D34: =INDEX(Table!E:E,MATCH(E34,Table!F:F,0)) -> A | E34: Lennie Bow | F34: =+N34+Q34+T34+W34+Z34+AC34+AF34+AI34+AL34+AO34+AR34+AU34+AX34+BA34+BD34+BG34+BJ34+BM34+BP34+BS34 -> -36.60843531 | G34: =+O34+R34+U34+X34+AA34+AD34+AG34+AJ34+AM34+AP34+AS34+AV34+AY34+BB34+BE34+BH34+BK34+BN34+BQ34+BT34 -> 23 | H34: -1.069230769 | I34: 2 | J34: 5 | L34: =INDEX(Table!L:L,MATCH(E34,Table!F:F,0)) -> 0 | M34: 5 | N34: -5.05 | O34: 1 | Q34: 1.88125 | R34: 2 | T34: -4.7 | U34: 1 | W34: -1.6 | X34: 1 | Z34: 1.1 | AA34: 2 | AC34: -5.75 | AD34: 1 | AF34: -7 | AG34: 0 | AI34: -0.07 | AJ34: 2 | AL34: 1.315 | AM34: 2 | AO34: -5.35 | AP34: 1 | AR34: -5.466666667 | AS34: 1 | AU34: -5.636363636 | AV34: 1 | AX34: -5.25 | AY34: 1 | BA34: -7 | BB34: 0 | BD34: 12.77090909 | BE34: 3 | BF34: 5 | BG34: 0.2666666667 | BH34: 2 | BJ34: -1.069230769 | BK34: 2 | BV34: =BS34+BP34+BM34+BJ34+BG34+BD34+BA34+AX34+AU34+AR34+AO34+AL34+AI34+AF34+AC34+Z34+W34+T34+Q34+N34 -> -36.60843531 | BW34: =BT34+BQ34+BN34+BK34+BH34+BE34+BB34+AY34+AV34+AS34+AP34+AM34+AJ34+AG34+AD34+AA34+X34+U34+R34+O34 -> 23 | BX34: =BU34+BR34+BO34+BL34+BI34+BF34+BC34+AZ34+AW34+AT34+AQ34+AN34+AK34+AH34+AE34+AB34+Y34+V34+S34+P34 -> 5
A35: 60 | B35: 46 | C35: 60 | D35: =INDEX(Table!E:E,MATCH(E35,Table!F:F,0)) -> D | E35: Lewis Buckley | F35: -105.235 | G35: 3 | H35: -7 | I35: 0 | J35: 0 | L35: =INDEX(Table!L:L,MATCH(E35,Table!F:F,0)) -> 0 | M35: 0 | N35: 5.115 | O35: 2 | Q35: -5.35 | R35: 1 | T35: -7 | U35: 0 | W35: -7 | X35: 0 | Z35: -7 | AA35: 0 | AC35: -7 | AD35: 0 | AF35: -7 | AG35: 0 | AI35: -7 | AJ35: 0 | AL35: -7 | AM35: 0 | AO35: -7 | AP35: 0 | AR35: -7 | AS35: 0 | AU35: -7 | AV35: 0 | AX35: -7 | AY35: 0 | BA35: -7 | BB35: 0 | BD35: -7 | BE35: 0 | BG35: -7 | BH35: 0 | BJ35: -7 | BK35: 0 | BV35: -105.235 | BW35: 3 | BX35: 0
A36: 52 | B36: 6 | C36: 56 | D36: =INDEX(Table!E:E,MATCH(E36,Table!F:F,0)) -> C | E36: Liam Wah | F36: -51.19227273 | G36: 13 | H36: 8.25 | I36: 2 | J36: 0 | L36: =INDEX(Table!L:L,MATCH(E36,Table!F:F,0)) -> 0 | M36: 0 | N36: 4.9 | O36: 2 | Q36: -4.8 | R36: 1 | T36: -7 | U36: 0 | W36: -7 | X36: 0 | Z36: -7 | AA36: 0 | AC36: 7.99 | AD36: 2 | AF36: -7 | AG36: 0 | AI36: -7 | AJ36: 0 | AL36: -2.8 | AM36: 1 | AO36: -7 | AP36: 0 | AR36: -5.35 | AS36: 1 | AU36: -7 | AV36: 0 | AX36: -7 | AY36: 0 | BA36: -7 | BB36: 0 | BD36: 1.145 | BE36: 2 | BG36: 2.472727273 | BH36: 2 | BJ36: 8.25 | BK36: 2 | BV36: -51.19227273 | BW36: 13 | BX36: 0
A37: 19 | B37: 46 | C37: 16 | D37: =INDEX(Table!E:E,MATCH(E37,Table!F:F,0)) -> C | E37: Mal Stott | F37: 10.15375 | G37: 17 | H37: -7 | I37: 0 | J37: 5 | L37: =INDEX(Table!L:L,MATCH(E37,Table!F:F,0)) -> 3.105 | M37: 8.105 | N37: 2.5525 | O37: 2 | Q37: 5.95 | R37: 2 | T37: -7 | U37: 0 | W37: -7 | X37: 0 | Z37: 2.4 | AA37: 2 | AC37: -3.9 | AD37: 1 | AF37: -7 | AG37: 0 | AI37: 3.78125 | AJ37: 2 | AL37: -4.9 | AM37: 1 | AO37: 9.22 | AP37: 2 | AR37: -7 | AS37: 0 | AU37: -7 | AV37: 0 | AX37: -7 | AY37: 0 | BA37: -3.4 | BB37: 1 | BD37: 9.85 | BE37: 2 | BG37: 37.6 | BH37: 2 | BI37: 5 | BJ37: -7 | BK37: 0 | BV37: 10.15375 | BW37: 17 | BX37: 5
A38: 27 | B38: 35 | C38: 24 | D38: =INDEX(Table!E:E,MATCH(E38,Table!F:F,0)) -> B | E38: Mark Bunn | F38: -9.637320955 | G38: 19 | H38: -4.3 | I38: 1 | J38: 5 | L38: =INDEX(Table!L:L,MATCH(E38,Table!F:F,0)) -> 0 | M38: 5 | N38: -4.85 | O38: 1 | Q38: -4.6 | R38: 1 | T38: -4.95 | U38: 1 | W38: -7 | X38: 0 | Z38: 10.33 | AA38: 2 | AC38: 7.99 | AD38: 2 | AF38: -7 | AG38: 0 | AI38: -4.95 | AJ38: 1 | AL38: -4.625 | AM38: 1 | AO38: 35.19844828 | AP38: 3 | AQ38: 5 | AR38: -7 | AS38: 0 | AU38: -3.9 | AV38: 1 | AX38: -4.85 | AY38: 1 | BA38: 3.669230769 | BB38: 2 | BD38: -4.6 | BE38: 1 | BG38: -4.2 | BH38: 1 | BJ38: -4.3 | BK38: 1 | BV38: -9.637320955 | BW38: 19 | BX38: 5
A39: 17 | B39: 8 | C39: 18 | D39: =INDEX(Table!E:E,MATCH(E39,Table!F:F,0)) -> A | E39: Mark Saunders | F39: 13.4225 | G39: 28 | H39: 4.666666667 | I39: 2 | J39: 10 | L39: =INDEX(Table!L:L,MATCH(E39,Table!F:F,0)) -> 21.735 | M39: 31.735 | N39: 13.045 | O39: 3 | P39: 5 | Q39: -5.5 | R39: 1 | T39: -7 | U39: 0 | W39: -5.2 | X39: 1 | Z39: 13.81818182 | AA39: 3 | AC39: -3.9 | AD39: 1 | AF39: -4.8 | AG39: 1 | AI39: 0.3375 | AJ39: 2 | AL39: 1.45 | AM39: 2 | AO39: -3.8 | AP39: 1 | AR39: -1.16 | AS39: 2 | AU39: -0.85 | AV39: 2 | AX39: 4.133333333 | AY39: 2 | BA39: -5 | BB39: 1 | BD39: 18.18181818 | BE39: 3 | BF39: 5 | BG39: -5 | BH39: 1 | BJ39: 4.666666667 | BK39: 2 | BV39: 13.4225 | BW39: 28 | BX39: 10
A40: 46 | B40: 7 | C40: 52 | D40: =INDEX(Table!E:E,MATCH(E40,Table!F:F,0)) -> B | E40: Martin Molyneux | F40: -42.37554779 | G40: 19 | H40: 5.636363636 | I40: 2 | J40: 0 | L40: =INDEX(Table!L:L,MATCH(E40,Table!F:F,0)) -> 0 | M40: 0 | N40: -4.95 | O40: 1 | Q40: -1.375 | R40: 2 | T40: -5.2 | U40: 1 | W40: -7 | X40: 0 | Z40: 5.636363636 | AA40: 2 | AC40: -0.3916083916 | AD40: 2 | AF40: -7 | AG40: 0 | AI40: -3.75 | AJ40: 1 | AL40: -5.35 | AM40: 1 | AO40: -5.466666667 | AP40: 1 | AR40: 5.965 | AS40: 2 | AU40: -7 | AV40: 0 | AX40: -2.8 | AY40: 1 | BA40: -4.95 | BB40: 1 | BD40: 2.62 | BE40: 2 | BG40: -7 | BH40: 0 | BJ40: 5.636363636 | BK40: 2 | BV40: -42.37554779 | BW40: 19 | BX40: 0
A41: 38 | B41: 43 | C41: 33 | D41: =INDEX(Table!E:E,MATCH(E41,Table!F:F,0)) -> D | E41: Martin Tarbuck | F41: -27.77909091 | G41: 24 | H41: -5.35 | I41: 1 | J41: 0 | L41: =INDEX(Table!L:L,MATCH(E41,Table!F:F,0)) -> 0 | M41: 0 | N41: 0.1 | O41: 2 | Q41: -4.7 | R41: 1 | T41: -7 | U41: 0 | W41: -5 | X41: 1 | Z41: 2.636363636 | AA41: 2 | AC41: -1.163636364 | AD41: 2 | AF41: -5.35 | AG41: 1 | AI41: 10.275 | AJ41: 2 | AL41: 8 | AM41: 2 | AO41: -4.85 | AP41: 1 | AR41: -1.92 | AS41: 2 | AU41: -0.85 | AV41: 2 | AX41: -7 | AY41: 0 | BA41: 0.3181818182 | BB41: 2 | BD41: -1.175 | BE41: 2 | BG41: -4.75 | BH41: 1 | BJ41: -5.35 | BK41: 1 | BV41: -27.77909091 | BW41: 24 | BX41: 0
A42: 9 | B42: 38 | C42: 9 | D42: =INDEX(Table!E:E,MATCH(E42,Table!F:F,0)) -> A | E42: Mike Penk | F42: 56.67503592 | G42: 24 | H42: -4.85 | I42: 1 | J42: 15 | L42: =INDEX(Table!L:L,MATCH(E42,Table!F:F,0)) -> 77.625 | M42: 92.625 | N42: -7 | O42: 0 | Q42: -4.3 | R42: 1 | T42: 2.483333333 | U42: 2 | W42: -4.3 | X42: 1 | Z42: -3 | AA42: 1 | AC42: 1.75 | AD42: 2 | AF42: 6 | AG42: 2 | AI42: -7 | AJ42: 0 | AL42: 57.55 | AM42: 3 | AN42: 5 | AO42: -4.625 | AP42: 1 | AR42: -4.655172414 | AS42: 1 | AU42: 30.086875 | AV42: 3 | AW42: 10 | AX42: 1.765 | AY42: 2 | BA42: 5.32 | BB42: 2 | BD42: -3.5 | BE42: 1 | BG42: -5.05 | BH42: 1 | BJ42: -4.85 | BK42: 1 | BV42: 56.67503592 | BW42: 24 | BX42: 15
A43: 47 | B43: 45 | C43: 44 | D43: =INDEX(Table!E:E,MATCH(E43,Table!F:F,0)) -> A | E43: Mo Sudell | F43: -43.03385015 | G43: 20 | H43: -5.384615385 | I43: 1 | J43: 0 | L43: =INDEX(Table!L:L,MATCH(E43,Table!F:F,0)) -> 0 | M43: 0 | N43: -4.95 | O43: 1 | Q43: -1.442857143 | R43: 2 | T43: -5.6 | U43: 1 | W43: -4.5 | X43: 1 | Z43: 5.16 | AA43: 2 | AC43: 2.723076923 | AD43: 2 | AF43: -7 | AG43: 0 | AI43: -4.95 | AJ43: 1 | AL43: -0.1454545455 | AM43: 2 | AO43: 10.126 | AP43: 3 | AR43: 4.413333333 | AS43: 2 | AU43: -7 | AV43: 0 | AX43: -5.15 | AY43: 1 | BA43: -7 | BB43: 0 | BD43: -5.333333333 | BE43: 1 | BG43: -7 | BH43: 0 | BJ43: -5.384615385 | BK43: 1 | BV43: -43.03385015 | BW43: 20 | BX43: 0
A44: 35 | B44: 40 | C44: 32 | D44: =INDEX(Table!E:E,MATCH(E44,Table!F:F,0)) -> D | E44: Nick Blocksidge | F44: -26.96492008 | G44: 22 | H44: -5 | I44: 1 | J44: 0 | L44: =INDEX(Table!L:L,MATCH(E44,Table!F:F,0)) -> 0 | M44: 0 | N44: -4.85 | O44: 1 | Q44: -1.442857143 | R44: 2 | T44: 6.835 | U44: 2 | W44: -2.8 | X44: 1 | Z44: -7 | AA44: 0 | AC44: 4.9375 | AD44: 2 | AF44: 4.19 | AG44: 2 | AI44: 4.9625 | AJ44: 2 | AL44: -7 | AM44: 0 | AO44: -4.7 | AP44: 1 | AR44: -2 | AS44: 1 | AU44: 1.99 | AV44: 2 | AX44: -5.15 | AY44: 1 | BA44: -0.2461538462 | BB44: 2 | BD44: -4.6 | BE44: 1 | BG44: -5.090909091 | BH44: 1 | BJ44: -5 | BK44: 1 | BV44: -26.96492008 | BW44: 22 | BX44: 0
A45: 13 | B45: 28 | C45: 12 | D45: =INDEX(Table!E:E,MATCH(E45,Table!F:F,0)) -> B | E45: Nigel Heyes | F45: 43.15639394 | G45: 30 | H45: -3.8 | I45: 1 | J45: 5 | L45: =INDEX(Table!L:L,MATCH(E45,Table!F:F,0)) -> 37.26 | M45: 42.26 | N45: -4.85 | O45: 1 | Q45: 2.03 | R45: 2 | T45: 0.6416666667 | U45: 2 | W45: 1.455 | X45: 2 | Z45: 6.08 | AA45: 2 | AC45: 7.99 | AD45: 2 | AF45: 7.68 | AG45: 2 | AI45: 1.9125 | AJ45: 2 | AL45: 0.68 | AM45: 2 | AO45: 1.163636364 | AP45: 2 | AR45: 3 | AS45: 2 | AU45: -7 | AV45: 0 | AX45: 24.2245 | AY45: 3 | AZ45: 5 | BA45: 2.8 | BB45: 2 | BD45: -5.090909091 | BE45: 1 | BG45: 4.24 | BH45: 2 | BJ45: -3.8 | BK45: 1 | BV45: 43.15639394 | BW45: 30 | BX45: 5
A46: 39 | B46: 42 | C46: 36 | D46: =INDEX(Table!E:E,MATCH(E46,Table!F:F,0)) -> A | E46: Oscar Jackson | F46: -29.65487374 | G46: 19 | H46: -5.090909091 | I46: 1 | J46: 5 | L46: =INDEX(Table!L:L,MATCH(E46,Table!F:F,0)) -> 0 | M46: 5 | N46: -5.05 | O46: 1 | Q46: -5.5 | R46: 1 | T46: -7 | U46: 0 | W46: -5.3 | X46: 1 | Z46: -4.6 | AA46: 1 | AC46: 2.14 | AD46: 2 | AF46: -0.3 | AG46: 2 | AI46: -4.95 | AJ46: 1 | AL46: 37.885 | AM46: 3 | AN46: 5 | AO46: -7 | AP46: 0 | AR46: -0.08 | AS46: 2 | AU46: -5.555555556 | AV46: 1 | AX46: -0.1625 | AY46: 2 | BA46: -7 | BB46: 0 | BD46: -5.090909091 | BE46: 1 | BG46: -7 | BH46: 0 | BJ46: -5.090909091 | BK46: 1 | BV46: -29.65487374 | BW46: 19 | BX46: 5
A47: 50 | B47: 34 | C47: 50 | D47: =INDEX(Table!E:E,MATCH(E47,Table!F:F,0)) -> D | E47: Paul Adderley | F47: -50.31637529 | G47: 19 | H47: -4.25 | I47: 1 | J47: 5 | L47: =INDEX(Table!L:L,MATCH(E47,Table!F:F,0)) -> 0 | M47: 5 | N47: -5 | O47: 1 | Q47: -1.461538462 | R47: 2 | T47: -4.95 | U47: 1 | W47: -7 | X47: 0 | Z47: -1.454545455 | AA47: 2 | AC47: 0.5818181818 | AD47: 2 | AF47: -7 | AG47: 0 | AI47: -7 | AJ47: 0 | AL47: -7 | AM47: 0 | AO47: -1.069230769 | AP47: 2 | AR47: -4.7 | AS47: 1 | AU47: 15.42954545 | AV47: 3 | AW47: 5 | AX47: -7 | AY47: 0 | BA47: -3.3 | BB47: 1 | BD47: -0.2424242424 | BE47: 2 | BG47: -4.9 | BH47: 1 | BJ47: -4.25 | BK47: 1 | BV47: -50.31637529 | BW47: 19 | BX47: 5
A48: 45 | B48: 16 | C48: 45 | D48: =INDEX(Table!E:E,MATCH(E48,Table!F:F,0)) -> B | E48: Paul Allen | F48: -40.42355305 | G48: 18 | H48: 1.44 | I48: 2 | J48: 5 | L48: =INDEX(Table!L:L,MATCH(E48,Table!F:F,0)) -> 0 | M48: 5 | N48: -4.85 | O48: 1 | Q48: -4.55 | R48: 1 | T48: 23.2015 | U48: 3 | V48: 5 | W48: -7 | X48: 0 | Z48: -5.2 | AA48: 1 | AC48: -7 | AD48: 0 | AF48: -5 | AG48: 1 | AI48: -4.375 | AJ48: 1 | AL48: -5.05 | AM48: 1 | AO48: -7 | AP48: 0 | AR48: 5.713793103 | AS48: 2 | AU48: -5.4 | AV48: 1 | AX48: -4.5 | AY48: 1 | BA48: 1.046153846 | BB48: 2 | BD48: -4.9 | BE48: 1 | BG48: -7 | BH48: 0 | BJ48: 1.44 | BK48: 2 | BV48: -40.42355305 | BW48: 18 | BX48: 5
A49: 7 | B49: 46 | C49: 7 | D49: =INDEX(Table!E:E,MATCH(E49,Table!F:F,0)) -> D | E49: Paul Barnes | F49: 86.01088141 | G49: 22 | H49: -7 | I49: 0 | J49: 20 | L49: =INDEX(Table!L:L,MATCH(E49,Table!F:F,0)) -> 24.15 | M49: 44.15 | N49: -7 | O49: 0 | Q49: 8.673076923 | R49: 3 | T49: -5.2 | U49: 1 | W49: 18.32 | X49: 2 | Y49: 5 | Z49: 99.8125 | AA49: 3 | AB49: 10 | AC49: 14.530625 | AD49: 3 | AE49: 5 | AF49: -7 | AG49: 0 | AI49: -3.1 | AJ49: 1 | AL49: -4.2 | AM49: 1 | AO49: -7 | AP49: 0 | AR49: -5.466666667 | AS49: 1 | AU49: 4.3875 | AV49: 2 | AX49: -5.15 | AY49: 1 | BA49: -4.846153846 | BB49: 1 | BD49: 1.3 | BE49: 2 | BG49: -5.05 | BH49: 1 | BJ49: -7 | BK49: 0 | BV49: 86.01088141 | BW49: 22 | BX49: 20
A50: 5 | B50: 46 | C50: 4 | D50: =INDEX(Table!E:E,MATCH(E50,Table!F:F,0)) -> C | E50: Paul Fairhurst | F50: 130.9602339 | G50: 15 | H50: -7 | I50: 0 | J50: 10 | L50: =INDEX(Table!L:L,MATCH(E50,Table!F:F,0)) -> 18.63 | M50: 28.63 | N50: -5 | O50: 1 | Q50: 208.72 | R50: 3 | S50: 10 | T50: -1.28 | U50: 2 | W50: -5 | X50: 1 | Z50: -4.8 | AA50: 1 | AC50: -7 | AD50: 0 | AF50: -3.1 | AG50: 1 | AI50: -3.7 | AJ50: 1 | AL50: -4.9 | AM50: 1 | AO50: -2.595555556 | AP50: 2 | AR50: -7 | AS50: 0 | AU50: -3 | AV50: 0 | AX50: -3.7 | AY50: 1 | BA50: -5.684210526 | BB50: 1 | BD50: -7 | BE50: 0 | BG50: -7 | BH50: 0 | BJ50: -7 | BK50: 0 | BV50: 130.9602339 | BW50: 15 | BX50: 10
A51: 42 | B51: 41 | C51: 40 | D51: =INDEX(Table!E:E,MATCH(E51,Table!F:F,0)) -> A | E51: Paul Fiddler | F51: -35.56969114 | G51: 23 | H51: -5.05 | I51: 1 | J51: 5 | L51: =INDEX(Table!L:L,MATCH(E51,Table!F:F,0)) -> 0 | M51: 5 | N51: -0.985 | O51: 2 | Q51: 1.2925 | R51: 2 | T51: -0.56 | U51: 2 | W51: -5.166666667 | X51: 1 | Z51: -4.55 | AA51: 1 | AC51: -5.384615385 | AD51: 1 | AF51: 17.1625 | AG51: 3 | AH51: 5 | AI51: -7 | AJ51: 0 | AL51: 1.1125 | AM51: 2 | AO51: -4.85 | AP51: 1 | AR51: -0.2909090909 | AS51: 2 | AU51: -5.4 | AV51: 1 | AX51: -5.15 | AY51: 1 | BA51: 1.15 | BB51: 2 | BD51: -7 | BE51: 0 | BG51: -4.9 | BH51: 1 | BJ51: -5.05 | BK51: 1 | BV51: -35.56969114 | BW51: 23 | BX51: 5
A52: 40 | B52: 46 | C52: 34 | D52: =INDEX(Table!E:E,MATCH(E52,Table!F:F,0)) -> C | E52: Paul Ridgeway | F52: -29.86735577 | G52: 18 | H52: -7 | I52: 0 | J52: 0 | L52: =INDEX(Table!L:L,MATCH(E52,Table!F:F,0)) -> 0 | M52: 0 | N52: 5.42 | O52: 2 | Q52: -1.069230769 | R52: 2 | T52: -4 | U52: 1 | W52: -7 | X52: 0 | Z52: 0.16 | AA52: 2 | AC52: -7 | AD52: 0 | AF52: -7 | AG52: 0 | AI52: 10.9875 | AJ52: 2 | AL52: 14.359375 | AM52: 3 | AO52: -4.625 | AP52: 1 | AR52: -4.7 | AS52: 1 | AU52: -7 | AV52: 0 | AX52: -3.8 | AY52: 1 | BA52: -3.3 | BB52: 1 | BD52: -1 | BE52: 1 | BG52: -3.3 | BH52: 1 | BJ52: -7 | BK52: 0 | BV52: -29.86735577 | BW52: 18 | BX52: 0
A53: 6 | B53: 32 | C53: 5 | D53: =INDEX(Table!E:E,MATCH(E53,Table!F:F,0)) -> B | E53: Pete Baron | F53: 117.9076552 | G53: 22 | H53: -4 | I53: 1 | J53: 25 | L53: =INDEX(Table!L:L,MATCH(E53,Table!F:F,0)) -> 51.75 | M53: 76.75 | N53: 12 | O53: 2 | P53: 5 | Q53: -7 | R53: 0 | T53: -7 | U53: 0 | W53: -4.55 | X53: 1 | Z53: 3 | AA53: 1 | AC53: -3.9 | AD53: 1 | AF53: -0.7125 | AG53: 2 | AI53: 70.6625 | AJ53: 3 | AK53: 10 | AL53: -3.7 | AM53: 1 | AO53: 3.539655172 | AP53: 2 | AR53: -3.9 | AS53: 1 | AU53: 0 | AV53: 1 | AX53: 3.2 | AY53: 2 | BA53: 10 | BB53: 1 | BD53: -7 | BE53: 0 | BG53: 57.268 | BH53: 3 | BI53: 10 | BJ53: -4 | BK53: 1 | BV53: 117.9076552 | BW53: 22 | BX53: 25
A54: 26 | B54: 46 | C54: 23 | D54: =INDEX(Table!E:E,MATCH(E54,Table!F:F,0)) -> B | E54: Phil Miller | F54: -7.991147223 | G54: 25 | H54: -7 | I54: 0 | J54: 5 | L54: =INDEX(Table!L:L,MATCH(E54,Table!F:F,0)) -> 0 | M54: 5 | N54: 3.057142857 | O54: 2 | Q54: -4.7 | R54: 1 | T54: 0.54 | U54: 2 | W54: 14.692 | X54: 3 | Z54: -3 | AA54: 0 | AC54: -0.2846153846 | AD54: 2 | AF54: 0.25 | AG54: 2 | AI54: -5 | AJ54: 1 | AL54: 9.090909091 | AM54: 3 | AO54: -2.785185185 | AP54: 2 | AR54: -7 | AS54: 0 | AU54: -5.4 | AV54: 1 | AX54: -5.15 | AY54: 1 | BA54: 13.3986014 | BB54: 3 | BC54: 5 | BD54: -1.7 | BE54: 2 | BG54: -7 | BH54: 0 | BJ54: -7 | BK54: 0 | BV54: -7.991147223 | BW54: 25 | BX54: 5
A55: 56 | B55: 30 | C55: 54 | D55: =INDEX(Table!E:E,MATCH(E55,Table!F:F,0)) -> A | E55: Rob England | F55: -63.0555613 | G55: 14 | H55: -3.9 | I55: 1 | J55: 0 | L55: =INDEX(Table!L:L,MATCH(E55,Table!F:F,0)) -> 0 | M55: 0 | N55: -7 | O55: 0 | Q55: -4.375 | R55: 1 | T55: -4.55 | U55: 1 | W55: -7 | X55: 0 | Z55: -0.86 | AA55: 2 | AC55: -7 | AD55: 0 | AF55: -7 | AG55: 0 | AI55: -4.95 | AJ55: 1 | AL55: -7 | AM55: 0 | AO55: 9.007111111 | AP55: 3 | AR55: -4.655172414 | AS55: 1 | AU55: -3 | AV55: 0 | AX55: 4.9775 | AY55: 2 | BA55: -7 | BB55: 0 | BD55: -4.2 | BE55: 1 | BG55: -4.55 | BH55: 1 | BJ55: -3.9 | BK55: 1 | BV55: -63.0555613 | BW55: 14 | BX55: 0
A56: 11 | B56: 32 | C56: 10 | D56: =INDEX(Table!E:E,MATCH(E56,Table!F:F,0)) -> C | E56: Sally Williams | F56: 47.02475 | G56: 18 | H56: -4 | I56: 1 | J56: 10 | L56: =INDEX(Table!L:L,MATCH(E56,Table!F:F,0)) -> 7.245 | M56: 17.245 | N56: 8.46875 | O56: 2 | Q56: -7 | R56: 0 | T56: -3.3 | U56: 1 | W56: -7 | X56: 0 | Z56: 14 | AA56: 2 | AC56: 62.356 | AD56: 3 | AE56: 10 | AF56: -7 | AG56: 0 | AI56: -4 | AJ56: 1 | AL56: -3.25 | AM56: 1 | AO56: 12.58 | AP56: 2 | AR56: -7 | AS56: 0 | AU56: -7 | AV56: 0 | AX56: -7 | AY56: 0 | BA56: -3.9 | BB56: 1 | BD56: 4.96 | BE56: 2 | BG56: 5.11 | BH56: 2 | BJ56: -4 | BK56: 1 | BV56: 47.02475 | BW56: 18 | BX56: 10
A57: 55 | B57: 27 | C57: 55 | D57: =INDEX(Table!E:E,MATCH(E57,Table!F:F,0)) -> D | E57: Simon Greenhalgh | F57: -62.19431818 | G57: 16 | H57: -3 | I57: 1 | J57: 0 | L57: =INDEX(Table!L:L,MATCH(E57,Table!F:F,0)) -> 0 | M57: 0 | N57: -7 | O57: 0 | Q57: -5.5 | R57: 1 | T57: -7 | U57: 0 | W57: -7 | X57: 0 | Z57: -1.181818182 | AA57: 2 | AC57: -4.1 | AD57: 1 | AF57: -5.25 | AG57: 1 | AI57: -4.375 | AJ57: 1 | AL57: 6.0125 | AM57: 2 | AO57: 2.5 | AP57: 2 | AR57: -7 | AS57: 0 | AU57: -3.7 | AV57: 1 | AX57: -4.9 | AY57: 1 | BA57: -7 | BB57: 0 | BD57: 0.5 | BE57: 2 | BG57: -4.2 | BH57: 1 | BJ57: -3 | BK57: 1 | BV57: -62.19431818 | BW57: 16 | BX57: 0
A58: 22 | B58: 18 | C58: 19 | D58: =INDEX(Table!E:E,MATCH(E58,Table!F:F,0)) -> A | E58: Stephen Barr | F58: 7.933469697 | G58: 23 | H58: 0.8636363636 | I58: 2 | J58: 5 | L58: =INDEX(Table!L:L,MATCH(E58,Table!F:F,0)) -> 0 | M58: 5 | N58: -4.85 | O58: 1 | Q58: 6.72 | R58: 2 | T58: 4.765 | U58: 2 | W58: -5.3 | X58: 1 | Z58: 29.674 | AA58: 3 | AB58: 5 | AC58: -3.6 | AD58: 1 | AF58: -7 | AG58: 0 | AI58: 4.81 | AJ58: 2 | AL58: -7 | AM58: 0 | AO58: -0.9066666667 | AP58: 2 | AR58: -5.15 | AS58: 1 | AU58: 4.4875 | AV58: 2 | AX58: 6.82 | AY58: 2 | BA58: -7 | BB58: 0 | BD58: -5 | BE58: 1 | BG58: -4.4 | BH58: 1 | BJ58: 0.8636363636 | BK58: 2 | BV58: 7.933469697 | BW58: 23 | BX58: 5
A59: 32 | B59: 46 | C59: 27 | D59: =INDEX(Table!E:E,MATCH(E59,Table!F:F,0)) -> A | E59: Stephen Troop | F59: -16.92211538 | G59: 19 | H59: -7 | I59: 0 | J59: 5 | L59: =INDEX(Table!L:L,MATCH(E59,Table!F:F,0)) -> 0 | M59: 5 | N59: -4.95 | O59: 1 | Q59: -1.330769231 | R59: 2 | T59: -7 | U59: 0 | W59: -7 | X59: 0 | Z59: -3 | AA59: 1 | AC59: -7 | AD59: 0 | AF59: 0.525 | AG59: 2 | AI59: -7 | AJ59: 0 | AL59: 26.52625 | AM59: 3 | AO59: -7 | AP59: 0 | AR59: 11.40615385 | AS59: 3 | AU59: -4.625 | AV59: 1 | AX59: 13.16125 | AY59: 3 | AZ59: 5 | BA59: -3.2 | BB59: 1 | BD59: -2.435 | BE59: 2 | BG59: -7 | BH59: 0 | BJ59: -7 | BK59: 0 | BV59: -16.92211538 | BW59: 19 | BX59: 5
A60: 18 | B60: 46 | C60: 15 | D60: =INDEX(Table!E:E,MATCH(E60,Table!F:F,0)) -> B | E60: Steve Baxter | F60: 13.32423382 | G60: 28 | H60: -7 | I60: 0 | J60: 10 | L60: =INDEX(Table!L:L,MATCH(E60,Table!F:F,0)) -> 14.49 | M60: 24.49 | N60: 10.03857143 | O60: 3 | Q60: 0 | R60: 2 | T60: 0.775 | U60: 2 | W60: -5.2 | X60: 1 | Z60: -7 | AA60: 0 | AC60: -0.2846153846 | AD60: 2 | AF60: -5.333333333 | AG60: 1 | AI60: -5.75 | AJ60: 1 | AL60: -1.7725 | AM60: 2 | AO60: -4.7 | AP60: 1 | AR60: 0.1 | AS60: 2 | AU60: -5.4 | AV60: 1 | AX60: 27.79333333 | AY60: 3 | AZ60: 10 | BA60: 6.03 | BB60: 2 | BD60: 10.02777778 | BE60: 3 | BG60: 1 | BH60: 2 | BJ60: -7 | BK60: 0 | BV60: 13.32423382 | BW60: 28 | BX60: 10
A61: 29 | B61: 12 | C61: 29 | D61: =INDEX(Table!E:E,MATCH(E61,Table!F:F,0)) -> A | E61: Steve Carter | F61: -10.94162879 | G61: 23 | H61: 1.75 | I61: 2 | J61: 5 | L61: =INDEX(Table!L:L,MATCH(E61,Table!F:F,0)) -> 0 | M61: 5 | N61: 20.8225 | O61: 3 | P61: 5 | Q61: -4.6 | R61: 1 | T61: 0.6416666667 | U61: 2 | W61: -4.95 | X61: 1 | Z61: 1.409090909 | AA61: 2 | AC61: -5.05 | AD61: 1 | AF61: -7 | AG61: 0 | AI61: -4.375 | AJ61: 1 | AL61: 2.036363636 | AM61: 2 | AO61: 3.97 | AP61: 2 | AR61: -7 | AS61: 0 | AU61: 2.29375 | AV61: 2 | AX61: 2.26 | AY61: 2 | BA61: -7 | BB61: 0 | BD61: -7 | BE61: 0 | BG61: 0.85 | BH61: 2 | BJ61: 1.75 | BK61: 2 | BV61: -10.94162879 | BW61: 23 | BX61: 5
A62: 53 | B62: 38 | C62: 51 | D62: =INDEX(Table!E:E,MATCH(E62,Table!F:F,0)) -> B | E62: Tom Robinson | F62: =+N62+Q62+T62+W62+Z62+AC62+AF62+AI62+AL62+AO62+AR62+AU62+AX62+BA62+BD62+BG62+BJ62+BM62+BP62+BS62 -> -52.16575758 | G62: 16 | H62: -4.85 | I62: 1 | J62: =P62+S62+V62+Y62+AB62+AE62+AH62+AK62+AN62+AQ62+AT62+AW62+AZ62+BC62+BF62+BI62+BL62+BO62+BR62+BU62 -> 5 | L62: =INDEX(Table!L:L,MATCH(E62,Table!F:F,0)) -> 0 | M62: =K62+J62+L62 -> 5 | N62: -7 | O62: 0 | Q62: -7 | R62: 0 | T62: -7 | U62: 0 | W62: 3.385 | X62: 2 | Z62: -7 | AA62: 0 | AC62: 5.090909091 | AD62: 2 | AF62: -4.9 | AG62: 1 | AI62: -4.625 | AJ62: 1 | AL62: -5.25 | AM62: 1 | AO62: 0 | AP62: 1 | AR62: -5.466666667 | AS62: 1 | AU62: 8.4 | AV62: 2 | AW62: 5 | AX62: -5.3 | AY62: 1 | BA62: -7 | BB62: 0 | BD62: 1.25 | BE62: 2 | BG62: -4.9 | BH62: 1 | BJ62: -4.85 | BK62: 1 | BV62: =BS62+BP62+BM62+BJ62+BG62+BD62+BA62+AX62+AU62+AR62+AO62+AL62+AI62+AF62+AC62+Z62+W62+T62+Q62+N62 -> -52.16575758 | BW62: 16 | BX62: 5
A63: 30 | B63: 11 | C63: 30 | D63: =INDEX(Table!E:E,MATCH(E63,Table!F:F,0)) -> B | E63: Vinny Topping | F63: -11.95666667 | G63: 21 | H63: 2.2375 | I63: 2 | J63: =P63+S63+V63+Y63+AB63+AE63+AH63+AK63+AN63+AQ63+AT63+AW63+AZ63+BC63+BF63+BI63+BL63+BO63+BR63+BU63 -> 5 | L63: =INDEX(Table!L:L,MATCH(E63,Table!F:F,0)) -> 0 | M63: =K63+J63+L63 -> 5 | N63: 3.625 | O63: 2 | Q63: 3.0625 | R63: 2 | T63: -7 | U63: 0 | W63: 19.3 | X63: 2 | Y63: 5 | Z63: -7 | AA63: 0 | AC63: -3.9 | AD63: 1 | AF63: -5 | AG63: 1 | AI63: -4 | AJ63: 1 | AL63: 8.8 | AM63: 2 | AO63: -4.666666667 | AP63: 1 | AR63: -3.8 | AS63: 1 | AU63: -4.625 | AV63: 1 | AX63: -4.1 | AY63: 1 | BA63: -4.95 | BB63: 1 | BD63: 4.96 | BE63: 2 | BG63: -4.9 | BH63: 1 | BJ63: 2.2375 | BK63: 2 | BV63: -11.95666667 | BW63: 21 | BX63: 5
J65: =SUM(J2:J63) -> 425 | K65: =SUM(K2:K63) -> 0 | P65: =SUM(P2:P63) -> 25 | S65: =SUM(S2:S63) -> 25 | V65: =SUM(V2:V63) -> 25 | Y65: =SUM(Y2:Y63) -> 25 | AB65: =SUM(AB2:AB63) -> 25 | AE65: =SUM(AE2:AE63) -> 25 | AH65: =SUM(AH2:AH63) -> 25 | AK65: =SUM(AK2:AK63) -> 25 | AN65: =SUM(AN2:AN63) -> 25 | AQ65: =SUM(AQ2:AQ63) -> 25 | AT65: =SUM(AT2:AT63) -> 25 | AW65: =SUM(AW2:AW63) -> 25 | AZ65: =SUM(AZ2:AZ63) -> 25 | BC65: =SUM(BC2:BC63) -> 25 | BF65: =SUM(BF2:BF63) -> 25 | BI65: =SUM(BI2:BI63) -> 25 | BL65: =SUM(BL2:BL63) -> 25 | BO65: =SUM(BO2:BO63) -> 0 | BR65: =SUM(BR2:BR63) -> 0 | BU65: =SUM(BU2:BU63) -> 0 | BX65: =SUM(BX2:BX63) -> 425

Sheet Cup
A1: Menu!A1
B2: Prelim | C2: =IF(CupDraw!J1="","",CupDraw!J1) ->  | H2: =CupDraw!O1 -> R1 (64) | I2: =CupDraw!P1 -> 2020-09-26 | N2: =CupDraw!U1 -> R2 (32) | O2: =CupDraw!V1 -> 2020-10-17 | T2: =CupDraw!AA1 -> R3 (16) | U2: =CupDraw!AB1 -> 2020-11-07
B3: =CupDraw!I2 -> 1 | C3: =IF(CupDraw!J2="","",CupDraw!J2) ->  | D3: =IF(CupDraw!K2="","",CupDraw!K2) ->  | E3: =IF(CupDraw!L2="","",CupDraw!L2) ->  | H3: =CupDraw!O2 -> 1 | I3: =IF(CupDraw!P2="","",CupDraw!P2) -> Gerard Ventom | J3: =IF(CupDraw!Q2="","",CupDraw!Q2) -> -7 | K3: =IF(CupDraw!R2="","",CupDraw!R2) ->  | N3: =CupDraw!U2 -> 1 | O3: =CupDraw!V2 -> Gerard Ventom | P3: =IF(CupDraw!W2="","",CupDraw!W2) -> -4.6 | Q3: =IF(CupDraw!X2="","",CupDraw!X2) ->  | T3: =CupDraw!AA2 -> 1 | U3: =CupDraw!AB2 -> Pete Baron | V3: =IF(CupDraw!AC2="","",CupDraw!AC2) -> 3.539655172 | W3: =CupDraw!AD2 -> 
C4: =IF(CupDraw!J3="","",CupDraw!J3) ->  | D4: =IF(CupDraw!K3="","",CupDraw!K3) ->  | E4: =IF(CupDraw!L3="","",CupDraw!L3) ->  | H4: =CupDraw!O3 -> 0 | I4: =IF(CupDraw!P3="","",CupDraw!P3) -> Rob England | J4: =IF(CupDraw!Q3="","",CupDraw!Q3) -> -10 | K4: =IF(CupDraw!R3="","",CupDraw!R3) ->  | O4: =CupDraw!V3 -> Pete Baron | P4: =IF(CupDraw!W3="","",CupDraw!W3) -> -0.7125 | Q4: =IF(CupDraw!X3="","",CupDraw!X3) ->  | U4: =CupDraw!AB3 -> Ben Rosser | V4: =IF(CupDraw!AC3="","",CupDraw!AC3) -> -3.8
B5: =CupDraw!I4 -> 2 | C5: =IF(CupDraw!J4="","",CupDraw!J4) ->  | D5: =IF(CupDraw!K4="","",CupDraw!K4) ->  | E5: =IF(CupDraw!L4="","",CupDraw!L4) ->  | H5: =CupDraw!O4 -> 2 | I5: =IF(CupDraw!P4="","",CupDraw!P4) -> Pete Baron | J5: =IF(CupDraw!Q4="","",CupDraw!Q4) -> -4.55 | K5: =IF(CupDraw!R4="","",CupDraw!R4) ->  | N5: =CupDraw!U4 -> 2 | O5: =CupDraw!V4 -> Ian Davies | P5: =IF(CupDraw!W4="","",CupDraw!W4) -> -7 | Q5: =IF(CupDraw!X4="","",CupDraw!X4) ->  | T5: =CupDraw!AA4 -> 2 | U5: =CupDraw!AB4 -> Phil Miller | V5: =IF(CupDraw!AC4="","",CupDraw!AC4) -> -2.785185185 | W5: =CupDraw!AD4 -> 
C6: =IF(CupDraw!J5="","",CupDraw!J5) ->  | D6: =IF(CupDraw!K5="","",CupDraw!K5) ->  | E6: =IF(CupDraw!L5="","",CupDraw!L5) ->  | I6: =IF(CupDraw!P5="","",CupDraw!P5) -> Mark Saunders | J6: =IF(CupDraw!Q5="","",CupDraw!Q5) -> -5.2 | K6: =IF(CupDraw!R5="","",CupDraw!R5) ->  | O6: =CupDraw!V5 -> Ben Rosser | P6: =IF(CupDraw!W5="","",CupDraw!W5) -> -3.8 | Q6: =IF(CupDraw!X5="","",CupDraw!X5) ->  | U6: =CupDraw!AB5 -> Oscar Jackson | V6: =IF(CupDraw!AC5="","",CupDraw!AC5) -> -7
B7: =CupDraw!I6 -> 3 | C7: =IF(CupDraw!J6="","",CupDraw!J6) ->  | D7: =IF(CupDraw!K6="","",CupDraw!K6) ->  | E7: =IF(CupDraw!L6="","",CupDraw!L6) ->  | H7: =CupDraw!O6 -> 3 | I7: =IF(CupDraw!P6="","",CupDraw!P6) -> Dan Baxter | J7: =IF(CupDraw!Q6="","",CupDraw!Q6) -> -10 | K7: =IF(CupDraw!R6="","",CupDraw!R6) ->  | N7: =CupDraw!U6 -> 3 | O7: =CupDraw!V6 -> Phil Miller | P7: =IF(CupDraw!W6="","",CupDraw!W6) -> 0.25 | Q7: =IF(CupDraw!X6="","",CupDraw!X6) ->  | T7: =CupDraw!AA6 -> 3 | U7: =CupDraw!AB6 -> Mike Penk | V7: =IF(CupDraw!AC6="","",CupDraw!AC6) -> -4.625 | W7: =CupDraw!AD6 -> 
C8: =IF(CupDraw!J7="","",CupDraw!J7) ->  | D8: =IF(CupDraw!K7="","",CupDraw!K7) ->  | E8: =IF(CupDraw!L7="","",CupDraw!L7) ->  | I8: =IF(CupDraw!P7="","",CupDraw!P7) -> Ian Davies | J8: =IF(CupDraw!Q7="","",CupDraw!Q7) -> -7 | K8: =IF(CupDraw!R7="","",CupDraw!R7) ->  | O8: =CupDraw!V7 -> Chris Griffin | P8: =IF(CupDraw!W7="","",CupDraw!W7) -> -4.375 | Q8: =IF(CupDraw!X7="","",CupDraw!X7) ->  | U8: =CupDraw!AB7 -> Martin Tarbuck | V8: =IF(CupDraw!AC7="","",CupDraw!AC7) -> -4.85
B9: =CupDraw!I8 -> 4 | C9: =IF(CupDraw!J8="","",CupDraw!J8) ->  | D9: =IF(CupDraw!K8="","",CupDraw!K8) ->  | E9: =IF(CupDraw!L8="","",CupDraw!L8) ->  | H9: =CupDraw!O8 -> 4 | I9: =IF(CupDraw!P8="","",CupDraw!P8) -> Nick Blocksidge | J9: =IF(CupDraw!Q8="","",CupDraw!Q8) -> -2.8 | K9: =IF(CupDraw!R8="","",CupDraw!R8) ->  | N9: =CupDraw!U8 -> 4 | O9: =CupDraw!V8 -> Joel Bent | P9: =IF(CupDraw!W8="","",CupDraw!W8) -> -7 | Q9: =IF(CupDraw!X8="","",CupDraw!X8) ->  | T9: =CupDraw!AA8 -> 4 | U9: =CupDraw!AB8 -> Graham Miller | V9: =IF(CupDraw!AC8="","",CupDraw!AC8) -> -7 | W9: =CupDraw!AD8 -> 
C10: =IF(CupDraw!J9="","",CupDraw!J9) ->  | D10: =IF(CupDraw!K9="","",CupDraw!K9) ->  | E10: =IF(CupDraw!L9="","",CupDraw!L9) ->  | I10: =IF(CupDraw!P9="","",CupDraw!P9) -> Ben Rosser | J10: =IF(CupDraw!Q9="","",CupDraw!Q9) -> 3 | K10: =IF(CupDraw!R9="","",CupDraw!R9) ->  | O10: =CupDraw!V9 -> Oscar Jackson | P10: =IF(CupDraw!W9="","",CupDraw!W9) -> -0.3 | Q10: =IF(CupDraw!X9="","",CupDraw!X9) ->  | U10: =CupDraw!AB9 -> Paul Fairhurst | V10: =IF(CupDraw!AC9="","",CupDraw!AC9) -> -2.595555556
B11: =CupDraw!I10 -> 5 | C11: =IF(CupDraw!J10="","",CupDraw!J10) ->  | D11: =IF(CupDraw!K10="","",CupDraw!K10) ->  | E11: =IF(CupDraw!L10="","",CupDraw!L10) ->  | H11: =CupDraw!O10 -> 5 | I11: =IF(CupDraw!P10="","",CupDraw!P10) -> Phil Miller | J11: =IF(CupDraw!Q10="","",CupDraw!Q10) -> 14.692 | K11: =IF(CupDraw!R10="","",CupDraw!R10) ->  | N11: =CupDraw!U10 -> 5 | O11: =CupDraw!V10 -> James Bell | P11: =IF(CupDraw!W10="","",CupDraw!W10) -> -7 | Q11: =IF(CupDraw!X10="","",CupDraw!X10) ->  | T11: =CupDraw!AA10 -> 5 | U11: =CupDraw!AB10 -> Nigel Heyes | V11: =IF(CupDraw!AC10="","",CupDraw!AC10) -> 1.163636364 | W11: =CupDraw!AD10 -> 
C12: =IF(CupDraw!J11="","",CupDraw!J11) ->  | D12: =IF(CupDraw!K11="","",CupDraw!K11) ->  | E12: =IF(CupDraw!L11="","",CupDraw!L11) ->  | I12: =IF(CupDraw!P11="","",CupDraw!P11) -> Ashley Houghton | J12: =IF(CupDraw!Q11="","",CupDraw!Q11) -> -7 | K12: =IF(CupDraw!R11="","",CupDraw!R11) ->  | O12: =CupDraw!V11 -> Mike Penk | P12: =IF(CupDraw!W11="","",CupDraw!W11) -> 6 | Q12: =IF(CupDraw!X11="","",CupDraw!X11) ->  | U12: =CupDraw!AB11 -> Vinny Topping | V12: =IF(CupDraw!AC11="","",CupDraw!AC11) -> -4.666666667
B13: =CupDraw!I12 -> 6 | C13: =IF(CupDraw!J12="","",CupDraw!J12) ->  | D13: =IF(CupDraw!K12="","",CupDraw!K12) ->  | E13: =IF(CupDraw!L12="","",CupDraw!L12) ->  | H13: =CupDraw!O12 -> 6 | I13: =IF(CupDraw!P12="","",CupDraw!P12) -> Chris Griffin | J13: =IF(CupDraw!Q12="","",CupDraw!Q12) -> -0.68 | K13: =IF(CupDraw!R12="","",CupDraw!R12) ->  | N13: =CupDraw!U12 -> 6 | O13: =CupDraw!V12 -> John Evans | P13: =IF(CupDraw!W12="","",CupDraw!W12) -> -7 | Q13: =IF(CupDraw!X12="","",CupDraw!X12) ->  | T13: =CupDraw!AA12 -> 6 | U13: =CupDraw!AB12 -> Gareth McGuire | V13: =IF(CupDraw!AC12="","",CupDraw!AC12) -> -4.655172414 | W13: =CupDraw!AD12 -> 
C14: =IF(CupDraw!J13="","",CupDraw!J13) ->  | D14: =IF(CupDraw!K13="","",CupDraw!K13) ->  | E14: =IF(CupDraw!L13="","",CupDraw!L13) ->  | I14: =IF(CupDraw!P13="","",CupDraw!P13) -> Dave Orrell | J14: =IF(CupDraw!Q13="","",CupDraw!Q13) -> -5.166666667 | K14: =IF(CupDraw!R13="","",CupDraw!R13) ->  | O14: =CupDraw!V13 -> Martin Tarbuck | P14: =IF(CupDraw!W13="","",CupDraw!W13) -> -5.35 | Q14: =IF(CupDraw!X13="","",CupDraw!X13) ->  | U14: =CupDraw!AB13 -> Chris Townsend | V14: =IF(CupDraw!AC13="","",CupDraw!AC13) -> -4.7
B15: =CupDraw!I14 -> 7 | C15: =IF(CupDraw!J14="","",CupDraw!J14) ->  | D15: =IF(CupDraw!K14="","",CupDraw!K14) ->  | E15: =IF(CupDraw!L14="","",CupDraw!L14) ->  | H15: =CupDraw!O14 -> 7 | I15: =IF(CupDraw!P14="","",CupDraw!P14) -> Alick Rocca | J15: =IF(CupDraw!Q14="","",CupDraw!Q14) -> 2.32 | K15: =IF(CupDraw!R14="","",CupDraw!R14) ->  | N15: =CupDraw!U14 -> 7 | O15: =CupDraw!V14 -> David Dunn | P15: =IF(CupDraw!W14="","",CupDraw!W14) -> -5.35 | Q15: =IF(CupDraw!X14="","",CupDraw!X14) ->  | T15: =CupDraw!AA14 -> 7 | U15: =CupDraw!AB14 -> Stephen Troop | V15: =IF(CupDraw!AC14="","",CupDraw!AC14) -> 11.40615385 | W15: =CupDraw!AD14 -> 
C16: =IF(CupDraw!J15="","",CupDraw!J15) ->  | D16: =IF(CupDraw!K15="","",CupDraw!K15) ->  | E16: =IF(CupDraw!L15="","",CupDraw!L15) ->  | I16: =IF(CupDraw!P15="","",CupDraw!P15) -> Joel Bent | J16: =IF(CupDraw!Q15="","",CupDraw!Q15) -> 16.05 | K16: =IF(CupDraw!R15="","",CupDraw!R15) ->  | O16: =CupDraw!V15 -> Graham Miller | P16: =IF(CupDraw!W15="","",CupDraw!W15) -> -2.666666667 | Q16: =IF(CupDraw!X15="","",CupDraw!X15) ->  | U16: =CupDraw!AB15 -> Kei Lok Ma | V16: =IF(CupDraw!AC15="","",CupDraw!AC15) -> -4.7
B17: =CupDraw!I16 -> 8 | C17: =IF(CupDraw!J16="","",CupDraw!J16) ->  | D17: =IF(CupDraw!K16="","",CupDraw!K16) ->  | E17: =IF(CupDraw!L16="","",CupDraw!L16) ->  | H17: =CupDraw!O16 -> 8 | I17: =IF(CupDraw!P16="","",CupDraw!P16) -> Oscar Jackson | J17: =IF(CupDraw!Q16="","",CupDraw!Q16) -> -5.3 | K17: =IF(CupDraw!R16="","",CupDraw!R16) ->  | N17: =CupDraw!U16 -> 8 | O17: =CupDraw!V16 -> Tom Robinson | P17: =IF(CupDraw!W16="","",CupDraw!W16) -> -4.9 | Q17: =IF(CupDraw!X16="","",CupDraw!X16) ->  | T17: =CupDraw!AA16 -> 8 | U17: =CupDraw!AB16 -> Chris Bow | V17: =IF(CupDraw!AC16="","",CupDraw!AC16) -> -7 | W17: =CupDraw!AD16 -> 
C18: =IF(CupDraw!J17="","",CupDraw!J17) ->  | D18: =IF(CupDraw!K17="","",CupDraw!K17) ->  | E18: =IF(CupDraw!L17="","",CupDraw!L17) ->  | I18: =IF(CupDraw!P17="","",CupDraw!P17) -> Lennie Bow | J18: =IF(CupDraw!Q17="","",CupDraw!Q17) -> -5.6 | K18: =IF(CupDraw!R17="","",CupDraw!R17) ->  | O18: =CupDraw!V17 -> Paul Fairhurst | P18: =IF(CupDraw!W17="","",CupDraw!W17) -> -3.1 | Q18: =IF(CupDraw!X17="","",CupDraw!X17) ->  | U18: =CupDraw!AB17 -> Gareth Powell | V18: =IF(CupDraw!AC17="","",CupDraw!AC17) -> -3.4
B19: =CupDraw!I18 -> 9 | C19: =IF(CupDraw!J18="","",CupDraw!J18) ->  | D19: =IF(CupDraw!K18="","",CupDraw!K18) ->  | E19: =IF(CupDraw!L18="","",CupDraw!L18) ->  | H19: =CupDraw!O18 -> 9 | I19: =IF(CupDraw!P18="","",CupDraw!P18) -> Alan Rogers | J19: =IF(CupDraw!Q18="","",CupDraw!Q18) -> -7 | K19: =IF(CupDraw!R18="","",CupDraw!R18) ->  | N19: =CupDraw!U18 -> 9 | O19: =CupDraw!V18 -> Barry Birchall | P19: =IF(CupDraw!W18="","",CupDraw!W18) -> -0.05 | Q19: =IF(CupDraw!X18="","",CupDraw!X18) -> 
C20: =IF(CupDraw!J19="","",CupDraw!J19) ->  | D20: =IF(CupDraw!K19="","",CupDraw!K19) ->  | E20: =IF(CupDraw!L19="","",CupDraw!L19) ->  | I20: =IF(CupDraw!P19="","",CupDraw!P19) -> James Bell | J20: =IF(CupDraw!Q19="","",CupDraw!Q19) -> 10.48 | K20: =IF(CupDraw!R19="","",CupDraw!R19) ->  | O20: =CupDraw!V19 -> Nigel Heyes | P20: =IF(CupDraw!W19="","",CupDraw!W19) -> 7.68 | Q20: =IF(CupDraw!X19="","",CupDraw!X19) -> 
B21: =CupDraw!I20 -> 10 | C21: =IF(CupDraw!J20="","",CupDraw!J20) ->  | D21: =IF(CupDraw!K20="","",CupDraw!K20) ->  | E21: =IF(CupDraw!L20="","",CupDraw!L20) ->  | H21: =CupDraw!O20 -> 10 | I21: =IF(CupDraw!P20="","",CupDraw!P20) -> Mike Penk | J21: =IF(CupDraw!Q20="","",CupDraw!Q20) -> -4.3 | K21: =IF(CupDraw!R20="","",CupDraw!R20) ->  | N21: =CupDraw!U20 -> 10 | O21: =CupDraw!V20 -> Charlie Griffiths | P21: =IF(CupDraw!W20="","",CupDraw!W20) -> -5.15 | Q21: =IF(CupDraw!X20="","",CupDraw!X20) -> 
C22: =IF(CupDraw!J21="","",CupDraw!J21) ->  | D22: =IF(CupDraw!K21="","",CupDraw!K21) ->  | E22: =IF(CupDraw!L21="","",CupDraw!L21) ->  | I22: =IF(CupDraw!P21="","",CupDraw!P21) -> Sally Williams | J22: =IF(CupDraw!Q21="","",CupDraw!Q21) -> -7 | K22: =IF(CupDraw!R21="","",CupDraw!R21) ->  | O22: =CupDraw!V21 -> Vinny Topping | P22: =IF(CupDraw!W21="","",CupDraw!W21) -> -5 | Q22: =IF(CupDraw!X21="","",CupDraw!X21) ->  | T22: =CupDraw!AA21 -> Earlier Ties
B23: =CupDraw!I22 -> 11 | C23: =IF(CupDraw!J22="","",CupDraw!J22) ->  | D23: =IF(CupDraw!K22="","",CupDraw!K22) ->  | E23: =IF(CupDraw!L22="","",CupDraw!L22) ->  | H23: =CupDraw!O22 -> 11 | I23: =IF(CupDraw!P22="","",CupDraw!P22) -> John Evans | J23: =IF(CupDraw!Q22="","",CupDraw!Q22) -> -4.95 | K23: =IF(CupDraw!R22="","",CupDraw!R22) ->  | N23: =CupDraw!U22 -> 11 | O23: =CupDraw!V22 -> Gareth McGuire | P23: =IF(CupDraw!W22="","",CupDraw!W22) -> 15.485 | Q23: =IF(CupDraw!X22="","",CupDraw!X22) -> 
C24: =IF(CupDraw!J23="","",CupDraw!J23) ->  | D24: =IF(CupDraw!K23="","",CupDraw!K23) ->  | E24: =IF(CupDraw!L23="","",CupDraw!L23) ->  | I24: =IF(CupDraw!P23="","",CupDraw!P23) -> Stephen Barr | J24: =IF(CupDraw!Q23="","",CupDraw!Q23) -> -5.3 | K24: =IF(CupDraw!R23="","",CupDraw!R23) ->  | O24: =CupDraw!V23 -> John Ronan | P24: =IF(CupDraw!W23="","",CupDraw!W23) -> -3 | Q24: =IF(CupDraw!X23="","",CupDraw!X23) -> 
B25: =CupDraw!I24 -> 12 | C25: =IF(CupDraw!J24="","",CupDraw!J24) ->  | D25: =IF(CupDraw!K24="","",CupDraw!K24) ->  | E25: =IF(CupDraw!L24="","",CupDraw!L24) ->  | H25: =CupDraw!O24 -> 12 | I25: =IF(CupDraw!P24="","",CupDraw!P24) -> Andy Charleston | J25: =IF(CupDraw!Q24="","",CupDraw!Q24) -> -7 | K25: =IF(CupDraw!R24="","",CupDraw!R24) ->  | N25: =CupDraw!U24 -> 12 | O25: =CupDraw!V24 -> Paul Adderley | P25: =IF(CupDraw!W24="","",CupDraw!W24) -> -10 | Q25: =IF(CupDraw!X24="","",CupDraw!X24) ->  | U25: =IF(CupDraw!AB24="","",CupDraw!AB24) -> Stephen Troop | V25: =IF(CupDraw!AC24="","",CupDraw!AC24) -> -7
C26: =IF(CupDraw!J25="","",CupDraw!J25) ->  | D26: =IF(CupDraw!K25="","",CupDraw!K25) ->  | E26: =IF(CupDraw!L25="","",CupDraw!L25) ->  | I26: =IF(CupDraw!P25="","",CupDraw!P25) -> Martin Tarbuck | J26: =IF(CupDraw!Q25="","",CupDraw!Q25) -> 2.636363636 | K26: =IF(CupDraw!R25="","",CupDraw!R25) ->  | O26: =CupDraw!V25 -> Chris Townsend | P26: =IF(CupDraw!W25="","",CupDraw!W25) -> -7 | Q26: =IF(CupDraw!X25="","",CupDraw!X25) ->  | U26: =IF(CupDraw!AB25="","",CupDraw!AB25) -> Kei Lok Ma | V26: =IF(CupDraw!AC25="","",CupDraw!AC25) -> -7
B27: =CupDraw!I26 -> 13 | C27: =IF(CupDraw!J26="","",CupDraw!J26) ->  | D27: =IF(CupDraw!K26="","",CupDraw!K26) ->  | E27: =IF(CupDraw!L26="","",CupDraw!L26) ->  | H27: =CupDraw!O26 -> 13 | I27: =IF(CupDraw!P26="","",CupDraw!P26) -> David Dunn | J27: =IF(CupDraw!Q26="","",CupDraw!Q26) -> -4.3 | K27: =IF(CupDraw!R26="","",CupDraw!R26) ->  | N27: =CupDraw!U26 -> 13 | O27: =CupDraw!V26 -> Stephen Troop | P27: =IF(CupDraw!W26="","",CupDraw!W26) -> 0.525 | Q27: =IF(CupDraw!X26="","",CupDraw!X26) ->  | U27: =IF(CupDraw!AB26="","",CupDraw!AB26) ->  | V27: =IF(CupDraw!AC26="","",CupDraw!AC26) ->  | W27: =CupDraw!AD26 -> 
C28: =IF(CupDraw!J27="","",CupDraw!J27) ->  | D28: =IF(CupDraw!K27="","",CupDraw!K27) ->  | E28: =IF(CupDraw!L27="","",CupDraw!L27) ->  | I28: =IF(CupDraw!P27="","",CupDraw!P27) -> Simon Greenhalgh | J28: =IF(CupDraw!Q27="","",CupDraw!Q27) -> -10 | K28: =IF(CupDraw!R27="","",CupDraw!R27) ->  | O28: =CupDraw!V27 -> Steve Carter | P28: =IF(CupDraw!W27="","",CupDraw!W27) -> -7 | Q28: =IF(CupDraw!X27="","",CupDraw!X27) ->  | U28: =IF(CupDraw!AB27="","",CupDraw!AB27) ->  | V28: =IF(CupDraw!AC27="","",CupDraw!AC27) -> 
B29: =CupDraw!I28 -> 14 | C29: =IF(CupDraw!J28="","",CupDraw!J28) ->  | D29: =IF(CupDraw!K28="","",CupDraw!K28) ->  | E29: =IF(CupDraw!L28="","",CupDraw!L28) ->  | H29: =CupDraw!O28 -> 14 | I29: =IF(CupDraw!P28="","",CupDraw!P28) -> Graham Miller | J29: =IF(CupDraw!Q28="","",CupDraw!Q28) -> 4.765 | K29: =IF(CupDraw!R28="","",CupDraw!R28) ->  | N29: =CupDraw!U28 -> 14 | O29: =CupDraw!V28 -> Kei Lok Ma | P29: =IF(CupDraw!W28="","",CupDraw!W28) -> 14.4 | Q29: =IF(CupDraw!X28="","",CupDraw!X28) ->  | U29: =IF(CupDraw!AB28="","",CupDraw!AB28) ->  | V29: =IF(CupDraw!AC28="","",CupDraw!AC28) ->  | W29: =CupDraw!AD28 -> 
C30: =IF(CupDraw!J29="","",CupDraw!J29) ->  | D30: =IF(CupDraw!K29="","",CupDraw!K29) ->  | E30: =IF(CupDraw!L29="","",CupDraw!L29) ->  | I30: =IF(CupDraw!P29="","",CupDraw!P29) -> Gareth Fallows | J30: =IF(CupDraw!Q29="","",CupDraw!Q29) -> -10 | K30: =IF(CupDraw!R29="","",CupDraw!R29) ->  | O30: =CupDraw!V29 -> Steve Baxter | P30: =IF(CupDraw!W29="","",CupDraw!W29) -> -5.333333333 | Q30: =IF(CupDraw!X29="","",CupDraw!X29) ->  | U30: =IF(CupDraw!AB29="","",CupDraw!AB29) ->  | V30: =IF(CupDraw!AC29="","",CupDraw!AC29) -> 
B31: =CupDraw!I30 -> 15 | C31: =IF(CupDraw!J30="","",CupDraw!J30) ->  | D31: =IF(CupDraw!K30="","",CupDraw!K30) ->  | E31: =IF(CupDraw!L30="","",CupDraw!L30) ->  | H31: =CupDraw!O30 -> 15 | I31: =IF(CupDraw!P30="","",CupDraw!P30) -> Tom Robinson | J31: =IF(CupDraw!Q30="","",CupDraw!Q30) -> 3.385 | K31: =IF(CupDraw!R30="","",CupDraw!R30) ->  | N31: =CupDraw!U30 -> 15 | O31: =CupDraw!V30 -> Paul Barnes | P31: =IF(CupDraw!W30="","",CupDraw!W30) -> -7 | Q31: =IF(CupDraw!X30="","",CupDraw!X30) -> 
C32: =IF(CupDraw!J31="","",CupDraw!J31) ->  | D32: =IF(CupDraw!K31="","",CupDraw!K31) ->  | E32: =IF(CupDraw!L31="","",CupDraw!L31) ->  | I32: =IF(CupDraw!P31="","",CupDraw!P31) -> Mo Sudell | J32: =IF(CupDraw!Q31="","",CupDraw!Q31) -> -4.5 | K32: =IF(CupDraw!R31="","",CupDraw!R31) ->  | O32: =CupDraw!V31 -> Chris Bow | P32: =IF(CupDraw!W31="","",CupDraw!W31) -> -5.25 | Q32: =IF(CupDraw!X31="","",CupDraw!X31) -> 
B33: =CupDraw!I32 -> 16 | C33: =IF(CupDraw!J32="","",CupDraw!J32) ->  | D33: =IF(CupDraw!K32="","",CupDraw!K32) ->  | E33: =IF(CupDraw!L32="","",CupDraw!L32) ->  | H33: =CupDraw!O32 -> 16 | I33: =IF(CupDraw!P32="","",CupDraw!P32) -> Paul Fairhurst | J33: =IF(CupDraw!Q32="","",CupDraw!Q32) -> -5 | K33: =IF(CupDraw!R32="","",CupDraw!R32) ->  | N33: =CupDraw!U32 -> 16 | O33: =CupDraw!V32 -> Paul Ridgeway | P33: =IF(CupDraw!W32="","",CupDraw!W32) -> -7 | Q33: =IF(CupDraw!X32="","",CupDraw!X32) -> 
C34: =IF(CupDraw!J33="","",CupDraw!J33) ->  | D34: =IF(CupDraw!K33="","",CupDraw!K33) ->  | E34: =IF(CupDraw!L33="","",CupDraw!L33) ->  | I34: =IF(CupDraw!P33="","",CupDraw!P33) -> Dave Bell | J34: =IF(CupDraw!Q33="","",CupDraw!Q33) -> -5.2 | K34: =IF(CupDraw!R33="","",CupDraw!R33) ->  | O34: =CupDraw!V33 -> Gareth Powell | P34: =IF(CupDraw!W33="","",CupDraw!W33) -> -3.75 | Q34: =IF(CupDraw!X33="","",CupDraw!X33) -> 
B35: =CupDraw!I34 -> 17 | C35: =IF(CupDraw!J34="","",CupDraw!J34) ->  | D35: =IF(CupDraw!K34="","",CupDraw!K34) ->  | E35: =IF(CupDraw!L34="","",CupDraw!L34) ->  | H35: =CupDraw!O34 -> 17 | I35: =IF(CupDraw!P34="","",CupDraw!P34) -> Barry Birchall | J35: =IF(CupDraw!Q34="","",CupDraw!Q34) -> -4.75 | K35: =IF(CupDraw!R34="","",CupDraw!R34) ->  | Q35: =IF(CupDraw!X34="","",CupDraw!X34) -> 
C36: =IF(CupDraw!J35="","",CupDraw!J35) ->  | D36: =IF(CupDraw!K35="","",CupDraw!K35) ->  | E36: =IF(CupDraw!L35="","",CupDraw!L35) ->  | I36: =IF(CupDraw!P35="","",CupDraw!P35) -> Martin Molyneux | J36: =IF(CupDraw!Q35="","",CupDraw!Q35) -> -7 | K36: =IF(CupDraw!R35="","",CupDraw!R35) ->  | Q36: =IF(CupDraw!X35="","",CupDraw!X35) -> 
B37: =CupDraw!I36 -> 18 | C37: =IF(CupDraw!J36="","",CupDraw!J36) ->  | D37: =IF(CupDraw!K36="","",CupDraw!K36) ->  | E37: =IF(CupDraw!L36="","",CupDraw!L36) ->  | H37: =CupDraw!O36 -> 18 | I37: =IF(CupDraw!P36="","",CupDraw!P36) -> Mal Stott | J37: =IF(CupDraw!Q36="","",CupDraw!Q36) -> -7 | K37: =IF(CupDraw!R36="","",CupDraw!R36) ->  | Q37: =IF(CupDraw!X36="","",CupDraw!X36) -> 
C38: =IF(CupDraw!J37="","",CupDraw!J37) ->  | D38: =IF(CupDraw!K37="","",CupDraw!K37) ->  | E38: =IF(CupDraw!L37="","",CupDraw!L37) ->  | I38: =IF(CupDraw!P37="","",CupDraw!P37) -> Nigel Heyes | J38: =IF(CupDraw!Q37="","",CupDraw!Q37) -> 1.455 | K38: =IF(CupDraw!R37="","",CupDraw!R37) ->  | N38: =CupDraw!U37 -> Replay | Q38: =IF(CupDraw!X37="","",CupDraw!X37) -> 
B39: =CupDraw!I38 -> 19 | C39: =IF(CupDraw!J38="","",CupDraw!J38) ->  | D39: =IF(CupDraw!K38="","",CupDraw!K38) ->  | E39: =IF(CupDraw!L38="","",CupDraw!L38) ->  | H39: =CupDraw!O38 -> 19 | I39: =IF(CupDraw!P38="","",CupDraw!P38) -> Charlie Griffiths | J39: =IF(CupDraw!Q38="","",CupDraw!Q38) -> 2.8275 | K39: =IF(CupDraw!R38="","",CupDraw!R38) ->  | O39: =IF(CupDraw!V38="","",CupDraw!V38) ->  | P39: =IF(CupDraw!W38="","",CupDraw!W38) ->  | Q39: =IF(CupDraw!X38="","",CupDraw!X38) ->  | T39: =CupDraw!AA38 -> QF | U39: =CupDraw!AB38 -> 2020-11-21
C40: =IF(CupDraw!J39="","",CupDraw!J39) ->  | D40: =IF(CupDraw!K39="","",CupDraw!K39) ->  | E40: =IF(CupDraw!L39="","",CupDraw!L39) ->  | I40: =IF(CupDraw!P39="","",CupDraw!P39) -> Andy White | J40: =IF(CupDraw!Q39="","",CupDraw!Q39) -> -4.3 | K40: =IF(CupDraw!R39="","",CupDraw!R39) ->  | O40: =IF(CupDraw!V39="","",CupDraw!V39) ->  | P40: =IF(CupDraw!W39="","",CupDraw!W39) ->  | Q40: =IF(CupDraw!X39="","",CupDraw!X39) ->  | T40: =CupDraw!AA39 -> 1 | U40: =CupDraw!AB39 -> Pete Baron | V40: =IF(CupDraw!AC39="","",CupDraw!AC39) -> 3.2 | W40: =IF(CupDraw!AD39="","",CupDraw!AD39) -> 
B41: =CupDraw!I40 -> 20 | C41: =IF(CupDraw!J40="","",CupDraw!J40) ->  | D41: =IF(CupDraw!K40="","",CupDraw!K40) ->  | E41: =IF(CupDraw!L40="","",CupDraw!L40) ->  | H41: =CupDraw!O40 -> 20 | I41: =IF(CupDraw!P40="","",CupDraw!P40) -> Vinny Topping | J41: =IF(CupDraw!Q40="","",CupDraw!Q40) -> 19.3 | K41: =IF(CupDraw!R40="","",CupDraw!R40) ->  | O41: =IF(CupDraw!V40="","",CupDraw!V40) ->  | P41: =IF(CupDraw!W40="","",CupDraw!W40) ->  | Q41: =IF(CupDraw!X40="","",CupDraw!X40) ->  | U41: =CupDraw!AB40 -> Phil Miller | V41: =IF(CupDraw!AC40="","",CupDraw!AC40) -> -5.15 | W41: =IF(CupDraw!AD40="","",CupDraw!AD40) -> 
C42: =IF(CupDraw!J41="","",CupDraw!J41) ->  | D42: =IF(CupDraw!K41="","",CupDraw!K41) ->  | E42: =IF(CupDraw!L41="","",CupDraw!L41) ->  | I42: =IF(CupDraw!P41="","",CupDraw!P41) -> Howard Bradley | J42: =IF(CupDraw!Q41="","",CupDraw!Q41) -> -1.52 | K42: =IF(CupDraw!R41="","",CupDraw!R41) ->  | O42: =IF(CupDraw!V41="","",CupDraw!V41) ->  | P42: =IF(CupDraw!W41="","",CupDraw!W41) ->  | Q42: =IF(CupDraw!X41="","",CupDraw!X41) ->  | T42: =CupDraw!AA41 -> 2 | U42: =CupDraw!AB41 -> Mike Penk | V42: =IF(CupDraw!AC41="","",CupDraw!AC41) -> 1.765 | W42: =IF(CupDraw!AD41="","",CupDraw!AD41) -> 
B43: =CupDraw!I42 -> 21 | C43: =IF(CupDraw!J42="","",CupDraw!J42) ->  | D43: =IF(CupDraw!K42="","",CupDraw!K42) ->  | E43: =IF(CupDraw!L42="","",CupDraw!L42) ->  | H43: =CupDraw!O42 -> 21 | I43: =IF(CupDraw!P42="","",CupDraw!P42) -> Kevin Carter | J43: =IF(CupDraw!Q42="","",CupDraw!Q42) -> -5.166666667 | K43: =IF(CupDraw!R42="","",CupDraw!R42) ->  | O43: =IF(CupDraw!V42="","",CupDraw!V42) ->  | P43: =IF(CupDraw!W42="","",CupDraw!W42) ->  | Q43: =IF(CupDraw!X42="","",CupDraw!X42) ->  | U43: =CupDraw!AB42 -> Paul Fairhurst | V43: =IF(CupDraw!AC42="","",CupDraw!AC42) -> -3.7 | W43: =IF(CupDraw!AD42="","",CupDraw!AD42) -> 
C44: =IF(CupDraw!J43="","",CupDraw!J43) ->  | D44: =IF(CupDraw!K43="","",CupDraw!K43) ->  | E44: =IF(CupDraw!L43="","",CupDraw!L43) ->  | I44: =IF(CupDraw!P43="","",CupDraw!P43) -> Gareth McGuire | J44: =IF(CupDraw!Q43="","",CupDraw!Q43) -> 1.455 | K44: =IF(CupDraw!R43="","",CupDraw!R43) ->  | O44: =IF(CupDraw!V43="","",CupDraw!V43) ->  | P44: =IF(CupDraw!W43="","",CupDraw!W43) ->  | Q44: =IF(CupDraw!X43="","",CupDraw!X43) ->  | T44: =CupDraw!AA43 -> 3 | U44: =CupDraw!AB43 -> Nigel Heyes | V44: =IF(CupDraw!AC43="","",CupDraw!AC43) -> 24.2245 | W44: =IF(CupDraw!AD43="","",CupDraw!AD43) -> 
B45: =CupDraw!I44 -> 22 | C45: =IF(CupDraw!J44="","",CupDraw!J44) ->  | D45: =IF(CupDraw!K44="","",CupDraw!K44) ->  | E45: =IF(CupDraw!L44="","",CupDraw!L44) ->  | H45: =CupDraw!O44 -> 22 | I45: =IF(CupDraw!P44="","",CupDraw!P44) -> Alfie Davies | J45: =IF(CupDraw!Q44="","",CupDraw!Q44) -> -4.45 | K45: =IF(CupDraw!R44="","",CupDraw!R44) ->  | O45: =IF(CupDraw!V44="","",CupDraw!V44) ->  | P45: =IF(CupDraw!W44="","",CupDraw!W44) ->  | Q45: =IF(CupDraw!X44="","",CupDraw!X44) ->  | U45: =CupDraw!AB44 -> Gareth McGuire | V45: =IF(CupDraw!AC44="","",CupDraw!AC44) -> 1.9 | W45: =IF(CupDraw!AD44="","",CupDraw!AD44) -> 
C46: =IF(CupDraw!J45="","",CupDraw!J45) ->  | D46: =IF(CupDraw!K45="","",CupDraw!K45) ->  | E46: =IF(CupDraw!L45="","",CupDraw!L45) ->  | I46: =IF(CupDraw!P45="","",CupDraw!P45) -> John Ronan | J46: =IF(CupDraw!Q45="","",CupDraw!Q45) -> 23.11 | K46: =IF(CupDraw!R45="","",CupDraw!R45) ->  | O46: =IF(CupDraw!V45="","",CupDraw!V45) ->  | P46: =IF(CupDraw!W45="","",CupDraw!W45) ->  | Q46: =IF(CupDraw!X45="","",CupDraw!X45) ->  | T46: =CupDraw!AA45 -> 4 | U46: =CupDraw!AB45 -> Stephen Troop | V46: =IF(CupDraw!AC45="","",CupDraw!AC45) -> 13.16125 | W46: =IF(CupDraw!AD45="","",CupDraw!AD45) -> 
B47: =CupDraw!I46 -> 23 | C47: =IF(CupDraw!J46="","",CupDraw!J46) ->  | D47: =IF(CupDraw!K46="","",CupDraw!K46) ->  | E47: =IF(CupDraw!L46="","",CupDraw!L46) ->  | H47: =CupDraw!O46 -> 23 | I47: =IF(CupDraw!P46="","",CupDraw!P46) -> Jack Walsh | J47: =IF(CupDraw!Q46="","",CupDraw!Q46) -> -5.272727273 | K47: =IF(CupDraw!R46="","",CupDraw!R46) ->  | O47: =IF(CupDraw!V46="","",CupDraw!V46) ->  | P47: =IF(CupDraw!W46="","",CupDraw!W46) ->  | Q47: =IF(CupDraw!X46="","",CupDraw!X46) ->  | U47: =CupDraw!AB46 -> Gareth Powell | V47: =IF(CupDraw!AC46="","",CupDraw!AC46) -> -4.7 | W47: =IF(CupDraw!AD46="","",CupDraw!AD46) -> 
C48: =IF(CupDraw!J47="","",CupDraw!J47) ->  | D48: =IF(CupDraw!K47="","",CupDraw!K47) ->  | E48: =IF(CupDraw!L47="","",CupDraw!L47) ->  | I48: =IF(CupDraw!P47="","",CupDraw!P47) -> Paul Adderley | J48: =IF(CupDraw!Q47="","",CupDraw!Q47) -> -1.454545455 | K48: =IF(CupDraw!R47="","",CupDraw!R47) ->  | O48: =IF(CupDraw!V47="","",CupDraw!V47) ->  | P48: =IF(CupDraw!W47="","",CupDraw!W47) ->  | Q48: =IF(CupDraw!X47="","",CupDraw!X47) -> 
B49: =CupDraw!I48 -> 24 | C49: =IF(CupDraw!J48="","",CupDraw!J48) ->  | D49: =IF(CupDraw!K48="","",CupDraw!K48) ->  | E49: =IF(CupDraw!L48="","",CupDraw!L48) ->  | H49: =CupDraw!O48 -> 24 | I49: =IF(CupDraw!P48="","",CupDraw!P48) -> Paul Fiddler | J49: =IF(CupDraw!Q48="","",CupDraw!Q48) -> -5.166666667 | K49: =IF(CupDraw!R48="","",CupDraw!R48) -> 
C50: =IF(CupDraw!J49="","",CupDraw!J49) ->  | D50: =IF(CupDraw!K49="","",CupDraw!K49) ->  | E50: =IF(CupDraw!L49="","",CupDraw!L49) ->  | I50: =IF(CupDraw!P49="","",CupDraw!P49) -> Chris Townsend | J50: =IF(CupDraw!Q49="","",CupDraw!Q49) -> 10.8 | K50: =IF(CupDraw!R49="","",CupDraw!R49) ->  | T50: =CupDraw!AA49 -> Earlier Ties
B51: =CupDraw!I50 -> 25 | C51: =IF(CupDraw!J50="","",CupDraw!J50) ->  | D51: =IF(CupDraw!K50="","",CupDraw!K50) ->  | E51: =IF(CupDraw!L50="","",CupDraw!L50) ->  | H51: =CupDraw!O50 -> 25 | I51: =IF(CupDraw!P50="","",CupDraw!P50) -> Mark Bunn | J51: =IF(CupDraw!Q50="","",CupDraw!Q50) -> -10 | K51: =IF(CupDraw!R50="","",CupDraw!R50) ->  | U51: =IF(CupDraw!AB50="","",CupDraw!AB50) ->  | V51: =IF(CupDraw!AC50="","",CupDraw!AC50) ->  | W51: =IF(CupDraw!AD50="","",CupDraw!AD50) -> 
C52: =IF(CupDraw!J51="","",CupDraw!J51) ->  | D52: =IF(CupDraw!K51="","",CupDraw!K51) ->  | E52: =IF(CupDraw!L51="","",CupDraw!L51) ->  | I52: =IF(CupDraw!P51="","",CupDraw!P51) -> Stephen Troop | J52: =IF(CupDraw!Q51="","",CupDraw!Q51) -> -7 | K52: =IF(CupDraw!R51="","",CupDraw!R51) ->  | U52: =IF(CupDraw!AB51="","",CupDraw!AB51) ->  | V52: =IF(CupDraw!AC51="","",CupDraw!AC51) ->  | W52: =IF(CupDraw!AD51="","",CupDraw!AD51) -> 
B53: =CupDraw!I52 -> 26 | C53: =IF(CupDraw!J52="","",CupDraw!J52) ->  | D53: =IF(CupDraw!K52="","",CupDraw!K52) ->  | E53: =IF(CupDraw!L52="","",CupDraw!L52) ->  | H53: =CupDraw!O52 -> 26 | I53: =IF(CupDraw!P52="","",CupDraw!P52) -> Steve Carter | J53: =IF(CupDraw!Q52="","",CupDraw!Q52) -> -4.95 | K53: =IF(CupDraw!R52="","",CupDraw!R52) ->  | U53: =IF(CupDraw!AB52="","",CupDraw!AB52) ->  | V53: =IF(CupDraw!AC52="","",CupDraw!AC52) ->  | W53: =IF(CupDraw!AD52="","",CupDraw!AD52) -> 
C54: =IF(CupDraw!J53="","",CupDraw!J53) ->  | D54: =IF(CupDraw!K53="","",CupDraw!K53) ->  | E54: =IF(CupDraw!L53="","",CupDraw!L53) ->  | I54: =IF(CupDraw!P53="","",CupDraw!P53) -> Liam Wah | J54: =IF(CupDraw!Q53="","",CupDraw!Q53) -> -10 | K54: =IF(CupDraw!R53="","",CupDraw!R53) ->  | U54: =IF(CupDraw!AB53="","",CupDraw!AB53) ->  | V54: =IF(CupDraw!AC53="","",CupDraw!AC53) ->  | W54: =IF(CupDraw!AD53="","",CupDraw!AD53) -> 
B55: =CupDraw!I54 -> 27 | C55: =IF(CupDraw!J54="","",CupDraw!J54) ->  | D55: =IF(CupDraw!K54="","",CupDraw!K54) ->  | E55: =IF(CupDraw!L54="","",CupDraw!L54) ->  | H55: =CupDraw!O54 -> 27 | I55: =IF(CupDraw!P54="","",CupDraw!P54) -> Paul Allen | J55: =IF(CupDraw!Q54="","",CupDraw!Q54) -> -7 | K55: =IF(CupDraw!R54="","",CupDraw!R54) ->  | U55: =IF(CupDraw!AB54="","",CupDraw!AB54) ->  | V55: =IF(CupDraw!AC54="","",CupDraw!AC54) ->  | W55: =IF(CupDraw!AD54="","",CupDraw!AD54) -> 
C56: =IF(CupDraw!J55="","",CupDraw!J55) ->  | D56: =IF(CupDraw!K55="","",CupDraw!K55) ->  | E56: =IF(CupDraw!L55="","",CupDraw!L55) ->  | I56: =IF(CupDraw!P55="","",CupDraw!P55) -> Kei Lok Ma | J56: =IF(CupDraw!Q55="","",CupDraw!Q55) -> 4.765 | K56: =IF(CupDraw!R55="","",CupDraw!R55) ->  | U56: =IF(CupDraw!AB55="","",CupDraw!AB55) ->  | V56: =IF(CupDraw!AC55="","",CupDraw!AC55) ->  | W56: =IF(CupDraw!AD55="","",CupDraw!AD55) -> 
B57: =CupDraw!I56 -> 28 | C57: =IF(CupDraw!J56="","",CupDraw!J56) ->  | D57: =IF(CupDraw!K56="","",CupDraw!K56) ->  | E57: =IF(CupDraw!L56="","",CupDraw!L56) ->  | H57: =CupDraw!O56 -> 28 | I57: =IF(CupDraw!P56="","",CupDraw!P56) -> Steve Baxter | J57: =IF(CupDraw!Q56="","",CupDraw!Q56) -> -5.2 | K57: =IF(CupDraw!R56="","",CupDraw!R56) ->  | U57: =IF(CupDraw!AB56="","",CupDraw!AB56) ->  | V57: =IF(CupDraw!AC56="","",CupDraw!AC56) ->  | W57: =IF(CupDraw!AD56="","",CupDraw!AD56) -> 
C58: =IF(CupDraw!J57="","",CupDraw!J57) ->  | D58: =IF(CupDraw!K57="","",CupDraw!K57) ->  | E58: =IF(CupDraw!L57="","",CupDraw!L57) ->  | I58: =IF(CupDraw!P57="","",CupDraw!P57) -> Chris Luck | J58: =IF(CupDraw!Q57="","",CupDraw!Q57) -> -7 | K58: =IF(CupDraw!R57="","",CupDraw!R57) ->  | U58: =IF(CupDraw!AB57="","",CupDraw!AB57) ->  | V58: =IF(CupDraw!AC57="","",CupDraw!AC57) ->  | W58: =IF(CupDraw!AD57="","",CupDraw!AD57) -> 
B59: =CupDraw!I58 -> 29 | C59: =IF(CupDraw!J58="","",CupDraw!J58) ->  | D59: =IF(CupDraw!K58="","",CupDraw!K58) ->  | E59: =IF(CupDraw!L58="","",CupDraw!L58) ->  | H59: =CupDraw!O58 -> 29 | I59: =IF(CupDraw!P58="","",CupDraw!P58) -> Paul Barnes | J59: =IF(CupDraw!Q58="","",CupDraw!Q58) -> 18.32 | K59: =IF(CupDraw!R58="","",CupDraw!R58) -> 
C60: =IF(CupDraw!J59="","",CupDraw!J59) ->  | D60: =IF(CupDraw!K59="","",CupDraw!K59) ->  | E60: =IF(CupDraw!L59="","",CupDraw!L59) ->  | I60: =IF(CupDraw!P59="","",CupDraw!P59) -> Alan White | J60: =IF(CupDraw!Q59="","",CupDraw!Q59) -> 7.05 | K60: =IF(CupDraw!R59="","",CupDraw!R59) -> 
B61: =CupDraw!I60 -> 30 | C61: =IF(CupDraw!J60="","",CupDraw!J60) ->  | D61: =IF(CupDraw!K60="","",CupDraw!K60) ->  | E61: =IF(CupDraw!L60="","",CupDraw!L60) ->  | H61: =CupDraw!O60 -> 30 | I61: =IF(CupDraw!P60="","",CupDraw!P60) -> Chris Bow | J61: =IF(CupDraw!Q60="","",CupDraw!Q60) -> -4.55 | K61: =IF(CupDraw!R60="","",CupDraw!R60) -> 
C62: =IF(CupDraw!J61="","",CupDraw!J61) ->  | D62: =IF(CupDraw!K61="","",CupDraw!K61) ->  | E62: =IF(CupDraw!L61="","",CupDraw!L61) ->  | I62: =IF(CupDraw!P61="","",CupDraw!P61) -> Lewis Buckley | J62: =IF(CupDraw!Q61="","",CupDraw!Q61) -> -10 | K62: =IF(CupDraw!R61="","",CupDraw!R61) -> 
B63: =CupDraw!I62 -> 31 | C63: =IF(CupDraw!J62="","",CupDraw!J62) ->  | D63: =IF(CupDraw!K62="","",CupDraw!K62) ->  | E63: =IF(CupDraw!L62="","",CupDraw!L62) ->  | H63: =CupDraw!O62 -> 31 | I63: =IF(CupDraw!P62="","",CupDraw!P62) -> Paul Ridgeway | J63: =IF(CupDraw!Q62="","",CupDraw!Q62) -> -7 | K63: =IF(CupDraw!R62="","",CupDraw!R62) -> 
C64: =IF(CupDraw!J63="","",CupDraw!J63) ->  | D64: =IF(CupDraw!K63="","",CupDraw!K63) ->  | E64: =IF(CupDraw!L63="","",CupDraw!L63) ->  | I64: =IF(CupDraw!P63="","",CupDraw!P63) -> Bye | J64: =IF(CupDraw!Q63="","",CupDraw!Q63) -> -10 | K64: =IF(CupDraw!R63="","",CupDraw!R63) ->  | T64: =CupDraw!AA63 -> SF | U64: =CupDraw!AB63 -> 2020-12-05
B65: =CupDraw!I64 -> 32 | C65: =IF(CupDraw!J64="","",CupDraw!J64) ->  | D65: =IF(CupDraw!K64="","",CupDraw!K64) ->  | E65: =IF(CupDraw!L64="","",CupDraw!L64) ->  | H65: =CupDraw!O64 -> 32 | I65: =IF(CupDraw!P64="","",CupDraw!P64) -> Gareth Powell | J65: =IF(CupDraw!Q64="","",CupDraw!Q64) -> -7 | K65: =IF(CupDraw!R64="","",CupDraw!R64) ->  | T65: =CupDraw!AA64 -> 1 | U65: =IF(CupDraw!AB64="","",CupDraw!AB64) -> Pete Baron | V65: =IF(CupDraw!AC64="","",CupDraw!AC64) -> -7 | W65: =CupDraw!AD64 -> 
C66: =IF(CupDraw!J65="","",CupDraw!J65) ->  | D66: =IF(CupDraw!K65="","",CupDraw!K65) ->  | E66: =IF(CupDraw!L65="","",CupDraw!L65) ->  | I66: =IF(CupDraw!P65="","",CupDraw!P65) -> Bye | J66: =IF(CupDraw!Q65="","",CupDraw!Q65) -> -10 | K66: =IF(CupDraw!R65="","",CupDraw!R65) ->  | U66: =CupDraw!AB65 -> Mike Penk | V66: =IF(CupDraw!AC65="","",CupDraw!AC65) -> -3.5
B67: =CupDraw!I66 -> 33 | C67: =IF(CupDraw!J66="","",CupDraw!J66) ->  | D67: =IF(CupDraw!K66="","",CupDraw!K66) ->  | E67: =IF(CupDraw!L66="","",CupDraw!L66) ->  | T67: =CupDraw!AA66 -> 2 | U67: =CupDraw!AB66 -> Nigel Heyes | V67: =IF(CupDraw!AC66="","",CupDraw!AC66) -> -5.090909091 | W67: =CupDraw!AD66 -> 
C68: =IF(CupDraw!J67="","",CupDraw!J67) ->  | D68: =IF(CupDraw!K67="","",CupDraw!K67) ->  | E68: =IF(CupDraw!L67="","",CupDraw!L67) ->  | U68: =CupDraw!AB67 -> Stephen Troop | V68: =IF(CupDraw!AC67="","",CupDraw!AC67) -> -2.435
B69: =CupDraw!I68 -> 34 | C69: =IF(CupDraw!J68="","",CupDraw!J68) ->  | D69: =IF(CupDraw!K68="","",CupDraw!K68) ->  | E69: =IF(CupDraw!L68="","",CupDraw!L68) ->  | H69: =CupDraw!O68 -> Earlier ties
C70: =IF(CupDraw!J69="","",CupDraw!J69) ->  | D70: =IF(CupDraw!K69="","",CupDraw!K69) ->  | E70: =IF(CupDraw!L69="","",CupDraw!L69) ->  | H70: =IF(CupDraw!O69="","",CupDraw!O69) -> 12 | I70: =IF(CupDraw!P69="","",CupDraw!P69) -> Andy Charleston | J70: =IF(CupDraw!Q69="","",CupDraw!Q69) -> -5 | K70: =IF(CupDraw!R69="","",CupDraw!R69) -> R | T70: =CupDraw!AA69 -> Earlier ties
B71: =CupDraw!I70 -> 35 | C71: =IF(CupDraw!J70="","",CupDraw!J70) ->  | D71: =IF(CupDraw!K70="","",CupDraw!K70) ->  | E71: =IF(CupDraw!L70="","",CupDraw!L70) ->  | H71: =CupDraw!O70 -> 0 | I71: =IF(CupDraw!P70="","",CupDraw!P70) -> Martin Tarbuck | J71: =IF(CupDraw!Q70="","",CupDraw!Q70) -> -5 | K71: =IF(CupDraw!R70="","",CupDraw!R70) ->  | U71: =IF(CupDraw!AB70="","",CupDraw!AB70) ->  | V71: =IF(CupDraw!AC70="","",CupDraw!AC70) ->  | W71: =CupDraw!AD70 -> 
C72: =IF(CupDraw!J71="","",CupDraw!J71) ->  | D72: =IF(CupDraw!K71="","",CupDraw!K71) ->  | E72: =IF(CupDraw!L71="","",CupDraw!L71) ->  | H72: =IF(CupDraw!O71="","",CupDraw!O71) -> 23 | I72: =IF(CupDraw!P71="","",CupDraw!P71) -> Jack Walsh | J72: =IF(CupDraw!Q71="","",CupDraw!Q71) -> -7 | K72: =IF(CupDraw!R71="","",CupDraw!R71) -> R | U72: =IF(CupDraw!AB71="","",CupDraw!AB71) ->  | V72: =IF(CupDraw!AC71="","",CupDraw!AC71) -> 
B73: =CupDraw!I72 -> 36 | C73: =IF(CupDraw!J72="","",CupDraw!J72) ->  | D73: =IF(CupDraw!K72="","",CupDraw!K72) ->  | E73: =IF(CupDraw!L72="","",CupDraw!L72) ->  | H73: =CupDraw!O72 -> 0 | I73: =IF(CupDraw!P72="","",CupDraw!P72) -> Paul Adderley | J73: =IF(CupDraw!Q72="","",CupDraw!Q72) -> -7 | K73: =IF(CupDraw!R72="","",CupDraw!R72) ->  | U73: =IF(CupDraw!AB72="","",CupDraw!AB72) ->  | V73: =IF(CupDraw!AC72="","",CupDraw!AC72) ->  | W73: =CupDraw!AD72 -> 
C74: =IF(CupDraw!J73="","",CupDraw!J73) ->  | D74: =IF(CupDraw!K73="","",CupDraw!K73) ->  | E74: =IF(CupDraw!L73="","",CupDraw!L73) ->  | H74: =IF(CupDraw!O73="","",CupDraw!O73) ->  | I74: =IF(CupDraw!P73="","",CupDraw!P73) ->  | J74: =IF(CupDraw!Q73="","",CupDraw!Q73) ->  | K74: =IF(CupDraw!R73="","",CupDraw!R73) ->  | U74: =IF(CupDraw!AB73="","",CupDraw!AB73) ->  | V74: =IF(CupDraw!AC73="","",CupDraw!AC73) -> 
H75: =CupDraw!O74 -> 0 | I75: =IF(CupDraw!P74="","",CupDraw!P74) ->  | J75: =IF(CupDraw!Q74="","",CupDraw!Q74) ->  | K75: =IF(CupDraw!R74="","",CupDraw!R74) -> 
H76: =IF(CupDraw!O75="","",CupDraw!O75) ->  | I76: =IF(CupDraw!P75="","",CupDraw!P75) ->  | J76: =IF(CupDraw!Q75="","",CupDraw!Q75) ->  | K76: =IF(CupDraw!R75="","",CupDraw!R75) -> 
B77: Earlier ties | H77: =CupDraw!O76 -> 0 | I77: =IF(CupDraw!P76="","",CupDraw!P76) ->  | J77: =IF(CupDraw!Q76="","",CupDraw!Q76) ->  | K77: =IF(CupDraw!R76="","",CupDraw!R76) -> 
C78: =IF(CupDraw!J79="","",CupDraw!J79) -> Pete Baron | D78: =IF(CupDraw!K79="","",CupDraw!K79) ->  | E78: =IF(CupDraw!L79="","",CupDraw!L79) -> R | H78: =IF(CupDraw!O77="","",CupDraw!O77) ->  | I78: =IF(CupDraw!P77="","",CupDraw!P77) ->  | J78: =IF(CupDraw!Q77="","",CupDraw!Q77) ->  | K78: =IF(CupDraw!R77="","",CupDraw!R77) -> 
C79: =IF(CupDraw!J80="","",CupDraw!J80) -> Chris Townsend | D79: =IF(CupDraw!K80="","",CupDraw!K80) ->  | H79: =CupDraw!O78 -> 0 | I79: =IF(CupDraw!P78="","",CupDraw!P78) ->  | J79: =IF(CupDraw!Q78="","",CupDraw!Q78) ->  | K79: =IF(CupDraw!R78="","",CupDraw!R78) -> 
C80: =IF(CupDraw!J81="","",CupDraw!J81) ->  | D80: =IF(CupDraw!K81="","",CupDraw!K81) ->  | E80: =IF(CupDraw!L81="","",CupDraw!L81) ->  | H80: =IF(CupDraw!O79="","",CupDraw!O79) ->  | I80: =IF(CupDraw!P79="","",CupDraw!P79) ->  | J80: =IF(CupDraw!Q79="","",CupDraw!Q79) ->  | K80: =IF(CupDraw!R79="","",CupDraw!R79) -> 
C81: =IF(CupDraw!J82="","",CupDraw!J82) ->  | D81: =IF(CupDraw!K82="","",CupDraw!K82) ->  | H81: =CupDraw!O80 -> 0 | I81: =IF(CupDraw!P80="","",CupDraw!P80) ->  | J81: =IF(CupDraw!Q80="","",CupDraw!Q80) ->  | K81: =IF(CupDraw!R80="","",CupDraw!R80) ->  | T81: =CupDraw!AA80 -> Final | U81: =CupDraw!AB80 -> 2020-12-16
C82: =IF(CupDraw!J83="","",CupDraw!J83) ->  | D82: =IF(CupDraw!K83="","",CupDraw!K83) ->  | E82: =IF(CupDraw!L83="","",CupDraw!L83) ->  | H82: =IF(CupDraw!O81="","",CupDraw!O81) ->  | I82: =IF(CupDraw!P81="","",CupDraw!P81) ->  | J82: =IF(CupDraw!Q81="","",CupDraw!Q81) ->  | K82: =IF(CupDraw!R81="","",CupDraw!R81) ->  | T82: =CupDraw!AA81 -> 1 | U82: =CupDraw!AB81 -> Mike Penk | V82: =IF(CupDraw!AC81="","",CupDraw!AC81) ->  | W82: =CupDraw!AD81 -> 
C83: =IF(CupDraw!J84="","",CupDraw!J84) ->  | D83: =IF(CupDraw!K84="","",CupDraw!K84) ->  | E83: =IF(CupDraw!L84="","",CupDraw!L84) ->  | H83: =CupDraw!O82 -> 0 | I83: =IF(CupDraw!P82="","",CupDraw!P82) ->  | J83: =IF(CupDraw!Q82="","",CupDraw!Q82) ->  | K83: =IF(CupDraw!R82="","",CupDraw!R82) ->  | U83: =CupDraw!AB82 -> Stephen Troop | V83: =IF(CupDraw!AC82="","",CupDraw!AC82) -> 
C84: =IF(CupDraw!J85="","",CupDraw!J85) ->  | D84: =IF(CupDraw!K85="","",CupDraw!K85) ->  | E84: =IF(CupDraw!L85="","",CupDraw!L85) ->  | H84: =IF(CupDraw!O83="","",CupDraw!O83) ->  | I84: =IF(CupDraw!P83="","",CupDraw!P83) ->  | J84: =IF(CupDraw!Q83="","",CupDraw!Q83) ->  | K84: =IF(CupDraw!R83="","",CupDraw!R83) -> 
C85: =IF(CupDraw!J86="","",CupDraw!J86) ->  | D85: =IF(CupDraw!K86="","",CupDraw!K86) ->  | E85: =IF(CupDraw!L86="","",CupDraw!L86) ->  | H85: =CupDraw!O84 -> 0 | I85: =IF(CupDraw!P84="","",CupDraw!P84) ->  | J85: =IF(CupDraw!Q84="","",CupDraw!Q84) ->  | K85: =IF(CupDraw!R84="","",CupDraw!R84) -> 
C86: =IF(CupDraw!J87="","",CupDraw!J87) ->  | D86: =IF(CupDraw!K87="","",CupDraw!K87) ->  | E86: =IF(CupDraw!L87="","",CupDraw!L87) ->  | H86: =IF(CupDraw!O85="","",CupDraw!O85) ->  | I86: =IF(CupDraw!P85="","",CupDraw!P85) ->  | J86: =IF(CupDraw!Q85="","",CupDraw!Q85) ->  | K86: =IF(CupDraw!R85="","",CupDraw!R85) ->  | T86: =CupDraw!AA85 -> Earlier ties
C87: =IF(CupDraw!J88="","",CupDraw!J88) ->  | D87: =IF(CupDraw!K88="","",CupDraw!K88) ->  | E87: =IF(CupDraw!L88="","",CupDraw!L88) ->  | H87: =CupDraw!O86 -> 0 | I87: =IF(CupDraw!P86="","",CupDraw!P86) ->  | J87: =IF(CupDraw!Q86="","",CupDraw!Q86) ->  | K87: =IF(CupDraw!R86="","",CupDraw!R86) ->  | U87: =IF(CupDraw!AB86="","",CupDraw!AB86) ->  | V87: =IF(CupDraw!AC86="","",CupDraw!AC86) ->  | W87: =IF(CupDraw!AD86="","",CupDraw!AD86) -> 
C88: =IF(CupDraw!J89="","",CupDraw!J89) ->  | D88: =IF(CupDraw!K89="","",CupDraw!K89) ->  | E88: =IF(CupDraw!L89="","",CupDraw!L89) ->  | H88: =IF(CupDraw!O87="","",CupDraw!O87) ->  | I88: =IF(CupDraw!P87="","",CupDraw!P87) ->  | J88: =IF(CupDraw!Q87="","",CupDraw!Q87) ->  | K88: =IF(CupDraw!R87="","",CupDraw!R87) ->  | U88: =IF(CupDraw!AB87="","",CupDraw!AB87) ->  | V88: =IF(CupDraw!AC87="","",CupDraw!AC87) ->  | W88: =IF(CupDraw!AD87="","",CupDraw!AD87) -> 
C89: =IF(CupDraw!J90="","",CupDraw!J90) ->  | D89: =IF(CupDraw!K90="","",CupDraw!K90) ->  | E89: =IF(CupDraw!L90="","",CupDraw!L90) ->  | H89: =CupDraw!O88 -> 0 | I89: =IF(CupDraw!P88="","",CupDraw!P88) ->  | J89: =IF(CupDraw!Q88="","",CupDraw!Q88) ->  | K89: =IF(CupDraw!R88="","",CupDraw!R88) ->  | U89: =IF(CupDraw!AB88="","",CupDraw!AB88) ->  | V89: =IF(CupDraw!AC88="","",CupDraw!AC88) ->  | W89: =IF(CupDraw!AD88="","",CupDraw!AD88) -> 
C90: =IF(CupDraw!J91="","",CupDraw!J91) ->  | D90: =IF(CupDraw!K91="","",CupDraw!K91) ->  | E90: =IF(CupDraw!L91="","",CupDraw!L91) ->  | H90: =IF(CupDraw!O89="","",CupDraw!O89) ->  | I90: =IF(CupDraw!P89="","",CupDraw!P89) ->  | J90: =IF(CupDraw!Q89="","",CupDraw!Q89) ->  | K90: =IF(CupDraw!R89="","",CupDraw!R89) ->  | U90: =IF(CupDraw!AB89="","",CupDraw!AB89) ->  | V90: =IF(CupDraw!AC89="","",CupDraw!AC89) ->  | W90: =IF(CupDraw!AD89="","",CupDraw!AD89) -> 
C91: =IF(CupDraw!J92="","",CupDraw!J92) ->  | D91: =IF(CupDraw!K92="","",CupDraw!K92) ->  | E91: =IF(CupDraw!L92="","",CupDraw!L92) ->  | H91: =CupDraw!O90 -> 0 | I91: =IF(CupDraw!P90="","",CupDraw!P90) ->  | J91: =IF(CupDraw!Q90="","",CupDraw!Q90) ->  | K91: =IF(CupDraw!R90="","",CupDraw!R90) -> 
C92: =IF(CupDraw!J93="","",CupDraw!J93) ->  | D92: =IF(CupDraw!K93="","",CupDraw!K93) ->  | E92: =IF(CupDraw!L93="","",CupDraw!L93) ->  | H92: =IF(CupDraw!O91="","",CupDraw!O91) ->  | I92: =IF(CupDraw!P91="","",CupDraw!P91) ->  | J92: =IF(CupDraw!Q91="","",CupDraw!Q91) ->  | K92: =IF(CupDraw!R91="","",CupDraw!R91) -> 
C93: =IF(CupDraw!J94="","",CupDraw!J94) ->  | D93: =IF(CupDraw!K94="","",CupDraw!K94) ->  | E93: =IF(CupDraw!L94="","",CupDraw!L94) ->  | H93: =CupDraw!O92 -> 0 | I93: =IF(CupDraw!P92="","",CupDraw!P92) ->  | J93: =IF(CupDraw!Q92="","",CupDraw!Q92) ->  | K93: =IF(CupDraw!R92="","",CupDraw!R92) -> 
C94: =IF(CupDraw!J95="","",CupDraw!J95) -> 

Sheet Predictions
A1: =IF(Picks!A1="","",Picks!A1) -> Player | B1: =IF(Picks!B1="","",Picks!B1) -> Prediction | C1: =IF(Picks!C1="","",Picks!C1) -> Match Day | D1: =IF(Picks!D1="","",Picks!D1) -> Decimal | E1: =IF(Picks!E1="","",Picks!E1) -> Bet in? | F1: =IF(Picks!F1="","",Picks!F1) -> Score | G1: =IF(Picks!G1="","",Picks!G1) -> Max
A2: =IF(Picks!A2="","",Picks!A2) -> Alan Rogers | B2: =IF(Picks!B2="","",Picks!B2) -> Morecambe | C2: =IF(Picks!C2="","",Picks!C2) -> 7 | D2: =IF(Picks!D2="","",Picks!D2) -> 2.6 | E2: =IF(Picks!E2="","",Picks!E2) -> √ | F2: =IF(Picks!F2="","",Picks!F2) -> 47.08 | G2: =IF(Picks!G2="","",Picks!G2) -> 47.08
B3: =IF(Picks!B3="","",Picks!B3) -> Oldham | C3: =IF(Picks!C3="","",Picks!C3) -> 7 | D3: =IF(Picks!D3="","",Picks!D3) -> 2.4 | E3: =IF(Picks!E3="","",Picks!E3) -> √ | F3: =IF(Picks!F3="","",Picks!F3) ->  | G3: =IF(Picks!G3="","",Picks!G3) -> 
B4: =IF(Picks!B4="","",Picks!B4) -> Port Vale draw | C4: =IF(Picks!C4="","",Picks!C4) -> 7 | D4: =IF(Picks!D4="","",Picks!D4) -> 3.5 | E4: =IF(Picks!E4="","",Picks!E4) -> √ | F4: =IF(Picks!F4="","",Picks!F4) ->  | G4: =IF(Picks!G4="","",Picks!G4) -> 
A5: =IF(Picks!A5="","",Picks!A5) -> Alan White | B5: =IF(Picks!B5="","",Picks!B5) -> Leicester | C5: =IF(Picks!C5="","",Picks!C5) -> 1 | D5: =IF(Picks!D5="","",Picks!D5) -> 2 | E5: =IF(Picks!E5="","",Picks!E5) -> √ | F5: =IF(Picks!F5="","",Picks!F5) -> 0.1818181818 | G5: =IF(Picks!G5="","",Picks!G5) -> 14.31404959
B6: =IF(Picks!B6="","",Picks!B6) -> Spurs | C6: =IF(Picks!C6="","",Picks!C6) -> 1 | D6: =IF(Picks!D6="","",Picks!D6) -> 1.727272727 | E6: =IF(Picks!E6="","",Picks!E6) -> x | F6: =IF(Picks!F6="","",Picks!F6) ->  | G6: =IF(Picks!G6="","",Picks!G6) -> 
B7: =IF(Picks!B7="","",Picks!B7) -> Southampton | C7: =IF(Picks!C7="","",Picks!C7) -> 1 | D7: =IF(Picks!D7="","",Picks!D7) -> 1.727272727 | E7: =IF(Picks!E7="","",Picks!E7) -> √ | F7: =IF(Picks!F7="","",Picks!F7) ->  | G7: =IF(Picks!G7="","",Picks!G7) -> 
A8: =IF(Picks!A8="","",Picks!A8) -> Alfie Davies | B8: =IF(Picks!B8="","",Picks!B8) -> Norwich | C8: =IF(Picks!C8="","",Picks!C8) -> 7 | D8: =IF(Picks!D8="","",Picks!D8) -> 2.75 | E8: =IF(Picks!E8="","",Picks!E8) -> √ | F8: =IF(Picks!F8="","",Picks!F8) -> 50.275 | G8: =IF(Picks!G8="","",Picks!G8) -> 50.275
B9: =IF(Picks!B9="","",Picks!B9) -> Derby Draw | C9: =IF(Picks!C9="","",Picks!C9) -> 7 | D9: =IF(Picks!D9="","",Picks!D9) -> 3.2 | E9: =IF(Picks!E9="","",Picks!E9) -> √ | F9: =IF(Picks!F9="","",Picks!F9) ->  | G9: =IF(Picks!G9="","",Picks!G9) -> 
B10: =IF(Picks!B10="","",Picks!B10) -> Reading | C10: =IF(Picks!C10="","",Picks!C10) -> 7 | D10: =IF(Picks!D10="","",Picks!D10) -> 2.7 | E10: =IF(Picks!E10="","",Picks!E10) -> √ | F10: =IF(Picks!F10="","",Picks!F10) ->  | G10: =IF(Picks!G10="","",Picks!G10) -> 
A11: =IF(Picks!A11="","",Picks!A11) -> Alick Rocca | B11: =IF(Picks!B11="","",Picks!B11) -> Birmingham Draw | C11: =IF(Picks!C11="","",Picks!C11) -> 7 | D11: =IF(Picks!D11="","",Picks!D11) -> 3.2 | E11: =IF(Picks!E11="","",Picks!E11) -> x | F11: =IF(Picks!F11="","",Picks!F11) -> -7 | G11: =IF(Picks!G11="","",Picks!G11) -> 66.046
B12: =IF(Picks!B12="","",Picks!B12) -> QPR Draw | C12: =IF(Picks!C12="","",Picks!C12) -> 7 | D12: =IF(Picks!D12="","",Picks!D12) -> 3.3 | E12: =IF(Picks!E12="","",Picks!E12) -> x | F12: =IF(Picks!F12="","",Picks!F12) ->  | G12: =IF(Picks!G12="","",Picks!G12) -> 
B13: =IF(Picks!B13="","",Picks!B13) -> Sheff W Draw | C13: =IF(Picks!C13="","",Picks!C13) -> 7 | D13: =IF(Picks!D13="","",Picks!D13) -> 3.1 | E13: =IF(Picks!E13="","",Picks!E13) -> x | F13: =IF(Picks!F13="","",Picks!F13) ->  | G13: =IF(Picks!G13="","",Picks!G13) -> 
A14: =IF(Picks!A14="","",Picks!A14) -> Andy Charleston | B14: =IF(Picks!B14="","",Picks!B14) -> Everton | C14: =IF(Picks!C14="","",Picks!C14) -> 7 | D14: =IF(Picks!D14="","",Picks!D14) -> 4.333333333 | E14: =IF(Picks!E14="","",Picks!E14) -> √ | F14: =IF(Picks!F14="","",Picks!F14) -> -2.666666667 | G14: =IF(Picks!G14="","",Picks!G14) -> 134.2222222
B15: =IF(Picks!B15="","",Picks!B15) -> Man U | C15: =IF(Picks!C15="","",Picks!C15) -> 7 | D15: =IF(Picks!D15="","",Picks!D15) -> 4.333333333 | E15: =IF(Picks!E15="","",Picks!E15) -> x | F15: =IF(Picks!F15="","",Picks!F15) ->  | G15: =IF(Picks!G15="","",Picks!G15) -> 
B16: =IF(Picks!B16="","",Picks!B16) -> Birmingham | C16: =IF(Picks!C16="","",Picks!C16) -> 7 | D16: =IF(Picks!D16="","",Picks!D16) -> 4 | E16: =IF(Picks!E16="","",Picks!E16) -> x | F16: =IF(Picks!F16="","",Picks!F16) ->  | G16: =IF(Picks!G16="","",Picks!G16) -> 
A17: =IF(Picks!A17="","",Picks!A17) -> Andy White | B17: =IF(Picks!B17="","",Picks!B17) -> Wolves | C17: =IF(Picks!C17="","",Picks!C17) -> 7 | D17: =IF(Picks!D17="","",Picks!D17) -> 2.3 | E17: =IF(Picks!E17="","",Picks!E17) -> x | F17: =IF(Picks!F17="","",Picks!F17) -> 1.75 | G17: =IF(Picks!G17="","",Picks!G17) -> 24.175
B18: =IF(Picks!B18="","",Picks!B18) -> Newcastle | C18: =IF(Picks!C18="","",Picks!C18) -> 7 | D18: =IF(Picks!D18="","",Picks!D18) -> 2.25 | E18: =IF(Picks!E18="","",Picks!E18) -> √ | F18: =IF(Picks!F18="","",Picks!F18) ->  | G18: =IF(Picks!G18="","",Picks!G18) -> 
B19: =IF(Picks!B19="","",Picks!B19) -> Leicester | C19: =IF(Picks!C19="","",Picks!C19) -> 1 | D19: =IF(Picks!D19="","",Picks!D19) -> 2 | E19: =IF(Picks!E19="","",Picks!E19) -> √ | F19: =IF(Picks!F19="","",Picks!F19) ->  | G19: =IF(Picks!G19="","",Picks!G19) -> 
A20: =IF(Picks!A20="","",Picks!A20) -> Ashley Houghton | B20: =IF(Picks!B20="","",Picks!B20) -> Doncaster | C20: =IF(Picks!C20="","",Picks!C20) -> 7 | D20: =IF(Picks!D20="","",Picks!D20) -> 1.909090909 | E20: =IF(Picks!E20="","",Picks!E20) -> √ | F20: =IF(Picks!F20="","",Picks!F20) -> -0.3916083916 | G20: =IF(Picks!G20="","",Picks!G20) -> 11.78181818
B21: =IF(Picks!B21="","",Picks!B21) -> Hull | C21: =IF(Picks!C21="","",Picks!C21) -> 7 | D21: =IF(Picks!D21="","",Picks!D21) -> 1.6 | E21: =IF(Picks!E21="","",Picks!E21) -> x | F21: =IF(Picks!F21="","",Picks!F21) ->  | G21: =IF(Picks!G21="","",Picks!G21) -> 
B22: =IF(Picks!B22="","",Picks!B22) -> Carlisle | C22: =IF(Picks!C22="","",Picks!C22) -> 7 | D22: =IF(Picks!D22="","",Picks!D22) -> 1.615384615 | E22: =IF(Picks!E22="","",Picks!E22) -> √ | F22: =IF(Picks!F22="","",Picks!F22) ->  | G22: =IF(Picks!G22="","",Picks!G22) -> 
A23: =IF(Picks!A23="","",Picks!A23) -> Barry Birchall | B23: =IF(Picks!B23="","",Picks!B23) -> Plymouth | C23: =IF(Picks!C23="","",Picks!C23) -> 7 | D23: =IF(Picks!D23="","",Picks!D23) -> 2.7 | E23: =IF(Picks!E23="","",Picks!E23) -> x | F23: =IF(Picks!F23="","",Picks!F23) -> -7 | G23: =IF(Picks!G23="","",Picks!G23) -> 68.516
B24: =IF(Picks!B24="","",Picks!B24) -> Cambridge | C24: =IF(Picks!C24="","",Picks!C24) -> 7 | D24: =IF(Picks!D24="","",Picks!D24) -> 3.7 | E24: =IF(Picks!E24="","",Picks!E24) -> x | F24: =IF(Picks!F24="","",Picks!F24) ->  | G24: =IF(Picks!G24="","",Picks!G24) -> 
B25: =IF(Picks!B25="","",Picks!B25) -> Swindon draw | C25: =IF(Picks!C25="","",Picks!C25) -> 7 | D25: =IF(Picks!D25="","",Picks!D25) -> 3.4 | E25: =IF(Picks!E25="","",Picks!E25) -> x | F25: =IF(Picks!F25="","",Picks!F25) ->  | G25: =IF(Picks!G25="","",Picks!G25) -> 
A26: =IF(Picks!A26="","",Picks!A26) -> Ben Rosser | B26: =IF(Picks!B26="","",Picks!B26) -> Man U | C26: =IF(Picks!C26="","",Picks!C26) -> 7 | D26: =IF(Picks!D26="","",Picks!D26) -> 4.333333333 | E26: =IF(Picks!E26="","",Picks!E26) -> x | F26: =IF(Picks!F26="","",Picks!F26) -> -7 | G26: =IF(Picks!G26="","",Picks!G26) -> 146.6666667
B27: =IF(Picks!B27="","",Picks!B27) -> Everton draw | C27: =IF(Picks!C27="","",Picks!C27) -> 7 | D27: =IF(Picks!D27="","",Picks!D27) -> 4 | E27: =IF(Picks!E27="","",Picks!E27) -> x | F27: =IF(Picks!F27="","",Picks!F27) ->  | G27: =IF(Picks!G27="","",Picks!G27) -> 
B28: =IF(Picks!B28="","",Picks!B28) -> Palace | C28: =IF(Picks!C28="","",Picks!C28) -> 1 | D28: =IF(Picks!D28="","",Picks!D28) -> 4.8 | E28: =IF(Picks!E28="","",Picks!E28) -> x | F28: =IF(Picks!F28="","",Picks!F28) ->  | G28: =IF(Picks!G28="","",Picks!G28) -> 
A29: =IF(Picks!A29="","",Picks!A29) -> Charlie Griffiths | B29: =IF(Picks!B29="","",Picks!B29) -> Scunthorpe | C29: =IF(Picks!C29="","",Picks!C29) -> 7 | D29: =IF(Picks!D29="","",Picks!D29) -> 2.3 | E29: =IF(Picks!E29="","",Picks!E29) -> x | F29: =IF(Picks!F29="","",Picks!F29) -> -7 | G29: =IF(Picks!G29="","",Picks!G29) -> 37.58125
B30: =IF(Picks!B30="","",Picks!B30) -> Accrington | C30: =IF(Picks!C30="","",Picks!C30) -> 7 | D30: =IF(Picks!D30="","",Picks!D30) -> 2.25 | E30: =IF(Picks!E30="","",Picks!E30) -> x | F30: =IF(Picks!F30="","",Picks!F30) ->  | G30: =IF(Picks!G30="","",Picks!G30) -> 
B31: =IF(Picks!B31="","",Picks!B31) -> Ipswich draw | C31: =IF(Picks!C31="","",Picks!C31) -> 7 | D31: =IF(Picks!D31="","",Picks!D31) -> 3.25 | E31: =IF(Picks!E31="","",Picks!E31) -> x | F31: =IF(Picks!F31="","",Picks!F31) ->  | G31: =IF(Picks!G31="","",Picks!G31) -> 
A32: =IF(Picks!A32="","",Picks!A32) -> Chris Bow | B32: =IF(Picks!B32="","",Picks!B32) -> Everton | C32: =IF(Picks!C32="","",Picks!C32) -> 7 | D32: =IF(Picks!D32="","",Picks!D32) -> 4.333333333 | E32: =IF(Picks!E32="","",Picks!E32) -> √ | F32: =IF(Picks!F32="","",Picks!F32) -> -2.666666667 | G32: =IF(Picks!G32="","",Picks!G32) -> 60.2
B33: =IF(Picks!B33="","",Picks!B33) -> Wolves | C33: =IF(Picks!C33="","",Picks!C33) -> 7 | D33: =IF(Picks!D33="","",Picks!D33) -> 2.3 | E33: =IF(Picks!E33="","",Picks!E33) -> x | F33: =IF(Picks!F33="","",Picks!F33) ->  | G33: =IF(Picks!G33="","",Picks!G33) -> 
B34: =IF(Picks!B34="","",Picks!B34) -> Derby | C34: =IF(Picks!C34="","",Picks!C34) -> 7 | D34: =IF(Picks!D34="","",Picks!D34) -> 2.875 | E34: =IF(Picks!E34="","",Picks!E34) -> x | F34: =IF(Picks!F34="","",Picks!F34) ->  | G34: =IF(Picks!G34="","",Picks!G34) -> 
A35: =IF(Picks!A35="","",Picks!A35) -> Chris Griffin | B35: =IF(Picks!B35="","",Picks!B35) -> Newcastle | C35: =IF(Picks!C35="","",Picks!C35) -> 7 | D35: =IF(Picks!D35="","",Picks!D35) -> 2.25 | E35: =IF(Picks!E35="","",Picks!E35) -> √ | F35: =IF(Picks!F35="","",Picks!F35) -> 1.75 | G35: =IF(Picks!G35="","",Picks!G35) -> 24.175
B36: =IF(Picks!B36="","",Picks!B36) -> Wolves | C36: =IF(Picks!C36="","",Picks!C36) -> 7 | D36: =IF(Picks!D36="","",Picks!D36) -> 2.3 | E36: =IF(Picks!E36="","",Picks!E36) -> x | F36: =IF(Picks!F36="","",Picks!F36) ->  | G36: =IF(Picks!G36="","",Picks!G36) -> 
B37: =IF(Picks!B37="","",Picks!B37) -> Leicester | C37: =IF(Picks!C37="","",Picks!C37) -> 1 | D37: =IF(Picks!D37="","",Picks!D37) -> 2 | E37: =IF(Picks!E37="","",Picks!E37) -> √ | F37: =IF(Picks!F37="","",Picks!F37) ->  | G37: =IF(Picks!G37="","",Picks!G37) -> 
A38: =IF(Picks!A38="","",Picks!A38) -> Chris Luck | B38: =IF(Picks!B38="","",Picks!B38) -> Newcastle | C38: =IF(Picks!C38="","",Picks!C38) -> 7 | D38: =IF(Picks!D38="","",Picks!D38) -> 2.25 | E38: =IF(Picks!E38="","",Picks!E38) -> √ | F38: =IF(Picks!F38="","",Picks!F38) -> -4.75 | G38: =IF(Picks!G38="","",Picks!G38) -> 29.5375
B39: =IF(Picks!B39="","",Picks!B39) -> Wolves | C39: =IF(Picks!C39="","",Picks!C39) -> 7 | D39: =IF(Picks!D39="","",Picks!D39) -> 2.3 | E39: =IF(Picks!E39="","",Picks!E39) -> x | F39: =IF(Picks!F39="","",Picks!F39) ->  | G39: =IF(Picks!G39="","",Picks!G39) -> 
B40: =IF(Picks!B40="","",Picks!B40) -> Blackburn | C40: =IF(Picks!C40="","",Picks!C40) -> 7 | D40: =IF(Picks!D40="","",Picks!D40) -> 2.5 | E40: =IF(Picks!E40="","",Picks!E40) -> x | F40: =IF(Picks!F40="","",Picks!F40) ->  | G40: =IF(Picks!G40="","",Picks!G40) -> 
A41: =IF(Picks!A41="","",Picks!A41) -> Chris Townsend | B41: =IF(Picks!B41="","",Picks!B41) -> Barnsley | C41: =IF(Picks!C41="","",Picks!C41) -> 7 | D41: =IF(Picks!D41="","",Picks!D41) -> 3.1 | E41: =IF(Picks!E41="","",Picks!E41) -> √ | F41: =IF(Picks!F41="","",Picks!F41) -> -3.9 | G41: =IF(Picks!G41="","",Picks!G41) -> 88.6575
B42: =IF(Picks!B42="","",Picks!B42) -> Ipswich | C42: =IF(Picks!C42="","",Picks!C42) -> 7 | D42: =IF(Picks!D42="","",Picks!D42) -> 3.1 | E42: =IF(Picks!E42="","",Picks!E42) -> x | F42: =IF(Picks!F42="","",Picks!F42) ->  | G42: =IF(Picks!G42="","",Picks!G42) -> 
B43: =IF(Picks!B43="","",Picks!B43) -> Northampton | C43: =IF(Picks!C43="","",Picks!C43) -> 7 | D43: =IF(Picks!D43="","",Picks!D43) -> 4.75 | E43: =IF(Picks!E43="","",Picks!E43) -> x | F43: =IF(Picks!F43="","",Picks!F43) ->  | G43: =IF(Picks!G43="","",Picks!G43) -> 
A44: =IF(Picks!A44="","",Picks!A44) -> Dan Baxter | B44: =IF(Picks!B44="","",Picks!B44) ->  | C44: =IF(Picks!C44="","",Picks!C44) ->  | D44: =IF(Picks!D44="","",Picks!D44) ->  | E44: =IF(Picks!E44="","",Picks!E44) ->  | F44: =IF(Picks!F44="","",Picks!F44) -> -10 | G44: =IF(Picks!G44="","",Picks!G44) -> 
B45: =IF(Picks!B45="","",Picks!B45) ->  | C45: =IF(Picks!C45="","",Picks!C45) ->  | D45: =IF(Picks!D45="","",Picks!D45) ->  | E45: =IF(Picks!E45="","",Picks!E45) ->  | F45: =IF(Picks!F45="","",Picks!F45) ->  | G45: =IF(Picks!G45="","",Picks!G45) -> 
B46: =IF(Picks!B46="","",Picks!B46) ->  | C46: =IF(Picks!C46="","",Picks!C46) ->  | D46: =IF(Picks!D46="","",Picks!D46) ->  | E46: =IF(Picks!E46="","",Picks!E46) ->  | F46: =IF(Picks!F46="","",Picks!F46) ->  | G46: =IF(Picks!G46="","",Picks!G46) -> 
A47: =IF(Picks!A47="","",Picks!A47) -> Dave Bell | B47: =IF(Picks!B47="","",Picks!B47) -> Sheff U | C47: =IF(Picks!C47="","",Picks!C47) -> 1 | D47: =IF(Picks!D47="","",Picks!D47) -> 5 | E47: =IF(Picks!E47="","",Picks!E47) -> x | F47: =IF(Picks!F47="","",Picks!F47) -> 1.333333333 | G47: =IF(Picks!G47="","",Picks!G47) -> 45.33333333
B48: =IF(Picks!B48="","",Picks!B48) -> Fulham | C48: =IF(Picks!C48="","",Picks!C48) -> 1 | D48: =IF(Picks!D48="","",Picks!D48) -> 9 | E48: =IF(Picks!E48="","",Picks!E48) -> x | F48: =IF(Picks!F48="","",Picks!F48) ->  | G48: =IF(Picks!G48="","",Picks!G48) -> 
B49: =IF(Picks!B49="","",Picks!B49) -> Everton | C49: =IF(Picks!C49="","",Picks!C49) -> 7 | D49: =IF(Picks!D49="","",Picks!D49) -> 4.333333333 | E49: =IF(Picks!E49="","",Picks!E49) -> √ | F49: =IF(Picks!F49="","",Picks!F49) ->  | G49: =IF(Picks!G49="","",Picks!G49) -> 
A50: =IF(Picks!A50="","",Picks!A50) -> Dave Orrell | B50: =IF(Picks!B50="","",Picks!B50) -> Crawley | C50: =IF(Picks!C50="","",Picks!C50) -> 7 | D50: =IF(Picks!D50="","",Picks!D50) -> 2.45 | E50: =IF(Picks!E50="","",Picks!E50) -> √ | F50: =IF(Picks!F50="","",Picks!F50) -> 27.7765 | G50: =IF(Picks!G50="","",Picks!G50) -> 27.7765
B51: =IF(Picks!B51="","",Picks!B51) -> Forest Green | C51: =IF(Picks!C51="","",Picks!C51) -> 7 | D51: =IF(Picks!D51="","",Picks!D51) -> 2.05 | E51: =IF(Picks!E51="","",Picks!E51) -> √ | F51: =IF(Picks!F51="","",Picks!F51) ->  | G51: =IF(Picks!G51="","",Picks!G51) -> 
B52: =IF(Picks!B52="","",Picks!B52) -> Oldham | C52: =IF(Picks!C52="","",Picks!C52) -> 7 | D52: =IF(Picks!D52="","",Picks!D52) -> 2.4 | E52: =IF(Picks!E52="","",Picks!E52) -> √ | F52: =IF(Picks!F52="","",Picks!F52) ->  | G52: =IF(Picks!G52="","",Picks!G52) -> 
A53: =IF(Picks!A53="","",Picks!A53) -> David Dunn | B53: =IF(Picks!B53="","",Picks!B53) -> Wolves Draw | C53: =IF(Picks!C53="","",Picks!C53) -> 7 | D53: =IF(Picks!D53="","",Picks!D53) -> 3.3 | E53: =IF(Picks!E53="","",Picks!E53) -> x | F53: =IF(Picks!F53="","",Picks!F53) -> 1.45 | G53: =IF(Picks!G53="","",Picks!G53) -> 32.635
B54: =IF(Picks!B54="","",Picks!B54) -> Leicester | C54: =IF(Picks!C54="","",Picks!C54) -> 1 | D54: =IF(Picks!D54="","",Picks!D54) -> 2 | E54: =IF(Picks!E54="","",Picks!E54) -> √ | F54: =IF(Picks!F54="","",Picks!F54) ->  | G54: =IF(Picks!G54="","",Picks!G54) -> 
B55: =IF(Picks!B55="","",Picks!B55) -> Middlesbro | C55: =IF(Picks!C55="","",Picks!C55) -> 7 | D55: =IF(Picks!D55="","",Picks!D55) -> 2.15 | E55: =IF(Picks!E55="","",Picks!E55) -> √ | F55: =IF(Picks!F55="","",Picks!F55) ->  | G55: =IF(Picks!G55="","",Picks!G55) -> 
A56: =IF(Picks!A56="","",Picks!A56) -> Gareth Fallows | B56: =IF(Picks!B56="","",Picks!B56) ->  | C56: =IF(Picks!C56="","",Picks!C56) ->  | D56: =IF(Picks!D56="","",Picks!D56) ->  | E56: =IF(Picks!E56="","",Picks!E56) ->  | F56: =IF(Picks!F56="","",Picks!F56) -> -10 | G56: =IF(Picks!G56="","",Picks!G56) -> 
B57: =IF(Picks!B57="","",Picks!B57) ->  | C57: =IF(Picks!C57="","",Picks!C57) ->  | D57: =IF(Picks!D57="","",Picks!D57) ->  | E57: =IF(Picks!E57="","",Picks!E57) ->  | F57: =IF(Picks!F57="","",Picks!F57) ->  | G57: =IF(Picks!G57="","",Picks!G57) -> 
B58: =IF(Picks!B58="","",Picks!B58) ->  | C58: =IF(Picks!C58="","",Picks!C58) ->  | D58: =IF(Picks!D58="","",Picks!D58) ->  | E58: =IF(Picks!E58="","",Picks!E58) ->  | F58: =IF(Picks!F58="","",Picks!F58) ->  | G58: =IF(Picks!G58="","",Picks!G58) -> 
A59: =IF(Picks!A59="","",Picks!A59) -> Gareth McGuire | B59: =IF(Picks!B59="","",Picks!B59) -> Everton draw | C59: =IF(Picks!C59="","",Picks!C59) -> 7 | D59: =IF(Picks!D59="","",Picks!D59) -> 4 | E59: =IF(Picks!E59="","",Picks!E59) -> x | F59: =IF(Picks!F59="","",Picks!F59) -> 2.98 | G59: =IF(Picks!G59="","",Picks!G59) -> 46.9
B60: =IF(Picks!B60="","",Picks!B60) -> Watford | C60: =IF(Picks!C60="","",Picks!C60) -> 7 | D60: =IF(Picks!D60="","",Picks!D60) -> 2.05 | E60: =IF(Picks!E60="","",Picks!E60) -> √ | F60: =IF(Picks!F60="","",Picks!F60) ->  | G60: =IF(Picks!G60="","",Picks!G60) -> 
B61: =IF(Picks!B61="","",Picks!B61) -> Sunderland | C61: =IF(Picks!C61="","",Picks!C61) -> 7 | D61: =IF(Picks!D61="","",Picks!D61) -> 2.6 | E61: =IF(Picks!E61="","",Picks!E61) -> √ | F61: =IF(Picks!F61="","",Picks!F61) ->  | G61: =IF(Picks!G61="","",Picks!G61) -> 
A62: =IF(Picks!A62="","",Picks!A62) -> Gareth Powell | B62: =IF(Picks!B62="","",Picks!B62) -> Chelsea | C62: =IF(Picks!C62="","",Picks!C62) -> 7 | D62: =IF(Picks!D62="","",Picks!D62) -> 1.75 | E62: =IF(Picks!E62="","",Picks!E62) -> x | F62: =IF(Picks!F62="","",Picks!F62) -> -4.3 | G62: =IF(Picks!G62="","",Picks!G62) -> 28.884375
B63: =IF(Picks!B63="","",Picks!B63) -> Salford | C63: =IF(Picks!C63="","",Picks!C63) -> 7 | D63: =IF(Picks!D63="","",Picks!D63) -> 2.625 | E63: =IF(Picks!E63="","",Picks!E63) -> x | F63: =IF(Picks!F63="","",Picks!F63) ->  | G63: =IF(Picks!G63="","",Picks!G63) -> 
B64: =IF(Picks!B64="","",Picks!B64) -> Reading | C64: =IF(Picks!C64="","",Picks!C64) -> 7 | D64: =IF(Picks!D64="","",Picks!D64) -> 2.7 | E64: =IF(Picks!E64="","",Picks!E64) -> √ | F64: =IF(Picks!F64="","",Picks!F64) ->  | G64: =IF(Picks!G64="","",Picks!G64) -> 
A65: =IF(Picks!A65="","",Picks!A65) -> Gerard Ventom | B65: =IF(Picks!B65="","",Picks!B65) -> Wigan | C65: =IF(Picks!C65="","",Picks!C65) -> 7 | D65: =IF(Picks!D65="","",Picks!D65) -> 3.2 | E65: =IF(Picks!E65="","",Picks!E65) -> √ | F65: =IF(Picks!F65="","",Picks!F65) -> 46.6 | G65: =IF(Picks!G65="","",Picks!G65) -> 46.6
B66: =IF(Picks!B66="","",Picks!B66) -> Walsall | C66: =IF(Picks!C66="","",Picks!C66) -> 7 | D66: =IF(Picks!D66="","",Picks!D66) -> 2.25 | E66: =IF(Picks!E66="","",Picks!E66) -> √ | F66: =IF(Picks!F66="","",Picks!F66) ->  | G66: =IF(Picks!G66="","",Picks!G66) -> 
B67: =IF(Picks!B67="","",Picks!B67) -> Orient | C67: =IF(Picks!C67="","",Picks!C67) -> 7 | D67: =IF(Picks!D67="","",Picks!D67) -> 3 | E67: =IF(Picks!E67="","",Picks!E67) -> √ | F67: =IF(Picks!F67="","",Picks!F67) ->  | G67: =IF(Picks!G67="","",Picks!G67) -> 
A68: =IF(Picks!A68="","",Picks!A68) -> Graham Miller | B68: =IF(Picks!B68="","",Picks!B68) -> Newcastle | C68: =IF(Picks!C68="","",Picks!C68) -> 7 | D68: =IF(Picks!D68="","",Picks!D68) -> 2.25 | E68: =IF(Picks!E68="","",Picks!E68) -> √ | F68: =IF(Picks!F68="","",Picks!F68) -> 18.59090909 | G68: =IF(Picks!G68="","",Picks!G68) -> 18.59090909
B69: =IF(Picks!B69="","",Picks!B69) -> Leicester | C69: =IF(Picks!C69="","",Picks!C69) -> 1 | D69: =IF(Picks!D69="","",Picks!D69) -> 2 | E69: =IF(Picks!E69="","",Picks!E69) -> √ | F69: =IF(Picks!F69="","",Picks!F69) ->  | G69: =IF(Picks!G69="","",Picks!G69) -> 
B70: =IF(Picks!B70="","",Picks!B70) -> Southampton | C70: =IF(Picks!C70="","",Picks!C70) -> 1 | D70: =IF(Picks!D70="","",Picks!D70) -> 1.727272727 | E70: =IF(Picks!E70="","",Picks!E70) -> √ | F70: =IF(Picks!F70="","",Picks!F70) ->  | G70: =IF(Picks!G70="","",Picks!G70) -> 
A71: =IF(Picks!A71="","",Picks!A71) -> Howard Bradley | B71: =IF(Picks!B71="","",Picks!B71) -> Blackpool | C71: =IF(Picks!C71="","",Picks!C71) -> 7 | D71: =IF(Picks!D71="","",Picks!D71) -> 2.2 | E71: =IF(Picks!E71="","",Picks!E71) -> x | F71: =IF(Picks!F71="","",Picks!F71) -> 0.5818181818 | G71: =IF(Picks!G71="","",Picks!G71) -> 19.46181818
B72: =IF(Picks!B72="","",Picks!B72) -> Charlton | C72: =IF(Picks!C72="","",Picks!C72) -> 7 | D72: =IF(Picks!D72="","",Picks!D72) -> 1.95 | E72: =IF(Picks!E72="","",Picks!E72) -> √ | F72: =IF(Picks!F72="","",Picks!F72) ->  | G72: =IF(Picks!G72="","",Picks!G72) -> 
B73: =IF(Picks!B73="","",Picks!B73) -> Doncaster | C73: =IF(Picks!C73="","",Picks!C73) -> 7 | D73: =IF(Picks!D73="","",Picks!D73) -> 1.909090909 | E73: =IF(Picks!E73="","",Picks!E73) -> √ | F73: =IF(Picks!F73="","",Picks!F73) ->  | G73: =IF(Picks!G73="","",Picks!G73) -> 
A74: =IF(Picks!A74="","",Picks!A74) -> Ian Davies | B74: =IF(Picks!B74="","",Picks!B74) -> Cardiff | C74: =IF(Picks!C74="","",Picks!C74) -> 7 | D74: =IF(Picks!D74="","",Picks!D74) -> 2.45 | E74: =IF(Picks!E74="","",Picks!E74) -> x | F74: =IF(Picks!F74="","",Picks!F74) -> -7 | G74: =IF(Picks!G74="","",Picks!G74) -> 56.239
B75: =IF(Picks!B75="","",Picks!B75) -> Bournemouth draw | C75: =IF(Picks!C75="","",Picks!C75) -> 7 | D75: =IF(Picks!D75="","",Picks!D75) -> 3.9 | E75: =IF(Picks!E75="","",Picks!E75) -> x | F75: =IF(Picks!F75="","",Picks!F75) ->  | G75: =IF(Picks!G75="","",Picks!G75) -> 
B76: =IF(Picks!B76="","",Picks!B76) -> Lincoln | C76: =IF(Picks!C76="","",Picks!C76) -> 7 | D76: =IF(Picks!D76="","",Picks!D76) -> 2.8 | E76: =IF(Picks!E76="","",Picks!E76) -> x | F76: =IF(Picks!F76="","",Picks!F76) ->  | G76: =IF(Picks!G76="","",Picks!G76) -> 
A77: =IF(Picks!A77="","",Picks!A77) -> Jack Walsh | B77: =IF(Picks!B77="","",Picks!B77) -> Man U | C77: =IF(Picks!C77="","",Picks!C77) -> 7 | D77: =IF(Picks!D77="","",Picks!D77) -> 4.333333333 | E77: =IF(Picks!E77="","",Picks!E77) -> x | F77: =IF(Picks!F77="","",Picks!F77) -> -5.35 | G77: =IF(Picks!G77="","",Picks!G77) -> 38.64
B78: =IF(Picks!B78="","",Picks!B78) -> Wolves | C78: =IF(Picks!C78="","",Picks!C78) -> 7 | D78: =IF(Picks!D78="","",Picks!D78) -> 2.3 | E78: =IF(Picks!E78="","",Picks!E78) -> x | F78: =IF(Picks!F78="","",Picks!F78) ->  | G78: =IF(Picks!G78="","",Picks!G78) -> 
B79: =IF(Picks!B79="","",Picks!B79) -> Bournemouth | C79: =IF(Picks!C79="","",Picks!C79) -> 7 | D79: =IF(Picks!D79="","",Picks!D79) -> 1.65 | E79: =IF(Picks!E79="","",Picks!E79) -> √ | F79: =IF(Picks!F79="","",Picks!F79) ->  | G79: =IF(Picks!G79="","",Picks!G79) -> 
A80: =IF(Picks!A80="","",Picks!A80) -> James Bell | B80: =IF(Picks!B80="","",Picks!B80) -> Tranmere | C80: =IF(Picks!C80="","",Picks!C80) -> 7 | D80: =IF(Picks!D80="","",Picks!D80) -> 3.8 | E80: =IF(Picks!E80="","",Picks!E80) -> x | F80: =IF(Picks!F80="","",Picks!F80) -> -7 | G80: =IF(Picks!G80="","",Picks!G80) -> 73.144
B81: =IF(Picks!B81="","",Picks!B81) -> Cardiff | C81: =IF(Picks!C81="","",Picks!C81) -> 7 | D81: =IF(Picks!D81="","",Picks!D81) -> 2.45 | E81: =IF(Picks!E81="","",Picks!E81) -> x | F81: =IF(Picks!F81="","",Picks!F81) ->  | G81: =IF(Picks!G81="","",Picks!G81) -> 
B82: =IF(Picks!B82="","",Picks!B82) -> Gillingham | C82: =IF(Picks!C82="","",Picks!C82) -> 7 | D82: =IF(Picks!D82="","",Picks!D82) -> 3.9 | E82: =IF(Picks!E82="","",Picks!E82) -> x | F82: =IF(Picks!F82="","",Picks!F82) ->  | G82: =IF(Picks!G82="","",Picks!G82) -> 
A83: =IF(Picks!A83="","",Picks!A83) -> Joel Bent | B83: =IF(Picks!B83="","",Picks!B83) -> Leeds draw | C83: =IF(Picks!C83="","",Picks!C83) -> 6 | D83: =IF(Picks!D83="","",Picks!D83) -> 3.7 | E83: =IF(Picks!E83="","",Picks!E83) -> x | F83: =IF(Picks!F83="","",Picks!F83) -> -7 | G83: =IF(Picks!G83="","",Picks!G83) -> 140.05
B84: =IF(Picks!B84="","",Picks!B84) -> Bristol R draw | C84: =IF(Picks!C84="","",Picks!C84) -> 7 | D84: =IF(Picks!D84="","",Picks!D84) -> 3.5 | E84: =IF(Picks!E84="","",Picks!E84) -> x | F84: =IF(Picks!F84="","",Picks!F84) ->  | G84: =IF(Picks!G84="","",Picks!G84) -> 
B85: =IF(Picks!B85="","",Picks!B85) -> Rochdale | C85: =IF(Picks!C85="","",Picks!C85) -> 7 | D85: =IF(Picks!D85="","",Picks!D85) -> 6 | E85: =IF(Picks!E85="","",Picks!E85) -> x | F85: =IF(Picks!F85="","",Picks!F85) ->  | G85: =IF(Picks!G85="","",Picks!G85) -> 
A86: =IF(Picks!A86="","",Picks!A86) -> John Evans | B86: =IF(Picks!B86="","",Picks!B86) -> Derby | C86: =IF(Picks!C86="","",Picks!C86) -> 7 | D86: =IF(Picks!D86="","",Picks!D86) -> 2.875 | E86: =IF(Picks!E86="","",Picks!E86) -> x | F86: =IF(Picks!F86="","",Picks!F86) -> -3.8 | G86: =IF(Picks!G86="","",Picks!G86) -> 50.996875
B87: =IF(Picks!B87="","",Picks!B87) -> Wigan | C87: =IF(Picks!C87="","",Picks!C87) -> 7 | D87: =IF(Picks!D87="","",Picks!D87) -> 3.2 | E87: =IF(Picks!E87="","",Picks!E87) -> √ | F87: =IF(Picks!F87="","",Picks!F87) ->  | G87: =IF(Picks!G87="","",Picks!G87) -> 
B88: =IF(Picks!B88="","",Picks!B88) -> Salford | C88: =IF(Picks!C88="","",Picks!C88) -> 7 | D88: =IF(Picks!D88="","",Picks!D88) -> 2.625 | E88: =IF(Picks!E88="","",Picks!E88) -> x | F88: =IF(Picks!F88="","",Picks!F88) ->  | G88: =IF(Picks!G88="","",Picks!G88) -> 
A89: =IF(Picks!A89="","",Picks!A89) -> John Ronan | B89: =IF(Picks!B89="","",Picks!B89) -> Blackpool | C89: =IF(Picks!C89="","",Picks!C89) -> 7 | D89: =IF(Picks!D89="","",Picks!D89) -> 2.2 | E89: =IF(Picks!E89="","",Picks!E89) -> x | F89: =IF(Picks!F89="","",Picks!F89) -> 0 | G89: =IF(Picks!G89="","",Picks!G89) -> 17.6
B90: =IF(Picks!B90="","",Picks!B90) -> Crewe | C90: =IF(Picks!C90="","",Picks!C90) -> 7 | D90: =IF(Picks!D90="","",Picks!D90) -> 1.75 | E90: =IF(Picks!E90="","",Picks!E90) -> √ | F90: =IF(Picks!F90="","",Picks!F90) ->  | G90: =IF(Picks!G90="","",Picks!G90) -> 
B91: =IF(Picks!B91="","",Picks!B91) -> Exeter | C91: =IF(Picks!C91="","",Picks!C91) -> 7 | D91: =IF(Picks!D91="","",Picks!D91) -> 1.909090909 | E91: =IF(Picks!E91="","",Picks!E91) -> √ | F91: =IF(Picks!F91="","",Picks!F91) ->  | G91: =IF(Picks!G91="","",Picks!G91) -> 
A92: =IF(Picks!A92="","",Picks!A92) -> Kei Lok Ma | B92: =IF(Picks!B92="","",Picks!B92) -> Wolves draw | C92: =IF(Picks!C92="","",Picks!C92) -> 7 | D92: =IF(Picks!D92="","",Picks!D92) -> 3.3 | E92: =IF(Picks!E92="","",Picks!E92) -> x | F92: =IF(Picks!F92="","",Picks!F92) -> 4.1875 | G92: =IF(Picks!G92="","",Picks!G92) -> 44.40625
B93: =IF(Picks!B93="","",Picks!B93) -> Newcastle | C93: =IF(Picks!C93="","",Picks!C93) -> 7 | D93: =IF(Picks!D93="","",Picks!D93) -> 2.25 | E93: =IF(Picks!E93="","",Picks!E93) -> √ | F93: =IF(Picks!F93="","",Picks!F93) ->  | G93: =IF(Picks!G93="","",Picks!G93) -> 
B94: =IF(Picks!B94="","",Picks!B94) -> Norwich | C94: =IF(Picks!C94="","",Picks!C94) -> 7 | D94: =IF(Picks!D94="","",Picks!D94) -> 2.75 | E94: =IF(Picks!E94="","",Picks!E94) -> √ | F94: =IF(Picks!F94="","",Picks!F94) ->  | G94: =IF(Picks!G94="","",Picks!G94) -> 
A95: =IF(Picks!A95="","",Picks!A95) -> Kevin Carter | B95: =IF(Picks!B95="","",Picks!B95) -> Southampton | C95: =IF(Picks!C95="","",Picks!C95) -> 1 | D95: =IF(Picks!D95="","",Picks!D95) -> 1.727272727 | E95: =IF(Picks!E95="","",Picks!E95) -> √ | F95: =IF(Picks!F95="","",Picks!F95) -> 0.1818181818 | G95: =IF(Picks!G95="","",Picks!G95) -> 14.31404959
B96: =IF(Picks!B96="","",Picks!B96) -> Spurs | C96: =IF(Picks!C96="","",Picks!C96) -> 1 | D96: =IF(Picks!D96="","",Picks!D96) -> 1.727272727 | E96: =IF(Picks!E96="","",Picks!E96) -> x | F96: =IF(Picks!F96="","",Picks!F96) ->  | G96: =IF(Picks!G96="","",Picks!G96) -> 
B97: =IF(Picks!B97="","",Picks!B97) -> Leicester | C97: =IF(Picks!C97="","",Picks!C97) -> 1 | D97: =IF(Picks!D97="","",Picks!D97) -> 2 | E97: =IF(Picks!E97="","",Picks!E97) -> √ | F97: =IF(Picks!F97="","",Picks!F97) ->  | G97: =IF(Picks!G97="","",Picks!G97) -> 
A98: =IF(Picks!A98="","",Picks!A98) -> Lennie Bow | B98: =IF(Picks!B98="","",Picks!B98) -> Bournemouth | C98: =IF(Picks!C98="","",Picks!C98) -> 7 | D98: =IF(Picks!D98="","",Picks!D98) -> 1.65 | E98: =IF(Picks!E98="","",Picks!E98) -> √ | F98: =IF(Picks!F98="","",Picks!F98) -> -1.069230769 | G98: =IF(Picks!G98="","",Picks!G98) -> 10.02
B99: =IF(Picks!B99="","",Picks!B99) -> Hull | C99: =IF(Picks!C99="","",Picks!C99) -> 7 | D99: =IF(Picks!D99="","",Picks!D99) -> 1.6 | E99: =IF(Picks!E99="","",Picks!E99) -> x | F99: =IF(Picks!F99="","",Picks!F99) ->  | G99: =IF(Picks!G99="","",Picks!G99) -> 
B100: =IF(Picks!B100="","",Picks!B100) -> Carlisle | C100: =IF(Picks!C100="","",Picks!C100) -> 7 | D100: =IF(Picks!D100="","",Picks!D100) -> 1.615384615 | E100: =IF(Picks!E100="","",Picks!E100) -> √ | F100: =IF(Picks!F100="","",Picks!F100) ->  | G100: =IF(Picks!G100="","",Picks!G100) -> 
A101: =IF(Picks!A101="","",Picks!A101) -> Lewis Buckley | B101: =IF(Picks!B101="","",Picks!B101) ->  | C101: =IF(Picks!C101="","",Picks!C101) ->  | D101: =IF(Picks!D101="","",Picks!D101) ->  | E101: =IF(Picks!E101="","",Picks!E101) ->  | F101: =IF(Picks!F101="","",Picks!F101) -> -10 | G101: =IF(Picks!G101="","",Picks!G101) -> 
B102: =IF(Picks!B102="","",Picks!B102) ->  | C102: =IF(Picks!C102="","",Picks!C102) ->  | D102: =IF(Picks!D102="","",Picks!D102) ->  | E102: =IF(Picks!E102="","",Picks!E102) ->  | F102: =IF(Picks!F102="","",Picks!F102) ->  | G102: =IF(Picks!G102="","",Picks!G102) -> 
B103: =IF(Picks!B103="","",Picks!B103) ->  | C103: =IF(Picks!C103="","",Picks!C103) ->  | D103: =IF(Picks!D103="","",Picks!D103) ->  | E103: =IF(Picks!E103="","",Picks!E103) ->  | F103: =IF(Picks!F103="","",Picks!F103) ->  | G103: =IF(Picks!G103="","",Picks!G103) -> 
A104: =IF(Picks!A104="","",Picks!A104) -> Liam Wah | B104: =IF(Picks!B104="","",Picks!B104) -> Man U draw | C104: =IF(Picks!C104="","",Picks!C104) -> 7 | D104: =IF(Picks!D104="","",Picks!D104) -> 4 | E104: =IF(Picks!E104="","",Picks!E104) -> √ | F104: =IF(Picks!F104="","",Picks!F104) -> 8.25 | G104: =IF(Picks!G104="","",Picks!G104) -> 45.625
B105: =IF(Picks!B105="","",Picks!B105) -> Newcastle | C105: =IF(Picks!C105="","",Picks!C105) -> 7 | D105: =IF(Picks!D105="","",Picks!D105) -> 2.25 | E105: =IF(Picks!E105="","",Picks!E105) -> √ | F105: =IF(Picks!F105="","",Picks!F105) ->  | G105: =IF(Picks!G105="","",Picks!G105) -> 
B106: =IF(Picks!B106="","",Picks!B106) -> Wolves | C106: =IF(Picks!C106="","",Picks!C106) -> 7 | D106: =IF(Picks!D106="","",Picks!D106) -> 2.3 | E106: =IF(Picks!E106="","",Picks!E106) -> x | F106: =IF(Picks!F106="","",Picks!F106) ->  | G106: =IF(Picks!G106="","",Picks!G106) -> 
A107: =IF(Picks!A107="","",Picks!A107) -> Mal Stott | B107: =IF(Picks!B107="","",Picks!B107) -> Blackpool | C107: =IF(Picks!C107="","",Picks!C107) -> 7 | D107: =IF(Picks!D107="","",Picks!D107) -> 2.2 | E107: =IF(Picks!E107="","",Picks!E107) -> x | F107: =IF(Picks!F107="","",Picks!F107) -> -7 | G107: =IF(Picks!G107="","",Picks!G107) -> 45.76
B108: =IF(Picks!B108="","",Picks!B108) -> Forest | C108: =IF(Picks!C108="","",Picks!C108) -> 7 | D108: =IF(Picks!D108="","",Picks!D108) -> 3.8 | E108: =IF(Picks!E108="","",Picks!E108) -> x | F108: =IF(Picks!F108="","",Picks!F108) ->  | G108: =IF(Picks!G108="","",Picks!G108) -> 
B109: =IF(Picks!B109="","",Picks!B109) -> Blackburn | C109: =IF(Picks!C109="","",Picks!C109) -> 7 | D109: =IF(Picks!D109="","",Picks!D109) -> 2.5 | E109: =IF(Picks!E109="","",Picks!E109) -> x | F109: =IF(Picks!F109="","",Picks!F109) ->  | G109: =IF(Picks!G109="","",Picks!G109) -> 
A110: =IF(Picks!A110="","",Picks!A110) -> Mark Bunn | B110: =IF(Picks!B110="","",Picks!B110) -> Stoke | C110: =IF(Picks!C110="","",Picks!C110) -> 7 | D110: =IF(Picks!D110="","",Picks!D110) -> 2.6 | E110: =IF(Picks!E110="","",Picks!E110) -> x | F110: =IF(Picks!F110="","",Picks!F110) -> -4.3 | G110: =IF(Picks!G110="","",Picks!G110) -> 38.62
B111: =IF(Picks!B111="","",Picks!B111) -> Reading | C111: =IF(Picks!C111="","",Picks!C111) -> 7 | D111: =IF(Picks!D111="","",Picks!D111) -> 2.7 | E111: =IF(Picks!E111="","",Picks!E111) -> √ | F111: =IF(Picks!F111="","",Picks!F111) ->  | G111: =IF(Picks!G111="","",Picks!G111) -> 
B112: =IF(Picks!B112="","",Picks!B112) -> Bristol C | C112: =IF(Picks!C112="","",Picks!C112) -> 7 | D112: =IF(Picks!D112="","",Picks!D112) -> 2.5 | E112: =IF(Picks!E112="","",Picks!E112) -> x | F112: =IF(Picks!F112="","",Picks!F112) ->  | G112: =IF(Picks!G112="","",Picks!G112) -> 
A113: =IF(Picks!A113="","",Picks!A113) -> Mark Saunders | B113: =IF(Picks!B113="","",Picks!B113) -> Man U draw | C113: =IF(Picks!C113="","",Picks!C113) -> 7 | D113: =IF(Picks!D113="","",Picks!D113) -> 4 | E113: =IF(Picks!E113="","",Picks!E113) -> √ | F113: =IF(Picks!F113="","",Picks!F113) -> 4.666666667 | G113: =IF(Picks!G113="","",Picks!G113) -> 46.46666667
B114: =IF(Picks!B114="","",Picks!B114) -> Wolves draw | C114: =IF(Picks!C114="","",Picks!C114) -> 7 | D114: =IF(Picks!D114="","",Picks!D114) -> 3.3 | E114: =IF(Picks!E114="","",Picks!E114) -> x | F114: =IF(Picks!F114="","",Picks!F114) ->  | G114: =IF(Picks!G114="","",Picks!G114) -> 
B115: =IF(Picks!B115="","",Picks!B115) -> Peterborough | C115: =IF(Picks!C115="","",Picks!C115) -> 7 | D115: =IF(Picks!D115="","",Picks!D115) -> 1.533333333 | E115: =IF(Picks!E115="","",Picks!E115) -> √ | F115: =IF(Picks!F115="","",Picks!F115) ->  | G115: =IF(Picks!G115="","",Picks!G115) -> 
A116: =IF(Picks!A116="","",Picks!A116) -> Martin Molyneux | B116: =IF(Picks!B116="","",Picks!B116) -> Man U Draw | C116: =IF(Picks!C116="","",Picks!C116) -> 7 | D116: =IF(Picks!D116="","",Picks!D116) -> 4 | E116: =IF(Picks!E116="","",Picks!E116) -> √ | F116: =IF(Picks!F116="","",Picks!F116) -> 5.636363636 | G116: =IF(Picks!G116="","",Picks!G116) -> 29.19008264
B117: =IF(Picks!B117="","",Picks!B117) -> Spurs | C117: =IF(Picks!C117="","",Picks!C117) -> 1 | D117: =IF(Picks!D117="","",Picks!D117) -> 1.727272727 | E117: =IF(Picks!E117="","",Picks!E117) -> x | F117: =IF(Picks!F117="","",Picks!F117) ->  | G117: =IF(Picks!G117="","",Picks!G117) -> 
B118: =IF(Picks!B118="","",Picks!B118) -> Southampton | C118: =IF(Picks!C118="","",Picks!C118) -> 1 | D118: =IF(Picks!D118="","",Picks!D118) -> 1.727272727 | E118: =IF(Picks!E118="","",Picks!E118) -> √ | F118: =IF(Picks!F118="","",Picks!F118) ->  | G118: =IF(Picks!G118="","",Picks!G118) -> 
A119: =IF(Picks!A119="","",Picks!A119) -> Martin Tarbuck | B119: =IF(Picks!B119="","",Picks!B119) -> Wolves | C119: =IF(Picks!C119="","",Picks!C119) -> 7 | D119: =IF(Picks!D119="","",Picks!D119) -> 2.3 | E119: =IF(Picks!E119="","",Picks!E119) -> x | F119: =IF(Picks!F119="","",Picks!F119) -> -5.35 | G119: =IF(Picks!G119="","",Picks!G119) -> 25.231
B120: =IF(Picks!B120="","",Picks!B120) -> Bournemouth | C120: =IF(Picks!C120="","",Picks!C120) -> 7 | D120: =IF(Picks!D120="","",Picks!D120) -> 1.65 | E120: =IF(Picks!E120="","",Picks!E120) -> √ | F120: =IF(Picks!F120="","",Picks!F120) ->  | G120: =IF(Picks!G120="","",Picks!G120) -> 
B121: =IF(Picks!B121="","",Picks!B121) -> Lincoln | C121: =IF(Picks!C121="","",Picks!C121) -> 7 | D121: =IF(Picks!D121="","",Picks!D121) -> 2.8 | E121: =IF(Picks!E121="","",Picks!E121) -> x | F121: =IF(Picks!F121="","",Picks!F121) ->  | G121: =IF(Picks!G121="","",Picks!G121) -> 
A122: =IF(Picks!A122="","",Picks!A122) -> Mike Penk | B122: =IF(Picks!B122="","",Picks!B122) -> West Brom | C122: =IF(Picks!C122="","",Picks!C122) -> 7 | D122: =IF(Picks!D122="","",Picks!D122) -> 3.4 | E122: =IF(Picks!E122="","",Picks!E122) -> x | F122: =IF(Picks!F122="","",Picks!F122) -> -4.85 | G122: =IF(Picks!G122="","",Picks!G122) -> 43.282
B123: =IF(Picks!B123="","",Picks!B123) -> Plymouth | C123: =IF(Picks!C123="","",Picks!C123) -> 7 | D123: =IF(Picks!D123="","",Picks!D123) -> 2.7 | E123: =IF(Picks!E123="","",Picks!E123) -> x | F123: =IF(Picks!F123="","",Picks!F123) ->  | G123: =IF(Picks!G123="","",Picks!G123) -> 
B124: =IF(Picks!B124="","",Picks!B124) -> Fleetwood | C124: =IF(Picks!C124="","",Picks!C124) -> 7 | D124: =IF(Picks!D124="","",Picks!D124) -> 2.15 | E124: =IF(Picks!E124="","",Picks!E124) -> √ | F124: =IF(Picks!F124="","",Picks!F124) ->  | G124: =IF(Picks!G124="","",Picks!G124) -> 
A125: =IF(Picks!A125="","",Picks!A125) -> Mo Sudell | B125: =IF(Picks!B125="","",Picks!B125) -> Carlisle | C125: =IF(Picks!C125="","",Picks!C125) -> 7 | D125: =IF(Picks!D125="","",Picks!D125) -> 1.615384615 | E125: =IF(Picks!E125="","",Picks!E125) -> √ | F125: =IF(Picks!F125="","",Picks!F125) -> -5.384615385 | G125: =IF(Picks!G125="","",Picks!G125) -> 17.84
B126: =IF(Picks!B126="","",Picks!B126) -> Hull | C126: =IF(Picks!C126="","",Picks!C126) -> 7 | D126: =IF(Picks!D126="","",Picks!D126) -> 1.6 | E126: =IF(Picks!E126="","",Picks!E126) -> x | F126: =IF(Picks!F126="","",Picks!F126) ->  | G126: =IF(Picks!G126="","",Picks!G126) -> 
B127: =IF(Picks!B127="","",Picks!B127) -> Lincoln | C127: =IF(Picks!C127="","",Picks!C127) -> 7 | D127: =IF(Picks!D127="","",Picks!D127) -> 2.8 | E127: =IF(Picks!E127="","",Picks!E127) -> x | F127: =IF(Picks!F127="","",Picks!F127) ->  | G127: =IF(Picks!G127="","",Picks!G127) -> 
A128: =IF(Picks!A128="","",Picks!A128) -> Nick Blocksidge | B128: =IF(Picks!B128="","",Picks!B128) -> Arsenal | C128: =IF(Picks!C128="","",Picks!C128) -> 1 | D128: =IF(Picks!D128="","",Picks!D128) -> 1.55 | E128: =IF(Picks!E128="","",Picks!E128) -> x | F128: =IF(Picks!F128="","",Picks!F128) -> -5 | G128: =IF(Picks!G128="","",Picks!G128) -> 12.86363636
B129: =IF(Picks!B129="","",Picks!B129) -> Leicester | C129: =IF(Picks!C129="","",Picks!C129) -> 1 | D129: =IF(Picks!D129="","",Picks!D129) -> 2 | E129: =IF(Picks!E129="","",Picks!E129) -> √ | F129: =IF(Picks!F129="","",Picks!F129) ->  | G129: =IF(Picks!G129="","",Picks!G129) -> 
B130: =IF(Picks!B130="","",Picks!B130) -> Spurs | C130: =IF(Picks!C130="","",Picks!C130) -> 1 | D130: =IF(Picks!D130="","",Picks!D130) -> 1.727272727 | E130: =IF(Picks!E130="","",Picks!E130) -> x | F130: =IF(Picks!F130="","",Picks!F130) ->  | G130: =IF(Picks!G130="","",Picks!G130) -> 
A131: =IF(Picks!A131="","",Picks!A131) -> Nigel Heyes | B131: =IF(Picks!B131="","",Picks!B131) -> Everton draw | C131: =IF(Picks!C131="","",Picks!C131) -> 7 | D131: =IF(Picks!D131="","",Picks!D131) -> 4 | E131: =IF(Picks!E131="","",Picks!E131) -> x | F131: =IF(Picks!F131="","",Picks!F131) -> -3.8 | G131: =IF(Picks!G131="","",Picks!G131) -> 86.5
B132: =IF(Picks!B132="","",Picks!B132) -> Blackburn draw | C132: =IF(Picks!C132="","",Picks!C132) -> 7 | D132: =IF(Picks!D132="","",Picks!D132) -> 3.5 | E132: =IF(Picks!E132="","",Picks!E132) -> x | F132: =IF(Picks!F132="","",Picks!F132) ->  | G132: =IF(Picks!G132="","",Picks!G132) -> 
B133: =IF(Picks!B133="","",Picks!B133) -> Derby draw | C133: =IF(Picks!C133="","",Picks!C133) -> 7 | D133: =IF(Picks!D133="","",Picks!D133) -> 3.2 | E133: =IF(Picks!E133="","",Picks!E133) -> √ | F133: =IF(Picks!F133="","",Picks!F133) ->  | G133: =IF(Picks!G133="","",Picks!G133) -> 
A134: =IF(Picks!A134="","",Picks!A134) -> Oscar Jackson | B134: =IF(Picks!B134="","",Picks!B134) -> Blackpool | C134: =IF(Picks!C134="","",Picks!C134) -> 7 | D134: =IF(Picks!D134="","",Picks!D134) -> 2.2 | E134: =IF(Picks!E134="","",Picks!E134) -> x | F134: =IF(Picks!F134="","",Picks!F134) -> -5.090909091 | G134: =IF(Picks!G134="","",Picks!G134) -> 16.20363636
B135: =IF(Picks!B135="","",Picks!B135) -> Hull | C135: =IF(Picks!C135="","",Picks!C135) -> 7 | D135: =IF(Picks!D135="","",Picks!D135) -> 1.6 | E135: =IF(Picks!E135="","",Picks!E135) -> x | F135: =IF(Picks!F135="","",Picks!F135) ->  | G135: =IF(Picks!G135="","",Picks!G135) -> 
B136: =IF(Picks!B136="","",Picks!B136) -> Exeter | C136: =IF(Picks!C136="","",Picks!C136) -> 7 | D136: =IF(Picks!D136="","",Picks!D136) -> 1.909090909 | E136: =IF(Picks!E136="","",Picks!E136) -> √ | F136: =IF(Picks!F136="","",Picks!F136) ->  | G136: =IF(Picks!G136="","",Picks!G136) -> 
A137: =IF(Picks!A137="","",Picks!A137) -> Paul Adderley | B137: =IF(Picks!B137="","",Picks!B137) -> QPR | C137: =IF(Picks!C137="","",Picks!C137) -> 7 | D137: =IF(Picks!D137="","",Picks!D137) -> 2.625 | E137: =IF(Picks!E137="","",Picks!E137) -> x | F137: =IF(Picks!F137="","",Picks!F137) -> -4.25 | G137: =IF(Picks!G137="","",Picks!G137) -> 57.25
B138: =IF(Picks!B138="","",Picks!B138) -> Forest | C138: =IF(Picks!C138="","",Picks!C138) -> 7 | D138: =IF(Picks!D138="","",Picks!D138) -> 3.8 | E138: =IF(Picks!E138="","",Picks!E138) -> x | F138: =IF(Picks!F138="","",Picks!F138) ->  | G138: =IF(Picks!G138="","",Picks!G138) -> 
B139: =IF(Picks!B139="","",Picks!B139) -> Norwich | C139: =IF(Picks!C139="","",Picks!C139) -> 7 | D139: =IF(Picks!D139="","",Picks!D139) -> 2.75 | E139: =IF(Picks!E139="","",Picks!E139) -> √ | F139: =IF(Picks!F139="","",Picks!F139) ->  | G139: =IF(Picks!G139="","",Picks!G139) -> 
A140: =IF(Picks!A140="","",Picks!A140) -> Paul Allen | B140: =IF(Picks!B140="","",Picks!B140) -> Charlton | C140: =IF(Picks!C140="","",Picks!C140) -> 7 | D140: =IF(Picks!D140="","",Picks!D140) -> 1.95 | E140: =IF(Picks!E140="","",Picks!E140) -> √ | F140: =IF(Picks!F140="","",Picks!F140) -> 1.44 | G140: =IF(Picks!G140="","",Picks!G140) -> 16.544
B141: =IF(Picks!B141="","",Picks!B141) -> Hull | C141: =IF(Picks!C141="","",Picks!C141) -> 7 | D141: =IF(Picks!D141="","",Picks!D141) -> 1.6 | E141: =IF(Picks!E141="","",Picks!E141) -> x | F141: =IF(Picks!F141="","",Picks!F141) ->  | G141: =IF(Picks!G141="","",Picks!G141) -> 
B142: =IF(Picks!B142="","",Picks!B142) -> Portsmouth | C142: =IF(Picks!C142="","",Picks!C142) -> 7 | D142: =IF(Picks!D142="","",Picks!D142) -> 2.2 | E142: =IF(Picks!E142="","",Picks!E142) -> √ | F142: =IF(Picks!F142="","",Picks!F142) ->  | G142: =IF(Picks!G142="","",Picks!G142) -> 
A143: =IF(Picks!A143="","",Picks!A143) -> Paul Barnes | B143: =IF(Picks!B143="","",Picks!B143) -> Man U | C143: =IF(Picks!C143="","",Picks!C143) -> 7 | D143: =IF(Picks!D143="","",Picks!D143) -> 4.333333333 | E143: =IF(Picks!E143="","",Picks!E143) -> x | F143: =IF(Picks!F143="","",Picks!F143) -> -7 | G143: =IF(Picks!G143="","",Picks!G143) -> 79.27272727
B144: =IF(Picks!B144="","",Picks!B144) -> Spurs | C144: =IF(Picks!C144="","",Picks!C144) -> 1 | D144: =IF(Picks!D144="","",Picks!D144) -> 1.727272727 | E144: =IF(Picks!E144="","",Picks!E144) -> x | F144: =IF(Picks!F144="","",Picks!F144) ->  | G144: =IF(Picks!G144="","",Picks!G144) -> 
B145: =IF(Picks!B145="","",Picks!B145) -> Sheff U | C145: =IF(Picks!C145="","",Picks!C145) -> 1 | D145: =IF(Picks!D145="","",Picks!D145) -> 5 | E145: =IF(Picks!E145="","",Picks!E145) -> x | F145: =IF(Picks!F145="","",Picks!F145) ->  | G145: =IF(Picks!G145="","",Picks!G145) -> 
A146: =IF(Picks!A146="","",Picks!A146) -> Paul Fairhurst | B146: =IF(Picks!B146="","",Picks!B146) -> West Brom | C146: =IF(Picks!C146="","",Picks!C146) -> 7 | D146: =IF(Picks!D146="","",Picks!D146) -> 3.4 | E146: =IF(Picks!E146="","",Picks!E146) -> x | F146: =IF(Picks!F146="","",Picks!F146) -> -7 | G146: =IF(Picks!G146="","",Picks!G146) -> 60.552
B147: =IF(Picks!B147="","",Picks!B147) -> Ipswich | C147: =IF(Picks!C147="","",Picks!C147) -> 7 | D147: =IF(Picks!D147="","",Picks!D147) -> 3.1 | E147: =IF(Picks!E147="","",Picks!E147) -> x | F147: =IF(Picks!F147="","",Picks!F147) ->  | G147: =IF(Picks!G147="","",Picks!G147) -> 
B148: =IF(Picks!B148="","",Picks!B148) -> Lincoln | C148: =IF(Picks!C148="","",Picks!C148) -> 7 | D148: =IF(Picks!D148="","",Picks!D148) -> 2.8 | E148: =IF(Picks!E148="","",Picks!E148) -> x | F148: =IF(Picks!F148="","",Picks!F148) ->  | G148: =IF(Picks!G148="","",Picks!G148) -> 
A149: =IF(Picks!A149="","",Picks!A149) -> Paul Fiddler | B149: =IF(Picks!B149="","",Picks!B149) -> Hull | C149: =IF(Picks!C149="","",Picks!C149) -> 7 | D149: =IF(Picks!D149="","",Picks!D149) -> 1.6 | E149: =IF(Picks!E149="","",Picks!E149) -> x | F149: =IF(Picks!F149="","",Picks!F149) -> -5.05 | G149: =IF(Picks!G149="","",Picks!G149) -> 16.544
B150: =IF(Picks!B150="","",Picks!B150) -> Charlton | C150: =IF(Picks!C150="","",Picks!C150) -> 7 | D150: =IF(Picks!D150="","",Picks!D150) -> 1.95 | E150: =IF(Picks!E150="","",Picks!E150) -> √ | F150: =IF(Picks!F150="","",Picks!F150) ->  | G150: =IF(Picks!G150="","",Picks!G150) -> 
B151: =IF(Picks!B151="","",Picks!B151) -> Blackpool | C151: =IF(Picks!C151="","",Picks!C151) -> 7 | D151: =IF(Picks!D151="","",Picks!D151) -> 2.2 | E151: =IF(Picks!E151="","",Picks!E151) -> x | F151: =IF(Picks!F151="","",Picks!F151) ->  | G151: =IF(Picks!G151="","",Picks!G151) -> 
A152: =IF(Picks!A152="","",Picks!A152) -> Paul Ridgeway | B152: =IF(Picks!B152="","",Picks!B152) -> Leeds | C152: =IF(Picks!C152="","",Picks!C152) -> 6 | D152: =IF(Picks!D152="","",Picks!D152) -> 2.15 | E152: =IF(Picks!E152="","",Picks!E152) -> x | F152: =IF(Picks!F152="","",Picks!F152) -> -7 | G152: =IF(Picks!G152="","",Picks!G152) -> 23.185
B153: =IF(Picks!B153="","",Picks!B153) -> Chelsea | C153: =IF(Picks!C153="","",Picks!C153) -> 7 | D153: =IF(Picks!D153="","",Picks!D153) -> 1.75 | E153: =IF(Picks!E153="","",Picks!E153) -> x | F153: =IF(Picks!F153="","",Picks!F153) ->  | G153: =IF(Picks!G153="","",Picks!G153) -> 
B154: =IF(Picks!B154="","",Picks!B154) -> Stoke | C154: =IF(Picks!C154="","",Picks!C154) -> 7 | D154: =IF(Picks!D154="","",Picks!D154) -> 2.6 | E154: =IF(Picks!E154="","",Picks!E154) -> x | F154: =IF(Picks!F154="","",Picks!F154) ->  | G154: =IF(Picks!G154="","",Picks!G154) -> 
A155: =IF(Picks!A155="","",Picks!A155) -> Pete Baron | B155: =IF(Picks!B155="","",Picks!B155) -> Sheff U | C155: =IF(Picks!C155="","",Picks!C155) -> 1 | D155: =IF(Picks!D155="","",Picks!D155) -> 5 | E155: =IF(Picks!E155="","",Picks!E155) -> x | F155: =IF(Picks!F155="","",Picks!F155) -> -4 | G155: =IF(Picks!G155="","",Picks!G155) -> 160
B156: =IF(Picks!B156="","",Picks!B156) -> Rochdale | C156: =IF(Picks!C156="","",Picks!C156) -> 7 | D156: =IF(Picks!D156="","",Picks!D156) -> 6 | E156: =IF(Picks!E156="","",Picks!E156) -> x | F156: =IF(Picks!F156="","",Picks!F156) ->  | G156: =IF(Picks!G156="","",Picks!G156) -> 
B157: =IF(Picks!B157="","",Picks!B157) -> Swansea | C157: =IF(Picks!C157="","",Picks!C157) -> 7 | D157: =IF(Picks!D157="","",Picks!D157) -> 3 | E157: =IF(Picks!E157="","",Picks!E157) -> √ | F157: =IF(Picks!F157="","",Picks!F157) ->  | G157: =IF(Picks!G157="","",Picks!G157) -> 
A158: =IF(Picks!A158="","",Picks!A158) -> Phil Miller | B158: =IF(Picks!B158="","",Picks!B158) ->  | C158: =IF(Picks!C158="","",Picks!C158) ->  | D158: =IF(Picks!D158="","",Picks!D158) ->  | E158: =IF(Picks!E158="","",Picks!E158) ->  | F158: =IF(Picks!F158="","",Picks!F158) -> -10 | G158: =IF(Picks!G158="","",Picks!G158) -> 
B159: =IF(Picks!B159="","",Picks!B159) ->  | C159: =IF(Picks!C159="","",Picks!C159) ->  | D159: =IF(Picks!D159="","",Picks!D159) ->  | E159: =IF(Picks!E159="","",Picks!E159) ->  | F159: =IF(Picks!F159="","",Picks!F159) ->  | G159: =IF(Picks!G159="","",Picks!G159) -> 
B160: =IF(Picks!B160="","",Picks!B160) ->  | C160: =IF(Picks!C160="","",Picks!C160) ->  | D160: =IF(Picks!D160="","",Picks!D160) ->  | E160: =IF(Picks!E160="","",Picks!E160) ->  | F160: =IF(Picks!F160="","",Picks!F160) ->  | G160: =IF(Picks!G160="","",Picks!G160) -> 
A161: =IF(Picks!A161="","",Picks!A161) -> Rob England | B161: =IF(Picks!B161="","",Picks!B161) -> Fulham | C161: =IF(Picks!C161="","",Picks!C161) -> 1 | D161: =IF(Picks!D161="","",Picks!D161) -> 9 | E161: =IF(Picks!E161="","",Picks!E161) -> x | F161: =IF(Picks!F161="","",Picks!F161) -> -3.9 | G161: =IF(Picks!G161="","",Picks!G161) -> 238
B162: =IF(Picks!B162="","",Picks!B162) -> Sheff U | C162: =IF(Picks!C162="","",Picks!C162) -> 1 | D162: =IF(Picks!D162="","",Picks!D162) -> 5 | E162: =IF(Picks!E162="","",Picks!E162) -> x | F162: =IF(Picks!F162="","",Picks!F162) ->  | G162: =IF(Picks!G162="","",Picks!G162) -> 
B163: =IF(Picks!B163="","",Picks!B163) -> Barnsley | C163: =IF(Picks!C163="","",Picks!C163) -> 7 | D163: =IF(Picks!D163="","",Picks!D163) -> 3.1 | E163: =IF(Picks!E163="","",Picks!E163) -> √ | F163: =IF(Picks!F163="","",Picks!F163) ->  | G163: =IF(Picks!G163="","",Picks!G163) -> 
A164: =IF(Picks!A164="","",Picks!A164) -> Sally Williams | B164: =IF(Picks!B164="","",Picks!B164) -> Luton | C164: =IF(Picks!C164="","",Picks!C164) -> 7 | D164: =IF(Picks!D164="","",Picks!D164) -> 3 | E164: =IF(Picks!E164="","",Picks!E164) -> √ | F164: =IF(Picks!F164="","",Picks!F164) -> -4 | G164: =IF(Picks!G164="","",Picks!G164) -> 59.24
B165: =IF(Picks!B165="","",Picks!B165) -> Wycombe | C165: =IF(Picks!C165="","",Picks!C165) -> 7 | D165: =IF(Picks!D165="","",Picks!D165) -> 3.1 | E165: =IF(Picks!E165="","",Picks!E165) -> x | F165: =IF(Picks!F165="","",Picks!F165) ->  | G165: =IF(Picks!G165="","",Picks!G165) -> 
B166: =IF(Picks!B166="","",Picks!B166) -> Ipswich | C166: =IF(Picks!C166="","",Picks!C166) -> 7 | D166: =IF(Picks!D166="","",Picks!D166) -> 3.1 | E166: =IF(Picks!E166="","",Picks!E166) -> x | F166: =IF(Picks!F166="","",Picks!F166) ->  | G166: =IF(Picks!G166="","",Picks!G166) -> 
A167: =IF(Picks!A167="","",Picks!A167) -> Simon Greenhalgh | B167: =IF(Picks!B167="","",Picks!B167) -> Man u Draw | C167: =IF(Picks!C167="","",Picks!C167) -> 7 | D167: =IF(Picks!D167="","",Picks!D167) -> 4 | E167: =IF(Picks!E167="","",Picks!E167) -> √ | F167: =IF(Picks!F167="","",Picks!F167) -> -3 | G167: =IF(Picks!G167="","",Picks!G167) -> 38.8
B168: =IF(Picks!B168="","",Picks!B168) -> Stoke | C168: =IF(Picks!C168="","",Picks!C168) -> 7 | D168: =IF(Picks!D168="","",Picks!D168) -> 2.6 | E168: =IF(Picks!E168="","",Picks!E168) -> x | F168: =IF(Picks!F168="","",Picks!F168) ->  | G168: =IF(Picks!G168="","",Picks!G168) -> 
B169: =IF(Picks!B169="","",Picks!B169) -> Hull | C169: =IF(Picks!C169="","",Picks!C169) -> 7 | D169: =IF(Picks!D169="","",Picks!D169) -> 1.6 | E169: =IF(Picks!E169="","",Picks!E169) -> x | F169: =IF(Picks!F169="","",Picks!F169) ->  | G169: =IF(Picks!G169="","",Picks!G169) -> 
A170: =IF(Picks!A170="","",Picks!A170) -> Stephen Barr | B170: =IF(Picks!B170="","",Picks!B170) -> Newcastle | C170: =IF(Picks!C170="","",Picks!C170) -> 7 | D170: =IF(Picks!D170="","",Picks!D170) -> 2.25 | E170: =IF(Picks!E170="","",Picks!E170) -> √ | F170: =IF(Picks!F170="","",Picks!F170) -> 0.8636363636 | G170: =IF(Picks!G170="","",Picks!G170) -> 19.92045455
B171: =IF(Picks!B171="","",Picks!B171) -> Leeds | C171: =IF(Picks!C171="","",Picks!C171) -> 6 | D171: =IF(Picks!D171="","",Picks!D171) -> 2.15 | E171: =IF(Picks!E171="","",Picks!E171) -> x | F171: =IF(Picks!F171="","",Picks!F171) ->  | G171: =IF(Picks!G171="","",Picks!G171) -> 
B172: =IF(Picks!B172="","",Picks!B172) -> Southampton | C172: =IF(Picks!C172="","",Picks!C172) -> 1 | D172: =IF(Picks!D172="","",Picks!D172) -> 1.727272727 | E172: =IF(Picks!E172="","",Picks!E172) -> √ | F172: =IF(Picks!F172="","",Picks!F172) ->  | G172: =IF(Picks!G172="","",Picks!G172) -> 
A173: =IF(Picks!A173="","",Picks!A173) -> Stephen Troop | B173: =IF(Picks!B173="","",Picks!B173) -> Spurs | C173: =IF(Picks!C173="","",Picks!C173) -> 1 | D173: =IF(Picks!D173="","",Picks!D173) -> 1.727272727 | E173: =IF(Picks!E173="","",Picks!E173) -> x | F173: =IF(Picks!F173="","",Picks!F173) -> -7 | G173: =IF(Picks!G173="","",Picks!G173) -> 23.41818182
B174: =IF(Picks!B174="","",Picks!B174) -> Stoke | C174: =IF(Picks!C174="","",Picks!C174) -> 7 | D174: =IF(Picks!D174="","",Picks!D174) -> 2.6 | E174: =IF(Picks!E174="","",Picks!E174) -> x | F174: =IF(Picks!F174="","",Picks!F174) ->  | G174: =IF(Picks!G174="","",Picks!G174) -> 
B175: =IF(Picks!B175="","",Picks!B175) -> Blackpool | C175: =IF(Picks!C175="","",Picks!C175) -> 7 | D175: =IF(Picks!D175="","",Picks!D175) -> 2.2 | E175: =IF(Picks!E175="","",Picks!E175) -> x | F175: =IF(Picks!F175="","",Picks!F175) ->  | G175: =IF(Picks!G175="","",Picks!G175) -> 
A176: =IF(Picks!A176="","",Picks!A176) -> Steve Baxter | B176: =IF(Picks!B176="","",Picks!B176) -> Chelsea | C176: =IF(Picks!C176="","",Picks!C176) -> 7 | D176: =IF(Picks!D176="","",Picks!D176) -> 1.75 | E176: =IF(Picks!E176="","",Picks!E176) -> x | F176: =IF(Picks!F176="","",Picks!F176) -> -7 | G176: =IF(Picks!G176="","",Picks!G176) -> 9.5
B177: =IF(Picks!B177="","",Picks!B177) -> Liverpool | C177: =IF(Picks!C177="","",Picks!C177) -> 1 | D177: =IF(Picks!D177="","",Picks!D177) -> 1.333333333 | E177: =IF(Picks!E177="","",Picks!E177) -> x | F177: =IF(Picks!F177="","",Picks!F177) ->  | G177: =IF(Picks!G177="","",Picks!G177) -> 
B178: =IF(Picks!B178="","",Picks!B178) -> Spurs | C178: =IF(Picks!C178="","",Picks!C178) -> 1 | D178: =IF(Picks!D178="","",Picks!D178) -> 1.727272727 | E178: =IF(Picks!E178="","",Picks!E178) -> x | F178: =IF(Picks!F178="","",Picks!F178) ->  | G178: =IF(Picks!G178="","",Picks!G178) -> 
A179: =IF(Picks!A179="","",Picks!A179) -> Steve Carter | B179: =IF(Picks!B179="","",Picks!B179) -> Newcastle | C179: =IF(Picks!C179="","",Picks!C179) -> 7 | D179: =IF(Picks!D179="","",Picks!D179) -> 2.25 | E179: =IF(Picks!E179="","",Picks!E179) -> √ | F179: =IF(Picks!F179="","",Picks!F179) -> 1.75 | G179: =IF(Picks!G179="","",Picks!G179) -> 24.175
B180: =IF(Picks!B180="","",Picks!B180) -> Wolves | C180: =IF(Picks!C180="","",Picks!C180) -> 7 | D180: =IF(Picks!D180="","",Picks!D180) -> 2.3 | E180: =IF(Picks!E180="","",Picks!E180) -> x | F180: =IF(Picks!F180="","",Picks!F180) ->  | G180: =IF(Picks!G180="","",Picks!G180) -> 
B181: =IF(Picks!B181="","",Picks!B181) -> Leicester | C181: =IF(Picks!C181="","",Picks!C181) -> 1 | D181: =IF(Picks!D181="","",Picks!D181) -> 2 | E181: =IF(Picks!E181="","",Picks!E181) -> √ | F181: =IF(Picks!F181="","",Picks!F181) ->  | G181: =IF(Picks!G181="","",Picks!G181) -> 
A182: =IF(Picks!A182="","",Picks!A182) -> Tom Robinson | B182: =IF(Picks!B182="","",Picks!B182) -> Middlesbro | C182: =IF(Picks!C182="","",Picks!C182) -> 7 | D182: =IF(Picks!D182="","",Picks!D182) -> 2.15 | E182: =IF(Picks!E182="","",Picks!E182) -> √ | F182: =IF(Picks!F182="","",Picks!F182) -> -4.85 | G182: =IF(Picks!G182="","",Picks!G182) -> 34.336
B183: =IF(Picks!B183="","",Picks!B183) -> Forest draw | C183: =IF(Picks!C183="","",Picks!C183) -> 7 | D183: =IF(Picks!D183="","",Picks!D183) -> 3.2 | E183: =IF(Picks!E183="","",Picks!E183) -> x | F183: =IF(Picks!F183="","",Picks!F183) ->  | G183: =IF(Picks!G183="","",Picks!G183) -> 
B184: =IF(Picks!B184="","",Picks!B184) -> Blackpool | C184: =IF(Picks!C184="","",Picks!C184) -> 7 | D184: =IF(Picks!D184="","",Picks!D184) -> 2.2 | E184: =IF(Picks!E184="","",Picks!E184) -> x | F184: =IF(Picks!F184="","",Picks!F184) ->  | G184: =IF(Picks!G184="","",Picks!G184) -> 
A185: =IF(Picks!A185="","",Picks!A185) -> Vinny Topping | B185: =IF(Picks!B185="","",Picks!B185) -> Newcastle | C185: =IF(Picks!C185="","",Picks!C185) -> 7 | D185: =IF(Picks!D185="","",Picks!D185) -> 2.25 | E185: =IF(Picks!E185="","",Picks!E185) -> √ | F185: =IF(Picks!F185="","",Picks!F185) -> 2.2375 | G185: =IF(Picks!G185="","",Picks!G185) -> 33.97375
B186: =IF(Picks!B186="","",Picks!B186) -> Middlesbro | C186: =IF(Picks!C186="","",Picks!C186) -> 7 | D186: =IF(Picks!D186="","",Picks!D186) -> 2.15 | E186: =IF(Picks!E186="","",Picks!E186) -> √ | F186: =IF(Picks!F186="","",Picks!F186) ->  | G186: =IF(Picks!G186="","",Picks!G186) -> 
B187: =IF(Picks!B187="","",Picks!B187) -> Wycombe | C187: =IF(Picks!C187="","",Picks!C187) -> 7 | D187: =IF(Picks!D187="","",Picks!D187) -> 3.1 | E187: =IF(Picks!E187="","",Picks!E187) -> x | F187: =IF(Picks!F187="","",Picks!F187) ->  | G187: =IF(Picks!G187="","",Picks!G187) -> 

Sheet Diary
A1: 36 | B1: 2020 | C1: Autumn
B3: =CONCATENATE("Season PL",$A$1," (",$C$1," ",$B$1,")") -> Season PL36 (Autumn 2020) | I3: Weekly actions
B4: Midweek\ Weekend of… | C4: 3in! PL Week No. | D4: Double/Midweek Fixtures? | E4: Qualifying Fixtures | F4: PL Cup Round | I4: Scrape Odds | J4: Issue Odds | K4: Issue Results
B5: 2020-09-12 | C5: 1 | E5: Prm\Chp\FL1\FL2 | H5: FAC\FL1\FL2 | I5: =IF($B5="","",$B5-5) -> 2020-09-07 | J5: =IF($B5="","",$B5-3) -> 2020-09-09 | K5: =IF($B5="","",$B5+2) -> 2020-09-14
B6: 2020-09-19 | C6: 2 | E6: Prm\Chp\FL1\FL2 | H6: Prm\Chp\FL1\FL2 | I6: =IF($B6="","",$B6-5) -> 2020-09-14 | J6: =IF($B6="","",$B6-3) -> 2020-09-16 | K6: =IF($B6="","",$B6+2) -> 2020-09-21
B7: 2020-09-26 | C7: 3 | D7: D | E7: Prm\Chp\FL1\FL2 | H7: INT\FL1\FL2\NL | I7: 2020-09-21 | J7: 2020-09-23 | K7: 2020-09-28
B8: 2020-09-26 | C8: 4 | D8: D | E8: Prm\Chp\FL1\FL2 | F8: Round 1 | H8: Prm\Chp\FAC | I8: 2020-09-21 | J8: 2020-09-23 | K8: 2020-09-28
B9: 2020-10-03 | C9: 5 | E9: Prm\Chp\FL1\FL2 | F9: Round 1 Rep | I9: 2020-09-28 | J9: 2020-09-30 | K9: 2020-10-05
B10: 2020-10-10 | C10: 6 | E10: INT\FL1\FL2\NL | I10: 2020-10-05 | J10: 2020-10-07 | K10: 2020-10-12
B11: 2020-10-17 | C11: 7 | E11: Prm\Chp\FL1\FL2 | F11: Round 2 | I11: 2020-10-12 | J11: 2020-10-14 | K11: 2020-10-19
B12: 2020-10-24 | C12: 8 | E12: Prm\Chp\FL1\FL2 | F12: Round 2 Rep | I12: 2020-10-19 | J12: 2020-10-21 | K12: 2020-10-26
B13: 2020-10-31 | C13: 9 | E13: Prm\Chp\FL1\FL2 | I13: 2020-10-26 | J13: 2020-10-28 | K13: 2020-11-02
B14: 2020-11-07 | C14: 10 | D14: D | E14: Prm\Chp\FAC | F14: Round 3 | I14: 2020-11-02 | J14: 2020-11-04 | K14: 2020-11-09
B15: 2020-11-07 | C15: 11 | D15: D | E15: Prm\Chp\FAC | F15: Round 3 Rep | I15: 2020-11-02 | J15: 2020-11-04 | K15: 2020-11-09
B16: 2020-11-14 | C16: 12 | E16: INT\FL1\FL2\NL | I16: 2020-11-09 | J16: 2020-11-11 | K16: 2020-11-16
B17: 2020-11-21 | C17: 13 | E17: Prm\Chp\FL1\FL2 | F17: Quarter-Final | I17: 2020-11-16 | J17: 2020-11-18 | K17: 2020-11-23
B18: 2020-11-28 | C18: 14 | E18: Prm\Chp\FAC | F18: Quarter-Final Rep | I18: 2020-11-23 | J18: 2020-11-25 | K18: 2020-11-30
B19: 2020-12-05 | C19: 15 | D19: D | E19: Prm\Chp\FL1\FL2 | I19: 2020-11-30 | J19: 2020-12-02 | K19: 2020-12-07
B20: 2020-12-05 | C20: 16 | D20: D | E20: Prm\Chp\FL1\FL2 | F20: Semi-Final | I20: 2020-11-30 | J20: 2020-12-02 | K20: 2020-12-07
B21: 2020-12-12 | C21: 17 | E21: Prm\Chp\FL1\FL2 | F21: Semi-Final Rep | I21: 2020-12-07 | J21: 2020-12-09 | K21: 2020-12-14
B22: 2020-12-16 | C22: 18 | D22: M | E22: Prm\Chp\FL1\FL2 | F22: Final | I22: 2020-12-11 | J22: 2020-12-13 | K22: 2020-12-18
B23: 2020-12-19 | C23: 19 | E23: Prm\Chp\FL1\FL2 | F23: Final Rep | I23: 2020-12-14 | J23: 2020-12-16 | K23: 2020-12-21
B24: 2020-12-26 | C24: 20 | E24: Prm\Chp\FL1\FL2 | I24: 2020-12-21 | J24: 2020-12-23 | K24: 2020-12-28

Sheet Match
A1: Date | B1: Sequence | C1: Comp | D1: Home | E1: Away | F1: Home score | G1: Away score | H1: H1 | I1: H2 | J1: D1 | K1: D2 | L1: A1 | M1: A2 | N1: Off | O1: Home Trim | P1: Away Trim | Q1: HS Trim | R1: AS Trim | S1: Match Odds | T1: Results | U1: Odds | V1: Home odds | W1: Draw Odds | X1: Away Odds | Y1: Home Dec | Z1: Draw Dec | AA1: Away Dec
A2: 2020-12-11 | B2: 10 | C2: Premier | D2: Leeds | E2: West Ham | F2: 1 | G2: 2 | H2: 23 | I2: 20 | J2: 27 | K2: 10 | L2: 11 | M2: 5 | O2: =TRIM(D2) -> Leeds | P2: =TRIM(E2) -> West Ham | Q2: =TRIM(F2) -> 1 | R2: =TRIM(G2) -> 2 | S2: =IF(A2="","",O2&" v "&P2&" "&U2) -> Leeds v West Ham 23/20 27/10 11/5 | T2: =O2&" "&Q2&"-"&R2&" "&P2&" "&N2 -> Leeds 1-2 West Ham | U2: =V2&" "&W2&" "&X2 -> 23/20 27/10 11/5 | V2: =CONCATENATE(H2,"/",I2) -> 23/20 | W2: =CONCATENATE(J2,"/",K2) -> 27/10 | X2: =CONCATENATE(L2,"/",M2) -> 11/5 | Y2: =IF(A2="","",1+(H2/I2)) -> 2.15 | Z2: =IF(C2="","",1+(J2/K2)) -> 3.7 | AA2: =IF(D2="","",1+(L2/M2)) -> 3.2
A3: 2020-12-12 | B3: 10 | C3: Premier | D3: Everton | E3: Chelsea | F3: 1 | G3: 0 | H3: 10 | I3: 3 | J3: 3 | K3: 1 | L3: 3 | M3: 4 | O3: Everton | P3: Chelsea | Q3: 1 | R3: 0 | S3: Everton v Chelsea 10/3 3/1 3/4 | T3: Everton 1-0 Chelsea | U3: =V3&" "&W3&" "&X3 -> 10/3 3/1 3/4 | V3: 10/3 | W3: 3/1 | X3: 3/4 | Y3: =IF(A3="","",1+(H3/I3)) -> 4.333333333 | Z3: =IF(C3="","",1+(J3/K3)) -> 4 | AA3: =IF(D3="","",1+(L3/M3)) -> 1.75
A4: 2020-12-12 | B4: 10 | C4: Premier | D4: Man U | E4: Man C | F4: 0 | G4: 0 | H4: 10 | I4: 3 | J4: 3 | K4: 1 | L4: 3 | M4: 4 | O4: Man U | P4: Man C | Q4: 0 | R4: 0 | S4: Man U v Man C 10/3 3/1 3/4 | T4: Man U 0-0 Man C | U4: 10/3 3/1 3/4 | V4: 10/3 | W4: 3/1 | X4: 3/4 | Y4: 4.333333333 | Z4: 4 | AA4: 1.75
A5: 2020-12-12 | B5: 10 | C5: Premier | D5: Newcastle | E5: West Brom | F5: 2 | G5: 1 | H5: 5 | I5: 4 | J5: 11 | K5: 5 | L5: 12 | M5: 5 | O5: Newcastle | P5: West Brom | Q5: 2 | R5: 1 | S5: Newcastle v West Brom 5/4 11/5 12/5 | T5: Newcastle 2-1 West Brom | U5: 5/4 11/5 12/5 | V5: 5/4 | W5: 11/5 | X5: 12/5 | Y5: 2.25 | Z5: 3.2 | AA5: 3.4
A6: 2020-12-12 | B6: 10 | C6: Premier | D6: Wolves | E6: Villa | F6: 0 | G6: 1 | H6: 13 | I6: 10 | J6: 23 | K6: 10 | L6: 11 | M6: 5 | O6: Wolves | P6: Villa | Q6: 0 | R6: 1 | S6: Wolves v Villa 13/10 23/10 11/5 | T6: Wolves 0-1 Villa | U6: 13/10 23/10 11/5 | V6: 13/10 | W6: 23/10 | X6: 11/5 | Y6: 2.3 | Z6: 3.3 | AA6: 3.2
A7: 2020-12-12 | B7: 11 | C7: Champ | D7: Birmingham | E7: Watford | F7: 0 | G7: 1 | H7: 3 | I7: 1 | J7: 11 | K7: 5 | L7: 21 | M7: 20 | O7: =TRIM(D7) -> Birmingham | P7: Watford | Q7: 0 | R7: 1 | S7: Birmingham v Watford 3/1 11/5 21/20 | T7: Birmingham 0-1 Watford | U7: 3/1 11/5 21/20 | V7: 3/1 | W7: 11/5 | X7: 21/20 | Y7: 4 | Z7: 3.2 | AA7: 2.05
A8: 2020-12-12 | B8: 11 | C8: Champ | D8: Blackburn | E8: Norwich | F8: 1 | G8: 2 | H8: 6 | I8: 4 | J8: 5 | K8: 2 | L8: 7 | M8: 4 | O8: Blackburn | P8: Norwich | Q8: 1 | R8: 2 | S8: Blackburn v Norwich 6/4 5/2 7/4 | T8: Blackburn 1-2 Norwich | U8: 6/4 5/2 7/4 | V8: 6/4 | W8: 5/2 | X8: 7/4 | Y8: 2.5 | Z8: 3.5 | AA8: 2.75
A9: 2020-12-12 | B9: 11 | C9: Champ | D9: Bournemouth | E9: Huddersfield | F9: 5 | G9: 0 | H9: 13 | I9: 20 | J9: 29 | K9: 10 | L9: 9 | M9: 2 | O9: Bournemouth | P9: Huddersfield | Q9: 5 | R9: 0 | S9: Bournemouth v Huddersfield 13/20 29/10 9/2 | T9: Bournemouth 5-0 Huddersfield | U9: 13/20 29/10 9/2 | V9: 13/20 | W9: 29/10 | X9: 9/2 | Y9: 1.65 | Z9: 3.9 | AA9: 5.5
A10: 2020-12-12 | B10: 11 | C10: Champ | D10: Cardiff | E10: Swansea | F10: 0 | G10: 2 | H10: 29 | I10: 20 | J10: 11 | K10: 5 | L10: 2 | M10: 1 | O10: Cardiff | P10: Swansea | Q10: 0 | R10: 2 | S10: Cardiff v Swansea 29/20 11/5 2/1 | T10: Cardiff 0-2 Swansea | U10: 29/20 11/5 2/1 | V10: 29/20 | W10: 11/5 | X10: 2/1 | Y10: 2.45 | Z10: 3.2 | AA10: 3
A11: 2020-12-12 | B11: 11 | C11: Champ | D11: Derby | E11: Stoke | F11: 0 | G11: 0 | H11: 15 | I11: 8 | J11: 11 | K11: 5 | L11: 8 | M11: 5 | O11: Derby | P11: Stoke | Q11: 0 | R11: 0 | S11: Derby v Stoke 15/8 11/5 8/5 | T11: Derby 0-0 Stoke | U11: 15/8 11/5 8/5 | V11: 15/8 | W11: 11/5 | X11: 8/5 | Y11: 2.875 | Z11: 3.2 | AA11: 2.6
A12: 2020-12-12 | B12: 11 | C12: Champ | D12: Forest | E12: Brentford | F12: 1 | G12: 3 | H12: 14 | I12: 5 | J12: 11 | K12: 5 | L12: 11 | M12: 10 | O12: Forest | P12: Brentford | Q12: 1 | R12: 3 | S12: Forest v Brentford 14/5 11/5 11/10 | T12: Forest 1-3 Brentford | U12: 14/5 11/5 11/10 | V12: 14/5 | W12: 11/5 | X12: 11/10 | Y12: 3.8 | Z12: 3.2 | AA12: 2.1
A13: 2020-12-12 | B13: 11 | C13: Champ | D13: Luton | E13: Preston | F13: 3 | G13: 0 | H13: 2 | I13: 1 | J13: 11 | K13: 5 | L13: 6 | M13: 4 | O13: Luton | P13: Preston | Q13: 3 | R13: 0 | S13: Luton v Preston 2/1 11/5 6/4 | T13: Luton 3-0 Preston | U13: 2/1 11/5 6/4 | V13: 2/1 | W13: 11/5 | X13: 6/4 | Y13: 3 | Z13: 3.2 | AA13: 2.5
A14: 2020-12-12 | B14: 11 | C14: Champ | D14: Middlesbro | E14: Millwall | F14: 3 | G14: 0 | H14: 23 | I14: 20 | J14: 11 | K14: 5 | L14: 27 | M14: 10 | O14: Middlesbro | P14: Millwall | Q14: 3 | R14: 0 | S14: Middlesbro v Millwall 23/20 11/5 27/10 | T14: Middlesbro 3-0 Millwall | U14: 23/20 11/5 27/10 | V14: 23/20 | W14: 11/5 | X14: 27/10 | Y14: 2.15 | Z14: 3.2 | AA14: 3.7
A15: 2020-12-12 | B15: 11 | C15: Champ | D15: QPR | E15: Reading | F15: 0 | G15: 1 | H15: 13 | I15: 8 | J15: 23 | K15: 10 | L15: 17 | M15: 10 | O15: QPR | P15: Reading | Q15: 0 | R15: 1 | S15: QPR v Reading 13/8 23/10 17/10 | T15: QPR 0-1 Reading | U15: 13/8 23/10 17/10 | V15: 13/8 | W15: 23/10 | X15: 17/10 | Y15: 2.625 | Z15: 3.3 | AA15: 2.7
A16: 2020-12-12 | B16: 11 | C16: Champ | D16: Rotherham | E16: Bristol C | F16: 2 | G16: 0 | H16: 19 | I16: 10 | J16: 9 | K16: 4 | L16: 6 | M16: 4 | O16: Rotherham | P16: Bristol C | Q16: 2 | R16: 0 | S16: Rotherham v Bristol C 19/10 9/4 6/4 | T16: Rotherham 2-0 Bristol C | U16: 19/10 9/4 6/4 | V16: 19/10 | W16: 9/4 | X16: 6/4 | Y16: 2.9 | Z16: 3.25 | AA16: 2.5
A17: 2020-12-12 | B17: 11 | C17: Champ | D17: Sheff W | E17: Barnsley | F17: 1 | G17: 2 | H17: 6 | I17: 4 | J17: 21 | K17: 10 | L17: 21 | M17: 10 | O17: Sheff W | P17: Barnsley | Q17: 1 | R17: 2 | S17: Sheff W v Barnsley 6/4 21/10 21/10 | T17: Sheff W 1-2 Barnsley | U17: 6/4 21/10 21/10 | V17: 6/4 | W17: 21/10 | X17: 21/10 | Y17: 2.5 | Z17: 3.1 | AA17: 3.1
A18: 2020-12-12 | B18: 11 | C18: Champ | D18: Wycombe | E18: Coventry | F18: 1 | G18: 2 | H18: 21 | I18: 10 | J18: 9 | K18: 4 | L18: 11 | M18: 8 | O18: Wycombe | P18: Coventry | Q18: 1 | R18: 2 | S18: Wycombe v Coventry 21/10 9/4 11/8 | T18: Wycombe 1-2 Coventry | U18: 21/10 9/4 11/8 | V18: 21/10 | W18: 9/4 | X18: 11/8 | Y18: 3.1 | Z18: 3.25 | AA18: 2.375
A19: 2020-12-12 | B19: 12 | C19: League 1 | D19: Blackpool | E19: Oxford | F19: 0 | G19: 0 | H19: 6 | I19: 5 | J19: 9 | K19: 4 | L19: 12 | M19: 5 | O19: Blackpool | P19: Oxford | Q19: 0 | R19: 0 | S19: Blackpool v Oxford 6/5 9/4 12/5 | T19: Blackpool 0-0 Oxford | U19: 6/5 9/4 12/5 | V19: 6/5 | W19: 9/4 | X19: 12/5 | Y19: 2.2 | Z19: 3.25 | AA19: 3.4
A20: 2020-12-12 | B20: 12 | C20: League 1 | D20: Bristol R | E20: Plymouth | F20: 3 | G20: 0 | H20: 29 | I20: 20 | J20: 5 | K20: 2 | L20: 17 | M20: 10 | O20: Bristol R | P20: Plymouth | Q20: 3 | R20: 0 | S20: Bristol R v Plymouth 29/20 5/2 17/10 | T20: Bristol R 3-0 Plymouth | U20: 29/20 5/2 17/10 | V20: 29/20 | W20: 5/2 | X20: 17/10 | Y20: 2.45 | Z20: 3.5 | AA20: 2.7
A21: 2020-12-12 | B21: 12 | C21: League 1 | D21: Charlton | E21: Wimbledon | F21: 5 | G21: 2 | H21: 19 | I21: 20 | J21: 5 | K21: 2 | L21: 17 | M21: 10 | O21: Charlton | P21: Wimbledon | Q21: 5 | R21: 2 | S21: Charlton v Wimbledon 19/20 5/2 17/10 | T21: Charlton 5-2 Wimbledon | U21: 19/20 5/2 17/10 | V21: 19/20 | W21: 5/2 | X21: 17/10 | Y21: 1.95 | Z21: 3.5 | AA21: 2.7
A22: 2020-12-12 | B22: 12 | C22: League 1 | D22: Crewe | E22: Northampton | F22: 2 | G22: 1 | H22: 3 | I22: 4 | J22: 13 | K22: 5 | L22: 15 | M22: 4 | O22: Crewe | P22: Northampton | Q22: 2 | R22: 1 | S22: Crewe v Northampton 3/4 13/5 15/4 | T22: Crewe 2-1 Northampton | U22: 3/4 13/5 15/4 | V22: 3/4 | W22: 13/5 | X22: 15/4 | Y22: 1.75 | Z22: 3.6 | AA22: 4.75
A23: 2020-12-12 | B23: 12 | C23: League 1 | D23: Doncaster | E23: Gillingham | F23: 2 | G23: 1 | H23: 10 | I23: 11 | J23: 13 | K23: 5 | L23: 29 | M23: 10 | O23: Doncaster | P23: Gillingham | Q23: 2 | R23: 1 | S23: Doncaster v Gillingham 10/11 13/5 29/10 | T23: Doncaster 2-1 Gillingham | U23: 10/11 13/5 29/10 | V23: 10/11 | W23: 13/5 | X23: 29/10 | Y23: 1.909090909 | Z23: 3.6 | AA23: 3.9
A24: 2020-12-12 | B24: 12 | C24: League 1 | D24: Hull | E24: Shrewsbury | F24: 0 | G24: 1 | H24: 6 | I24: 10 | J24: 14 | K24: 5 | L24: 24 | M24: 5 | O24: Hull | P24: Shrewsbury | Q24: 0 | R24: 1 | S24: Hull v Shrewsbury 6/10 14/5 24/5 | T24: Hull 0-1 Shrewsbury | U24: 6/10 14/5 24/5 | V24: 6/10 | W24: 14/5 | X24: 24/5 | Y24: 1.6 | Z24: 3.8 | AA24: 5.8
A25: 2020-12-12 | B25: 12 | C25: League 1 | D25: Ipswich | E25: Portsmouth | F25: 0 | G25: 2 | H25: 21 | I25: 10 | J25: 9 | K25: 4 | L25: 6 | M25: 5 | O25: Ipswich | P25: Portsmouth | Q25: 0 | R25: 2 | S25: Ipswich v Portsmouth 21/10 9/4 6/5 | T25: Ipswich 0-2 Portsmouth | U25: 21/10 9/4 6/5 | V25: 21/10 | W25: 9/4 | X25: 6/5 | Y25: 3.1 | Z25: 3.25 | AA25: 2.2
A26: 2020-12-12 | B26: 12 | C26: League 1 | D26: Lincoln | E26: Sunderland | F26: 0 | G26: 4 | H26: 9 | I26: 5 | J26: 21 | K26: 10 | L26: 8 | M26: 5 | O26: Lincoln | P26: Sunderland | Q26: 0 | R26: 4 | S26: Lincoln v Sunderland 9/5 21/10 8/5 | T26: Lincoln 0-4 Sunderland | U26: 9/5 21/10 8/5 | V26: 9/5 | W26: 21/10 | X26: 8/5 | Y26: 2.8 | Z26: 3.1 | AA26: 2.6
A27: 2020-12-12 | B27: 12 | C27: League 1 | D27: MK Dons | E27: Burton | F27: 1 | G27: 1 | H27: 4 | I27: 5 | J27: 27 | K27: 10 | L27: 16 | M27: 5 | O27: MK Dons | P27: Burton | Q27: 1 | R27: 1 | S27: MK Dons v Burton 4/5 27/10 16/5 | T27: MK Dons 1-1 Burton | U27: 4/5 27/10 16/5 | V27: 4/5 | W27: 27/10 | X27: 16/5 | Y27: 1.8 | Z27: 3.7 | AA27: 4.2
A28: 2020-12-12 | B28: 12 | C28: League 1 | D28: Peterborough | E28: Rochdale | F28: 4 | G28: 1 | H28: 8 | I28: 15 | J28: 16 | K28: 5 | L28: 5 | M28: 1 | O28: Peterborough | P28: Rochdale | Q28: 4 | R28: 1 | S28: Peterborough v Rochdale 8/15 16/5 5/1 | T28: Peterborough 4-1 Rochdale | U28: 8/15 16/5 5/1 | V28: 8/15 | W28: 16/5 | X28: 5/1 | Y28: 1.533333333 | Z28: 4.2 | AA28: 6
A29: 2020-12-12 | B29: 12 | C29: League 1 | D29: Swindon | E29: Fleetwood | F29: 0 | G29: 1 | H29: 23 | I29: 10 | J29: 12 | K29: 5 | L29: 23 | M29: 20 | O29: Swindon | P29: Fleetwood | Q29: 0 | R29: 1 | S29: Swindon v Fleetwood 23/10 12/5 23/20 | T29: Swindon 0-1 Fleetwood | U29: 23/10 12/5 23/20 | V29: 23/10 | W29: 12/5 | X29: 23/20 | Y29: 3.3 | Z29: 3.4 | AA29: 2.15
A30: 2020-12-12 | B30: 12 | C30: League 1 | D30: Wigan | E30: Accrington | F30: 4 | G30: 3 | H30: 11 | I30: 5 | J30: 9 | K30: 4 | L30: 5 | M30: 4 | O30: Wigan | P30: Accrington | Q30: 4 | R30: 3 | S30: Wigan v Accrington 11/5 9/4 5/4 | T30: Wigan 4-3 Accrington | U30: 11/5 9/4 5/4 | V30: 11/5 | W30: 9/4 | X30: 5/4 | Y30: 3.2 | Z30: 3.25 | AA30: 2.25
A31: 2020-12-12 | B31: 13 | C31: League 2 | D31: Carlisle | E31: Stevenage | F31: 4 | G31: 0 | H31: 8 | I31: 13 | J31: 14 | K31: 5 | L31: 9 | M31: 2 | O31: Carlisle | P31: Stevenage | Q31: 4 | R31: 0 | S31: Carlisle v Stevenage 8/13 14/5 9/2 | T31: Carlisle 4-0 Stevenage | U31: 8/13 14/5 9/2 | V31: 8/13 | W31: 14/5 | X31: 9/2 | Y31: 1.615384615 | Z31: 3.8 | AA31: 5.5
A32: 2020-12-12 | B32: 13 | C32: League 2 | D32: Crawley | E32: Barrow | F32: 4 | G32: 2 | H32: 29 | I32: 20 | J32: 23 | K32: 10 | L32: 15 | M32: 8 | O32: Crawley | P32: Barrow | Q32: 4 | R32: 2 | S32: Crawley v Barrow 29/20 23/10 15/8 | T32: Crawley 4-2 Barrow | U32: 29/20 23/10 15/8 | V32: 29/20 | W32: 23/10 | X32: 15/8 | Y32: 2.45 | Z32: 3.3 | AA32: 2.875
A33: 2020-12-12 | B33: 13 | C33: League 2 | D33: Exeter | E33: Tranmere | F33: 5 | G33: 0 | H33: 10 | I33: 11 | J33: 13 | K33: 5 | L33: 14 | M33: 5 | O33: =TRIM(D33) -> Exeter | P33: =TRIM(E33) -> Tranmere | Q33: =TRIM(F33) -> 5 | R33: =TRIM(G33) -> 0 | S33: Exeter v Tranmere 10/11 13/5 14/5 | T33: Exeter 5-0 Tranmere | U33: 10/11 13/5 14/5 | V33: =CONCATENATE(H33,"/",I33) -> 10/11 | W33: =CONCATENATE(J33,"/",K33) -> 13/5 | X33: =CONCATENATE(L33,"/",M33) -> 14/5 | Y33: 1.909090909 | Z33: 3.6 | AA33: 3.8
A34: 2020-12-12 | B34: 13 | C34: League 2 | D34: Forest Green | E34: Cambridge | F34: 2 | G34: 0 | H34: 21 | I34: 20 | J34: 23 | K34: 10 | L34: 27 | M34: 10 | O34: Forest Green | P34: Cambridge | Q34: 2 | R34: 0 | S34: Forest Green v Cambridge 21/20 23/10 27/10 | T34: Forest Green 2-0 Cambridge | U34: 21/20 23/10 27/10 | V34: 21/20 | W34: 23/10 | X34: 27/10 | Y34: 2.05 | Z34: 3.3 | AA34: 3.7
A35: 2020-12-12 | B35: 13 | C35: League 2 | D35: Grimsby | E35: Mansfield | F35: 1 | G35: 1 | H35: 21 | I35: 10 | J35: 9 | K35: 4 | L35: 13 | M35: 10 | O35: Grimsby | P35: Mansfield | Q35: 1 | R35: 1 | S35: Grimsby v Mansfield 21/10 9/4 13/10 | T35: Grimsby 1-1 Mansfield | U35: 21/10 9/4 13/10 | V35: 21/10 | W35: 9/4 | X35: 13/10 | Y35: 3.1 | Z35: 3.25 | AA35: 2.3
A36: 2020-12-12 | B36: 13 | C36: League 2 | D36: Morecambe | E36: Harrogate | F36: 1 | G36: 0 | H36: 8 | I36: 5 | J36: 23 | K36: 10 | L36: 17 | M36: 10 | O36: Morecambe | P36: Harrogate | Q36: 1 | R36: 0 | S36: Morecambe v Harrogate 8/5 23/10 17/10 | T36: Morecambe 1-0 Harrogate | U36: 8/5 23/10 17/10 | V36: 8/5 | W36: 23/10 | X36: 17/10 | Y36: 2.6 | Z36: 3.3 | AA36: 2.7
A37: 2020-12-12 | B37: 13 | C37: League 2 | D37: Oldham | E37: Bradford | F37: 3 | G37: 1 | H37: 7 | I37: 5 | J37: 23 | K37: 10 | L37: 19 | M37: 10 | O37: Oldham | P37: Bradford | Q37: 3 | R37: 1 | S37: Oldham v Bradford 7/5 23/10 19/10 | T37: Oldham 3-1 Bradford | U37: 7/5 23/10 19/10 | V37: 7/5 | W37: 23/10 | X37: 19/10 | Y37: 2.4 | Z37: 3.3 | AA37: 2.9
A38: 2020-12-12 | B38: 13 | C38: League 2 | D38: Orient | E38: Newport | F38: 2 | G38: 1 | H38: 2 | I38: 1 | J38: 9 | K38: 4 | L38: 11 | M38: 8 | O38: Orient | P38: Newport | Q38: 2 | R38: 1 | S38: Orient v Newport 2/1 9/4 11/8 | T38: Orient 2-1 Newport | U38: 2/1 9/4 11/8 | V38: 2/1 | W38: 9/4 | X38: 11/8 | Y38: 3 | Z38: 3.25 | AA38: 2.375
A39: 2020-12-12 | B39: 13 | C39: League 2 | D39: Port Vale | E39: Colchester | F39: 1 | G39: 1 | H39: 23 | I39: 20 | J39: 5 | K39: 2 | L39: 23 | M39: 10 | O39: Port Vale | P39: Colchester | Q39: 1 | R39: 1 | S39: Port Vale v Colchester 23/20 5/2 23/10 | T39: Port Vale 1-1 Colchester | U39: 23/20 5/2 23/10 | V39: 23/20 | W39: 5/2 | X39: 23/10 | Y39: 2.15 | Z39: 3.5 | AA39: 3.3
A40: 2020-12-12 | B40: 13 | C40: League 2 | D40: Salford | E40: Cheltenham | F40: 0 | G40: 0 | H40: 13 | I40: 8 | J40: 9 | K40: 4 | L40: 17 | M40: 10 | O40: Salford | P40: Cheltenham | Q40: 0 | R40: 0 | S40: Salford v Cheltenham 13/8 9/4 17/10 | T40: Salford 0-0 Cheltenham | U40: 13/8 9/4 17/10 | V40: 13/8 | W40: 9/4 | X40: 17/10 | Y40: 2.625 | Z40: 3.25 | AA40: 2.7
A41: 2020-12-12 | B41: 13 | C41: League 2 | D41: Southend | E41: Scunthorpe | F41: 1 | G41: 0 | H41: 9 | I41: 4 | J41: 11 | K41: 5 | L41: 13 | M41: 10 | O41: Southend | P41: Scunthorpe | Q41: 1 | R41: 0 | S41: Southend v Scunthorpe 9/4 11/5 13/10 | T41: Southend 1-0 Scunthorpe | U41: 9/4 11/5 13/10 | V41: 9/4 | W41: 11/5 | X41: 13/10 | Y41: 3.25 | Z41: 3.2 | AA41: 2.3
A42: 2020-12-12 | B42: 13 | C42: League 2 | D42: Walsall | E42: Bolton | F42: 2 | G42: 1 | H42: 5 | I42: 4 | J42: 9 | K42: 4 | L42: 11 | M42: 5 | O42: Walsall | P42: Bolton | Q42: 2 | R42: 1 | S42: Walsall v Bolton 5/4 9/4 11/5 | T42: Walsall 2-1 Bolton | U42: 5/4 9/4 11/5 | V42: 5/4 | W42: 9/4 | X42: 11/5 | Y42: 2.25 | Z42: 3.25 | AA42: 3.2
A43: 2020-12-13 | B43: 10 | C43: Premier | D43: Arsenal | E43: Burnley | F43: 0 | G43: 1 | H43: 11 | I43: 20 | J43: 3 | K43: 1 | L43: 11 | M43: 2 | O43: Arsenal | P43: Burnley | Q43: 0 | R43: 1 | S43: Arsenal v Burnley 11/20 3/1 11/2 | T43: Arsenal 0-1 Burnley | U43: 11/20 3/1 11/2 | V43: 11/20 | W43: 3/1 | X43: 11/2 | Y43: 1.55 | Z43: 4 | AA43: 6.5
A44: 2020-12-13 | B44: 10 | C44: Premier | D44: Fulham | E44: Liverpool | F44: 1 | G44: 1 | H44: 8 | I44: 1 | J44: 9 | K44: 2 | L44: 1 | M44: 3 | O44: Fulham | P44: Liverpool | Q44: 1 | R44: 1 | S44: Fulham v Liverpool 8/1 9/2 1/3 | T44: Fulham 1-1 Liverpool | U44: 8/1 9/2 1/3 | V44: 8/1 | W44: 9/2 | X44: 1/3 | Y44: 9 | Z44: 5.5 | AA44: 1.333333333
A45: 2020-12-13 | B45: 10 | C45: Premier | D45: Leicester | E45: Brighton | F45: 3 | G45: 0 | H45: 1 | I45: 1 | J45: 5 | K45: 2 | L45: 11 | M45: 4 | O45: Leicester | P45: Brighton | Q45: 3 | R45: 0 | S45: Leicester v Brighton 1/1 5/2 11/4 | T45: Leicester 3-0 Brighton | U45: =V45&" "&W45&" "&X45 -> 1/1 5/2 11/4 | V45: 1/1 | W45: 5/2 | X45: 11/4 | Y45: 2 | Z45: 3.5 | AA45: 3.75
A46: 2020-12-13 | B46: 10 | C46: Premier | D46: Palace | E46: Spurs | F46: 1 | G46: 1 | H46: 19 | I46: 5 | J46: 11 | K46: 4 | L46: 8 | M46: 11 | O46: Palace | P46: Spurs | Q46: 1 | R46: 1 | S46: Palace v Spurs 19/5 11/4 8/11 | T46: Palace 1-1 Spurs | U46: =V46&" "&W46&" "&X46 -> 19/5 11/4 8/11 | V46: 19/5 | W46: 11/4 | X46: 8/11 | Y46: 4.8 | Z46: 3.75 | AA46: 1.727272727
A47: 2020-12-13 | B47: 10 | C47: Premier | D47: Southampton | E47: Sheff U | F47: 3 | G47: 0 | H47: 8 | I47: 11 | J47: 27 | K47: 10 | L47: 4 | M47: 1 | O47: Southampton | P47: Sheff U | Q47: 3 | R47: 0 | S47: Southampton v Sheff U 8/11 27/10 4/1 | T47: =O47&" "&Q47&"-"&R47&" "&P47 -> Southampton 3-0 Sheff U | U47: =V47&" "&W47&" "&X47 -> 8/11 27/10 4/1 | V47: 8/11 | W47: 27/10 | X47: 4/1 | Y47: 1.727272727 | Z47: 3.7 | AA47: 5
V48: /
V49: /
V50: /
V51: /

Sheet Picks
A1: Player | B1: Prediction | C1: Match Day | D1: Decimal | E1: Bet in? | F1: Score | G1: Max | H1: =entrants-SUM(H2:H187) -> 4 | I1: Week Rank | J1: Wk1 | K1: Frac | L1: Dec | M1: Bet up | N1: Points | O1: Wk2 | P1: Results | R1: Choices | S1: Odds | T1: Up | U1: Home team | V1: H Score | W1: Away team | X1: A Score | AD1: ` | AE1: This Week Actual Score | AF1: This Week Correct | AG1: Rank | AI1: Player | AJ1: This Week Max Score | AK1: This Week Correct | AL1: Rank | AN1: =COUNTIF(F2:F187,-10) -> 4
A2: =Results!B2 -> Alan Rogers | B2: =IF(J2="","",TRIM(CLEAN(J2))) -> Morecambe | C2: =IF(J2="","",INDEX(Odds!B:B,MATCH(J2,Odds!F:F,0))) -> 1900-01-07 | D2: =IF(J2="","",L2) -> 2.6 | E2: =IF(J2="","",IF(M2=1,"√","x")) -> √ | F2: =IF(J2="",-10,INDEX(Results!T:T,MATCH(A2,Results!V:V,0))) -> 47.08 | G2: =IF(J2="","",INDEX(Results!AI:AI,MATCH(A2,Results!V:V,0))) -> 47.08 | H2: =IF(G2="",0,1) -> 1 | I2: =INDEX(Picks!AG:AG,MATCH(A2,Picks!AD:AD,0)) -> 2 | J2: Morecambe | K2: =INDEX(Odds!G:G,MATCH(J2,Odds!F:F,0)) -> 8/5 | L2: =INDEX(Odds!H:H,MATCH(J2,Odds!F:F,0)) -> 2.6 | M2: =INDEX(Odds!I:I,MATCH(J2,Odds!F:F,0)) -> 1 | N2: =L2*M2 -> 2.6 | P2: =IF(Match!A2="","",Match!T2) -> Leeds 1-2 West Ham | R2: =IF(Odds!F2="","",Odds!F2) -> Leeds | S2: =INDEX(Odds!G:G,MATCH(R2,Odds!F:F,0)) -> 23/20 | T2: =IF(V2>X2,1,0) -> 0 | U2: =INDEX(Match!O:O,MATCH(P2,Match!T:T,0)) -> Leeds | V2: =INDEX(Match!F:F,MATCH(P2,Match!T:T,0)) -> 1 | W2: =INDEX(Match!P:P,MATCH(P2,Match!T:T,0)) -> West Ham | X2: =INDEX(Match!G:G,MATCH(P2,Match!T:T,0)) -> 2 | AB2: =IF(O2="","",INDEX(Odds!G:G,MATCH(O2,Odds!F:F,0))) ->  | AD2: Alfie Davies | AE2: =INDEX(Picks!F:F,MATCH(AD2,Picks!A:A,0)) -> 50.275 | AF2: =INDEX(Weekly!I:I,MATCH(AD2,Weekly!E:E,0)) -> 3 | AG2: =IF(AE2="","",_xlfn.RANK.EQ(AE2,TopScores,0)) -> 1 | AI2: Lewis Buckley | AJ2: =INDEX(Picks!G:G,MATCH(AI2,Picks!A:A,0)) ->  | AK2: =INDEX(Weekly!I:I,MATCH(AI2,Weekly!E:E,0)) -> 0 | AL2: =IF(AJ2="","",_xlfn.RANK.EQ(AJ2,TopMaxScores,0)) -> 
A3: =A2 -> Alan Rogers | B3: =IF(J3="","",J3) -> Oldham | C3: =IF(J3="","",INDEX(Odds!B:B,MATCH(J3,Odds!F:F,0))) -> 1900-01-07 | D3: =IF(J3="","",L3) -> 2.4 | E3: =IF(J3="","",IF(M3=1,"√","x")) -> √ | J3: Oldham | K3: =INDEX(Odds!G:G,MATCH(J3,Odds!F:F,0)) -> 7/5 | L3: =INDEX(Odds!H:H,MATCH(J3,Odds!F:F,0)) -> 2.4 | M3: =INDEX(Odds!I:I,MATCH(J3,Odds!F:F,0)) -> 1 | N3: =L3*M3 -> 2.4 | P3: =IF(Match!A3="","",Match!T3) -> Everton 1-0 Chelsea | R3: =IF(Odds!F3="","",Odds!F3) -> Everton | S3: =INDEX(Odds!G:G,MATCH(R3,Odds!F:F,0)) -> 10/3 | T3: 1 | U3: =INDEX(Match!O:O,MATCH(P3,Match!T:T,0)) -> Everton | V3: =INDEX(Match!F:F,MATCH(P3,Match!T:T,0)) -> 1 | W3: =INDEX(Match!P:P,MATCH(P3,Match!T:T,0)) -> Chelsea | X3: =INDEX(Match!G:G,MATCH(P3,Match!T:T,0)) -> 0 | AB3: =IF(O3="","",INDEX(Odds!G:G,MATCH(O3,Odds!F:F,0))) ->  | AD3: Alan Rogers | AE3: =INDEX(Picks!F:F,MATCH(AD3,Picks!A:A,0)) -> 47.08 | AF3: =INDEX(Weekly!I:I,MATCH(AD3,Weekly!E:E,0)) -> 3 | AG3: =IF(AE3="","",_xlfn.RANK.EQ(AE3,TopScores,0)) -> 2 | AI3: Gareth Fallows | AJ3: =INDEX(Picks!G:G,MATCH(AI3,Picks!A:A,0)) ->  | AK3: =INDEX(Weekly!I:I,MATCH(AI3,Weekly!E:E,0)) -> 0 | AL3: =IF(AJ3="","",_xlfn.RANK.EQ(AJ3,TopMaxScores,0)) -> 
A4: =A2 -> Alan Rogers | B4: Port Vale draw | C4: =IF(J4="","",INDEX(Odds!B:B,MATCH(J4,Odds!F:F,0))) -> 1900-01-07 | D4: 3.5 | E4: √ | J4: Port Vale draw | K4: =INDEX(Odds!G:G,MATCH(J4,Odds!F:F,0)) -> 5/2 | L4: =INDEX(Odds!H:H,MATCH(J4,Odds!F:F,0)) -> 3.5 | M4: =INDEX(Odds!I:I,MATCH(J4,Odds!F:F,0)) -> 1 | N4: =L4*M4 -> 3.5 | P4: =IF(Match!A4="","",Match!T4) -> Man U 0-0 Man C | R4: =IF(Odds!F4="","",Odds!F4) -> Man U | S4: =INDEX(Odds!G:G,MATCH(R4,Odds!F:F,0)) -> 10/3 | T4: 0 | U4: =INDEX(Match!O:O,MATCH(P4,Match!T:T,0)) -> Man U | V4: =INDEX(Match!F:F,MATCH(P4,Match!T:T,0)) -> 0 | W4: =INDEX(Match!P:P,MATCH(P4,Match!T:T,0)) -> Man C | X4: =INDEX(Match!G:G,MATCH(P4,Match!T:T,0)) -> 0 | AB4: =IF(O4="","",INDEX(Odds!G:G,MATCH(O4,Odds!F:F,0))) ->  | AD4: Gerard Ventom | AE4: =INDEX(Picks!F:F,MATCH(AD4,Picks!A:A,0)) -> 46.6 | AF4: =INDEX(Weekly!I:I,MATCH(AD4,Weekly!E:E,0)) -> 3 | AG4: =IF(AE4="","",_xlfn.RANK.EQ(AE4,TopScores,0)) -> 3 | AI4: Dan Baxter | AJ4: =INDEX(Picks!G:G,MATCH(AI4,Picks!A:A,0)) ->  | AK4: =INDEX(Weekly!I:I,MATCH(AI4,Weekly!E:E,0)) -> 0 | AL4: =IF(AJ4="","",_xlfn.RANK.EQ(AJ4,TopMaxScores,0)) -> 
A5: =Results!B5 -> Alan White | B5: =IF(J5="","",J5) -> Leicester | C5: =IF(J5="","",INDEX(Odds!B:B,MATCH(J5,Odds!F:F,0))) -> 1900-01-01 | D5: 2 | E5: √ | F5: =IF(J5="",-10,INDEX(Results!T:T,MATCH(A5,Results!V:V,0))) -> 0.1818181818 | G5: =IF(J5="","",INDEX(Results!AI:AI,MATCH(A5,Results!V:V,0))) -> 14.31404959 | H5: =IF(G5="",0,1) -> 1 | I5: =INDEX(Picks!AG:AG,MATCH(A5,Picks!AD:AD,0)) -> 20 | J5: Leicester | K5: =INDEX(Odds!G:G,MATCH(J5,Odds!F:F,0)) -> 1/1 | L5: =INDEX(Odds!H:H,MATCH(J5,Odds!F:F,0)) -> 2 | M5: =INDEX(Odds!I:I,MATCH(J5,Odds!F:F,0)) -> 1 | N5: =L5*M5 -> 2 | P5: =IF(Match!A5="","",Match!T5) -> Newcastle 2-1 West Brom | R5: =IF(Odds!F5="","",Odds!F5) -> Newcastle | S5: =INDEX(Odds!G:G,MATCH(R5,Odds!F:F,0)) -> 5/4 | T5: 1 | U5: =INDEX(Match!O:O,MATCH(P5,Match!T:T,0)) -> Newcastle | V5: =INDEX(Match!F:F,MATCH(P5,Match!T:T,0)) -> 2 | W5: =INDEX(Match!P:P,MATCH(P5,Match!T:T,0)) -> West Brom | X5: =INDEX(Match!G:G,MATCH(P5,Match!T:T,0)) -> 1 | AB5: =IF(O5="","",INDEX(Odds!G:G,MATCH(O5,Odds!F:F,0))) ->  | AD5: Dave Orrell | AE5: =INDEX(Picks!F:F,MATCH(AD5,Picks!A:A,0)) -> 27.7765 | AF5: =INDEX(Weekly!I:I,MATCH(AD5,Weekly!E:E,0)) -> 3 | AG5: =IF(AE5="","",_xlfn.RANK.EQ(AE5,TopScores,0)) -> 4 | AI5: Phil Miller | AJ5: =INDEX(Picks!G:G,MATCH(AI5,Picks!A:A,0)) ->  | AK5: =INDEX(Weekly!I:I,MATCH(AI5,Weekly!E:E,0)) -> 0 | AL5: =IF(AJ5="","",_xlfn.RANK.EQ(AJ5,TopMaxScores,0)) -> 
A6: =A5 -> Alan White | B6: Spurs | C6: =IF(J6="","",INDEX(Odds!B:B,MATCH(J6,Odds!F:F,0))) -> 1900-01-01 | D6: 1.727272727 | E6: x | J6: Spurs | K6: =INDEX(Odds!G:G,MATCH(J6,Odds!F:F,0)) -> 8/11 | L6: =INDEX(Odds!H:H,MATCH(J6,Odds!F:F,0)) -> 1.727272727 | M6: =INDEX(Odds!I:I,MATCH(J6,Odds!F:F,0)) -> 0 | N6: 0 | P6: =IF(Match!A6="","",Match!T6) -> Wolves 0-1 Villa | R6: =IF(Odds!F6="","",Odds!F6) -> Wolves | S6: =INDEX(Odds!G:G,MATCH(R6,Odds!F:F,0)) -> 13/10 | T6: 0 | U6: =INDEX(Match!O:O,MATCH(P6,Match!T:T,0)) -> Wolves | V6: =INDEX(Match!F:F,MATCH(P6,Match!T:T,0)) -> 0 | W6: =INDEX(Match!P:P,MATCH(P6,Match!T:T,0)) -> Villa | X6: =INDEX(Match!G:G,MATCH(P6,Match!T:T,0)) -> 1 | AB6: =IF(O6="","",INDEX(Odds!G:G,MATCH(O6,Odds!F:F,0))) ->  | AD6: Graham Miller | AE6: =INDEX(Picks!F:F,MATCH(AD6,Picks!A:A,0)) -> 18.59090909 | AF6: =INDEX(Weekly!I:I,MATCH(AD6,Weekly!E:E,0)) -> 3 | AG6: =IF(AE6="","",_xlfn.RANK.EQ(AE6,TopScores,0)) -> 5 | AI6: Rob England | AJ6: =INDEX(Picks!G:G,MATCH(AI6,Picks!A:A,0)) -> 238 | AK6: =INDEX(Weekly!I:I,MATCH(AI6,Weekly!E:E,0)) -> 1 | AL6: =IF(AJ6="","",_xlfn.RANK.EQ(AJ6,TopMaxScores,0)) -> 1
A7: =A5 -> Alan White | B7: Southampton | C7: =IF(J7="","",INDEX(Odds!B:B,MATCH(J7,Odds!F:F,0))) -> 1900-01-01 | D7: 1.727272727 | E7: √ | J7: Southampton | K7: =INDEX(Odds!G:G,MATCH(J7,Odds!F:F,0)) -> 8/11 | L7: =INDEX(Odds!H:H,MATCH(J7,Odds!F:F,0)) -> 1.727272727 | M7: =INDEX(Odds!I:I,MATCH(J7,Odds!F:F,0)) -> 1 | N7: 1.727272727 | P7: =IF(Match!A7="","",Match!T7) -> Birmingham 0-1 Watford | R7: =IF(Odds!F7="","",Odds!F7) -> Birmingham | S7: =INDEX(Odds!G:G,MATCH(R7,Odds!F:F,0)) -> 3/1 | T7: 0 | U7: =INDEX(Match!O:O,MATCH(P7,Match!T:T,0)) -> Birmingham | V7: =INDEX(Match!F:F,MATCH(P7,Match!T:T,0)) -> 0 | W7: =INDEX(Match!P:P,MATCH(P7,Match!T:T,0)) -> Watford | X7: =INDEX(Match!G:G,MATCH(P7,Match!T:T,0)) -> 1 | AB7: =IF(O7="","",INDEX(Odds!G:G,MATCH(O7,Odds!F:F,0))) ->  | AD7: Liam Wah | AE7: =INDEX(Picks!F:F,MATCH(AD7,Picks!A:A,0)) -> 8.25 | AF7: =INDEX(Weekly!I:I,MATCH(AD7,Weekly!E:E,0)) -> 2 | AG7: =IF(AE7="","",_xlfn.RANK.EQ(AE7,TopScores,0)) -> 6 | AI7: Pete Baron | AJ7: =INDEX(Picks!G:G,MATCH(AI7,Picks!A:A,0)) -> 160 | AK7: =INDEX(Weekly!I:I,MATCH(AI7,Weekly!E:E,0)) -> 1 | AL7: =IF(AJ7="","",_xlfn.RANK.EQ(AJ7,TopMaxScores,0)) -> 2
A8: =Results!B8 -> Alfie Davies | B8: Norwich | C8: =IF(J8="","",INDEX(Odds!B:B,MATCH(J8,Odds!F:F,0))) -> 1900-01-07 | D8: 2.75 | E8: √ | F8: =IF(J8="",-10,INDEX(Results!T:T,MATCH(A8,Results!V:V,0))) -> 50.275 | G8: =IF(J8="","",INDEX(Results!AI:AI,MATCH(A8,Results!V:V,0))) -> 50.275 | H8: =IF(G8="",0,1) -> 1 | I8: =INDEX(Picks!AG:AG,MATCH(A8,Picks!AD:AD,0)) -> 1 | J8: Norwich | K8: =INDEX(Odds!G:G,MATCH(J8,Odds!F:F,0)) -> 7/4 | L8: =INDEX(Odds!H:H,MATCH(J8,Odds!F:F,0)) -> 2.75 | M8: =INDEX(Odds!I:I,MATCH(J8,Odds!F:F,0)) -> 1 | N8: 2.75 | P8: =IF(Match!A8="","",Match!T8) -> Blackburn 1-2 Norwich | R8: =IF(Odds!F8="","",Odds!F8) -> Blackburn | S8: =INDEX(Odds!G:G,MATCH(R8,Odds!F:F,0)) -> 6/4 | T8: 0 | U8: =INDEX(Match!O:O,MATCH(P8,Match!T:T,0)) -> Blackburn | V8: =INDEX(Match!F:F,MATCH(P8,Match!T:T,0)) -> 1 | W8: =INDEX(Match!P:P,MATCH(P8,Match!T:T,0)) -> Norwich | X8: =INDEX(Match!G:G,MATCH(P8,Match!T:T,0)) -> 2 | AB8: =IF(O8="","",INDEX(Odds!G:G,MATCH(O8,Odds!F:F,0))) ->  | AD8: Martin Molyneux | AE8: =INDEX(Picks!F:F,MATCH(AD8,Picks!A:A,0)) -> 5.636363636 | AF8: =INDEX(Weekly!I:I,MATCH(AD8,Weekly!E:E,0)) -> 2 | AG8: =IF(AE8="","",_xlfn.RANK.EQ(AE8,TopScores,0)) -> 7 | AI8: Ben Rosser | AJ8: =INDEX(Picks!G:G,MATCH(AI8,Picks!A:A,0)) -> 146.6666667 | AK8: =INDEX(Weekly!I:I,MATCH(AI8,Weekly!E:E,0)) -> 0 | AL8: =IF(AJ8="","",_xlfn.RANK.EQ(AJ8,TopMaxScores,0)) -> 3
A9: =A8 -> Alfie Davies | B9: Derby Draw | C9: =IF(J9="","",INDEX(Odds!B:B,MATCH(J9,Odds!F:F,0))) -> 1900-01-07 | D9: 3.2 | E9: √ | J9: Derby Draw | K9: =INDEX(Odds!G:G,MATCH(J9,Odds!F:F,0)) -> 11/5 | L9: =INDEX(Odds!H:H,MATCH(J9,Odds!F:F,0)) -> 3.2 | M9: =INDEX(Odds!I:I,MATCH(J9,Odds!F:F,0)) -> 1 | N9: 3.2 | P9: =IF(Match!A9="","",Match!T9) -> Bournemouth 5-0 Huddersfield | R9: =IF(Odds!F9="","",Odds!F9) -> Bournemouth | S9: =INDEX(Odds!G:G,MATCH(R9,Odds!F:F,0)) -> 13/20 | T9: 1 | U9: =INDEX(Match!O:O,MATCH(P9,Match!T:T,0)) -> Bournemouth | V9: =INDEX(Match!F:F,MATCH(P9,Match!T:T,0)) -> 5 | W9: =INDEX(Match!P:P,MATCH(P9,Match!T:T,0)) -> Huddersfield | X9: =INDEX(Match!G:G,MATCH(P9,Match!T:T,0)) -> 0 | AB9: =IF(O9="","",INDEX(Odds!G:G,MATCH(O9,Odds!F:F,0))) ->  | AD9: Mark Saunders | AE9: =INDEX(Picks!F:F,MATCH(AD9,Picks!A:A,0)) -> 4.666666667 | AF9: =INDEX(Weekly!I:I,MATCH(AD9,Weekly!E:E,0)) -> 2 | AG9: =IF(AE9="","",_xlfn.RANK.EQ(AE9,TopScores,0)) -> 8 | AI9: Joel Bent | AJ9: =INDEX(Picks!G:G,MATCH(AI9,Picks!A:A,0)) -> 140.05 | AK9: =INDEX(Weekly!I:I,MATCH(AI9,Weekly!E:E,0)) -> 0 | AL9: =IF(AJ9="","",_xlfn.RANK.EQ(AJ9,TopMaxScores,0)) -> 4
A10: =A8 -> Alfie Davies | B10: Reading | C10: =IF(J10="","",INDEX(Odds!B:B,MATCH(J10,Odds!F:F,0))) -> 1900-01-07 | D10: 2.7 | E10: √ | J10: Reading | K10: =INDEX(Odds!G:G,MATCH(J10,Odds!F:F,0)) -> 17/10 | L10: =INDEX(Odds!H:H,MATCH(J10,Odds!F:F,0)) -> 2.7 | M10: =INDEX(Odds!I:I,MATCH(J10,Odds!F:F,0)) -> 1 | N10: 2.7 | P10: =IF(Match!A10="","",Match!T10) -> Cardiff 0-2 Swansea | R10: =IF(Odds!F10="","",Odds!F10) -> Cardiff | S10: =INDEX(Odds!G:G,MATCH(R10,Odds!F:F,0)) -> 29/20 | T10: 0 | U10: =INDEX(Match!O:O,MATCH(P10,Match!T:T,0)) -> Cardiff | V10: =INDEX(Match!F:F,MATCH(P10,Match!T:T,0)) -> 0 | W10: =INDEX(Match!P:P,MATCH(P10,Match!T:T,0)) -> Swansea | X10: =INDEX(Match!G:G,MATCH(P10,Match!T:T,0)) -> 2 | AB10: =IF(O10="","",INDEX(Odds!G:G,MATCH(O10,Odds!F:F,0))) ->  | AD10: Kei Lok Ma | AE10: =INDEX(Picks!F:F,MATCH(AD10,Picks!A:A,0)) -> 4.1875 | AF10: =INDEX(Weekly!I:I,MATCH(AD10,Weekly!E:E,0)) -> 2 | AG10: =IF(AE10="","",_xlfn.RANK.EQ(AE10,TopScores,0)) -> 9 | AI10: Andy Charleston | AJ10: =INDEX(Picks!G:G,MATCH(AI10,Picks!A:A,0)) -> 134.2222222 | AK10: =INDEX(Weekly!I:I,MATCH(AI10,Weekly!E:E,0)) -> 1 | AL10: =IF(AJ10="","",_xlfn.RANK.EQ(AJ10,TopMaxScores,0)) -> 5
A11: =Results!B11 -> Alick Rocca | B11: Birmingham Draw | C11: =IF(J11="","",INDEX(Odds!B:B,MATCH(J11,Odds!F:F,0))) -> 1900-01-07 | D11: 3.2 | E11: x | F11: =IF(J11="",-10,INDEX(Results!T:T,MATCH(A11,Results!V:V,0))) -> -7 | G11: =IF(J11="","",INDEX(Results!AI:AI,MATCH(A11,Results!V:V,0))) -> 66.046 | H11: =IF(G11="",0,1) -> 1 | I11: =INDEX(Picks!AG:AG,MATCH(A11,Picks!AD:AD,0)) -> 46 | J11: Birmingham Draw | K11: =INDEX(Odds!G:G,MATCH(J11,Odds!F:F,0)) -> 11/5 | L11: =INDEX(Odds!H:H,MATCH(J11,Odds!F:F,0)) -> 3.2 | M11: =INDEX(Odds!I:I,MATCH(J11,Odds!F:F,0)) -> 0 | N11: 0 | P11: =IF(Match!A11="","",Match!T11) -> Derby 0-0 Stoke | R11: =IF(Odds!F11="","",Odds!F11) -> Derby | S11: =INDEX(Odds!G:G,MATCH(R11,Odds!F:F,0)) -> 15/8 | T11: 0 | U11: =INDEX(Match!O:O,MATCH(P11,Match!T:T,0)) -> Derby | V11: =INDEX(Match!F:F,MATCH(P11,Match!T:T,0)) -> 0 | W11: =INDEX(Match!P:P,MATCH(P11,Match!T:T,0)) -> Stoke | X11: =INDEX(Match!G:G,MATCH(P11,Match!T:T,0)) -> 0 | AB11: =IF(O11="","",INDEX(Odds!G:G,MATCH(O11,Odds!F:F,0))) ->  | AD11: Gareth McGuire | AE11: =INDEX(Picks!F:F,MATCH(AD11,Picks!A:A,0)) -> 2.98 | AF11: =INDEX(Weekly!I:I,MATCH(AD11,Weekly!E:E,0)) -> 2 | AG11: =IF(AE11="","",_xlfn.RANK.EQ(AE11,TopScores,0)) -> 10 | AI11: Chris Townsend | AJ11: =INDEX(Picks!G:G,MATCH(AI11,Picks!A:A,0)) -> 88.6575 | AK11: =INDEX(Weekly!I:I,MATCH(AI11,Weekly!E:E,0)) -> 1 | AL11: =IF(AJ11="","",_xlfn.RANK.EQ(AJ11,TopMaxScores,0)) -> 6
A12: =A11 -> Alick Rocca | B12: QPR Draw | C12: =IF(J12="","",INDEX(Odds!B:B,MATCH(J12,Odds!F:F,0))) -> 1900-01-07 | D12: 3.3 | E12: x | J12: QPR Draw | K12: =INDEX(Odds!G:G,MATCH(J12,Odds!F:F,0)) -> 23/10 | L12: =INDEX(Odds!H:H,MATCH(J12,Odds!F:F,0)) -> 3.3 | M12: =INDEX(Odds!I:I,MATCH(J12,Odds!F:F,0)) -> 0 | N12: 0 | P12: =IF(Match!A12="","",Match!T12) -> Forest 1-3 Brentford | R12: =IF(Odds!F12="","",Odds!F12) -> Forest | S12: =INDEX(Odds!G:G,MATCH(R12,Odds!F:F,0)) -> 14/5 | T12: 0 | U12: =INDEX(Match!O:O,MATCH(P12,Match!T:T,0)) -> Forest | V12: =INDEX(Match!F:F,MATCH(P12,Match!T:T,0)) -> 1 | W12: =INDEX(Match!P:P,MATCH(P12,Match!T:T,0)) -> Brentford | X12: =INDEX(Match!G:G,MATCH(P12,Match!T:T,0)) -> 3 | AB12: =IF(O12="","",INDEX(Odds!G:G,MATCH(O12,Odds!F:F,0))) ->  | AD12: Vinny Topping | AE12: =INDEX(Picks!F:F,MATCH(AD12,Picks!A:A,0)) -> 2.2375 | AF12: =INDEX(Weekly!I:I,MATCH(AD12,Weekly!E:E,0)) -> 2 | AG12: =IF(AE12="","",_xlfn.RANK.EQ(AE12,TopScores,0)) -> 11 | AI12: Nigel Heyes | AJ12: =INDEX(Picks!G:G,MATCH(AI12,Picks!A:A,0)) -> 86.5 | AK12: =INDEX(Weekly!I:I,MATCH(AI12,Weekly!E:E,0)) -> 1 | AL12: =IF(AJ12="","",_xlfn.RANK.EQ(AJ12,TopMaxScores,0)) -> 7
A13: =A11 -> Alick Rocca | B13: =IF(J13="","",J13) -> Sheff W Draw | C13: =IF(J13="","",INDEX(Odds!B:B,MATCH(J13,Odds!F:F,0))) -> 1900-01-07 | D13: 3.1 | E13: x | J13: Sheff W Draw | K13: =INDEX(Odds!G:G,MATCH(J13,Odds!F:F,0)) -> 21/10 | L13: =INDEX(Odds!H:H,MATCH(J13,Odds!F:F,0)) -> 3.1 | M13: =INDEX(Odds!I:I,MATCH(J13,Odds!F:F,0)) -> 0 | N13: 0 | P13: =IF(Match!A13="","",Match!T13) -> Luton 3-0 Preston | R13: =IF(Odds!F13="","",Odds!F13) -> Luton | S13: =INDEX(Odds!G:G,MATCH(R13,Odds!F:F,0)) -> 2/1 | T13: 1 | U13: =INDEX(Match!O:O,MATCH(P13,Match!T:T,0)) -> Luton | V13: =INDEX(Match!F:F,MATCH(P13,Match!T:T,0)) -> 3 | W13: =INDEX(Match!P:P,MATCH(P13,Match!T:T,0)) -> Preston | X13: =INDEX(Match!G:G,MATCH(P13,Match!T:T,0)) -> 0 | AB13: =IF(O13="","",INDEX(Odds!G:G,MATCH(O13,Odds!F:F,0))) ->  | AD13: Steve Carter | AE13: =INDEX(Picks!F:F,MATCH(AD13,Picks!A:A,0)) -> 1.75 | AF13: =INDEX(Weekly!I:I,MATCH(AD13,Weekly!E:E,0)) -> 2 | AG13: =IF(AE13="","",_xlfn.RANK.EQ(AE13,TopScores,0)) -> 12 | AI13: Paul Barnes | AJ13: =INDEX(Picks!G:G,MATCH(AI13,Picks!A:A,0)) -> 79.27272727 | AK13: =INDEX(Weekly!I:I,MATCH(AI13,Weekly!E:E,0)) -> 0 | AL13: =IF(AJ13="","",_xlfn.RANK.EQ(AJ13,TopMaxScores,0)) -> 8
A14: =Results!B14 -> Andy Charleston | B14: Everton | C14: =IF(J14="","",INDEX(Odds!B:B,MATCH(J14,Odds!F:F,0))) -> 1900-01-07 | D14: 4.333333333 | E14: √ | F14: =IF(J14="",-10,INDEX(Results!T:T,MATCH(A14,Results!V:V,0))) -> -2.666666667 | G14: =IF(J14="","",INDEX(Results!AI:AI,MATCH(A14,Results!V:V,0))) -> 134.2222222 | H14: =IF(G14="",0,1) -> 1 | I14: =INDEX(Picks!AG:AG,MATCH(A14,Picks!AD:AD,0)) -> 25 | J14: Everton | K14: =INDEX(Odds!G:G,MATCH(J14,Odds!F:F,0)) -> 10/3 | L14: =INDEX(Odds!H:H,MATCH(J14,Odds!F:F,0)) -> 4.333333333 | M14: =INDEX(Odds!I:I,MATCH(J14,Odds!F:F,0)) -> 1 | N14: 4.333333333 | P14: =IF(Match!A14="","",Match!T14) -> Middlesbro 3-0 Millwall | R14: =IF(Odds!F14="","",Odds!F14) -> Middlesbro | S14: =INDEX(Odds!G:G,MATCH(R14,Odds!F:F,0)) -> 23/20 | T14: 1 | U14: =INDEX(Match!O:O,MATCH(P14,Match!T:T,0)) -> Middlesbro | V14: =INDEX(Match!F:F,MATCH(P14,Match!T:T,0)) -> 3 | W14: =INDEX(Match!P:P,MATCH(P14,Match!T:T,0)) -> Millwall | X14: =INDEX(Match!G:G,MATCH(P14,Match!T:T,0)) -> 0 | AB14: =IF(O14="","",INDEX(Odds!G:G,MATCH(O14,Odds!F:F,0))) ->  | AD14: Chris Griffin | AE14: =INDEX(Picks!F:F,MATCH(AD14,Picks!A:A,0)) -> 1.75 | AF14: =INDEX(Weekly!I:I,MATCH(AD14,Weekly!E:E,0)) -> 2 | AG14: =IF(AE14="","",_xlfn.RANK.EQ(AE14,TopScores,0)) -> 12 | AI14: James Bell | AJ14: =INDEX(Picks!G:G,MATCH(AI14,Picks!A:A,0)) -> 73.144 | AK14: =INDEX(Weekly!I:I,MATCH(AI14,Weekly!E:E,0)) -> 0 | AL14: =IF(AJ14="","",_xlfn.RANK.EQ(AJ14,TopMaxScores,0)) -> 9
A15: =A14 -> Andy Charleston | B15: Man U | C15: =IF(J15="","",INDEX(Odds!B:B,MATCH(J15,Odds!F:F,0))) -> 1900-01-07 | D15: 4.333333333 | E15: x | J15: Man U | K15: =INDEX(Odds!G:G,MATCH(J15,Odds!F:F,0)) -> 10/3 | L15: =INDEX(Odds!H:H,MATCH(J15,Odds!F:F,0)) -> 4.333333333 | M15: =INDEX(Odds!I:I,MATCH(J15,Odds!F:F,0)) -> 0 | N15: 0 | P15: =IF(Match!A15="","",Match!T15) -> QPR 0-1 Reading | R15: =IF(Odds!F15="","",Odds!F15) -> QPR | S15: =INDEX(Odds!G:G,MATCH(R15,Odds!F:F,0)) -> 13/8 | T15: 0 | U15: =INDEX(Match!O:O,MATCH(P15,Match!T:T,0)) -> QPR | V15: =INDEX(Match!F:F,MATCH(P15,Match!T:T,0)) -> 0 | W15: =INDEX(Match!P:P,MATCH(P15,Match!T:T,0)) -> Reading | X15: =INDEX(Match!G:G,MATCH(P15,Match!T:T,0)) -> 1 | AB15: =IF(O15="","",INDEX(Odds!G:G,MATCH(O15,Odds!F:F,0))) ->  | AD15: Andy White | AE15: =INDEX(Picks!F:F,MATCH(AD15,Picks!A:A,0)) -> 1.75 | AF15: =INDEX(Weekly!I:I,MATCH(AD15,Weekly!E:E,0)) -> 2 | AG15: =IF(AE15="","",_xlfn.RANK.EQ(AE15,TopScores,0)) -> 12 | AI15: Barry Birchall | AJ15: =INDEX(Picks!G:G,MATCH(AI15,Picks!A:A,0)) -> 68.516 | AK15: =INDEX(Weekly!I:I,MATCH(AI15,Weekly!E:E,0)) -> 0 | AL15: =IF(AJ15="","",_xlfn.RANK.EQ(AJ15,TopMaxScores,0)) -> 10
A16: =A14 -> Andy Charleston | B16: Birmingham | C16: =IF(J16="","",INDEX(Odds!B:B,MATCH(J16,Odds!F:F,0))) -> 1900-01-07 | D16: 4 | E16: x | J16: Birmingham | K16: =INDEX(Odds!G:G,MATCH(J16,Odds!F:F,0)) -> 3/1 | L16: =INDEX(Odds!H:H,MATCH(J16,Odds!F:F,0)) -> 4 | M16: =INDEX(Odds!I:I,MATCH(J16,Odds!F:F,0)) -> 0 | N16: 0 | P16: =IF(Match!A16="","",Match!T16) -> Rotherham 2-0 Bristol C | R16: =IF(Odds!F16="","",Odds!F16) -> Rotherham | S16: =INDEX(Odds!G:G,MATCH(R16,Odds!F:F,0)) -> 19/10 | T16: 1 | U16: =INDEX(Match!O:O,MATCH(P16,Match!T:T,0)) -> Rotherham | V16: =INDEX(Match!F:F,MATCH(P16,Match!T:T,0)) -> 2 | W16: =INDEX(Match!P:P,MATCH(P16,Match!T:T,0)) -> Bristol C | X16: =INDEX(Match!G:G,MATCH(P16,Match!T:T,0)) -> 0 | AB16: =IF(O16="","",INDEX(Odds!G:G,MATCH(O16,Odds!F:F,0))) ->  | AD16: David Dunn | AE16: =INDEX(Picks!F:F,MATCH(AD16,Picks!A:A,0)) -> 1.45 | AF16: =INDEX(Weekly!I:I,MATCH(AD16,Weekly!E:E,0)) -> 2 | AG16: =IF(AE16="","",_xlfn.RANK.EQ(AE16,TopScores,0)) -> 15 | AI16: Alick Rocca | AJ16: =INDEX(Picks!G:G,MATCH(AI16,Picks!A:A,0)) -> 66.046 | AK16: =INDEX(Weekly!I:I,MATCH(AI16,Weekly!E:E,0)) -> 0 | AL16: =IF(AJ16="","",_xlfn.RANK.EQ(AJ16,TopMaxScores,0)) -> 11
A17: =Results!B17 -> Andy White | B17: Wolves | C17: =IF(J17="","",INDEX(Odds!B:B,MATCH(J17,Odds!F:F,0))) -> 1900-01-07 | D17: 2.3 | E17: x | F17: =IF(J17="",-10,INDEX(Results!T:T,MATCH(A17,Results!V:V,0))) -> 1.75 | G17: =IF(J17="","",INDEX(Results!AI:AI,MATCH(A17,Results!V:V,0))) -> 24.175 | H17: =IF(G17="",0,1) -> 1 | I17: =INDEX(Picks!AG:AG,MATCH(A17,Picks!AD:AD,0)) -> 12 | J17: Wolves | K17: =INDEX(Odds!G:G,MATCH(J17,Odds!F:F,0)) -> 13/10 | L17: =INDEX(Odds!H:H,MATCH(J17,Odds!F:F,0)) -> 2.3 | M17: =INDEX(Odds!I:I,MATCH(J17,Odds!F:F,0)) -> 0 | N17: 0 | P17: =IF(Match!A17="","",Match!T17) -> Sheff W 1-2 Barnsley | R17: =IF(Odds!F17="","",Odds!F17) -> Sheff W | S17: =INDEX(Odds!G:G,MATCH(R17,Odds!F:F,0)) -> 6/4 | T17: 0 | U17: =INDEX(Match!O:O,MATCH(P17,Match!T:T,0)) -> Sheff W | V17: =INDEX(Match!F:F,MATCH(P17,Match!T:T,0)) -> 1 | W17: =INDEX(Match!P:P,MATCH(P17,Match!T:T,0)) -> Barnsley | X17: =INDEX(Match!G:G,MATCH(P17,Match!T:T,0)) -> 2 | AB17: =IF(O17="","",INDEX(Odds!G:G,MATCH(O17,Odds!F:F,0))) ->  | AD17: Paul Allen | AE17: =INDEX(Picks!F:F,MATCH(AD17,Picks!A:A,0)) -> 1.44 | AF17: =INDEX(Weekly!I:I,MATCH(AD17,Weekly!E:E,0)) -> 2 | AG17: =IF(AE17="","",_xlfn.RANK.EQ(AE17,TopScores,0)) -> 16 | AI17: Paul Fairhurst | AJ17: =INDEX(Picks!G:G,MATCH(AI17,Picks!A:A,0)) -> 60.552 | AK17: =INDEX(Weekly!I:I,MATCH(AI17,Weekly!E:E,0)) -> 0 | AL17: =IF(AJ17="","",_xlfn.RANK.EQ(AJ17,TopMaxScores,0)) -> 12
A18: =A17 -> Andy White | B18: =IF(J18="","",J18) -> Newcastle | C18: =IF(J18="","",INDEX(Odds!B:B,MATCH(J18,Odds!F:F,0))) -> 1900-01-07 | D18: 2.25 | E18: √ | J18: Newcastle | K18: =INDEX(Odds!G:G,MATCH(J18,Odds!F:F,0)) -> 5/4 | L18: =INDEX(Odds!H:H,MATCH(J18,Odds!F:F,0)) -> 2.25 | M18: =INDEX(Odds!I:I,MATCH(J18,Odds!F:F,0)) -> 1 | N18: 2.25 | P18: =IF(Match!A18="","",Match!T18) -> Wycombe 1-2 Coventry | R18: =IF(Odds!F18="","",Odds!F18) -> Wycombe | S18: =INDEX(Odds!G:G,MATCH(R18,Odds!F:F,0)) -> 21/10 | T18: 0 | U18: =INDEX(Match!O:O,MATCH(P18,Match!T:T,0)) -> Wycombe | V18: =INDEX(Match!F:F,MATCH(P18,Match!T:T,0)) -> 1 | W18: =INDEX(Match!P:P,MATCH(P18,Match!T:T,0)) -> Coventry | X18: =INDEX(Match!G:G,MATCH(P18,Match!T:T,0)) -> 2 | AB18: =IF(O18="","",INDEX(Odds!G:G,MATCH(O18,Odds!F:F,0))) ->  | AD18: Dave Bell | AE18: =INDEX(Picks!F:F,MATCH(AD18,Picks!A:A,0)) -> 1.333333333 | AF18: =INDEX(Weekly!I:I,MATCH(AD18,Weekly!E:E,0)) -> 1 | AG18: =IF(AE18="","",_xlfn.RANK.EQ(AE18,TopScores,0)) -> 17 | AI18: Chris Bow | AJ18: =INDEX(Picks!G:G,MATCH(AI18,Picks!A:A,0)) -> 60.2 | AK18: =INDEX(Weekly!I:I,MATCH(AI18,Weekly!E:E,0)) -> 1 | AL18: =IF(AJ18="","",_xlfn.RANK.EQ(AJ18,TopMaxScores,0)) -> 13
A19: =A17 -> Andy White | B19: Leicester | C19: =IF(J19="","",INDEX(Odds!B:B,MATCH(J19,Odds!F:F,0))) -> 1900-01-01 | D19: 2 | E19: √ | J19: Leicester | K19: =INDEX(Odds!G:G,MATCH(J19,Odds!F:F,0)) -> 1/1 | L19: =INDEX(Odds!H:H,MATCH(J19,Odds!F:F,0)) -> 2 | M19: =INDEX(Odds!I:I,MATCH(J19,Odds!F:F,0)) -> 1 | N19: 2 | P19: =IF(Match!A19="","",Match!T19) -> Blackpool 0-0 Oxford | R19: =IF(Odds!F19="","",Odds!F19) -> Blackpool | S19: =INDEX(Odds!G:G,MATCH(R19,Odds!F:F,0)) -> 6/5 | T19: 0 | U19: =INDEX(Match!O:O,MATCH(P19,Match!T:T,0)) -> Blackpool | V19: =INDEX(Match!F:F,MATCH(P19,Match!T:T,0)) -> 0 | W19: =INDEX(Match!P:P,MATCH(P19,Match!T:T,0)) -> Oxford | X19: =INDEX(Match!G:G,MATCH(P19,Match!T:T,0)) -> 0 | AB19: =IF(O19="","",INDEX(Odds!G:G,MATCH(O19,Odds!F:F,0))) ->  | AD19: Stephen Barr | AE19: =INDEX(Picks!F:F,MATCH(AD19,Picks!A:A,0)) -> 0.8636363636 | AF19: =INDEX(Weekly!I:I,MATCH(AD19,Weekly!E:E,0)) -> 2 | AG19: =IF(AE19="","",_xlfn.RANK.EQ(AE19,TopScores,0)) -> 18 | AI19: Sally Williams | AJ19: =INDEX(Picks!G:G,MATCH(AI19,Picks!A:A,0)) -> 59.24 | AK19: =INDEX(Weekly!I:I,MATCH(AI19,Weekly!E:E,0)) -> 1 | AL19: =IF(AJ19="","",_xlfn.RANK.EQ(AJ19,TopMaxScores,0)) -> 14
A20: =Results!B20 -> Ashley Houghton | B20: Doncaster | C20: =IF(J20="","",INDEX(Odds!B:B,MATCH(J20,Odds!F:F,0))) -> 1900-01-07 | D20: 1.909090909 | E20: √ | F20: =IF(J20="",-10,INDEX(Results!T:T,MATCH(A20,Results!V:V,0))) -> -0.3916083916 | G20: =IF(J20="","",INDEX(Results!AI:AI,MATCH(A20,Results!V:V,0))) -> 11.78181818 | H20: =IF(G20="",0,1) -> 1 | I20: =INDEX(Picks!AG:AG,MATCH(A20,Picks!AD:AD,0)) -> 23 | J20: Doncaster | K20: =INDEX(Odds!G:G,MATCH(J20,Odds!F:F,0)) -> 10/11 | L20: =INDEX(Odds!H:H,MATCH(J20,Odds!F:F,0)) -> 1.909090909 | M20: =INDEX(Odds!I:I,MATCH(J20,Odds!F:F,0)) -> 1 | N20: 1.909090909 | P20: =IF(Match!A20="","",Match!T20) -> Bristol R 3-0 Plymouth | R20: =IF(Odds!F20="","",Odds!F20) -> Bristol R | S20: =INDEX(Odds!G:G,MATCH(R20,Odds!F:F,0)) -> 29/20 | T20: 1 | U20: =INDEX(Match!O:O,MATCH(P20,Match!T:T,0)) -> Bristol R | V20: =INDEX(Match!F:F,MATCH(P20,Match!T:T,0)) -> 3 | W20: =INDEX(Match!P:P,MATCH(P20,Match!T:T,0)) -> Plymouth | X20: =INDEX(Match!G:G,MATCH(P20,Match!T:T,0)) -> 0 | AB20: =IF(O20="","",INDEX(Odds!G:G,MATCH(O20,Odds!F:F,0))) ->  | AD20: Howard Bradley | AE20: =INDEX(Picks!F:F,MATCH(AD20,Picks!A:A,0)) -> 0.5818181818 | AF20: =INDEX(Weekly!I:I,MATCH(AD20,Weekly!E:E,0)) -> 2 | AG20: =IF(AE20="","",_xlfn.RANK.EQ(AE20,TopScores,0)) -> 19 | AI20: Paul Adderley | AJ20: =INDEX(Picks!G:G,MATCH(AI20,Picks!A:A,0)) -> 57.25 | AK20: =INDEX(Weekly!I:I,MATCH(AI20,Weekly!E:E,0)) -> 1 | AL20: =IF(AJ20="","",_xlfn.RANK.EQ(AJ20,TopMaxScores,0)) -> 15
A21: =A20 -> Ashley Houghton | B21: Hull | C21: =IF(J21="","",INDEX(Odds!B:B,MATCH(J21,Odds!F:F,0))) -> 1900-01-07 | D21: 1.6 | E21: x | J21: Hull | K21: =INDEX(Odds!G:G,MATCH(J21,Odds!F:F,0)) -> 6/10 | L21: =INDEX(Odds!H:H,MATCH(J21,Odds!F:F,0)) -> 1.6 | M21: =INDEX(Odds!I:I,MATCH(J21,Odds!F:F,0)) -> 0 | N21: 0 | P21: =IF(Match!A21="","",Match!T21) -> Charlton 5-2 Wimbledon | R21: =IF(Odds!F21="","",Odds!F21) -> Charlton | S21: =INDEX(Odds!G:G,MATCH(R21,Odds!F:F,0)) -> 19/20 | T21: 1 | U21: =INDEX(Match!O:O,MATCH(P21,Match!T:T,0)) -> Charlton | V21: =INDEX(Match!F:F,MATCH(P21,Match!T:T,0)) -> 5 | W21: =INDEX(Match!P:P,MATCH(P21,Match!T:T,0)) -> Wimbledon | X21: =INDEX(Match!G:G,MATCH(P21,Match!T:T,0)) -> 2 | AB21: =IF(O21="","",INDEX(Odds!G:G,MATCH(O21,Odds!F:F,0))) ->  | AD21: Kevin Carter | AE21: =INDEX(Picks!F:F,MATCH(AD21,Picks!A:A,0)) -> 0.1818181818 | AF21: =INDEX(Weekly!I:I,MATCH(AD21,Weekly!E:E,0)) -> 2 | AG21: =IF(AE21="","",_xlfn.RANK.EQ(AE21,TopScores,0)) -> 20 | AI21: Ian Davies | AJ21: =INDEX(Picks!G:G,MATCH(AI21,Picks!A:A,0)) -> 56.239 | AK21: =INDEX(Weekly!I:I,MATCH(AI21,Weekly!E:E,0)) -> 0 | AL21: =IF(AJ21="","",_xlfn.RANK.EQ(AJ21,TopMaxScores,0)) -> 16
A22: =A20 -> Ashley Houghton | B22: Carlisle | C22: =IF(J22="","",INDEX(Odds!B:B,MATCH(J22,Odds!F:F,0))) -> 1900-01-07 | D22: 1.615384615 | E22: √ | J22: Carlisle | K22: =INDEX(Odds!G:G,MATCH(J22,Odds!F:F,0)) -> 8/13 | L22: =INDEX(Odds!H:H,MATCH(J22,Odds!F:F,0)) -> 1.615384615 | M22: =INDEX(Odds!I:I,MATCH(J22,Odds!F:F,0)) -> 1 | N22: 1.615384615 | P22: =IF(Match!A22="","",Match!T22) -> Crewe 2-1 Northampton | R22: =IF(Odds!F22="","",Odds!F22) -> Crewe | S22: =INDEX(Odds!G:G,MATCH(R22,Odds!F:F,0)) -> 3/4 | T22: 1 | U22: =INDEX(Match!O:O,MATCH(P22,Match!T:T,0)) -> Crewe | V22: =INDEX(Match!F:F,MATCH(P22,Match!T:T,0)) -> 2 | W22: =INDEX(Match!P:P,MATCH(P22,Match!T:T,0)) -> Northampton | X22: =INDEX(Match!G:G,MATCH(P22,Match!T:T,0)) -> 1 | AB22: =IF(O22="","",INDEX(Odds!G:G,MATCH(O22,Odds!F:F,0))) ->  | AD22: Alan White | AE22: =INDEX(Picks!F:F,MATCH(AD22,Picks!A:A,0)) -> 0.1818181818 | AF22: =INDEX(Weekly!I:I,MATCH(AD22,Weekly!E:E,0)) -> 2 | AG22: =IF(AE22="","",_xlfn.RANK.EQ(AE22,TopScores,0)) -> 20 | AI22: John Evans | AJ22: =INDEX(Picks!G:G,MATCH(AI22,Picks!A:A,0)) -> 50.996875 | AK22: =INDEX(Weekly!I:I,MATCH(AI22,Weekly!E:E,0)) -> 1 | AL22: =IF(AJ22="","",_xlfn.RANK.EQ(AJ22,TopMaxScores,0)) -> 17
A23: =Results!B23 -> Barry Birchall | B23: Plymouth | C23: =IF(J23="","",INDEX(Odds!B:B,MATCH(J23,Odds!F:F,0))) -> 1900-01-07 | D23: 2.7 | E23: x | F23: =IF(J23="",-10,INDEX(Results!T:T,MATCH(A23,Results!V:V,0))) -> -7 | G23: =IF(J23="","",INDEX(Results!AI:AI,MATCH(A23,Results!V:V,0))) -> 68.516 | H23: =IF(G23="",0,1) -> 1 | I23: =INDEX(Picks!AG:AG,MATCH(A23,Picks!AD:AD,0)) -> 46 | J23: Plymouth | K23: =INDEX(Odds!G:G,MATCH(J23,Odds!F:F,0)) -> 17/10 | L23: =INDEX(Odds!H:H,MATCH(J23,Odds!F:F,0)) -> 2.7 | M23: =INDEX(Odds!I:I,MATCH(J23,Odds!F:F,0)) -> 0 | N23: 0 | P23: =IF(Match!A23="","",Match!T23) -> Doncaster 2-1 Gillingham | R23: =IF(Odds!F23="","",Odds!F23) -> Doncaster | S23: =INDEX(Odds!G:G,MATCH(R23,Odds!F:F,0)) -> 10/11 | T23: 1 | U23: =INDEX(Match!O:O,MATCH(P23,Match!T:T,0)) -> Doncaster | V23: =INDEX(Match!F:F,MATCH(P23,Match!T:T,0)) -> 2 | W23: =INDEX(Match!P:P,MATCH(P23,Match!T:T,0)) -> Gillingham | X23: =INDEX(Match!G:G,MATCH(P23,Match!T:T,0)) -> 1 | AB23: =IF(O23="","",INDEX(Odds!G:G,MATCH(O23,Odds!F:F,0))) ->  | AD23: John Ronan | AE23: =INDEX(Picks!F:F,MATCH(AD23,Picks!A:A,0)) -> 0 | AF23: =INDEX(Weekly!I:I,MATCH(AD23,Weekly!E:E,0)) -> 2 | AG23: =IF(AE23="","",_xlfn.RANK.EQ(AE23,TopScores,0)) -> 22 | AI23: Alfie Davies | AJ23: =INDEX(Picks!G:G,MATCH(AI23,Picks!A:A,0)) -> 50.275 | AK23: =INDEX(Weekly!I:I,MATCH(AI23,Weekly!E:E,0)) -> 3 | AL23: =IF(AJ23="","",_xlfn.RANK.EQ(AJ23,TopMaxScores,0)) -> 18
A24: =A23 -> Barry Birchall | B24: Cambridge | C24: =IF(J24="","",INDEX(Odds!B:B,MATCH(J24,Odds!F:F,0))) -> 1900-01-07 | D24: 3.7 | E24: x | J24: Cambridge | K24: =INDEX(Odds!G:G,MATCH(J24,Odds!F:F,0)) -> 27/10 | L24: =INDEX(Odds!H:H,MATCH(J24,Odds!F:F,0)) -> 3.7 | M24: =INDEX(Odds!I:I,MATCH(J24,Odds!F:F,0)) -> 0 | N24: 0 | P24: =IF(Match!A24="","",Match!T24) -> Hull 0-1 Shrewsbury | R24: =IF(Odds!F24="","",Odds!F24) -> Hull | S24: =INDEX(Odds!G:G,MATCH(R24,Odds!F:F,0)) -> 6/10 | T24: 0 | U24: =INDEX(Match!O:O,MATCH(P24,Match!T:T,0)) -> Hull | V24: =INDEX(Match!F:F,MATCH(P24,Match!T:T,0)) -> 0 | W24: =INDEX(Match!P:P,MATCH(P24,Match!T:T,0)) -> Shrewsbury | X24: =INDEX(Match!G:G,MATCH(P24,Match!T:T,0)) -> 1 | AB24: =IF(O24="","",INDEX(Odds!G:G,MATCH(O24,Odds!F:F,0))) ->  | AD24: Ashley Houghton | AE24: =INDEX(Picks!F:F,MATCH(AD24,Picks!A:A,0)) -> -0.3916083916 | AF24: =INDEX(Weekly!I:I,MATCH(AD24,Weekly!E:E,0)) -> 2 | AG24: =IF(AE24="","",_xlfn.RANK.EQ(AE24,TopScores,0)) -> 23 | AI24: Alan Rogers | AJ24: =INDEX(Picks!G:G,MATCH(AI24,Picks!A:A,0)) -> 47.08 | AK24: =INDEX(Weekly!I:I,MATCH(AI24,Weekly!E:E,0)) -> 3 | AL24: =IF(AJ24="","",_xlfn.RANK.EQ(AJ24,TopMaxScores,0)) -> 19
A25: =A23 -> Barry Birchall | B25: Swindon draw | C25: =IF(J25="","",INDEX(Odds!B:B,MATCH(J25,Odds!F:F,0))) -> 1900-01-07 | D25: 3.4 | E25: x | J25: Swindon draw | K25: =INDEX(Odds!G:G,MATCH(J25,Odds!F:F,0)) -> 12/5 | L25: =INDEX(Odds!H:H,MATCH(J25,Odds!F:F,0)) -> 3.4 | M25: =INDEX(Odds!I:I,MATCH(J25,Odds!F:F,0)) -> 0 | N25: 0 | P25: =IF(Match!A25="","",Match!T25) -> Ipswich 0-2 Portsmouth | R25: =IF(Odds!F25="","",Odds!F25) -> Ipswich | S25: =INDEX(Odds!G:G,MATCH(R25,Odds!F:F,0)) -> 21/10 | T25: 0 | U25: =INDEX(Match!O:O,MATCH(P25,Match!T:T,0)) -> Ipswich | V25: =INDEX(Match!F:F,MATCH(P25,Match!T:T,0)) -> 0 | W25: =INDEX(Match!P:P,MATCH(P25,Match!T:T,0)) -> Portsmouth | X25: =INDEX(Match!G:G,MATCH(P25,Match!T:T,0)) -> 2 | AB25: =IF(O25="","",INDEX(Odds!G:G,MATCH(O25,Odds!F:F,0))) ->  | AD25: Lennie Bow | AE25: =INDEX(Picks!F:F,MATCH(AD25,Picks!A:A,0)) -> -1.069230769 | AF25: =INDEX(Weekly!I:I,MATCH(AD25,Weekly!E:E,0)) -> 2 | AG25: =IF(AE25="","",_xlfn.RANK.EQ(AE25,TopScores,0)) -> 24 | AI25: Gareth McGuire | AJ25: =INDEX(Picks!G:G,MATCH(AI25,Picks!A:A,0)) -> 46.9 | AK25: =INDEX(Weekly!I:I,MATCH(AI25,Weekly!E:E,0)) -> 2 | AL25: =IF(AJ25="","",_xlfn.RANK.EQ(AJ25,TopMaxScores,0)) -> 20
A26: =Results!B26 -> Ben Rosser | B26: Man U | C26: =IF(J26="","",INDEX(Odds!B:B,MATCH(J26,Odds!F:F,0))) -> 1900-01-07 | D26: 4.333333333 | E26: x | F26: =IF(J26="",-10,INDEX(Results!T:T,MATCH(A26,Results!V:V,0))) -> -7 | G26: =IF(J26="","",INDEX(Results!AI:AI,MATCH(A26,Results!V:V,0))) -> 146.6666667 | H26: =IF(G26="",0,1) -> 1 | I26: =INDEX(Picks!AG:AG,MATCH(A26,Picks!AD:AD,0)) -> 46 | J26: Man U | K26: =INDEX(Odds!G:G,MATCH(J26,Odds!F:F,0)) -> 10/3 | L26: =INDEX(Odds!H:H,MATCH(J26,Odds!F:F,0)) -> 4.333333333 | M26: =INDEX(Odds!I:I,MATCH(J26,Odds!F:F,0)) -> 0 | N26: 0 | P26: =IF(Match!A26="","",Match!T26) -> Lincoln 0-4 Sunderland | R26: =IF(Odds!F26="","",Odds!F26) -> Lincoln | S26: =INDEX(Odds!G:G,MATCH(R26,Odds!F:F,0)) -> 9/5 | T26: 0 | U26: =INDEX(Match!O:O,MATCH(P26,Match!T:T,0)) -> Lincoln | V26: =INDEX(Match!F:F,MATCH(P26,Match!T:T,0)) -> 0 | W26: =INDEX(Match!P:P,MATCH(P26,Match!T:T,0)) -> Sunderland | X26: =INDEX(Match!G:G,MATCH(P26,Match!T:T,0)) -> 4 | AB26: =IF(O26="","",INDEX(Odds!G:G,MATCH(O26,Odds!F:F,0))) ->  | AD26: Andy Charleston | AE26: =INDEX(Picks!F:F,MATCH(AD26,Picks!A:A,0)) -> -2.666666667 | AF26: =INDEX(Weekly!I:I,MATCH(AD26,Weekly!E:E,0)) -> 1 | AG26: =IF(AE26="","",_xlfn.RANK.EQ(AE26,TopScores,0)) -> 25 | AI26: Gerard Ventom | AJ26: =INDEX(Picks!G:G,MATCH(AI26,Picks!A:A,0)) -> 46.6 | AK26: =INDEX(Weekly!I:I,MATCH(AI26,Weekly!E:E,0)) -> 3 | AL26: =IF(AJ26="","",_xlfn.RANK.EQ(AJ26,TopMaxScores,0)) -> 21
A27: =A26 -> Ben Rosser | B27: Everton draw | C27: =IF(J27="","",INDEX(Odds!B:B,MATCH(J27,Odds!F:F,0))) -> 1900-01-07 | D27: 4 | E27: x | J27: Everton draw | K27: =INDEX(Odds!G:G,MATCH(J27,Odds!F:F,0)) -> 3/1 | L27: =INDEX(Odds!H:H,MATCH(J27,Odds!F:F,0)) -> 4 | M27: =INDEX(Odds!I:I,MATCH(J27,Odds!F:F,0)) -> 0 | N27: 0 | P27: =IF(Match!A27="","",Match!T27) -> MK Dons 1-1 Burton | R27: =IF(Odds!F27="","",Odds!F27) -> MK Dons | S27: =INDEX(Odds!G:G,MATCH(R27,Odds!F:F,0)) -> 4/5 | T27: 0 | U27: =INDEX(Match!O:O,MATCH(P27,Match!T:T,0)) -> MK Dons | V27: =INDEX(Match!F:F,MATCH(P27,Match!T:T,0)) -> 1 | W27: =INDEX(Match!P:P,MATCH(P27,Match!T:T,0)) -> Burton | X27: =INDEX(Match!G:G,MATCH(P27,Match!T:T,0)) -> 1 | AB27: =IF(O27="","",INDEX(Odds!G:G,MATCH(O27,Odds!F:F,0))) ->  | AD27: Chris Bow | AE27: =INDEX(Picks!F:F,MATCH(AD27,Picks!A:A,0)) -> -2.666666667 | AF27: =INDEX(Weekly!I:I,MATCH(AD27,Weekly!E:E,0)) -> 1 | AG27: =IF(AE27="","",_xlfn.RANK.EQ(AE27,TopScores,0)) -> 25 | AI27: Mark Saunders | AJ27: =INDEX(Picks!G:G,MATCH(AI27,Picks!A:A,0)) -> 46.46666667 | AK27: =INDEX(Weekly!I:I,MATCH(AI27,Weekly!E:E,0)) -> 2 | AL27: =IF(AJ27="","",_xlfn.RANK.EQ(AJ27,TopMaxScores,0)) -> 22
A28: =A26 -> Ben Rosser | B28: Palace | C28: =IF(J28="","",INDEX(Odds!B:B,MATCH(J28,Odds!F:F,0))) -> 1900-01-01 | D28: 4.8 | E28: x | J28: Palace | K28: =INDEX(Odds!G:G,MATCH(J28,Odds!F:F,0)) -> 19/5 | L28: =INDEX(Odds!H:H,MATCH(J28,Odds!F:F,0)) -> 4.8 | M28: =INDEX(Odds!I:I,MATCH(J28,Odds!F:F,0)) -> 0 | N28: 0 | P28: =IF(Match!A28="","",Match!T28) -> Peterborough 4-1 Rochdale | R28: =IF(Odds!F28="","",Odds!F28) -> Peterborough | S28: =INDEX(Odds!G:G,MATCH(R28,Odds!F:F,0)) -> 8/15 | T28: 1 | U28: =INDEX(Match!O:O,MATCH(P28,Match!T:T,0)) -> Peterborough | V28: =INDEX(Match!F:F,MATCH(P28,Match!T:T,0)) -> 4 | W28: =INDEX(Match!P:P,MATCH(P28,Match!T:T,0)) -> Rochdale | X28: =INDEX(Match!G:G,MATCH(P28,Match!T:T,0)) -> 1 | AB28: =IF(O28="","",INDEX(Odds!G:G,MATCH(O28,Odds!F:F,0))) ->  | AD28: Simon Greenhalgh | AE28: =INDEX(Picks!F:F,MATCH(AD28,Picks!A:A,0)) -> -3 | AF28: =INDEX(Weekly!I:I,MATCH(AD28,Weekly!E:E,0)) -> 1 | AG28: =IF(AE28="","",_xlfn.RANK.EQ(AE28,TopScores,0)) -> 27 | AI28: Mal Stott | AJ28: =INDEX(Picks!G:G,MATCH(AI28,Picks!A:A,0)) -> 45.76 | AK28: =INDEX(Weekly!I:I,MATCH(AI28,Weekly!E:E,0)) -> 0 | AL28: =IF(AJ28="","",_xlfn.RANK.EQ(AJ28,TopMaxScores,0)) -> 23
A29: =Results!B29 -> Charlie Griffiths | B29: Scunthorpe | C29: =IF(J29="","",INDEX(Odds!B:B,MATCH(J29,Odds!F:F,0))) -> 1900-01-07 | D29: 2.3 | E29: x | F29: =IF(J29="",-10,INDEX(Results!T:T,MATCH(A29,Results!V:V,0))) -> -7 | G29: =IF(J29="","",INDEX(Results!AI:AI,MATCH(A29,Results!V:V,0))) -> 37.58125 | H29: =IF(G29="",0,1) -> 1 | I29: =INDEX(Picks!AG:AG,MATCH(A29,Picks!AD:AD,0)) -> 46 | J29: Scunthorpe | K29: =INDEX(Odds!G:G,MATCH(J29,Odds!F:F,0)) -> 13/10 | L29: =INDEX(Odds!H:H,MATCH(J29,Odds!F:F,0)) -> 2.3 | M29: =INDEX(Odds!I:I,MATCH(J29,Odds!F:F,0)) -> 0 | N29: 0 | P29: =IF(Match!A29="","",Match!T29) -> Swindon 0-1 Fleetwood | R29: =IF(Odds!F29="","",Odds!F29) -> Swindon | S29: =INDEX(Odds!G:G,MATCH(R29,Odds!F:F,0)) -> 23/10 | T29: 0 | U29: =INDEX(Match!O:O,MATCH(P29,Match!T:T,0)) -> Swindon | V29: =INDEX(Match!F:F,MATCH(P29,Match!T:T,0)) -> 0 | W29: =INDEX(Match!P:P,MATCH(P29,Match!T:T,0)) -> Fleetwood | X29: =INDEX(Match!G:G,MATCH(P29,Match!T:T,0)) -> 1 | AB29: =IF(O29="","",INDEX(Odds!G:G,MATCH(O29,Odds!F:F,0))) ->  | AD29: Nigel Heyes | AE29: =INDEX(Picks!F:F,MATCH(AD29,Picks!A:A,0)) -> -3.8 | AF29: =INDEX(Weekly!I:I,MATCH(AD29,Weekly!E:E,0)) -> 1 | AG29: =IF(AE29="","",_xlfn.RANK.EQ(AE29,TopScores,0)) -> 28 | AI29: Liam Wah | AJ29: =INDEX(Picks!G:G,MATCH(AI29,Picks!A:A,0)) -> 45.625 | AK29: =INDEX(Weekly!I:I,MATCH(AI29,Weekly!E:E,0)) -> 2 | AL29: =IF(AJ29="","",_xlfn.RANK.EQ(AJ29,TopMaxScores,0)) -> 24
A30: =A29 -> Charlie Griffiths | B30: Accrington | C30: =IF(J30="","",INDEX(Odds!B:B,MATCH(J30,Odds!F:F,0))) -> 1900-01-07 | D30: 2.25 | E30: x | J30: Accrington | K30: =INDEX(Odds!G:G,MATCH(J30,Odds!F:F,0)) -> 5/4 | L30: =INDEX(Odds!H:H,MATCH(J30,Odds!F:F,0)) -> 2.25 | M30: =INDEX(Odds!I:I,MATCH(J30,Odds!F:F,0)) -> 0 | N30: 0 | P30: =IF(Match!A30="","",Match!T30) -> Wigan 4-3 Accrington | R30: =IF(Odds!F30="","",Odds!F30) -> Wigan | S30: =INDEX(Odds!G:G,MATCH(R30,Odds!F:F,0)) -> 11/5 | T30: 1 | U30: =INDEX(Match!O:O,MATCH(P30,Match!T:T,0)) -> Wigan | V30: =INDEX(Match!F:F,MATCH(P30,Match!T:T,0)) -> 4 | W30: =INDEX(Match!P:P,MATCH(P30,Match!T:T,0)) -> Accrington | X30: =INDEX(Match!G:G,MATCH(P30,Match!T:T,0)) -> 3 | AB30: =IF(O30="","",INDEX(Odds!G:G,MATCH(O30,Odds!F:F,0))) ->  | AD30: John Evans | AE30: =INDEX(Picks!F:F,MATCH(AD30,Picks!A:A,0)) -> -3.8 | AF30: =INDEX(Weekly!I:I,MATCH(AD30,Weekly!E:E,0)) -> 1 | AG30: =IF(AE30="","",_xlfn.RANK.EQ(AE30,TopScores,0)) -> 28 | AI30: Dave Bell | AJ30: =INDEX(Picks!G:G,MATCH(AI30,Picks!A:A,0)) -> 45.33333333 | AK30: =INDEX(Weekly!I:I,MATCH(AI30,Weekly!E:E,0)) -> 1 | AL30: =IF(AJ30="","",_xlfn.RANK.EQ(AJ30,TopMaxScores,0)) -> 25
A31: =A29 -> Charlie Griffiths | B31: Ipswich draw | C31: =IF(J31="","",INDEX(Odds!B:B,MATCH(J31,Odds!F:F,0))) -> 1900-01-07 | D31: 3.25 | E31: x | J31: Ipswich draw | K31: =INDEX(Odds!G:G,MATCH(J31,Odds!F:F,0)) -> 9/4 | L31: =INDEX(Odds!H:H,MATCH(J31,Odds!F:F,0)) -> 3.25 | M31: =INDEX(Odds!I:I,MATCH(J31,Odds!F:F,0)) -> 0 | N31: 0 | P31: =IF(Match!A31="","",Match!T31) -> Carlisle 4-0 Stevenage | R31: =IF(Odds!F31="","",Odds!F31) -> Carlisle | S31: =INDEX(Odds!G:G,MATCH(R31,Odds!F:F,0)) -> 8/13 | T31: 1 | U31: =INDEX(Match!O:O,MATCH(P31,Match!T:T,0)) -> Carlisle | V31: =INDEX(Match!F:F,MATCH(P31,Match!T:T,0)) -> 4 | W31: =INDEX(Match!P:P,MATCH(P31,Match!T:T,0)) -> Stevenage | X31: =INDEX(Match!G:G,MATCH(P31,Match!T:T,0)) -> 0 | AB31: =IF(O31="","",INDEX(Odds!G:G,MATCH(O31,Odds!F:F,0))) ->  | AD31: Chris Townsend | AE31: =INDEX(Picks!F:F,MATCH(AD31,Picks!A:A,0)) -> -3.9 | AF31: =INDEX(Weekly!I:I,MATCH(AD31,Weekly!E:E,0)) -> 1 | AG31: =IF(AE31="","",_xlfn.RANK.EQ(AE31,TopScores,0)) -> 30 | AI31: Kei Lok Ma | AJ31: =INDEX(Picks!G:G,MATCH(AI31,Picks!A:A,0)) -> 44.40625 | AK31: =INDEX(Weekly!I:I,MATCH(AI31,Weekly!E:E,0)) -> 2 | AL31: =IF(AJ31="","",_xlfn.RANK.EQ(AJ31,TopMaxScores,0)) -> 26
A32: =Results!B32 -> Chris Bow | B32: Everton | C32: =IF(J32="","",INDEX(Odds!B:B,MATCH(J32,Odds!F:F,0))) -> 1900-01-07 | D32: 4.333333333 | E32: √ | F32: =IF(J32="",-10,INDEX(Results!T:T,MATCH(A32,Results!V:V,0))) -> -2.666666667 | G32: =IF(J32="","",INDEX(Results!AI:AI,MATCH(A32,Results!V:V,0))) -> 60.2 | H32: =IF(G32="",0,1) -> 1 | I32: =INDEX(Picks!AG:AG,MATCH(A32,Picks!AD:AD,0)) -> 25 | J32: Everton | K32: =INDEX(Odds!G:G,MATCH(J32,Odds!F:F,0)) -> 10/3 | L32: =INDEX(Odds!H:H,MATCH(J32,Odds!F:F,0)) -> 4.333333333 | M32: =INDEX(Odds!I:I,MATCH(J32,Odds!F:F,0)) -> 1 | N32: 4.333333333 | P32: =IF(Match!A32="","",Match!T32) -> Crawley 4-2 Barrow | R32: =IF(Odds!F32="","",Odds!F32) -> Crawley | S32: =INDEX(Odds!G:G,MATCH(R32,Odds!F:F,0)) -> 29/20 | T32: 1 | U32: =INDEX(Match!O:O,MATCH(P32,Match!T:T,0)) -> Crawley | V32: =INDEX(Match!F:F,MATCH(P32,Match!T:T,0)) -> 4 | W32: =INDEX(Match!P:P,MATCH(P32,Match!T:T,0)) -> Barrow | X32: =INDEX(Match!G:G,MATCH(P32,Match!T:T,0)) -> 2 | AB32: =IF(O32="","",INDEX(Odds!G:G,MATCH(O32,Odds!F:F,0))) ->  | AD32: Rob England | AE32: =INDEX(Picks!F:F,MATCH(AD32,Picks!A:A,0)) -> -3.9 | AF32: =INDEX(Weekly!I:I,MATCH(AD32,Weekly!E:E,0)) -> 1 | AG32: =IF(AE32="","",_xlfn.RANK.EQ(AE32,TopScores,0)) -> 30 | AI32: Mike Penk | AJ32: =INDEX(Picks!G:G,MATCH(AI32,Picks!A:A,0)) -> 43.282 | AK32: =INDEX(Weekly!I:I,MATCH(AI32,Weekly!E:E,0)) -> 1 | AL32: =IF(AJ32="","",_xlfn.RANK.EQ(AJ32,TopMaxScores,0)) -> 27
A33: =A32 -> Chris Bow | B33: Wolves | C33: =IF(J33="","",INDEX(Odds!B:B,MATCH(J33,Odds!F:F,0))) -> 1900-01-07 | D33: 2.3 | E33: x | J33: Wolves | K33: =INDEX(Odds!G:G,MATCH(J33,Odds!F:F,0)) -> 13/10 | L33: =INDEX(Odds!H:H,MATCH(J33,Odds!F:F,0)) -> 2.3 | M33: =INDEX(Odds!I:I,MATCH(J33,Odds!F:F,0)) -> 0 | N33: 0 | P33: =IF(Match!A33="","",Match!T33) -> Exeter 5-0 Tranmere | R33: =IF(Odds!F33="","",Odds!F33) -> Exeter | S33: =INDEX(Odds!G:G,MATCH(R33,Odds!F:F,0)) -> 10/11 | T33: 1 | U33: =INDEX(Match!O:O,MATCH(P33,Match!T:T,0)) -> Exeter | V33: =INDEX(Match!F:F,MATCH(P33,Match!T:T,0)) -> 5 | W33: =INDEX(Match!P:P,MATCH(P33,Match!T:T,0)) -> Tranmere | X33: =INDEX(Match!G:G,MATCH(P33,Match!T:T,0)) -> 0 | AB33: =IF(O33="","",INDEX(Odds!G:G,MATCH(O33,Odds!F:F,0))) ->  | AD33: Pete Baron | AE33: =INDEX(Picks!F:F,MATCH(AD33,Picks!A:A,0)) -> -4 | AF33: =INDEX(Weekly!I:I,MATCH(AD33,Weekly!E:E,0)) -> 1 | AG33: =IF(AE33="","",_xlfn.RANK.EQ(AE33,TopScores,0)) -> 32 | AI33: Simon Greenhalgh | AJ33: =INDEX(Picks!G:G,MATCH(AI33,Picks!A:A,0)) -> 38.8 | AK33: =INDEX(Weekly!I:I,MATCH(AI33,Weekly!E:E,0)) -> 1 | AL33: =IF(AJ33="","",_xlfn.RANK.EQ(AJ33,TopMaxScores,0)) -> 28
A34: =A32 -> Chris Bow | B34: Derby | C34: =IF(J34="","",INDEX(Odds!B:B,MATCH(J34,Odds!F:F,0))) -> 1900-01-07 | D34: 2.875 | E34: x | J34: Derby | K34: =INDEX(Odds!G:G,MATCH(J34,Odds!F:F,0)) -> 15/8 | L34: =INDEX(Odds!H:H,MATCH(J34,Odds!F:F,0)) -> 2.875 | M34: =INDEX(Odds!I:I,MATCH(J34,Odds!F:F,0)) -> 0 | N34: 0 | P34: =IF(Match!A34="","",Match!T34) -> Forest Green 2-0 Cambridge | R34: =IF(Odds!F34="","",Odds!F34) -> Forest Green | S34: =INDEX(Odds!G:G,MATCH(R34,Odds!F:F,0)) -> 21/20 | T34: 1 | U34: =INDEX(Match!O:O,MATCH(P34,Match!T:T,0)) -> Forest Green | V34: =INDEX(Match!F:F,MATCH(P34,Match!T:T,0)) -> 2 | W34: =INDEX(Match!P:P,MATCH(P34,Match!T:T,0)) -> Cambridge | X34: =INDEX(Match!G:G,MATCH(P34,Match!T:T,0)) -> 0 | AB34: =IF(O34="","",INDEX(Odds!G:G,MATCH(O34,Odds!F:F,0))) ->  | AD34: Sally Williams | AE34: =INDEX(Picks!F:F,MATCH(AD34,Picks!A:A,0)) -> -4 | AF34: =INDEX(Weekly!I:I,MATCH(AD34,Weekly!E:E,0)) -> 1 | AG34: =IF(AE34="","",_xlfn.RANK.EQ(AE34,TopScores,0)) -> 32 | AI34: Jack Walsh | AJ34: =INDEX(Picks!G:G,MATCH(AI34,Picks!A:A,0)) -> 38.64 | AK34: =INDEX(Weekly!I:I,MATCH(AI34,Weekly!E:E,0)) -> 1 | AL34: =IF(AJ34="","",_xlfn.RANK.EQ(AJ34,TopMaxScores,0)) -> 29
A35: =Results!B35 -> Chris Griffin | B35: Newcastle | C35: =IF(J35="","",INDEX(Odds!B:B,MATCH(J35,Odds!F:F,0))) -> 1900-01-07 | D35: 2.25 | E35: √ | F35: =IF(J35="",-10,INDEX(Results!T:T,MATCH(A35,Results!V:V,0))) -> 1.75 | G35: =IF(J35="","",INDEX(Results!AI:AI,MATCH(A35,Results!V:V,0))) -> 24.175 | H35: =IF(G35="",0,1) -> 1 | I35: =INDEX(Picks!AG:AG,MATCH(A35,Picks!AD:AD,0)) -> 12 | J35: Newcastle | K35: =INDEX(Odds!G:G,MATCH(J35,Odds!F:F,0)) -> 5/4 | L35: =INDEX(Odds!H:H,MATCH(J35,Odds!F:F,0)) -> 2.25 | M35: =INDEX(Odds!I:I,MATCH(J35,Odds!F:F,0)) -> 1 | N35: 2.25 | P35: =IF(Match!A35="","",Match!T35) -> Grimsby 1-1 Mansfield | R35: =IF(Odds!F35="","",Odds!F35) -> Grimsby | S35: =INDEX(Odds!G:G,MATCH(R35,Odds!F:F,0)) -> 21/10 | T35: 0 | U35: =INDEX(Match!O:O,MATCH(P35,Match!T:T,0)) -> Grimsby | V35: =INDEX(Match!F:F,MATCH(P35,Match!T:T,0)) -> 1 | W35: =INDEX(Match!P:P,MATCH(P35,Match!T:T,0)) -> Mansfield | X35: =INDEX(Match!G:G,MATCH(P35,Match!T:T,0)) -> 1 | AB35: =IF(O35="","",INDEX(Odds!G:G,MATCH(O35,Odds!F:F,0))) ->  | AD35: Paul Adderley | AE35: =INDEX(Picks!F:F,MATCH(AD35,Picks!A:A,0)) -> -4.25 | AF35: =INDEX(Weekly!I:I,MATCH(AD35,Weekly!E:E,0)) -> 1 | AG35: =IF(AE35="","",_xlfn.RANK.EQ(AE35,TopScores,0)) -> 34 | AI35: Mark Bunn | AJ35: =INDEX(Picks!G:G,MATCH(AI35,Picks!A:A,0)) -> 38.62 | AK35: =INDEX(Weekly!I:I,MATCH(AI35,Weekly!E:E,0)) -> 1 | AL35: =IF(AJ35="","",_xlfn.RANK.EQ(AJ35,TopMaxScores,0)) -> 30
A36: =A35 -> Chris Griffin | B36: Wolves | C36: =IF(J36="","",INDEX(Odds!B:B,MATCH(J36,Odds!F:F,0))) -> 1900-01-07 | D36: 2.3 | E36: x | J36: Wolves | K36: =INDEX(Odds!G:G,MATCH(J36,Odds!F:F,0)) -> 13/10 | L36: =INDEX(Odds!H:H,MATCH(J36,Odds!F:F,0)) -> 2.3 | M36: =INDEX(Odds!I:I,MATCH(J36,Odds!F:F,0)) -> 0 | N36: 0 | P36: =IF(Match!A36="","",Match!T36) -> Morecambe 1-0 Harrogate | R36: =IF(Odds!F36="","",Odds!F36) -> Morecambe | S36: =INDEX(Odds!G:G,MATCH(R36,Odds!F:F,0)) -> 8/5 | T36: 1 | U36: =INDEX(Match!O:O,MATCH(P36,Match!T:T,0)) -> Morecambe | V36: =INDEX(Match!F:F,MATCH(P36,Match!T:T,0)) -> 1 | W36: =INDEX(Match!P:P,MATCH(P36,Match!T:T,0)) -> Harrogate | X36: =INDEX(Match!G:G,MATCH(P36,Match!T:T,0)) -> 0 | AB36: =IF(O36="","",INDEX(Odds!G:G,MATCH(O36,Odds!F:F,0))) ->  | AD36: Mark Bunn | AE36: =INDEX(Picks!F:F,MATCH(AD36,Picks!A:A,0)) -> -4.3 | AF36: =INDEX(Weekly!I:I,MATCH(AD36,Weekly!E:E,0)) -> 1 | AG36: =IF(AE36="","",_xlfn.RANK.EQ(AE36,TopScores,0)) -> 35 | AI36: Charlie Griffiths | AJ36: =INDEX(Picks!G:G,MATCH(AI36,Picks!A:A,0)) -> 37.58125 | AK36: =INDEX(Weekly!I:I,MATCH(AI36,Weekly!E:E,0)) -> 0 | AL36: =IF(AJ36="","",_xlfn.RANK.EQ(AJ36,TopMaxScores,0)) -> 31
A37: =A35 -> Chris Griffin | B37: Leicester | C37: =IF(J37="","",INDEX(Odds!B:B,MATCH(J37,Odds!F:F,0))) -> 1900-01-01 | D37: 2 | E37: √ | J37: Leicester | K37: =INDEX(Odds!G:G,MATCH(J37,Odds!F:F,0)) -> 1/1 | L37: =INDEX(Odds!H:H,MATCH(J37,Odds!F:F,0)) -> 2 | M37: =INDEX(Odds!I:I,MATCH(J37,Odds!F:F,0)) -> 1 | N37: 2 | P37: =IF(Match!A37="","",Match!T37) -> Oldham 3-1 Bradford | R37: =IF(Odds!F37="","",Odds!F37) -> Oldham | S37: =INDEX(Odds!G:G,MATCH(R37,Odds!F:F,0)) -> 7/5 | T37: 1 | U37: =INDEX(Match!O:O,MATCH(P37,Match!T:T,0)) -> Oldham | V37: =INDEX(Match!F:F,MATCH(P37,Match!T:T,0)) -> 3 | W37: =INDEX(Match!P:P,MATCH(P37,Match!T:T,0)) -> Bradford | X37: =INDEX(Match!G:G,MATCH(P37,Match!T:T,0)) -> 1 | AB37: =IF(O37="","",INDEX(Odds!G:G,MATCH(O37,Odds!F:F,0))) ->  | AD37: Gareth Powell | AE37: =INDEX(Picks!F:F,MATCH(AD37,Picks!A:A,0)) -> -4.3 | AF37: =INDEX(Weekly!I:I,MATCH(AD37,Weekly!E:E,0)) -> 1 | AG37: =IF(AE37="","",_xlfn.RANK.EQ(AE37,TopScores,0)) -> 35 | AI37: Tom Robinson | AJ37: =INDEX(Picks!G:G,MATCH(AI37,Picks!A:A,0)) -> 34.336 | AK37: =INDEX(Weekly!I:I,MATCH(AI37,Weekly!E:E,0)) -> 1 | AL37: =IF(AJ37="","",_xlfn.RANK.EQ(AJ37,TopMaxScores,0)) -> 32
A38: =Results!B38 -> Chris Luck | B38: Newcastle | C38: =IF(J38="","",INDEX(Odds!B:B,MATCH(J38,Odds!F:F,0))) -> 1900-01-07 | D38: 2.25 | E38: √ | F38: =IF(J38="",-10,INDEX(Results!T:T,MATCH(A38,Results!V:V,0))) -> -4.75 | G38: =IF(J38="","",INDEX(Results!AI:AI,MATCH(A38,Results!V:V,0))) -> 29.5375 | H38: =IF(G38="",0,1) -> 1 | I38: =INDEX(Picks!AG:AG,MATCH(A38,Picks!AD:AD,0)) -> 37 | J38: Newcastle | K38: =INDEX(Odds!G:G,MATCH(J38,Odds!F:F,0)) -> 5/4 | L38: =INDEX(Odds!H:H,MATCH(J38,Odds!F:F,0)) -> 2.25 | M38: =INDEX(Odds!I:I,MATCH(J38,Odds!F:F,0)) -> 1 | N38: 2.25 | P38: =IF(Match!A38="","",Match!T38) -> Orient 2-1 Newport | R38: =IF(Odds!F38="","",Odds!F38) -> Orient | S38: =INDEX(Odds!G:G,MATCH(R38,Odds!F:F,0)) -> 2/1 | T38: 1 | U38: =INDEX(Match!O:O,MATCH(P38,Match!T:T,0)) -> Orient | V38: =INDEX(Match!F:F,MATCH(P38,Match!T:T,0)) -> 2 | W38: =INDEX(Match!P:P,MATCH(P38,Match!T:T,0)) -> Newport | X38: =INDEX(Match!G:G,MATCH(P38,Match!T:T,0)) -> 1 | AB38: =IF(O38="","",INDEX(Odds!G:G,MATCH(O38,Odds!F:F,0))) ->  | AD38: Chris Luck | AE38: =INDEX(Picks!F:F,MATCH(AD38,Picks!A:A,0)) -> -4.75 | AF38: =INDEX(Weekly!I:I,MATCH(AD38,Weekly!E:E,0)) -> 1 | AG38: =IF(AE38="","",_xlfn.RANK.EQ(AE38,TopScores,0)) -> 37 | AI38: Vinny Topping | AJ38: =INDEX(Picks!G:G,MATCH(AI38,Picks!A:A,0)) -> 33.97375 | AK38: =INDEX(Weekly!I:I,MATCH(AI38,Weekly!E:E,0)) -> 2 | AL38: =IF(AJ38="","",_xlfn.RANK.EQ(AJ38,TopMaxScores,0)) -> 33
A39: =A38 -> Chris Luck | B39: Wolves | C39: =IF(J39="","",INDEX(Odds!B:B,MATCH(J39,Odds!F:F,0))) -> 1900-01-07 | D39: 2.3 | E39: x | J39: Wolves | K39: =INDEX(Odds!G:G,MATCH(J39,Odds!F:F,0)) -> 13/10 | L39: =INDEX(Odds!H:H,MATCH(J39,Odds!F:F,0)) -> 2.3 | M39: =INDEX(Odds!I:I,MATCH(J39,Odds!F:F,0)) -> 0 | N39: 0 | P39: =IF(Match!A39="","",Match!T39) -> Port Vale 1-1 Colchester | R39: =IF(Odds!F39="","",Odds!F39) -> Port Vale | S39: =INDEX(Odds!G:G,MATCH(R39,Odds!F:F,0)) -> 23/20 | T39: 0 | U39: =INDEX(Match!O:O,MATCH(P39,Match!T:T,0)) -> Port Vale | V39: =INDEX(Match!F:F,MATCH(P39,Match!T:T,0)) -> 1 | W39: =INDEX(Match!P:P,MATCH(P39,Match!T:T,0)) -> Colchester | X39: =INDEX(Match!G:G,MATCH(P39,Match!T:T,0)) -> 1 | AB39: =IF(O39="","",INDEX(Odds!G:G,MATCH(O39,Odds!F:F,0))) ->  | AD39: Tom Robinson | AE39: =INDEX(Picks!F:F,MATCH(AD39,Picks!A:A,0)) -> -4.85 | AF39: =INDEX(Weekly!I:I,MATCH(AD39,Weekly!E:E,0)) -> 1 | AG39: =IF(AE39="","",_xlfn.RANK.EQ(AE39,TopScores,0)) -> 38 | AI39: David Dunn | AJ39: =INDEX(Picks!G:G,MATCH(AI39,Picks!A:A,0)) -> 32.635 | AK39: =INDEX(Weekly!I:I,MATCH(AI39,Weekly!E:E,0)) -> 2 | AL39: =IF(AJ39="","",_xlfn.RANK.EQ(AJ39,TopMaxScores,0)) -> 34
A40: =A38 -> Chris Luck | B40: Blackburn | C40: =IF(J40="","",INDEX(Odds!B:B,MATCH(J40,Odds!F:F,0))) -> 1900-01-07 | D40: 2.5 | E40: x | J40: Blackburn | K40: =INDEX(Odds!G:G,MATCH(J40,Odds!F:F,0)) -> 6/4 | L40: =INDEX(Odds!H:H,MATCH(J40,Odds!F:F,0)) -> 2.5 | M40: =INDEX(Odds!I:I,MATCH(J40,Odds!F:F,0)) -> 0 | N40: 0 | P40: =IF(Match!A40="","",Match!T40) -> Salford 0-0 Cheltenham | R40: =IF(Odds!F40="","",Odds!F40) -> Salford | S40: =INDEX(Odds!G:G,MATCH(R40,Odds!F:F,0)) -> 13/8 | T40: 0 | U40: =INDEX(Match!O:O,MATCH(P40,Match!T:T,0)) -> Salford | V40: =INDEX(Match!F:F,MATCH(P40,Match!T:T,0)) -> 0 | W40: =INDEX(Match!P:P,MATCH(P40,Match!T:T,0)) -> Cheltenham | X40: =INDEX(Match!G:G,MATCH(P40,Match!T:T,0)) -> 0 | AB40: =IF(O40="","",INDEX(Odds!G:G,MATCH(O40,Odds!F:F,0))) ->  | AD40: Mike Penk | AE40: =INDEX(Picks!F:F,MATCH(AD40,Picks!A:A,0)) -> -4.85 | AF40: =INDEX(Weekly!I:I,MATCH(AD40,Weekly!E:E,0)) -> 1 | AG40: =IF(AE40="","",_xlfn.RANK.EQ(AE40,TopScores,0)) -> 38 | AI40: Chris Luck | AJ40: =INDEX(Picks!G:G,MATCH(AI40,Picks!A:A,0)) -> 29.5375 | AK40: =INDEX(Weekly!I:I,MATCH(AI40,Weekly!E:E,0)) -> 1 | AL40: =IF(AJ40="","",_xlfn.RANK.EQ(AJ40,TopMaxScores,0)) -> 35
A41: =Results!B41 -> Chris Townsend | B41: Barnsley | C41: =IF(J41="","",INDEX(Odds!B:B,MATCH(J41,Odds!F:F,0))) -> 1900-01-07 | D41: 3.1 | E41: √ | F41: =IF(J41="",-10,INDEX(Results!T:T,MATCH(A41,Results!V:V,0))) -> -3.9 | G41: =IF(J41="","",INDEX(Results!AI:AI,MATCH(A41,Results!V:V,0))) -> 88.6575 | H41: =IF(G41="",0,1) -> 1 | I41: =INDEX(Picks!AG:AG,MATCH(A41,Picks!AD:AD,0)) -> 30 | J41: Barnsley | K41: =INDEX(Odds!G:G,MATCH(J41,Odds!F:F,0)) -> 21/10 | L41: =INDEX(Odds!H:H,MATCH(J41,Odds!F:F,0)) -> 3.1 | M41: =INDEX(Odds!I:I,MATCH(J41,Odds!F:F,0)) -> 1 | N41: 3.1 | P41: =IF(Match!A41="","",Match!T41) -> Southend 1-0 Scunthorpe | R41: =IF(Odds!F41="","",Odds!F41) -> Southend | S41: =INDEX(Odds!G:G,MATCH(R41,Odds!F:F,0)) -> 9/4 | T41: 1 | U41: =INDEX(Match!O:O,MATCH(P41,Match!T:T,0)) -> Southend | V41: =INDEX(Match!F:F,MATCH(P41,Match!T:T,0)) -> 1 | W41: =INDEX(Match!P:P,MATCH(P41,Match!T:T,0)) -> Scunthorpe | X41: =INDEX(Match!G:G,MATCH(P41,Match!T:T,0)) -> 0 | AB41: =IF(O41="","",INDEX(Odds!G:G,MATCH(O41,Odds!F:F,0))) ->  | AD41: Nick Blocksidge | AE41: =INDEX(Picks!F:F,MATCH(AD41,Picks!A:A,0)) -> -5 | AF41: =INDEX(Weekly!I:I,MATCH(AD41,Weekly!E:E,0)) -> 1 | AG41: =IF(AE41="","",_xlfn.RANK.EQ(AE41,TopScores,0)) -> 40 | AI41: Martin Molyneux | AJ41: =INDEX(Picks!G:G,MATCH(AI41,Picks!A:A,0)) -> 29.19008264 | AK41: =INDEX(Weekly!I:I,MATCH(AI41,Weekly!E:E,0)) -> 2 | AL41: =IF(AJ41="","",_xlfn.RANK.EQ(AJ41,TopMaxScores,0)) -> 36
A42: =A41 -> Chris Townsend | B42: Ipswich | C42: =IF(J42="","",INDEX(Odds!B:B,MATCH(J42,Odds!F:F,0))) -> 1900-01-07 | D42: 3.1 | E42: x | J42: Ipswich | K42: =INDEX(Odds!G:G,MATCH(J42,Odds!F:F,0)) -> 21/10 | L42: =INDEX(Odds!H:H,MATCH(J42,Odds!F:F,0)) -> 3.1 | M42: =INDEX(Odds!I:I,MATCH(J42,Odds!F:F,0)) -> 0 | N42: 0 | P42: =IF(Match!A42="","",Match!T42) -> Walsall 2-1 Bolton | R42: =IF(Odds!F42="","",Odds!F42) -> Walsall | S42: =INDEX(Odds!G:G,MATCH(R42,Odds!F:F,0)) -> 5/4 | T42: 1 | U42: =INDEX(Match!O:O,MATCH(P42,Match!T:T,0)) -> Walsall | V42: =INDEX(Match!F:F,MATCH(P42,Match!T:T,0)) -> 2 | W42: =INDEX(Match!P:P,MATCH(P42,Match!T:T,0)) -> Bolton | X42: =INDEX(Match!G:G,MATCH(P42,Match!T:T,0)) -> 1 | AB42: =IF(O42="","",INDEX(Odds!G:G,MATCH(O42,Odds!F:F,0))) ->  | AD42: Paul Fiddler | AE42: =INDEX(Picks!F:F,MATCH(AD42,Picks!A:A,0)) -> -5.05 | AF42: =INDEX(Weekly!I:I,MATCH(AD42,Weekly!E:E,0)) -> 1 | AG42: =IF(AE42="","",_xlfn.RANK.EQ(AE42,TopScores,0)) -> 41 | AI42: Gareth Powell | AJ42: =INDEX(Picks!G:G,MATCH(AI42,Picks!A:A,0)) -> 28.884375 | AK42: =INDEX(Weekly!I:I,MATCH(AI42,Weekly!E:E,0)) -> 1 | AL42: =IF(AJ42="","",_xlfn.RANK.EQ(AJ42,TopMaxScores,0)) -> 37
A43: =A41 -> Chris Townsend | B43: Northampton | C43: =IF(J43="","",INDEX(Odds!B:B,MATCH(J43,Odds!F:F,0))) -> 1900-01-07 | D43: 4.75 | E43: x | J43: Northampton | K43: =INDEX(Odds!G:G,MATCH(J43,Odds!F:F,0)) -> 15/4 | L43: =INDEX(Odds!H:H,MATCH(J43,Odds!F:F,0)) -> 4.75 | M43: =INDEX(Odds!I:I,MATCH(J43,Odds!F:F,0)) -> 0 | N43: 0 | P43: =IF(Match!A43="","",Match!T43) -> Arsenal 0-1 Burnley | R43: =IF(Odds!F43="","",Odds!F43) -> Arsenal | S43: =INDEX(Odds!G:G,MATCH(R43,Odds!F:F,0)) -> 11/20 | T43: 0 | U43: =INDEX(Match!O:O,MATCH(P43,Match!T:T,0)) -> Arsenal | V43: =INDEX(Match!F:F,MATCH(P43,Match!T:T,0)) -> 0 | W43: =INDEX(Match!P:P,MATCH(P43,Match!T:T,0)) -> Burnley | X43: =INDEX(Match!G:G,MATCH(P43,Match!T:T,0)) -> 1 | AB43: =IF(O43="","",INDEX(Odds!G:G,MATCH(O43,Odds!F:F,0))) ->  | AD43: Oscar Jackson | AE43: =INDEX(Picks!F:F,MATCH(AD43,Picks!A:A,0)) -> -5.090909091 | AF43: =INDEX(Weekly!I:I,MATCH(AD43,Weekly!E:E,0)) -> 1 | AG43: =IF(AE43="","",_xlfn.RANK.EQ(AE43,TopScores,0)) -> 42 | AI43: Dave Orrell | AJ43: =INDEX(Picks!G:G,MATCH(AI43,Picks!A:A,0)) -> 27.7765 | AK43: =INDEX(Weekly!I:I,MATCH(AI43,Weekly!E:E,0)) -> 3 | AL43: =IF(AJ43="","",_xlfn.RANK.EQ(AJ43,TopMaxScores,0)) -> 38
A44: =Results!B44 -> Dan Baxter | C44: =IF(J44="","",INDEX(Odds!B:B,MATCH(J44,Odds!F:F,0))) ->  | F44: =IF(J44="",-10,INDEX(Results!T:T,MATCH(A44,Results!V:V,0))) -> -10 | G44: =IF(J44="","",INDEX(Results!AI:AI,MATCH(A44,Results!V:V,0))) ->  | H44: =IF(G44="",0,1) -> 0 | I44: =INDEX(Picks!AG:AG,MATCH(A44,Picks!AD:AD,0)) -> 59 | K44: =INDEX(Odds!G:G,MATCH(J44,Odds!F:F,0)) ->  | L44: =INDEX(Odds!H:H,MATCH(J44,Odds!F:F,0)) ->  | M44: =INDEX(Odds!I:I,MATCH(J44,Odds!F:F,0)) ->  | P44: =IF(Match!A44="","",Match!T44) -> Fulham 1-1 Liverpool | R44: =IF(Odds!F44="","",Odds!F44) -> Fulham | S44: =INDEX(Odds!G:G,MATCH(R44,Odds!F:F,0)) -> 8/1 | T44: 0 | U44: =INDEX(Match!O:O,MATCH(P44,Match!T:T,0)) -> Fulham | V44: =INDEX(Match!F:F,MATCH(P44,Match!T:T,0)) -> 1 | W44: =INDEX(Match!P:P,MATCH(P44,Match!T:T,0)) -> Liverpool | X44: =INDEX(Match!G:G,MATCH(P44,Match!T:T,0)) -> 1 | AB44: =IF(O44="","",INDEX(Odds!G:G,MATCH(O44,Odds!F:F,0))) ->  | AD44: Martin Tarbuck | AE44: =INDEX(Picks!F:F,MATCH(AD44,Picks!A:A,0)) -> -5.35 | AF44: =INDEX(Weekly!I:I,MATCH(AD44,Weekly!E:E,0)) -> 1 | AG44: =IF(AE44="","",_xlfn.RANK.EQ(AE44,TopScores,0)) -> 43 | AI44: Martin Tarbuck | AJ44: =INDEX(Picks!G:G,MATCH(AI44,Picks!A:A,0)) -> 25.231 | AK44: =INDEX(Weekly!I:I,MATCH(AI44,Weekly!E:E,0)) -> 1 | AL44: =IF(AJ44="","",_xlfn.RANK.EQ(AJ44,TopMaxScores,0)) -> 39
A45: =A44 -> Dan Baxter | C45: =IF(J45="","",INDEX(Odds!B:B,MATCH(J45,Odds!F:F,0))) ->  | K45: =INDEX(Odds!G:G,MATCH(J45,Odds!F:F,0)) ->  | L45: =INDEX(Odds!H:H,MATCH(J45,Odds!F:F,0)) ->  | M45: =INDEX(Odds!I:I,MATCH(J45,Odds!F:F,0)) ->  | P45: =IF(Match!A45="","",Match!T45) -> Leicester 3-0 Brighton | R45: =IF(Odds!F45="","",Odds!F45) -> Leicester | S45: =INDEX(Odds!G:G,MATCH(R45,Odds!F:F,0)) -> 1/1 | T45: 1 | U45: =INDEX(Match!O:O,MATCH(P45,Match!T:T,0)) -> Leicester | V45: =INDEX(Match!F:F,MATCH(P45,Match!T:T,0)) -> 3 | W45: =INDEX(Match!P:P,MATCH(P45,Match!T:T,0)) -> Brighton | X45: =INDEX(Match!G:G,MATCH(P45,Match!T:T,0)) -> 0 | AB45: =IF(O45="","",INDEX(Odds!G:G,MATCH(O45,Odds!F:F,0))) ->  | AD45: Jack Walsh | AE45: =INDEX(Picks!F:F,MATCH(AD45,Picks!A:A,0)) -> -5.35 | AF45: =INDEX(Weekly!I:I,MATCH(AD45,Weekly!E:E,0)) -> 1 | AG45: =IF(AE45="","",_xlfn.RANK.EQ(AE45,TopScores,0)) -> 43 | AI45: Andy White | AJ45: =INDEX(Picks!G:G,MATCH(AI45,Picks!A:A,0)) -> 24.175 | AK45: =INDEX(Weekly!I:I,MATCH(AI45,Weekly!E:E,0)) -> 2 | AL45: =IF(AJ45="","",_xlfn.RANK.EQ(AJ45,TopMaxScores,0)) -> 40
A46: =A44 -> Dan Baxter | C46: =IF(J46="","",INDEX(Odds!B:B,MATCH(J46,Odds!F:F,0))) ->  | K46: =INDEX(Odds!G:G,MATCH(J46,Odds!F:F,0)) ->  | L46: =INDEX(Odds!H:H,MATCH(J46,Odds!F:F,0)) ->  | M46: =INDEX(Odds!I:I,MATCH(J46,Odds!F:F,0)) ->  | P46: =IF(Match!A46="","",Match!T46) -> Palace 1-1 Spurs | R46: =IF(Odds!F46="","",Odds!F46) -> Palace | S46: =INDEX(Odds!G:G,MATCH(R46,Odds!F:F,0)) -> 19/5 | T46: 0 | U46: =INDEX(Match!O:O,MATCH(P46,Match!T:T,0)) -> Palace | V46: =INDEX(Match!F:F,MATCH(P46,Match!T:T,0)) -> 1 | W46: =INDEX(Match!P:P,MATCH(P46,Match!T:T,0)) -> Spurs | X46: =INDEX(Match!G:G,MATCH(P46,Match!T:T,0)) -> 1 | AB46: =IF(O46="","",INDEX(Odds!G:G,MATCH(O46,Odds!F:F,0))) ->  | AD46: Mo Sudell | AE46: =INDEX(Picks!F:F,MATCH(AD46,Picks!A:A,0)) -> -5.384615385 | AF46: =INDEX(Weekly!I:I,MATCH(AD46,Weekly!E:E,0)) -> 1 | AG46: =IF(AE46="","",_xlfn.RANK.EQ(AE46,TopScores,0)) -> 45 | AI46: Steve Carter | AJ46: =INDEX(Picks!G:G,MATCH(AI46,Picks!A:A,0)) -> 24.175 | AK46: =INDEX(Weekly!I:I,MATCH(AI46,Weekly!E:E,0)) -> 2 | AL46: =IF(AJ46="","",_xlfn.RANK.EQ(AJ46,TopMaxScores,0)) -> 41
A47: =Results!B47 -> Dave Bell | B47: Sheff U | C47: =IF(J47="","",INDEX(Odds!B:B,MATCH(J47,Odds!F:F,0))) -> 1900-01-01 | D47: 5 | E47: x | F47: =IF(J47="",-10,INDEX(Results!T:T,MATCH(A47,Results!V:V,0))) -> 1.333333333 | G47: =IF(J47="","",INDEX(Results!AI:AI,MATCH(A47,Results!V:V,0))) -> 45.33333333 | H47: =IF(G47="",0,1) -> 1 | I47: =INDEX(Picks!AG:AG,MATCH(A47,Picks!AD:AD,0)) -> 17 | J47: Sheff U | K47: =INDEX(Odds!G:G,MATCH(J47,Odds!F:F,0)) -> 4/1 | L47: =INDEX(Odds!H:H,MATCH(J47,Odds!F:F,0)) -> 5 | M47: =INDEX(Odds!I:I,MATCH(J47,Odds!F:F,0)) -> 0 | N47: 0 | P47: =IF(Match!A47="","",Match!T47) -> Southampton 3-0 Sheff U | R47: =IF(Odds!F47="","",Odds!F47) -> Southampton | S47: =INDEX(Odds!G:G,MATCH(R47,Odds!F:F,0)) -> 8/11 | T47: =IF(V47>X47,1,0) -> 1 | U47: =INDEX(Match!O:O,MATCH(P47,Match!T:T,0)) -> Southampton | V47: =INDEX(Match!F:F,MATCH(P47,Match!T:T,0)) -> 3 | W47: =INDEX(Match!P:P,MATCH(P47,Match!T:T,0)) -> Sheff U | X47: =INDEX(Match!G:G,MATCH(P47,Match!T:T,0)) -> 0 | AB47: =IF(O47="","",INDEX(Odds!G:G,MATCH(O47,Odds!F:F,0))) ->  | AD47: Mal Stott | AE47: =INDEX(Picks!F:F,MATCH(AD47,Picks!A:A,0)) -> -7 | AF47: =INDEX(Weekly!I:I,MATCH(AD47,Weekly!E:E,0)) -> 0 | AG47: =IF(AE47="","",_xlfn.RANK.EQ(AE47,TopScores,0)) -> 46 | AI47: Chris Griffin | AJ47: =INDEX(Picks!G:G,MATCH(AI47,Picks!A:A,0)) -> 24.175 | AK47: =INDEX(Weekly!I:I,MATCH(AI47,Weekly!E:E,0)) -> 2 | AL47: =IF(AJ47="","",_xlfn.RANK.EQ(AJ47,TopMaxScores,0)) -> 41
A48: =A47 -> Dave Bell | B48: Fulham | C48: =IF(J48="","",INDEX(Odds!B:B,MATCH(J48,Odds!F:F,0))) -> 1900-01-01 | D48: 9 | E48: x | J48: Fulham | K48: =INDEX(Odds!G:G,MATCH(J48,Odds!F:F,0)) -> 8/1 | L48: =INDEX(Odds!H:H,MATCH(J48,Odds!F:F,0)) -> 9 | M48: =INDEX(Odds!I:I,MATCH(J48,Odds!F:F,0)) -> 0 | N48: 0 | R48: =IF(Odds!F48="","",Odds!F48) -> Leeds draw | S48: =INDEX(Odds!G:G,MATCH(R48,Odds!F:F,0)) -> 27/10 | T48: =IF(V2=X2,1,0) -> 0 | AB48: =IF(O48="","",INDEX(Odds!G:G,MATCH(O48,Odds!F:F,0))) ->  | AD48: Steve Baxter | AE48: =INDEX(Picks!F:F,MATCH(AD48,Picks!A:A,0)) -> -7 | AF48: =INDEX(Weekly!I:I,MATCH(AD48,Weekly!E:E,0)) -> 0 | AG48: =IF(AE48="","",_xlfn.RANK.EQ(AE48,TopScores,0)) -> 46 | AI48: Stephen Troop | AJ48: =INDEX(Picks!G:G,MATCH(AI48,Picks!A:A,0)) -> 23.41818182 | AK48: =INDEX(Weekly!I:I,MATCH(AI48,Weekly!E:E,0)) -> 0 | AL48: =IF(AJ48="","",_xlfn.RANK.EQ(AJ48,TopMaxScores,0)) -> 43
A49: =A47 -> Dave Bell | B49: Everton | C49: =IF(J49="","",INDEX(Odds!B:B,MATCH(J49,Odds!F:F,0))) -> 1900-01-07 | D49: 4.333333333 | E49: √ | J49: Everton | K49: =INDEX(Odds!G:G,MATCH(J49,Odds!F:F,0)) -> 10/3 | L49: =INDEX(Odds!H:H,MATCH(J49,Odds!F:F,0)) -> 4.333333333 | M49: =INDEX(Odds!I:I,MATCH(J49,Odds!F:F,0)) -> 1 | N49: 4.333333333 | R49: =IF(Odds!F49="","",Odds!F49) -> Everton draw | S49: =INDEX(Odds!G:G,MATCH(R49,Odds!F:F,0)) -> 3/1 | T49: 0 | AB49: =IF(O49="","",INDEX(Odds!G:G,MATCH(O49,Odds!F:F,0))) ->  | AD49: Paul Ridgeway | AE49: =INDEX(Picks!F:F,MATCH(AD49,Picks!A:A,0)) -> -7 | AF49: =INDEX(Weekly!I:I,MATCH(AD49,Weekly!E:E,0)) -> 0 | AG49: =IF(AE49="","",_xlfn.RANK.EQ(AE49,TopScores,0)) -> 46 | AI49: Paul Ridgeway | AJ49: =INDEX(Picks!G:G,MATCH(AI49,Picks!A:A,0)) -> 23.185 | AK49: =INDEX(Weekly!I:I,MATCH(AI49,Weekly!E:E,0)) -> 0 | AL49: =IF(AJ49="","",_xlfn.RANK.EQ(AJ49,TopMaxScores,0)) -> 44
A50: =Results!B50 -> Dave Orrell | B50: Crawley | C50: =IF(J50="","",INDEX(Odds!B:B,MATCH(J50,Odds!F:F,0))) -> 1900-01-07 | D50: 2.45 | E50: √ | F50: =IF(J50="",-10,INDEX(Results!T:T,MATCH(A50,Results!V:V,0))) -> 27.7765 | G50: =IF(J50="","",INDEX(Results!AI:AI,MATCH(A50,Results!V:V,0))) -> 27.7765 | H50: =IF(G50="",0,1) -> 1 | I50: =INDEX(Picks!AG:AG,MATCH(A50,Picks!AD:AD,0)) -> 4 | J50: Crawley | K50: =INDEX(Odds!G:G,MATCH(J50,Odds!F:F,0)) -> 29/20 | L50: =INDEX(Odds!H:H,MATCH(J50,Odds!F:F,0)) -> 2.45 | M50: =INDEX(Odds!I:I,MATCH(J50,Odds!F:F,0)) -> 1 | N50: 2.45 | Q50: ` | R50: =IF(Odds!F50="","",Odds!F50) -> Man U draw | S50: =INDEX(Odds!G:G,MATCH(R50,Odds!F:F,0)) -> 3/1 | T50: 1 | AB50: =IF(O50="","",INDEX(Odds!G:G,MATCH(O50,Odds!F:F,0))) ->  | AD50: Barry Birchall | AE50: =INDEX(Picks!F:F,MATCH(AD50,Picks!A:A,0)) -> -7 | AF50: =INDEX(Weekly!I:I,MATCH(AD50,Weekly!E:E,0)) -> 0 | AG50: =IF(AE50="","",_xlfn.RANK.EQ(AE50,TopScores,0)) -> 46 | AI50: Stephen Barr | AJ50: =INDEX(Picks!G:G,MATCH(AI50,Picks!A:A,0)) -> 19.92045455 | AK50: =INDEX(Weekly!I:I,MATCH(AI50,Weekly!E:E,0)) -> 2 | AL50: =IF(AJ50="","",_xlfn.RANK.EQ(AJ50,TopMaxScores,0)) -> 45
A51: =A50 -> Dave Orrell | B51: Forest Green | C51: =IF(J51="","",INDEX(Odds!B:B,MATCH(J51,Odds!F:F,0))) -> 1900-01-07 | D51: 2.05 | E51: √ | J51: Forest Green | K51: =INDEX(Odds!G:G,MATCH(J51,Odds!F:F,0)) -> 21/20 | L51: =INDEX(Odds!H:H,MATCH(J51,Odds!F:F,0)) -> 2.05 | M51: =INDEX(Odds!I:I,MATCH(J51,Odds!F:F,0)) -> 1 | N51: 2.05 | R51: =IF(Odds!F51="","",Odds!F51) -> Newcastle draw | S51: =INDEX(Odds!G:G,MATCH(R51,Odds!F:F,0)) -> 11/5 | T51: 0 | AB51: =IF(O51="","",INDEX(Odds!G:G,MATCH(O51,Odds!F:F,0))) ->  | AD51: Alick Rocca | AE51: =INDEX(Picks!F:F,MATCH(AD51,Picks!A:A,0)) -> -7 | AF51: =INDEX(Weekly!I:I,MATCH(AD51,Weekly!E:E,0)) -> 0 | AG51: =IF(AE51="","",_xlfn.RANK.EQ(AE51,TopScores,0)) -> 46 | AI51: Howard Bradley | AJ51: =INDEX(Picks!G:G,MATCH(AI51,Picks!A:A,0)) -> 19.46181818 | AK51: =INDEX(Weekly!I:I,MATCH(AI51,Weekly!E:E,0)) -> 2 | AL51: =IF(AJ51="","",_xlfn.RANK.EQ(AJ51,TopMaxScores,0)) -> 46
A52: =A50 -> Dave Orrell | B52: Oldham | C52: =IF(J52="","",INDEX(Odds!B:B,MATCH(J52,Odds!F:F,0))) -> 1900-01-07 | D52: 2.4 | E52: √ | J52: Oldham | K52: =INDEX(Odds!G:G,MATCH(J52,Odds!F:F,0)) -> 7/5 | L52: =INDEX(Odds!H:H,MATCH(J52,Odds!F:F,0)) -> 2.4 | M52: =INDEX(Odds!I:I,MATCH(J52,Odds!F:F,0)) -> 1 | N52: 2.4 | R52: =IF(Odds!F52="","",Odds!F52) -> Wolves draw | S52: =INDEX(Odds!G:G,MATCH(R52,Odds!F:F,0)) -> 23/10 | T52: 0 | AB52: =IF(O52="","",INDEX(Odds!G:G,MATCH(O52,Odds!F:F,0))) ->  | AD52: Joel Bent | AE52: =INDEX(Picks!F:F,MATCH(AD52,Picks!A:A,0)) -> -7 | AF52: =INDEX(Weekly!I:I,MATCH(AD52,Weekly!E:E,0)) -> 0 | AG52: =IF(AE52="","",_xlfn.RANK.EQ(AE52,TopScores,0)) -> 46 | AI52: Graham Miller | AJ52: =INDEX(Picks!G:G,MATCH(AI52,Picks!A:A,0)) -> 18.59090909 | AK52: =INDEX(Weekly!I:I,MATCH(AI52,Weekly!E:E,0)) -> 3 | AL52: =IF(AJ52="","",_xlfn.RANK.EQ(AJ52,TopMaxScores,0)) -> 47
A53: =Results!B53 -> David Dunn | B53: Wolves Draw | C53: =IF(J53="","",INDEX(Odds!B:B,MATCH(J53,Odds!F:F,0))) -> 1900-01-07 | D53: 3.3 | E53: x | F53: =IF(J53="",-10,INDEX(Results!T:T,MATCH(A53,Results!V:V,0))) -> 1.45 | G53: =IF(J53="","",INDEX(Results!AI:AI,MATCH(A53,Results!V:V,0))) -> 32.635 | H53: =IF(G53="",0,1) -> 1 | I53: =INDEX(Picks!AG:AG,MATCH(A53,Picks!AD:AD,0)) -> 15 | J53: Wolves Draw | K53: =INDEX(Odds!G:G,MATCH(J53,Odds!F:F,0)) -> 23/10 | L53: =INDEX(Odds!H:H,MATCH(J53,Odds!F:F,0)) -> 3.3 | M53: =INDEX(Odds!I:I,MATCH(J53,Odds!F:F,0)) -> 0 | N53: 0 | R53: =IF(Odds!F53="","",Odds!F53) -> Birmingham draw | S53: =INDEX(Odds!G:G,MATCH(R53,Odds!F:F,0)) -> 11/5 | T53: 0 | AB53: =IF(O53="","",INDEX(Odds!G:G,MATCH(O53,Odds!F:F,0))) ->  | AD53: Charlie Griffiths | AE53: =INDEX(Picks!F:F,MATCH(AD53,Picks!A:A,0)) -> -7 | AF53: =INDEX(Weekly!I:I,MATCH(AD53,Weekly!E:E,0)) -> 0 | AG53: =IF(AE53="","",_xlfn.RANK.EQ(AE53,TopScores,0)) -> 46 | AI53: Mo Sudell | AJ53: =INDEX(Picks!G:G,MATCH(AI53,Picks!A:A,0)) -> 17.84 | AK53: =INDEX(Weekly!I:I,MATCH(AI53,Weekly!E:E,0)) -> 1 | AL53: =IF(AJ53="","",_xlfn.RANK.EQ(AJ53,TopMaxScores,0)) -> 48
A54: =A53 -> David Dunn | B54: Leicester | C54: =IF(J54="","",INDEX(Odds!B:B,MATCH(J54,Odds!F:F,0))) -> 1900-01-01 | D54: 2 | E54: √ | J54: Leicester | K54: =INDEX(Odds!G:G,MATCH(J54,Odds!F:F,0)) -> 1/1 | L54: =INDEX(Odds!H:H,MATCH(J54,Odds!F:F,0)) -> 2 | M54: =INDEX(Odds!I:I,MATCH(J54,Odds!F:F,0)) -> 1 | N54: 2 | R54: =IF(Odds!F54="","",Odds!F54) -> Blackburn draw | S54: =INDEX(Odds!G:G,MATCH(R54,Odds!F:F,0)) -> 5/2 | T54: 0 | AB54: =IF(O54="","",INDEX(Odds!G:G,MATCH(O54,Odds!F:F,0))) ->  | AD54: Paul Barnes | AE54: =INDEX(Picks!F:F,MATCH(AD54,Picks!A:A,0)) -> -7 | AF54: =INDEX(Weekly!I:I,MATCH(AD54,Weekly!E:E,0)) -> 0 | AG54: =IF(AE54="","",_xlfn.RANK.EQ(AE54,TopScores,0)) -> 46 | AI54: John Ronan | AJ54: =INDEX(Picks!G:G,MATCH(AI54,Picks!A:A,0)) -> 17.6 | AK54: =INDEX(Weekly!I:I,MATCH(AI54,Weekly!E:E,0)) -> 2 | AL54: =IF(AJ54="","",_xlfn.RANK.EQ(AJ54,TopMaxScores,0)) -> 49
A55: =A53 -> David Dunn | B55: Middlesbro | C55: =IF(J55="","",INDEX(Odds!B:B,MATCH(J55,Odds!F:F,0))) -> 1900-01-07 | D55: 2.15 | E55: √ | J55: Middlesbro | K55: =INDEX(Odds!G:G,MATCH(J55,Odds!F:F,0)) -> 23/20 | L55: =INDEX(Odds!H:H,MATCH(J55,Odds!F:F,0)) -> 2.15 | M55: =INDEX(Odds!I:I,MATCH(J55,Odds!F:F,0)) -> 1 | N55: 2.15 | R55: =IF(Odds!F55="","",Odds!F55) -> Bournemouth draw | S55: =INDEX(Odds!G:G,MATCH(R55,Odds!F:F,0)) -> 29/10 | T55: 0 | AB55: =IF(O55="","",INDEX(Odds!G:G,MATCH(O55,Odds!F:F,0))) ->  | AD55: Ben Rosser | AE55: =INDEX(Picks!F:F,MATCH(AD55,Picks!A:A,0)) -> -7 | AF55: =INDEX(Weekly!I:I,MATCH(AD55,Weekly!E:E,0)) -> 0 | AG55: =IF(AE55="","",_xlfn.RANK.EQ(AE55,TopScores,0)) -> 46 | AI55: Paul Fiddler | AJ55: =INDEX(Picks!G:G,MATCH(AI55,Picks!A:A,0)) -> 16.544 | AK55: =INDEX(Weekly!I:I,MATCH(AI55,Weekly!E:E,0)) -> 1 | AL55: =IF(AJ55="","",_xlfn.RANK.EQ(AJ55,TopMaxScores,0)) -> 50
A56: =Results!B56 -> Gareth Fallows | C56: =IF(J56="","",INDEX(Odds!B:B,MATCH(J56,Odds!F:F,0))) ->  | F56: =IF(J56="",-10,INDEX(Results!T:T,MATCH(A56,Results!V:V,0))) -> -10 | G56: =IF(J56="","",INDEX(Results!AI:AI,MATCH(A56,Results!V:V,0))) ->  | H56: =IF(G56="",0,1) -> 0 | I56: =INDEX(Picks!AG:AG,MATCH(A56,Picks!AD:AD,0)) -> 59 | K56: =INDEX(Odds!G:G,MATCH(J56,Odds!F:F,0)) ->  | L56: =INDEX(Odds!H:H,MATCH(J56,Odds!F:F,0)) ->  | M56: =INDEX(Odds!I:I,MATCH(J56,Odds!F:F,0)) ->  | R56: =IF(Odds!F56="","",Odds!F56) -> Cardiff draw | S56: =INDEX(Odds!G:G,MATCH(R56,Odds!F:F,0)) -> 11/5 | T56: 0 | AB56: =IF(O56="","",INDEX(Odds!G:G,MATCH(O56,Odds!F:F,0))) ->  | AD56: Stephen Troop | AE56: =INDEX(Picks!F:F,MATCH(AD56,Picks!A:A,0)) -> -7 | AF56: =INDEX(Weekly!I:I,MATCH(AD56,Weekly!E:E,0)) -> 0 | AG56: =IF(AE56="","",_xlfn.RANK.EQ(AE56,TopScores,0)) -> 46 | AI56: Paul Allen | AJ56: =INDEX(Picks!G:G,MATCH(AI56,Picks!A:A,0)) -> 16.544 | AK56: =INDEX(Weekly!I:I,MATCH(AI56,Weekly!E:E,0)) -> 2 | AL56: =IF(AJ56="","",_xlfn.RANK.EQ(AJ56,TopMaxScores,0)) -> 50
A57: =A56 -> Gareth Fallows | C57: =IF(J57="","",INDEX(Odds!B:B,MATCH(J57,Odds!F:F,0))) ->  | K57: =INDEX(Odds!G:G,MATCH(J57,Odds!F:F,0)) ->  | L57: =INDEX(Odds!H:H,MATCH(J57,Odds!F:F,0)) ->  | M57: =INDEX(Odds!I:I,MATCH(J57,Odds!F:F,0)) ->  | R57: =IF(Odds!F57="","",Odds!F57) -> Derby draw | S57: =INDEX(Odds!G:G,MATCH(R57,Odds!F:F,0)) -> 11/5 | T57: 1 | AB57: =IF(O57="","",INDEX(Odds!G:G,MATCH(O57,Odds!F:F,0))) ->  | AD57: James Bell | AE57: =INDEX(Picks!F:F,MATCH(AD57,Picks!A:A,0)) -> -7 | AF57: =INDEX(Weekly!I:I,MATCH(AD57,Weekly!E:E,0)) -> 0 | AG57: =IF(AE57="","",_xlfn.RANK.EQ(AE57,TopScores,0)) -> 46 | AI57: Oscar Jackson | AJ57: =INDEX(Picks!G:G,MATCH(AI57,Picks!A:A,0)) -> 16.20363636 | AK57: =INDEX(Weekly!I:I,MATCH(AI57,Weekly!E:E,0)) -> 1 | AL57: =IF(AJ57="","",_xlfn.RANK.EQ(AJ57,TopMaxScores,0)) -> 52
A58: =A56 -> Gareth Fallows | C58: =IF(J58="","",INDEX(Odds!B:B,MATCH(J58,Odds!F:F,0))) ->  | K58: =INDEX(Odds!G:G,MATCH(J58,Odds!F:F,0)) ->  | L58: =INDEX(Odds!H:H,MATCH(J58,Odds!F:F,0)) ->  | M58: =INDEX(Odds!I:I,MATCH(J58,Odds!F:F,0)) ->  | R58: =IF(Odds!F58="","",Odds!F58) -> Forest draw | S58: =INDEX(Odds!G:G,MATCH(R58,Odds!F:F,0)) -> 11/5 | T58: 0 | AB58: =IF(O58="","",INDEX(Odds!G:G,MATCH(O58,Odds!F:F,0))) ->  | AD58: Ian Davies | AE58: =INDEX(Picks!F:F,MATCH(AD58,Picks!A:A,0)) -> -7 | AF58: =INDEX(Weekly!I:I,MATCH(AD58,Weekly!E:E,0)) -> 0 | AG58: =IF(AE58="","",_xlfn.RANK.EQ(AE58,TopScores,0)) -> 46 | AI58: Alan White | AJ58: =INDEX(Picks!G:G,MATCH(AI58,Picks!A:A,0)) -> 14.31404959 | AK58: =INDEX(Weekly!I:I,MATCH(AI58,Weekly!E:E,0)) -> 2 | AL58: =IF(AJ58="","",_xlfn.RANK.EQ(AJ58,TopMaxScores,0)) -> 53
A59: =Results!B59 -> Gareth McGuire | B59: Everton draw | C59: =IF(J59="","",INDEX(Odds!B:B,MATCH(J59,Odds!F:F,0))) -> 1900-01-07 | D59: 4 | E59: x | F59: =IF(J59="",-10,INDEX(Results!T:T,MATCH(A59,Results!V:V,0))) -> 2.98 | G59: =IF(J59="","",INDEX(Results!AI:AI,MATCH(A59,Results!V:V,0))) -> 46.9 | H59: =IF(G59="",0,1) -> 1 | I59: =INDEX(Picks!AG:AG,MATCH(A59,Picks!AD:AD,0)) -> 10 | J59: Everton draw | K59: =INDEX(Odds!G:G,MATCH(J59,Odds!F:F,0)) -> 3/1 | L59: =INDEX(Odds!H:H,MATCH(J59,Odds!F:F,0)) -> 4 | M59: =INDEX(Odds!I:I,MATCH(J59,Odds!F:F,0)) -> 0 | N59: 0 | R59: =IF(Odds!F59="","",Odds!F59) -> Luton draw | S59: =INDEX(Odds!G:G,MATCH(R59,Odds!F:F,0)) -> 11/5 | T59: 0 | AB59: =IF(O59="","",INDEX(Odds!G:G,MATCH(O59,Odds!F:F,0))) ->  | AD59: Paul Fairhurst | AE59: =INDEX(Picks!F:F,MATCH(AD59,Picks!A:A,0)) -> -7 | AF59: =INDEX(Weekly!I:I,MATCH(AD59,Weekly!E:E,0)) -> 0 | AG59: =IF(AE59="","",_xlfn.RANK.EQ(AE59,TopScores,0)) -> 46 | AI59: Kevin Carter | AJ59: =INDEX(Picks!G:G,MATCH(AI59,Picks!A:A,0)) -> 14.31404959 | AK59: =INDEX(Weekly!I:I,MATCH(AI59,Weekly!E:E,0)) -> 2 | AL59: =IF(AJ59="","",_xlfn.RANK.EQ(AJ59,TopMaxScores,0)) -> 53
A60: =A59 -> Gareth McGuire | B60: =IF(J60="","",J60) -> Watford | C60: =IF(J60="","",INDEX(Odds!B:B,MATCH(J60,Odds!F:F,0))) -> 1900-01-07 | D60: 2.05 | E60: √ | J60: Watford | K60: =INDEX(Odds!G:G,MATCH(J60,Odds!F:F,0)) -> 21/20 | L60: =INDEX(Odds!H:H,MATCH(J60,Odds!F:F,0)) -> 2.05 | M60: =INDEX(Odds!I:I,MATCH(J60,Odds!F:F,0)) -> 1 | N60: 2.05 | R60: =IF(Odds!F60="","",Odds!F60) -> Middlesbro draw | S60: =INDEX(Odds!G:G,MATCH(R60,Odds!F:F,0)) -> 11/5 | T60: 0 | AB60: =IF(O60="","",INDEX(Odds!G:G,MATCH(O60,Odds!F:F,0))) ->  | AD60: Phil Miller | AE60: =INDEX(Picks!F:F,MATCH(AD60,Picks!A:A,0)) -> -10 | AF60: =INDEX(Weekly!I:I,MATCH(AD60,Weekly!E:E,0)) -> 0 | AG60: =IF(AE60="","",_xlfn.RANK.EQ(AE60,TopScores,0)) -> 59 | AI60: Nick Blocksidge | AJ60: =INDEX(Picks!G:G,MATCH(AI60,Picks!A:A,0)) -> 12.86363636 | AK60: =INDEX(Weekly!I:I,MATCH(AI60,Weekly!E:E,0)) -> 1 | AL60: =IF(AJ60="","",_xlfn.RANK.EQ(AJ60,TopMaxScores,0)) -> 55
A61: =A59 -> Gareth McGuire | B61: =IF(J61="","",J61) -> Sunderland | C61: =IF(J61="","",INDEX(Odds!B:B,MATCH(J61,Odds!F:F,0))) -> 1900-01-07 | D61: =IF(J61="","",L61) -> 2.6 | E61: √ | J61: Sunderland | K61: =INDEX(Odds!G:G,MATCH(J61,Odds!F:F,0)) -> 8/5 | L61: =INDEX(Odds!H:H,MATCH(J61,Odds!F:F,0)) -> 2.6 | M61: =INDEX(Odds!I:I,MATCH(J61,Odds!F:F,0)) -> 1 | N61: 2.6 | R61: =IF(Odds!F61="","",Odds!F61) -> QPR draw | S61: =INDEX(Odds!G:G,MATCH(R61,Odds!F:F,0)) -> 23/10 | T61: 0 | AB61: =IF(O61="","",INDEX(Odds!G:G,MATCH(O61,Odds!F:F,0))) ->  | AD61: Lewis Buckley | AE61: =INDEX(Picks!F:F,MATCH(AD61,Picks!A:A,0)) -> -10 | AF61: =INDEX(Weekly!I:I,MATCH(AD61,Weekly!E:E,0)) -> 0 | AG61: =IF(AE61="","",_xlfn.RANK.EQ(AE61,TopScores,0)) -> 59 | AI61: Ashley Houghton | AJ61: =INDEX(Picks!G:G,MATCH(AI61,Picks!A:A,0)) -> 11.78181818 | AK61: =INDEX(Weekly!I:I,MATCH(AI61,Weekly!E:E,0)) -> 2 | AL61: =IF(AJ61="","",_xlfn.RANK.EQ(AJ61,TopMaxScores,0)) -> 56
A62: =Results!B62 -> Gareth Powell | B62: Chelsea | C62: =IF(J62="","",INDEX(Odds!B:B,MATCH(J62,Odds!F:F,0))) -> 1900-01-07 | D62: 1.75 | E62: x | F62: =IF(J62="",-10,INDEX(Results!T:T,MATCH(A62,Results!V:V,0))) -> -4.3 | G62: =IF(J62="","",INDEX(Results!AI:AI,MATCH(A62,Results!V:V,0))) -> 28.884375 | H62: =IF(G62="",0,1) -> 1 | I62: =INDEX(Picks!AG:AG,MATCH(A62,Picks!AD:AD,0)) -> 35 | J62: Chelsea | K62: =INDEX(Odds!G:G,MATCH(J62,Odds!F:F,0)) -> 3/4 | L62: =INDEX(Odds!H:H,MATCH(J62,Odds!F:F,0)) -> 1.75 | M62: =INDEX(Odds!I:I,MATCH(J62,Odds!F:F,0)) -> 0 | N62: =L62*M62 -> 0 | R62: =IF(Odds!F62="","",Odds!F62) -> Rotherham draw | S62: =INDEX(Odds!G:G,MATCH(R62,Odds!F:F,0)) -> 9/4 | T62: 0 | AB62: =IF(O62="","",INDEX(Odds!G:G,MATCH(O62,Odds!F:F,0))) ->  | AD62: Gareth Fallows | AE62: =INDEX(Picks!F:F,MATCH(AD62,Picks!A:A,0)) -> -10 | AF62: =INDEX(Weekly!I:I,MATCH(AD62,Weekly!E:E,0)) -> 0 | AG62: =IF(AE62="","",_xlfn.RANK.EQ(AE62,TopScores,0)) -> 59 | AI62: Lennie Bow | AJ62: =INDEX(Picks!G:G,MATCH(AI62,Picks!A:A,0)) -> 10.02 | AK62: =INDEX(Weekly!I:I,MATCH(AI62,Weekly!E:E,0)) -> 2 | AL62: =IF(AJ62="","",_xlfn.RANK.EQ(AJ62,TopMaxScores,0)) -> 57
A63: =A62 -> Gareth Powell | B63: =IF(J63="","",J63) -> Salford | C63: =IF(J63="","",INDEX(Odds!B:B,MATCH(J63,Odds!F:F,0))) -> 1900-01-07 | D63: =IF(J63="","",L63) -> 2.625 | E63: =IF(J63="","",IF(M63=1,"√","x")) -> x | J63: Salford | K63: =INDEX(Odds!G:G,MATCH(J63,Odds!F:F,0)) -> 13/8 | L63: =INDEX(Odds!H:H,MATCH(J63,Odds!F:F,0)) -> 2.625 | M63: =INDEX(Odds!I:I,MATCH(J63,Odds!F:F,0)) -> 0 | N63: 0 | R63: =IF(Odds!F63="","",Odds!F63) -> Sheff W draw | S63: =INDEX(Odds!G:G,MATCH(R63,Odds!F:F,0)) -> 21/10 | T63: 0 | AB63: =IF(O63="","",INDEX(Odds!G:G,MATCH(O63,Odds!F:F,0))) ->  | AD63: Dan Baxter | AE63: =INDEX(Picks!F:F,MATCH(AD63,Picks!A:A,0)) -> -10 | AF63: =INDEX(Weekly!I:I,MATCH(AD63,Weekly!E:E,0)) -> 0 | AG63: =IF(AE63="","",_xlfn.RANK.EQ(AE63,TopScores,0)) -> 59 | AI63: Steve Baxter | AJ63: =INDEX(Picks!G:G,MATCH(AI63,Picks!A:A,0)) -> 9.5 | AK63: =INDEX(Weekly!I:I,MATCH(AI63,Weekly!E:E,0)) -> 0 | AL63: =IF(AJ63="","",_xlfn.RANK.EQ(AJ63,TopMaxScores,0)) -> 58
A64: =A62 -> Gareth Powell | B64: Reading | C64: =IF(J64="","",INDEX(Odds!B:B,MATCH(J64,Odds!F:F,0))) -> 1900-01-07 | D64: 2.7 | E64: √ | J64: Reading | K64: =INDEX(Odds!G:G,MATCH(J64,Odds!F:F,0)) -> 17/10 | L64: =INDEX(Odds!H:H,MATCH(J64,Odds!F:F,0)) -> 2.7 | M64: =INDEX(Odds!I:I,MATCH(J64,Odds!F:F,0)) -> 1 | N64: 2.7 | R64: =IF(Odds!F64="","",Odds!F64) -> Wycombe draw | S64: =INDEX(Odds!G:G,MATCH(R64,Odds!F:F,0)) -> 9/4 | T64: 0 | AB64: =IF(O64="","",INDEX(Odds!G:G,MATCH(O64,Odds!F:F,0))) -> 
A65: =Results!B65 -> Gerard Ventom | B65: Wigan | C65: =IF(J65="","",INDEX(Odds!B:B,MATCH(J65,Odds!F:F,0))) -> 1900-01-07 | D65: 3.2 | E65: √ | F65: =IF(J65="",-10,INDEX(Results!T:T,MATCH(A65,Results!V:V,0))) -> 46.6 | G65: =IF(J65="","",INDEX(Results!AI:AI,MATCH(A65,Results!V:V,0))) -> 46.6 | H65: =IF(G65="",0,1) -> 1 | I65: =INDEX(Picks!AG:AG,MATCH(A65,Picks!AD:AD,0)) -> 3 | J65: Wigan | K65: =INDEX(Odds!G:G,MATCH(J65,Odds!F:F,0)) -> 11/5 | L65: =INDEX(Odds!H:H,MATCH(J65,Odds!F:F,0)) -> 3.2 | M65: =INDEX(Odds!I:I,MATCH(J65,Odds!F:F,0)) -> 1 | N65: 3.2 | R65: =IF(Odds!F65="","",Odds!F65) -> Blackpool draw | S65: =INDEX(Odds!G:G,MATCH(R65,Odds!F:F,0)) -> 9/4 | T65: 1 | AB65: =IF(O65="","",INDEX(Odds!G:G,MATCH(O65,Odds!F:F,0))) -> 
A66: =A65 -> Gerard Ventom | B66: Walsall | C66: =IF(J66="","",INDEX(Odds!B:B,MATCH(J66,Odds!F:F,0))) -> 1900-01-07 | D66: 2.25 | E66: √ | J66: Walsall | K66: =INDEX(Odds!G:G,MATCH(J66,Odds!F:F,0)) -> 5/4 | L66: =INDEX(Odds!H:H,MATCH(J66,Odds!F:F,0)) -> 2.25 | M66: =INDEX(Odds!I:I,MATCH(J66,Odds!F:F,0)) -> 1 | N66: 2.25 | R66: =IF(Odds!F66="","",Odds!F66) -> Bristol R draw | S66: =INDEX(Odds!G:G,MATCH(R66,Odds!F:F,0)) -> 5/2 | T66: 0 | AB66: =IF(O66="","",INDEX(Odds!G:G,MATCH(O66,Odds!F:F,0))) -> 
A67: =A65 -> Gerard Ventom | B67: Orient | C67: =IF(J67="","",INDEX(Odds!B:B,MATCH(J67,Odds!F:F,0))) -> 1900-01-07 | D67: 3 | E67: =IF(J67="","",IF(M67=1,"√","x")) -> √ | J67: Orient | K67: =INDEX(Odds!G:G,MATCH(J67,Odds!F:F,0)) -> 2/1 | L67: =INDEX(Odds!H:H,MATCH(J67,Odds!F:F,0)) -> 3 | M67: =INDEX(Odds!I:I,MATCH(J67,Odds!F:F,0)) -> 1 | N67: 3 | R67: =IF(Odds!F67="","",Odds!F67) -> Charlton draw | S67: =INDEX(Odds!G:G,MATCH(R67,Odds!F:F,0)) -> 5/2 | T67: 0 | AB67: =IF(O67="","",INDEX(Odds!G:G,MATCH(O67,Odds!F:F,0))) -> 
A68: =Results!B68 -> Graham Miller | B68: Newcastle | C68: =IF(J68="","",INDEX(Odds!B:B,MATCH(J68,Odds!F:F,0))) -> 1900-01-07 | D68: 2.25 | E68: √ | F68: =IF(J68="",-10,INDEX(Results!T:T,MATCH(A68,Results!V:V,0))) -> 18.59090909 | G68: =IF(J68="","",INDEX(Results!AI:AI,MATCH(A68,Results!V:V,0))) -> 18.59090909 | H68: =IF(G68="",0,1) -> 1 | I68: =INDEX(Picks!AG:AG,MATCH(A68,Picks!AD:AD,0)) -> 5 | J68: Newcastle | K68: =INDEX(Odds!G:G,MATCH(J68,Odds!F:F,0)) -> 5/4 | L68: =INDEX(Odds!H:H,MATCH(J68,Odds!F:F,0)) -> 2.25 | M68: =INDEX(Odds!I:I,MATCH(J68,Odds!F:F,0)) -> 1 | N68: 2.25 | R68: =IF(Odds!F68="","",Odds!F68) -> Crewe draw | S68: =INDEX(Odds!G:G,MATCH(R68,Odds!F:F,0)) -> 13/5 | T68: 0 | AB68: =IF(O68="","",INDEX(Odds!G:G,MATCH(O68,Odds!F:F,0))) -> 
A69: =A68 -> Graham Miller | B69: Leicester | C69: =IF(J69="","",INDEX(Odds!B:B,MATCH(J69,Odds!F:F,0))) -> 1900-01-01 | D69: 2 | E69: √ | J69: Leicester | K69: =INDEX(Odds!G:G,MATCH(J69,Odds!F:F,0)) -> 1/1 | L69: =INDEX(Odds!H:H,MATCH(J69,Odds!F:F,0)) -> 2 | M69: =INDEX(Odds!I:I,MATCH(J69,Odds!F:F,0)) -> 1 | N69: 2 | R69: =IF(Odds!F69="","",Odds!F69) -> Doncaster draw | S69: =INDEX(Odds!G:G,MATCH(R69,Odds!F:F,0)) -> 13/5 | T69: 0 | AB69: =IF(O69="","",INDEX(Odds!G:G,MATCH(O69,Odds!F:F,0))) -> 
A70: =A68 -> Graham Miller | B70: Southampton | C70: =IF(J70="","",INDEX(Odds!B:B,MATCH(J70,Odds!F:F,0))) -> 1900-01-01 | D70: 1.727272727 | E70: √ | J70: Southampton | K70: =INDEX(Odds!G:G,MATCH(J70,Odds!F:F,0)) -> 8/11 | L70: =INDEX(Odds!H:H,MATCH(J70,Odds!F:F,0)) -> 1.727272727 | M70: =INDEX(Odds!I:I,MATCH(J70,Odds!F:F,0)) -> 1 | N70: 1.727272727 | R70: =IF(Odds!F70="","",Odds!F70) -> Hull draw | S70: =INDEX(Odds!G:G,MATCH(R70,Odds!F:F,0)) -> 14/5 | T70: 0 | AB70: =IF(O70="","",INDEX(Odds!G:G,MATCH(O70,Odds!F:F,0))) -> 
A71: =Results!B71 -> Howard Bradley | B71: =IF(J71="","",J71) -> Blackpool | C71: =IF(J71="","",INDEX(Odds!B:B,MATCH(J71,Odds!F:F,0))) -> 1900-01-07 | D71: =IF(J71="","",L71) -> 2.2 | E71: =IF(J71="","",IF(M71=1,"√","x")) -> x | F71: =IF(J71="",-10,INDEX(Results!T:T,MATCH(A71,Results!V:V,0))) -> 0.5818181818 | G71: =IF(J71="","",INDEX(Results!AI:AI,MATCH(A71,Results!V:V,0))) -> 19.46181818 | H71: =IF(G71="",0,1) -> 1 | I71: =INDEX(Picks!AG:AG,MATCH(A71,Picks!AD:AD,0)) -> 19 | J71: Blackpool | K71: =INDEX(Odds!G:G,MATCH(J71,Odds!F:F,0)) -> 6/5 | L71: =INDEX(Odds!H:H,MATCH(J71,Odds!F:F,0)) -> 2.2 | M71: =INDEX(Odds!I:I,MATCH(J71,Odds!F:F,0)) -> 0 | N71: 0 | R71: =IF(Odds!F71="","",Odds!F71) -> Ipswich draw | S71: =INDEX(Odds!G:G,MATCH(R71,Odds!F:F,0)) -> 9/4 | T71: 0 | AB71: =IF(O71="","",INDEX(Odds!G:G,MATCH(O71,Odds!F:F,0))) -> 
A72: =A71 -> Howard Bradley | B72: Charlton | C72: =IF(J72="","",INDEX(Odds!B:B,MATCH(J72,Odds!F:F,0))) -> 1900-01-07 | D72: 1.95 | E72: √ | J72: Charlton | K72: =INDEX(Odds!G:G,MATCH(J72,Odds!F:F,0)) -> 19/20 | L72: =INDEX(Odds!H:H,MATCH(J72,Odds!F:F,0)) -> 1.95 | M72: =INDEX(Odds!I:I,MATCH(J72,Odds!F:F,0)) -> 1 | N72: 1.95 | R72: =IF(Odds!F72="","",Odds!F72) -> Lincoln draw | S72: =INDEX(Odds!G:G,MATCH(R72,Odds!F:F,0)) -> 21/10 | T72: 0 | AB72: =IF(O72="","",INDEX(Odds!G:G,MATCH(O72,Odds!F:F,0))) -> 
A73: =A71 -> Howard Bradley | B73: Doncaster | C73: =IF(J73="","",INDEX(Odds!B:B,MATCH(J73,Odds!F:F,0))) -> 1900-01-07 | D73: 1.909090909 | E73: √ | J73: Doncaster | K73: =INDEX(Odds!G:G,MATCH(J73,Odds!F:F,0)) -> 10/11 | L73: =INDEX(Odds!H:H,MATCH(J73,Odds!F:F,0)) -> 1.909090909 | M73: =INDEX(Odds!I:I,MATCH(J73,Odds!F:F,0)) -> 1 | N73: 1.909090909 | R73: =IF(Odds!F73="","",Odds!F73) -> MK Dons draw | S73: =INDEX(Odds!G:G,MATCH(R73,Odds!F:F,0)) -> 27/10 | T73: 1 | AB73: =IF(O73="","",INDEX(Odds!G:G,MATCH(O73,Odds!F:F,0))) -> 
A74: =Results!B74 -> Ian Davies | B74: Cardiff | C74: =IF(J74="","",INDEX(Odds!B:B,MATCH(J74,Odds!F:F,0))) -> 1900-01-07 | D74: 2.45 | E74: x | F74: =IF(J74="",-10,INDEX(Results!T:T,MATCH(A74,Results!V:V,0))) -> -7 | G74: =IF(J74="","",INDEX(Results!AI:AI,MATCH(A74,Results!V:V,0))) -> 56.239 | H74: =IF(G74="",0,1) -> 1 | I74: =INDEX(Picks!AG:AG,MATCH(A74,Picks!AD:AD,0)) -> 46 | J74: Cardiff | K74: =INDEX(Odds!G:G,MATCH(J74,Odds!F:F,0)) -> 29/20 | L74: =INDEX(Odds!H:H,MATCH(J74,Odds!F:F,0)) -> 2.45 | M74: =INDEX(Odds!I:I,MATCH(J74,Odds!F:F,0)) -> 0 | N74: 0 | R74: =IF(Odds!F74="","",Odds!F74) -> Peterborough draw | S74: =INDEX(Odds!G:G,MATCH(R74,Odds!F:F,0)) -> 16/5 | T74: 0 | AB74: =IF(O74="","",INDEX(Odds!G:G,MATCH(O74,Odds!F:F,0))) -> 
A75: =A74 -> Ian Davies | B75: Bournemouth draw | C75: =IF(J75="","",INDEX(Odds!B:B,MATCH(J75,Odds!F:F,0))) -> 1900-01-07 | D75: 3.9 | E75: x | J75: Bournemouth draw | K75: =INDEX(Odds!G:G,MATCH(J75,Odds!F:F,0)) -> 29/10 | L75: =INDEX(Odds!H:H,MATCH(J75,Odds!F:F,0)) -> 3.9 | M75: =INDEX(Odds!I:I,MATCH(J75,Odds!F:F,0)) -> 0 | N75: 0 | R75: =IF(Odds!F75="","",Odds!F75) -> Swindon draw | S75: =INDEX(Odds!G:G,MATCH(R75,Odds!F:F,0)) -> 12/5 | T75: 0 | AB75: =IF(O75="","",INDEX(Odds!G:G,MATCH(O75,Odds!F:F,0))) -> 
A76: =A74 -> Ian Davies | B76: Lincoln | C76: =IF(J76="","",INDEX(Odds!B:B,MATCH(J76,Odds!F:F,0))) -> 1900-01-07 | D76: 2.8 | E76: x | J76: Lincoln | K76: =INDEX(Odds!G:G,MATCH(J76,Odds!F:F,0)) -> 9/5 | L76: =INDEX(Odds!H:H,MATCH(J76,Odds!F:F,0)) -> 2.8 | M76: =INDEX(Odds!I:I,MATCH(J76,Odds!F:F,0)) -> 0 | N76: 0 | R76: =IF(Odds!F76="","",Odds!F76) -> Wigan draw | S76: =INDEX(Odds!G:G,MATCH(R76,Odds!F:F,0)) -> 9/4 | T76: 0 | AB76: =IF(O76="","",INDEX(Odds!G:G,MATCH(O76,Odds!F:F,0))) -> 
A77: =Results!B77 -> Jack Walsh | B77: Man U | C77: =IF(J77="","",INDEX(Odds!B:B,MATCH(J77,Odds!F:F,0))) -> 1900-01-07 | D77: 4.333333333 | E77: x | F77: =IF(J77="",-10,INDEX(Results!T:T,MATCH(A77,Results!V:V,0))) -> -5.35 | G77: =IF(J77="","",INDEX(Results!AI:AI,MATCH(A77,Results!V:V,0))) -> 38.64 | H77: =IF(G77="",0,1) -> 1 | I77: =INDEX(Picks!AG:AG,MATCH(A77,Picks!AD:AD,0)) -> 43 | J77: Man U | K77: =INDEX(Odds!G:G,MATCH(J77,Odds!F:F,0)) -> 10/3 | L77: =INDEX(Odds!H:H,MATCH(J77,Odds!F:F,0)) -> 4.333333333 | M77: =INDEX(Odds!I:I,MATCH(J77,Odds!F:F,0)) -> 0 | N77: 0 | R77: =IF(Odds!F77="","",Odds!F77) -> Carlisle draw | S77: =INDEX(Odds!G:G,MATCH(R77,Odds!F:F,0)) -> 14/5 | T77: 0 | AB77: =IF(O77="","",INDEX(Odds!G:G,MATCH(O77,Odds!F:F,0))) -> 
A78: =A77 -> Jack Walsh | B78: Wolves | C78: =IF(J78="","",INDEX(Odds!B:B,MATCH(J78,Odds!F:F,0))) -> 1900-01-07 | D78: 2.3 | E78: x | J78: Wolves | K78: =INDEX(Odds!G:G,MATCH(J78,Odds!F:F,0)) -> 13/10 | L78: =INDEX(Odds!H:H,MATCH(J78,Odds!F:F,0)) -> 2.3 | M78: =INDEX(Odds!I:I,MATCH(J78,Odds!F:F,0)) -> 0 | N78: 0 | R78: =IF(Odds!F78="","",Odds!F78) -> Crawley draw | S78: =INDEX(Odds!G:G,MATCH(R78,Odds!F:F,0)) -> 23/10 | T78: 0 | AB78: =IF(O78="","",INDEX(Odds!G:G,MATCH(O78,Odds!F:F,0))) -> 
A79: =A77 -> Jack Walsh | B79: Bournemouth | C79: =IF(J79="","",INDEX(Odds!B:B,MATCH(J79,Odds!F:F,0))) -> 1900-01-07 | D79: 1.65 | E79: √ | J79: Bournemouth | K79: =INDEX(Odds!G:G,MATCH(J79,Odds!F:F,0)) -> 13/20 | L79: =INDEX(Odds!H:H,MATCH(J79,Odds!F:F,0)) -> 1.65 | M79: =INDEX(Odds!I:I,MATCH(J79,Odds!F:F,0)) -> 1 | N79: 1.65 | R79: =IF(Odds!F79="","",Odds!F79) -> Exeter draw | S79: =INDEX(Odds!G:G,MATCH(R79,Odds!F:F,0)) -> 13/5 | T79: 0 | AB79: =IF(O79="","",INDEX(Odds!G:G,MATCH(O79,Odds!F:F,0))) -> 
A80: =Results!B80 -> James Bell | B80: Tranmere | C80: =IF(J80="","",INDEX(Odds!B:B,MATCH(J80,Odds!F:F,0))) -> 1900-01-07 | D80: 3.8 | E80: x | F80: =IF(J80="",-10,INDEX(Results!T:T,MATCH(A80,Results!V:V,0))) -> -7 | G80: =IF(J80="","",INDEX(Results!AI:AI,MATCH(A80,Results!V:V,0))) -> 73.144 | H80: =IF(G80="",0,1) -> 1 | I80: =INDEX(Picks!AG:AG,MATCH(A80,Picks!AD:AD,0)) -> 46 | J80: Tranmere | K80: =INDEX(Odds!G:G,MATCH(J80,Odds!F:F,0)) -> 14/5 | L80: =INDEX(Odds!H:H,MATCH(J80,Odds!F:F,0)) -> 3.8 | M80: =INDEX(Odds!I:I,MATCH(J80,Odds!F:F,0)) -> 0 | N80: 0 | R80: =IF(Odds!F80="","",Odds!F80) -> Forest Green draw | S80: =INDEX(Odds!G:G,MATCH(R80,Odds!F:F,0)) -> 23/10 | T80: 0 | AB80: =IF(O80="","",INDEX(Odds!G:G,MATCH(O80,Odds!F:F,0))) -> 
